Workbook

Sheet Composition et mode d'emplois
A1: Mode d'emploi résumé :
A3: Il faut remplir la page paramètre (rien de compliqué). Les cellules à remplir sont grises. Les autres feuilles se mettent à jour automatiquement. Les feuilles à faire (bleues) donnent une idée du travail pour maxer le hdv. La feuille planning permet de se projeter des les travaux à réaliser pour maxer son hdv. Les feuilles rouges sont masquées et contiennent les valeurs utiles aux différents calculs. D'autres feuilles sont masquées également afin de ne pas avoir trop de feuilles affichées. Il y a une macro qui permet d'afficher ces feuilles.
A6: Composition du fichier :
A8: Calculs :
A9: À Faire - Récapitulatif | B9: Une vue d'ensemble qui permet de voir de ce qu'il reste à faire en fonction du niveau de l'Hôtel De Ville et de ce qui a déjà été fait. Total des coûts et temps restants par catégorie de bâtiments et par Troupes / Sorts / Héros. Possibilité d'afficher le récapitulatif avec/sans les remparts, avec/sans l'hotel de ville, avec/sans héros (dans le camembert)
A10: À Faire - Détails | B10: Une vue détaillée de ce qu'il reste à faire en fonction du niveau de l'Hôtel De Ville et de ce qui a déjà été fait. Tous les coûts et temps restants pour chaque bâtiment et Troupes / Sorts / Héros.
A11: Production | B11: Une vue qui indique les gains en ressources en fonction du nombre et du niveau des Mines d'Or / Extracteurs / Foreuses et du temps de production.
A12: Rentabilité | B12: Un outil qui permet de calculer la rentabilité d'une attaque en fonction des ressources gagnées et des des troupes formées et du bonus de league eventuel (basé sur le nombre de trophés)
A13: Combats - Loots | B13: Un outil qui permet de calculer les gains et pertes possibles en combat en ligne en fonction des quantités stockées / des niveaux d'Hôtel De Ville / du nombre de trophées. Onglet masqué par défaut.
A14: Troops Training | B14: Un outil qui permet connaître les coûts et temps de formation de troupes en fonction de ce que l'on souhaite former et pouvoir établir sa formation en fonction de ce que l'on peut faire (niveau Laboratoire / niveaux Casernes / niveaux Casernes Noires) Onglet masqué par défaut.
A15: Valeur du Village
A17: Données : (onglets masqués)
A18: Bâtiments | B18: Créations / améliorations de bâtiments possibles en fonction du niveau de l'Hôtel De Ville
A19: Améliorations - Sorts & Troupes | B19: Améliorations de Sorts / Troupes possibles en fonction du niveau de l'Hôtel De Ville
A20: Héros | B20: Améliorations d'Héros possibles en fonction du niveau de l'Hôtel De Ville
A21: Coûts des Améliorations | B21: Coûts et temps des créations / améliorations des Bâtiments / Sorts / Troupes / Héros.
A22: Gains et Stockage | B22: Gains et capacités possibles en fonction du niveau des Réserves et Mines d'Or / Extracteurs / Foreuses.
A23: Trophées | B23: Bonus et coefficient multiplicateur pour les combats en fonction du nombre de Trophées
A24: Training Costs | B24: Coûts et temps des formations de Troupes + Capacité de Laboratoire / Casernes / Casernes Noires / Camps d'Armée
A26: Paramètres | B26: Les champs principaux à indiquer pour utiliser le fichier (niveau de l'Hôtel De Ville, nombre d'ouvriers, nombre et niveaux de Bâtiments / Sorts / Troupes / Héros)
A28: Journal des Modifications | B28: Cette vue permet de tracer l'évolution du fichier à travers les modifications apportées par rapport aux versions précédentes.
A30: Utilisation du fichier :
A32: Renseigner les informations nécessaires dans l'onglet "Paramètres" pour les calculs généraux :
B33: Niveau de l'Hôtel De Ville (Cellule BI2)
B34: Nombre d'ouvriers (Cellule BJ2)
B35: Nombre et niveaux de Bâtiments (Cellules B6:AF45)
B36: Niveaux des Sorts (Cellules AG:AN45)
B37: Niveaux des Troupes Normales (Cellules A06:AX45)
B38: Niveaux des Troupes Noires (Cellules AY6:BD45)
B39: Niveaux des Héros (Cellules BE6:BG45)
A41: Renseigner les informations nécessaires dans l'onglet "Combats - Loots" pour la fonctionnalité qui permet de connaître les gains et pertes possibles en combat en ligne :
B42: Attaque ou Défense (Cellule B2)
B43: Niveau de l'Hôtel De Ville de l'opposant (Cellule C2)
B44: Quantité de ressources dans les Réserves (Cellules B7:D13)
B45: Quantité de ressources dans les Mines / Extracteurs / Foreuses (Cellules E7:G13)
A47: Renseigner les informations nécessaires dans l'onglet "Formation de Troupes" pour la fonctionnalité qui permet connaître les coûts et temps de formation de troupes en fonction de ce que l'on souhaite former et pouvoir établir sa formation :
B48: Choix et nombre de créations pour les Sorts (Cellules G5:G9)
B49: Niveaux des Casernes (Cellules O2:R2)
B50: Choix et nombre de formations de troupes normales (Cellules O5:R14)
B51: Niveaux des Casernes Noires (Cellules AA2:AB2)
B52: Choix et nombre de formations de Troupes Noires (Cellules AA5:AB8)
A54: Enfin, il est possible de choisir l'affichage du temps dans les onglets "À Faire - Récapitulatif" et "Formation de Troupes" ou la période de production dans l'onglet "Production" :
B55: Affichage Temps (Cellule B2)
B56: Période (Cellule B2)
A58: Pour afficher les onglets masqués lancer la macro "Masquage_Onglets_OFF"
A59: Pour reccacher les onglets (uniquement les rouges) lancer la macro "Masquage_Onglets_ON"

Sheet Planning
A1: LVL HdV | C1: Date de Départ | D1: Pas (jour) | E1: Période Sélectionnée | F1: Créer Planning | G1: =Paramètres!BO2 -> 1 | I1: Période | K1: NB | L1: Besoins d'Or (sans remparts) | N1: Besoins d'Elixir | P1: Besoins d'Elixir Noir | S1: Légende
A2: =Paramètres!$BN$2 -> 1 | C2: 2016-07-20T14:09:05 | D2: 1 | E2: 2016-07-20 | F2: Réinitialiser | I2: =period_selected -> 2016-07-20 | K2: 0 | L2: 0 | N2: 0 | P2: 0 | T2: Planifié | X2: % Réalisé
A3: Planning | I3: =$I2+$D$2 -> 2016-07-21 | K3: 0 | L3: 0 | N3: 0 | P3: 0 | T3: Réel | X3: % Réalisé (au-delà du planifié)
I4: =$I3+$D$2 -> 2016-07-22 | K4: 0 | L4: 0 | N4: 0 | P4: 0 | T4: Réel (au-delà du planifié) | X4: Ouvriers disponibles
I5: =$I4+$D$2 -> 2016-07-23 | K5: 0 | L5: 0 | N5: 0 | P5: 0 | T5: Plus d'ouvrier disponible | X5: Erreur - Pas suffisament d'Ouvriers
I6: =SUM(I8:I78) -> 0 | J6: 0 | K6: 0 | L6: 0 | M6: 0 | N6: 0 | O6: 0 | P6: 0 | Q6: 0 | R6: 0 | S6: 0 | T6: 0 | U6: 0 | V6: 0 | W6: 0 | X6: 0 | Y6: 0 | Z6: 0 | AA6: 0 | AB6: 0 | AC6: 0 | AD6: 0 | AE6: 0 | AF6: 0 | AG6: 0 | AH6: 0 | AI6: 0 | AJ6: 0 | AK6: 0 | AL6: 0 | AM6: 0 | AN6: 0 | AO6: =SUM(AO8:AO78) -> 0 | AP6: 0 | AQ6: 0 | AR6: 0 | AS6: 0 | AT6: 0 | AU6: 0 | AV6: 0 | AW6: 0 | AX6: 0 | AY6: 0 | AZ6: 0 | BA6: 0 | BB6: 0 | BC6: 0 | BD6: 0 | BE6: 0 | BF6: 0 | BG6: 0 | BH6: 0 | BI6: 0 | BJ6: 0 | BK6: 0 | BL6: 0 | BM6: 0 | BN6: 0 | BO6: 0 | BP6: 0
A7: Construction / Amélioration | B7: + | C7: Coût | D7: Durée Planifée (jours) | E7: Début Planifiée | F7: Début Réel | G7: Durée Réelle | H7: % Réalisé | I7: =$C$2 -> 2016-07-20T14:09:05 | J7: =I$7+$D$2 -> 2016-07-21T14:09:05 | K7: =J$7+$D$2 -> 2016-07-22T14:09:05 | L7: 2016-07-23T14:09:05 | M7: 2016-07-24T14:09:05 | N7: 2016-07-25T14:09:05 | O7: 2016-07-26T14:09:05 | P7: 2016-07-27T14:09:05 | Q7: 2016-07-28T14:09:05 | R7: 2016-07-29T14:09:05 | S7: =R$7+$D$2 -> 2016-07-30T14:09:05 | T7: 2016-07-31T14:09:05 | U7: 2016-08-01T14:09:05 | V7: =U$7+$D$2 -> 2016-08-02T14:09:05 | W7: 2016-08-03T14:09:05 | X7: 2016-08-04T14:09:05 | Y7: 2016-08-05T14:09:05 | Z7: 2016-08-06T14:09:05 | AA7: 2016-08-07T14:09:05 | AB7: =AA$7+$D$2 -> 2016-08-08T14:09:05 | AC7: 2016-08-09T14:09:05 | AD7: 2016-08-10T14:09:05 | AE7: 2016-08-11T14:09:05 | AF7: 2016-08-12T14:09:05 | AG7: 2016-08-13T14:09:05 | AH7: 2016-08-14T14:09:05 | AI7: 2016-08-15T14:09:05 | AJ7: 2016-08-16T14:09:05 | AK7: 2016-08-17T14:09:05 | AL7: 2016-08-18T14:09:05 | AM7: 2016-08-19T14:09:05 | AN7: 2016-08-20T14:09:05 | AO7: 2016-08-21T14:09:05 | AP7: 2016-08-22T14:09:05 | AQ7: 2016-08-23T14:09:05 | AR7: 2016-08-24T14:09:05 | AS7: 2016-08-25T14:09:05 | AT7: 2016-08-26T14:09:05 | AU7: 2016-08-27T14:09:05 | AV7: 2016-08-28T14:09:05 | AW7: 2016-08-29T14:09:05 | AX7: 2016-08-30T14:09:05 | AY7: 2016-08-31T14:09:05 | AZ7: 2016-09-01T14:09:05 | BA7: 2016-09-02T14:09:05 | BB7: 2016-09-03T14:09:05 | BC7: 2016-09-04T14:09:05 | BD7: 2016-09-05T14:09:05 | BE7: 2016-09-06T14:09:05 | BF7: 2016-09-07T14:09:05 | BG7: 2016-09-08T14:09:05 | BH7: 2016-09-09T14:09:05 | BI7: 2016-09-10T14:09:05 | BJ7: 2016-09-11T14:09:05 | BK7: 2016-09-12T14:09:05 | BL7: 2016-09-13T14:09:05 | BM7: 2016-09-14T14:09:05 | BN7: 2016-09-15T14:09:05 | BO7: 2016-09-16T14:09:05 | BP7: 2016-09-17T14:09:05
A8: Bâtiments de Ressources | I8: =IF(ISERROR(Plan),0,Plan) -> 0 | J8: 0 | K8: 0 | L8: 0 | M8: 0 | N8: 0 | O8: 0 | P8: 0 | Q8: 0 | R8: 0 | S8: 0 | T8: 0 | U8: 0 | V8: 0 | W8: 0 | X8: 0 | Y8: =IF(ISERROR(Plan),0,Plan) -> 0 | Z8: 0 | AA8: 0 | AB8: 0 | AC8: 0 | AD8: 0 | AE8: 0 | AF8: 0 | AG8: 0 | AH8: 0 | AI8: 0 | AJ8: 0 | AK8: 0 | AL8: 0 | AM8: 0 | AN8: 0 | AO8: 0 | AP8: 0 | AQ8: 0 | AR8: 0 | AS8: 0 | AT8: 0 | AU8: 0 | AV8: 0 | AW8: 0 | AX8: 0 | AY8: 0 | AZ8: 0 | BA8: 0 | BB8: 0 | BC8: 0 | BD8: 0 | BE8: 0 | BF8: 0 | BG8: 0 | BH8: 0 | BI8: 0 | BJ8: 0 | BK8: 0 | BL8: 0 | BM8: 0 | BN8: 0 | BO8: 0 | BP8: 0
A9: Mine d'Or | C9: =IF($B9<>"",VLOOKUP($B9,COSTS_Gold_Mine[#All],2),"") ->  | D9: =IF($B9<>"",VLOOKUP($B9,COSTS_Gold_Mine[#All],3)/24,"") ->  | G9: =IF($D9<>"",$D9,"") ->  | I9: =IF(ISERROR(Plan),0,Plan) -> 0 | J9: 0 | K9: 0 | L9: 0 | M9: 0 | N9: 0 | O9: 0 | P9: 0 | Q9: 0 | R9: 0 | S9: =IF(ISERROR(Plan),0,Plan) -> 0 | T9: 0 | U9: 0 | V9: 0 | W9: 0 | X9: 0 | Y9: 0 | Z9: 0 | AA9: 0 | AB9: 0 | AC9: =IF(ISERROR(Plan),0,Plan) -> 0 | AD9: 0 | AE9: 0 | AF9: 0 | AG9: 0 | AH9: 0 | AI9: 0 | AJ9: 0 | AK9: 0 | AL9: 0 | AM9: =IF(ISERROR(Plan),0,Plan) -> 0 | AN9: 0 | AO9: 0 | AP9: 0 | AQ9: 0 | AR9: 0 | AS9: 0 | AT9: 0 | AU9: 0 | AV9: 0 | AW9: =IF(ISERROR(Plan),0,Plan) -> 0 | AX9: 0 | AY9: 0 | AZ9: 0 | BA9: 0 | BB9: 0 | BC9: 0 | BD9: 0 | BE9: 0 | BF9: 0 | BG9: =IF(ISERROR(Plan),0,Plan) -> 0 | BH9: 0 | BI9: 0 | BJ9: 0 | BK9: 0 | BL9: 0 | BM9: 0 | BN9: 0 | BO9: 0 | BP9: 0
A10: Extracteur d'Élixir | C10: =IF($B10<>"",VLOOKUP($B10,COSTS_Elixir_Collector[#All],2),"") ->  | D10: =IF($B10<>"",VLOOKUP($B10,COSTS_Elixir_Collector[#All],3)/24,"") ->  | I10: 0 | J10: 0 | K10: 0 | L10: 0 | M10: 0 | N10: 0 | O10: 0 | P10: 0 | Q10: 0 | R10: 0 | S10: 0 | T10: 0 | U10: 0 | V10: 0 | W10: 0 | X10: 0 | Y10: 0 | Z10: 0 | AA10: 0 | AB10: 0 | AC10: 0 | AD10: 0 | AE10: 0 | AF10: 0 | AG10: 0 | AH10: 0 | AI10: 0 | AJ10: 0 | AK10: 0 | AL10: 0 | AM10: 0 | AN10: 0 | AO10: 0 | AP10: 0 | AQ10: 0 | AR10: 0 | AS10: 0 | AT10: 0 | AU10: 0 | AV10: 0 | AW10: 0 | AX10: 0 | AY10: 0 | AZ10: 0 | BA10: 0 | BB10: 0 | BC10: 0 | BD10: 0 | BE10: 0 | BF10: 0 | BG10: 0 | BH10: 0 | BI10: 0 | BJ10: 0 | BK10: 0 | BL10: 0 | BM10: 0 | BN10: 0 | BO10: 0 | BP10: 0
A11: Foreuse d'Élixir Noir | C11: =IF($B11<>"",VLOOKUP($B11,COSTS_Dark_Elixir_Drill[#All],2),"") ->  | D11: =IF($B11<>"",VLOOKUP($B11,COSTS_Elixir_Collector[#All],3)/24,"") ->  | I11: 0 | J11: 0 | K11: 0 | L11: 0 | M11: 0 | N11: 0 | O11: 0 | P11: 0 | Q11: 0 | R11: 0 | S11: 0 | T11: 0 | U11: 0 | V11: 0 | W11: 0 | X11: 0 | Y11: 0 | Z11: 0 | AA11: 0 | AB11: 0 | AC11: 0 | AD11: 0 | AE11: 0 | AF11: 0 | AG11: 0 | AH11: 0 | AI11: 0 | AJ11: 0 | AK11: 0 | AL11: 0 | AM11: 0 | AN11: 0 | AO11: 0 | AP11: 0 | AQ11: 0 | AR11: 0 | AS11: 0 | AT11: 0 | AU11: 0 | AV11: 0 | AW11: 0 | AX11: 0 | AY11: 0 | AZ11: 0 | BA11: 0 | BB11: 0 | BC11: 0 | BD11: 0 | BE11: 0 | BF11: 0 | BG11: 0 | BH11: 0 | BI11: 0 | BJ11: 0 | BK11: 0 | BL11: 0 | BM11: 0 | BN11: 0 | BO11: 0 | BP11: 0
A12: Réserve d'Or | C12: =IF($B12<>"",VLOOKUP($B12,COSTS_Gold_Storage[#All],2),"") ->  | D12: =IF($B12<>"",VLOOKUP($B12,COSTS_Gold_Storage[#All],3)/24,"") ->  | I12: 0 | J12: 0 | K12: 0 | L12: =IF(ISERROR(Plan),0,Plan) -> 0 | M12: 0 | N12: 0 | O12: 0 | P12: 0 | Q12: 0 | R12: 0 | S12: 0 | T12: 0 | U12: 0 | V12: 0 | W12: 0 | X12: 0 | Y12: 0 | Z12: 0 | AA12: 0 | AB12: 0 | AC12: 0 | AD12: 0 | AE12: 0 | AF12: 0 | AG12: 0 | AH12: 0 | AI12: 0 | AJ12: 0 | AK12: 0 | AL12: 0 | AM12: 0 | AN12: 0 | AO12: 0 | AP12: 0 | AQ12: 0 | AR12: 0 | AS12: 0 | AT12: 0 | AU12: 0 | AV12: 0 | AW12: 0 | AX12: 0 | AY12: 0 | AZ12: 0 | BA12: 0 | BB12: 0 | BC12: 0 | BD12: 0 | BE12: 0 | BF12: 0 | BG12: 0 | BH12: 0 | BI12: 0 | BJ12: 0 | BK12: 0 | BL12: 0 | BM12: 0 | BN12: 0 | BO12: 0 | BP12: 0
A13: Réservoir d'Élixir | C13: =IF($B13<>"",VLOOKUP($B13,COSTS_Elixir_Storage[#All],2),"") ->  | D13: =IF($B13<>"",VLOOKUP($B13,COSTS_Elixir_Storage[#All],3)/24,"") ->  | I13: 0 | J13: 0 | K13: 0 | L13: 0 | M13: 0 | N13: 0 | O13: 0 | P13: 0 | Q13: 0 | R13: 0 | S13: 0 | T13: 0 | U13: 0 | V13: 0 | W13: 0 | X13: 0 | Y13: 0 | Z13: 0 | AA13: 0 | AB13: 0 | AC13: 0 | AD13: 0 | AE13: 0 | AF13: 0 | AG13: 0 | AH13: 0 | AI13: 0 | AJ13: 0 | AK13: 0 | AL13: 0 | AM13: 0 | AN13: 0 | AO13: 0 | AP13: 0 | AQ13: 0 | AR13: 0 | AS13: 0 | AT13: 0 | AU13: 0 | AV13: 0 | AW13: 0 | AX13: 0 | AY13: 0 | AZ13: 0 | BA13: 0 | BB13: 0 | BC13: 0 | BD13: 0 | BE13: 0 | BF13: 0 | BG13: 0 | BH13: 0 | BI13: 0 | BJ13: 0 | BK13: 0 | BL13: 0 | BM13: 0 | BN13: 0 | BO13: 0 | BP13: 0
A14: Réservoir d'Élixir Noir | C14: =IF($B14<>"",VLOOKUP($B14,COSTS_Dark_Elixir_Storage[#All],2),"") ->  | D14: =IF($B14<>"",VLOOKUP($B14,COSTS_Dark_Elixir_Storage[#All],3)/24,"") ->  | I14: 0 | J14: 0 | K14: 0 | L14: 0 | M14: 0 | N14: 0 | O14: 0 | P14: 0 | Q14: 0 | R14: 0 | S14: 0 | T14: 0 | U14: 0 | V14: 0 | W14: 0 | X14: 0 | Y14: 0 | Z14: 0 | AA14: 0 | AB14: 0 | AC14: 0 | AD14: 0 | AE14: 0 | AF14: 0 | AG14: 0 | AH14: 0 | AI14: 0 | AJ14: 0 | AK14: 0 | AL14: 0 | AM14: 0 | AN14: 0 | AO14: 0 | AP14: 0 | AQ14: 0 | AR14: 0 | AS14: 0 | AT14: 0 | AU14: 0 | AV14: 0 | AW14: 0 | AX14: 0 | AY14: 0 | AZ14: 0 | BA14: 0 | BB14: 0 | BC14: 0 | BD14: 0 | BE14: 0 | BF14: 0 | BG14: 0 | BH14: 0 | BI14: 0 | BJ14: 0 | BK14: 0 | BL14: 0 | BM14: 0 | BN14: 0 | BO14: 0 | BP14: 0
A15: Bâtiments d'Armée | I15: 0 | J15: 0 | K15: 0 | L15: 0 | M15: 0 | N15: 0 | O15: 0 | P15: 0 | Q15: 0 | R15: 0 | S15: 0 | T15: 0 | U15: 0 | V15: 0 | W15: 0 | X15: 0 | Y15: 0 | Z15: 0 | AA15: 0 | AB15: 0 | AC15: 0 | AD15: 0 | AE15: 0 | AF15: 0 | AG15: 0 | AH15: 0 | AI15: 0 | AJ15: 0 | AK15: 0 | AL15: 0 | AM15: 0 | AN15: 0 | AO15: 0 | AP15: 0 | AQ15: 0 | AR15: 0 | AS15: 0 | AT15: 0 | AU15: 0 | AV15: 0 | AW15: 0 | AX15: 0 | AY15: 0 | AZ15: 0 | BA15: 0 | BB15: 0 | BC15: 0 | BD15: 0 | BE15: 0 | BF15: 0 | BG15: 0 | BH15: 0 | BI15: 0 | BJ15: 0 | BK15: 0 | BL15: 0 | BM15: 0 | BN15: 0 | BO15: 0 | BP15: 0
A16: Caserne | C16: =IF($B16<>"",VLOOKUP($B16,COSTS_Barrack[#All],2),"") ->  | D16: =IF($B16<>"",VLOOKUP($B16,COSTS_Barrack[#All],3)/24,"") ->  | G16: =IF($D16<>"",$D16,"") ->  | I16: 0 | J16: 0 | K16: 0 | L16: 0 | M16: 0 | N16: 0 | O16: 0 | P16: 0 | Q16: 0 | R16: 0 | S16: 0 | T16: 0 | U16: 0 | V16: 0 | W16: 0 | X16: 0 | Y16: 0 | Z16: 0 | AA16: 0 | AB16: 0 | AC16: 0 | AD16: 0 | AE16: 0 | AF16: 0 | AG16: 0 | AH16: 0 | AI16: 0 | AJ16: 0 | AK16: 0 | AL16: 0 | AM16: 0 | AN16: 0 | AO16: 0 | AP16: 0 | AQ16: 0 | AR16: 0 | AS16: 0 | AT16: 0 | AU16: 0 | AV16: 0 | AW16: 0 | AX16: 0 | AY16: 0 | AZ16: 0 | BA16: 0 | BB16: 0 | BC16: 0 | BD16: 0 | BE16: 0 | BF16: 0 | BG16: 0 | BH16: 0 | BI16: 0 | BJ16: 0 | BK16: 0 | BL16: 0 | BM16: 0 | BN16: 0 | BO16: 0 | BP16: 0
A17: Caserne Noire | C17: =IF($B17<>"",VLOOKUP($B17,COSTS_Dark_Barrack[#All],2),"") ->  | D17: =IF($B17<>"",VLOOKUP($B17,COSTS_Dark_Barrack[#All],3)/24,"") ->  | G17: =IF($D17<>"",$D17,"") ->  | I17: 0 | J17: 0 | K17: 0 | L17: 0 | M17: 0 | N17: 0 | O17: 0 | P17: 0 | Q17: 0 | R17: 0 | S17: 0 | T17: 0 | U17: 0 | V17: 0 | W17: 0 | X17: 0 | Y17: 0 | Z17: 0 | AA17: 0 | AB17: 0 | AC17: 0 | AD17: 0 | AE17: 0 | AF17: 0 | AG17: 0 | AH17: 0 | AI17: 0 | AJ17: 0 | AK17: 0 | AL17: 0 | AM17: 0 | AN17: 0 | AO17: 0 | AP17: 0 | AQ17: 0 | AR17: 0 | AS17: 0 | AT17: 0 | AU17: 0 | AV17: 0 | AW17: 0 | AX17: 0 | AY17: 0 | AZ17: 0 | BA17: 0 | BB17: 0 | BC17: 0 | BD17: 0 | BE17: 0 | BF17: 0 | BG17: 0 | BH17: 0 | BI17: 0 | BJ17: 0 | BK17: 0 | BL17: 0 | BM17: 0 | BN17: 0 | BO17: 0 | BP17: 0
A18: Camp Militaire | C18: =IF($B18<>"",VLOOKUP($B18,COSTS_Army_Camp[#All],2),"") ->  | D18: =IF($B18<>"",VLOOKUP($B18,COSTS_Army_Camp[#All],3)/24,"") ->  | I18: 0 | J18: 0 | K18: 0 | L18: 0 | M18: 0 | N18: 0 | O18: 0 | P18: 0 | Q18: 0 | R18: 0 | S18: 0 | T18: 0 | U18: 0 | V18: 0 | W18: 0 | X18: 0 | Y18: 0 | Z18: 0 | AA18: 0 | AB18: 0 | AC18: 0 | AD18: 0 | AE18: 0 | AF18: 0 | AG18: 0 | AH18: 0 | AI18: 0 | AJ18: 0 | AK18: 0 | AL18: 0 | AM18: 0 | AN18: 0 | AO18: 0 | AP18: 0 | AQ18: 0 | AR18: 0 | AS18: 0 | AT18: 0 | AU18: 0 | AV18: 0 | AW18: 0 | AX18: 0 | AY18: 0 | AZ18: 0 | BA18: 0 | BB18: 0 | BC18: 0 | BD18: 0 | BE18: 0 | BF18: 0 | BG18: 0 | BH18: 0 | BI18: 0 | BJ18: 0 | BK18: 0 | BL18: 0 | BM18: 0 | BN18: 0 | BO18: 0 | BP18: 0
A19: Laboratoire | C19: =IF($B19<>"",VLOOKUP($B19,COSTS_Laboratory[#All],2),"") ->  | D19: =IF($B19<>"",VLOOKUP($B19,COSTS_Laboratory[#All],3)/24,"") ->  | I19: =IF(ISERROR(Plan),0,Plan) -> 0 | J19: 0 | K19: 0 | L19: 0 | M19: 0 | N19: 0 | O19: 0 | P19: 0 | Q19: 0 | R19: 0 | S19: 0 | T19: 0 | U19: 0 | V19: 0 | W19: 0 | X19: 0 | Y19: =IF(ISERROR(Plan),0,Plan) -> 0 | Z19: 0 | AA19: 0 | AB19: 0 | AC19: 0 | AD19: 0 | AE19: 0 | AF19: 0 | AG19: 0 | AH19: 0 | AI19: 0 | AJ19: 0 | AK19: 0 | AL19: 0 | AM19: 0 | AN19: 0 | AO19: =IF(ISERROR(Plan),0,Plan) -> 0 | AP19: 0 | AQ19: 0 | AR19: 0 | AS19: 0 | AT19: 0 | AU19: 0 | AV19: 0 | AW19: 0 | AX19: 0 | AY19: 0 | AZ19: 0 | BA19: 0 | BB19: 0 | BC19: 0 | BD19: 0 | BE19: =IF(ISERROR(Plan),0,Plan) -> 0 | BF19: 0 | BG19: 0 | BH19: 0 | BI19: 0 | BJ19: 0 | BK19: 0 | BL19: 0 | BM19: 0 | BN19: 0 | BO19: 0 | BP19: 0
A20: Usine de Sorts | C20: =IF($B20<>"",VLOOKUP($B20,COSTS_Spell_Factory[#All],2),"") ->  | D20: =IF($B20<>"",VLOOKUP($B20,COSTS_Spell_Factory[#All],3)/24,"") ->  | I20: =IF(ISERROR(Plan),0,Plan) -> 0 | J20: 0 | K20: 0 | L20: 0 | M20: 0 | N20: 0 | O20: 0 | P20: 0 | Q20: 0 | R20: 0 | S20: 0 | T20: 0 | U20: 0 | V20: 0 | W20: 0 | X20: 0 | Y20: 0 | Z20: 0 | AA20: 0 | AB20: 0 | AC20: 0 | AD20: 0 | AE20: 0 | AF20: 0 | AG20: 0 | AH20: 0 | AI20: 0 | AJ20: 0 | AK20: 0 | AL20: 0 | AM20: 0 | AN20: 0 | AO20: 0 | AP20: 0 | AQ20: 0 | AR20: 0 | AS20: 0 | AT20: 0 | AU20: 0 | AV20: 0 | AW20: 0 | AX20: 0 | AY20: 0 | AZ20: 0 | BA20: 0 | BB20: 0 | BC20: 0 | BD20: 0 | BE20: 0 | BF20: 0 | BG20: 0 | BH20: 0 | BI20: 0 | BJ20: 0 | BK20: 0 | BL20: 0 | BM20: 0 | BN20: 0 | BO20: 0 | BP20: 0
A21: Usine de Sorts Noirs | C21: =IF($B21<>"",VLOOKUP($B21,COSTS_Dark_Spell_Factory[#All],2),"") ->  | D21: =IF($B21<>"",VLOOKUP($B21,COSTS_Dark_Spell_Factory[#All],3)/24,"") ->  | I21: =IF(ISERROR(Plan),0,Plan) -> 0 | J21: =IF(ISERROR(Plan),0,Plan) -> 0 | K21: 0 | L21: 0 | M21: 0 | N21: 0 | O21: 0 | P21: 0 | Q21: 0 | R21: 0 | S21: 0 | T21: 0 | U21: 0 | V21: 0 | W21: 0 | X21: 0 | Y21: 0 | Z21: 0 | AA21: 0 | AB21: 0 | AC21: 0 | AD21: 0 | AE21: 0 | AF21: 0 | AG21: 0 | AH21: 0 | AI21: 0 | AJ21: 0 | AK21: 0 | AL21: 0 | AM21: 0 | AN21: 0 | AO21: 0 | AP21: 0 | AQ21: 0 | AR21: 0 | AS21: 0 | AT21: 0 | AU21: 0 | AV21: 0 | AW21: 0 | AX21: 0 | AY21: 0 | AZ21: 0 | BA21: 0 | BB21: 0 | BC21: 0 | BD21: 0 | BE21: 0 | BF21: 0 | BG21: 0 | BH21: 0 | BI21: 0 | BJ21: 0 | BK21: 0 | BL21: 0 | BM21: 0 | BN21: 0 | BO21: 0 | BP21: 0
A22: Bâtiments Défensifs | I22: 0 | J22: 0 | K22: 0 | L22: 0 | M22: 0 | N22: 0 | O22: 0 | P22: 0 | Q22: 0 | R22: 0 | S22: 0 | T22: 0 | U22: 0 | V22: 0 | W22: 0 | X22: 0 | Y22: 0 | Z22: 0 | AA22: 0 | AB22: 0 | AC22: 0 | AD22: 0 | AE22: 0 | AF22: 0 | AG22: 0 | AH22: 0 | AI22: 0 | AJ22: 0 | AK22: 0 | AL22: 0 | AM22: 0 | AN22: 0 | AO22: 0 | AP22: 0 | AQ22: 0 | AR22: 0 | AS22: 0 | AT22: 0 | AU22: 0 | AV22: 0 | AW22: 0 | AX22: 0 | AY22: 0 | AZ22: 0 | BA22: 0 | BB22: 0 | BC22: 0 | BD22: 0 | BE22: 0 | BF22: 0 | BG22: 0 | BH22: 0 | BI22: 0 | BJ22: 0 | BK22: 0 | BL22: 0 | BM22: 0 | BN22: 0 | BO22: 0 | BP22: 0
A23: Rempart | C23: =IF($B23<>"",VLOOKUP($B23,COSTS_Wall[#All],2),"") ->  | D23: =IF($B23<>"",VLOOKUP($B23,COSTS_Wall[#All],3)/24,"") ->  | G23: =IF($D23<>"",$D23,"") ->  | I23: 0 | J23: 0 | K23: 0 | L23: 0 | M23: 0 | N23: 0 | O23: 0 | P23: 0 | Q23: 0 | R23: 0 | S23: 0 | T23: 0 | U23: 0 | V23: 0 | W23: 0 | X23: 0 | Y23: 0 | Z23: 0 | AA23: 0 | AB23: 0 | AC23: 0 | AD23: 0 | AE23: 0 | AF23: 0 | AG23: 0 | AH23: 0 | AI23: 0 | AJ23: 0 | AK23: 0 | AL23: 0 | AM23: 0 | AN23: 0 | AO23: 0 | AP23: 0 | AQ23: 0 | AR23: 0 | AS23: 0 | AT23: 0 | AU23: 0 | AV23: 0 | AW23: 0 | AX23: 0 | AY23: 0 | AZ23: 0 | BA23: 0 | BB23: 0 | BC23: 0 | BD23: 0 | BE23: 0 | BF23: 0 | BG23: 0 | BH23: 0 | BI23: 0 | BJ23: 0 | BK23: 0 | BL23: 0 | BM23: 0 | BN23: 0 | BO23: 0 | BP23: 0
A24: Canon | C24: =IF($B24<>"",VLOOKUP($B24,COSTS_Cannon[#All],2),"") ->  | D24: =IF($B24<>"",VLOOKUP($B24,COSTS_Cannon[#All],3)/24,"") ->  | G24: =IF($D24<>"",$D24,"") ->  | I24: 0 | J24: 0 | K24: 0 | L24: 0 | M24: 0 | N24: 0 | O24: 0 | P24: 0 | Q24: 0 | R24: 0 | S24: 0 | T24: 0 | U24: 0 | V24: 0 | W24: 0 | X24: 0 | Y24: 0 | Z24: 0 | AA24: 0 | AB24: 0 | AC24: 0 | AD24: 0 | AE24: 0 | AF24: 0 | AG24: 0 | AH24: 0 | AI24: 0 | AJ24: 0 | AK24: 0 | AL24: 0 | AM24: 0 | AN24: 0 | AO24: 0 | AP24: 0 | AQ24: 0 | AR24: 0 | AS24: 0 | AT24: 0 | AU24: 0 | AV24: 0 | AW24: 0 | AX24: 0 | AY24: 0 | AZ24: 0 | BA24: 0 | BB24: 0 | BC24: 0 | BD24: 0 | BE24: 0 | BF24: 0 | BG24: 0 | BH24: 0 | BI24: 0 | BJ24: 0 | BK24: 0 | BL24: 0 | BM24: 0 | BN24: 0 | BO24: 0 | BP24: 0
A25: Tour d'Archers | C25: =IF($B25<>"",VLOOKUP($B25,COSTS_Archer_Tower[#All],2),"") ->  | D25: =IF($B25<>"",VLOOKUP($B25,COSTS_Cannon[#All],3)/24,"") ->  | I25: =IF(ISERROR(Plan),0,Plan) -> 0 | J25: 0 | K25: 0 | L25: 0 | M25: 0 | N25: 0 | O25: 0 | P25: 0 | Q25: 0 | R25: 0 | S25: 0 | T25: 0 | U25: 0 | V25: 0 | W25: 0 | X25: 0 | Y25: =IF(ISERROR(Plan),0,Plan) -> 0 | Z25: 0 | AA25: 0 | AB25: 0 | AC25: 0 | AD25: 0 | AE25: 0 | AF25: 0 | AG25: 0 | AH25: 0 | AI25: 0 | AJ25: 0 | AK25: 0 | AL25: 0 | AM25: 0 | AN25: 0 | AO25: =IF(ISERROR(Plan),0,Plan) -> 0 | AP25: 0 | AQ25: 0 | AR25: 0 | AS25: 0 | AT25: 0 | AU25: 0 | AV25: 0 | AW25: 0 | AX25: 0 | AY25: 0 | AZ25: 0 | BA25: 0 | BB25: 0 | BC25: 0 | BD25: 0 | BE25: =IF(ISERROR(Plan),0,Plan) -> 0 | BF25: 0 | BG25: 0 | BH25: 0 | BI25: 0 | BJ25: 0 | BK25: 0 | BL25: 0 | BM25: 0 | BN25: 0 | BO25: 0 | BP25: 0
A26: Mortier | C26: =IF($B26<>"",VLOOKUP($B26,COSTS_Mortar[#All],2),"") ->  | D26: =IF($B26<>"",VLOOKUP($B26,COSTS_Mortar[#All],3)/24,"") ->  | I26: 0 | J26: 0 | K26: 0 | L26: 0 | M26: 0 | N26: 0 | O26: 0 | P26: 0 | Q26: 0 | R26: 0 | S26: 0 | T26: 0 | U26: 0 | V26: 0 | W26: 0 | X26: 0 | Y26: =IF(ISERROR(Plan),0,Plan) -> 0 | Z26: 0 | AA26: 0 | AB26: 0 | AC26: 0 | AD26: 0 | AE26: 0 | AF26: 0 | AG26: 0 | AH26: 0 | AI26: 0 | AJ26: 0 | AK26: 0 | AL26: 0 | AM26: 0 | AN26: 0 | AO26: =IF(ISERROR(Plan),0,Plan) -> 0 | AP26: 0 | AQ26: 0 | AR26: 0 | AS26: 0 | AT26: 0 | AU26: 0 | AV26: 0 | AW26: 0 | AX26: 0 | AY26: 0 | AZ26: 0 | BA26: 0 | BB26: 0 | BC26: 0 | BD26: 0 | BE26: =IF(ISERROR(Plan),0,Plan) -> 0 | BF26: 0 | BG26: 0 | BH26: 0 | BI26: 0 | BJ26: 0 | BK26: 0 | BL26: 0 | BM26: 0 | BN26: 0 | BO26: 0 | BP26: 0
A27: Défense Antiaérienne | C27: =IF($B27<>"",VLOOKUP($B27,COSTS_Air_Defense[#All],2),"") ->  | D27: =IF($B27<>"",VLOOKUP($B27,COSTS_Air_Defense[#All],3)/24,"") ->  | I27: 0 | J27: 0 | K27: 0 | L27: 0 | M27: 0 | N27: 0 | O27: 0 | P27: 0 | Q27: 0 | R27: 0 | S27: 0 | T27: 0 | U27: 0 | V27: 0 | W27: 0 | X27: 0 | Y27: 0 | Z27: 0 | AA27: 0 | AB27: 0 | AC27: 0 | AD27: 0 | AE27: 0 | AF27: 0 | AG27: 0 | AH27: 0 | AI27: 0 | AJ27: 0 | AK27: 0 | AL27: 0 | AM27: 0 | AN27: 0 | AO27: 0 | AP27: 0 | AQ27: 0 | AR27: 0 | AS27: 0 | AT27: 0 | AU27: 0 | AV27: 0 | AW27: 0 | AX27: 0 | AY27: 0 | AZ27: 0 | BA27: 0 | BB27: 0 | BC27: 0 | BD27: 0 | BE27: 0 | BF27: 0 | BG27: 0 | BH27: 0 | BI27: 0 | BJ27: 0 | BK27: 0 | BL27: 0 | BM27: 0 | BN27: 0 | BO27: 0 | BP27: 0
A28: Tour de Sorciers | C28: =IF($B28<>"",VLOOKUP($B28,COSTS_Wizard_Tower[#All],2),"") ->  | D28: =IF($B28<>"",VLOOKUP($B28,COSTS_Wizard_Tower[#All],3)/24,"") ->  | I28: 0 | J28: 0 | K28: 0 | L28: 0 | M28: 0 | N28: 0 | O28: 0 | P28: 0 | Q28: 0 | R28: 0 | S28: 0 | T28: 0 | U28: 0 | V28: 0 | W28: 0 | X28: 0 | Y28: 0 | Z28: 0 | AA28: 0 | AB28: 0 | AC28: 0 | AD28: 0 | AE28: 0 | AF28: 0 | AG28: 0 | AH28: 0 | AI28: 0 | AJ28: 0 | AK28: 0 | AL28: 0 | AM28: 0 | AN28: 0 | AO28: 0 | AP28: 0 | AQ28: 0 | AR28: 0 | AS28: 0 | AT28: 0 | AU28: 0 | AV28: 0 | AW28: 0 | AX28: 0 | AY28: 0 | AZ28: 0 | BA28: 0 | BB28: 0 | BC28: 0 | BD28: 0 | BE28: 0 | BF28: 0 | BG28: 0 | BH28: 0 | BI28: 0 | BJ28: 0 | BK28: 0 | BL28: 0 | BM28: 0 | BN28: 0 | BO28: 0 | BP28: 0
A29: Propulseur d'air | C29: =IF($B29<>"",VLOOKUP($B29,COSTS_Air_Sweeper[#All],2),"") ->  | D29: =IF($B29<>"",VLOOKUP($B29,COSTS_Air_Sweeper[#All],3)/24,"") ->  | I29: 0 | J29: 0 | K29: 0 | L29: 0 | M29: 0 | N29: 0 | O29: 0 | P29: 0 | Q29: 0 | R29: 0 | S29: 0 | T29: 0 | U29: 0 | V29: 0 | W29: 0 | X29: 0 | Y29: 0 | Z29: 0 | AA29: 0 | AB29: 0 | AC29: 0 | AD29: 0 | AE29: 0 | AF29: 0 | AG29: 0 | AH29: 0 | AI29: 0 | AJ29: 0 | AK29: 0 | AL29: 0 | AM29: 0 | AN29: 0 | AO29: 0 | AP29: 0 | AQ29: 0 | AR29: 0 | AS29: 0 | AT29: 0 | AU29: 0 | AV29: 0 | AW29: 0 | AX29: 0 | AY29: 0 | AZ29: 0 | BA29: 0 | BB29: 0 | BC29: 0 | BD29: 0 | BE29: 0 | BF29: 0 | BG29: 0 | BH29: 0 | BI29: 0 | BJ29: 0 | BK29: 0 | BL29: 0 | BM29: 0 | BN29: 0 | BO29: 0 | BP29: 0
A30: Tesla Camouflée | C30: =IF($B30<>"",VLOOKUP($B30,COSTS_Hidden_Tesla[#All],2),"") ->  | D30: =IF($B30<>"",VLOOKUP($B30,COSTS_Hidden_Tesla[#All],3)/24,"") ->  | I30: 0 | J30: 0 | K30: 0 | L30: 0 | M30: 0 | N30: 0 | O30: 0 | P30: 0 | Q30: 0 | R30: 0 | S30: 0 | T30: 0 | U30: 0 | V30: 0 | W30: 0 | X30: 0 | Y30: 0 | Z30: 0 | AA30: 0 | AB30: 0 | AC30: 0 | AD30: 0 | AE30: 0 | AF30: 0 | AG30: 0 | AH30: 0 | AI30: 0 | AJ30: 0 | AK30: 0 | AL30: 0 | AM30: 0 | AN30: 0 | AO30: 0 | AP30: 0 | AQ30: 0 | AR30: 0 | AS30: 0 | AT30: 0 | AU30: 0 | AV30: 0 | AW30: 0 | AX30: 0 | AY30: 0 | AZ30: 0 | BA30: 0 | BB30: 0 | BC30: 0 | BD30: 0 | BE30: 0 | BF30: 0 | BG30: 0 | BH30: 0 | BI30: 0 | BJ30: 0 | BK30: 0 | BL30: 0 | BM30: 0 | BN30: 0 | BO30: 0 | BP30: 0
A31: Arc-X | C31: =IF($B31<>"",VLOOKUP($B31,COSTS_XBow[#All],2),"") ->  | D31: =IF($B31<>"",VLOOKUP($B31,COSTS_XBow[#All],3)/24,"") ->  | I31: 0 | J31: 0 | K31: 0 | L31: 0 | M31: 0 | N31: 0 | O31: 0 | P31: 0 | Q31: 0 | R31: 0 | S31: 0 | T31: 0 | U31: 0 | V31: 0 | W31: 0 | X31: 0 | Y31: 0 | Z31: 0 | AA31: 0 | AB31: 0 | AC31: 0 | AD31: 0 | AE31: 0 | AF31: 0 | AG31: 0 | AH31: 0 | AI31: 0 | AJ31: 0 | AK31: 0 | AL31: 0 | AM31: 0 | AN31: 0 | AO31: 0 | AP31: 0 | AQ31: 0 | AR31: 0 | AS31: 0 | AT31: 0 | AU31: 0 | AV31: 0 | AW31: 0 | AX31: 0 | AY31: 0 | AZ31: 0 | BA31: 0 | BB31: 0 | BC31: 0 | BD31: 0 | BE31: 0 | BF31: 0 | BG31: 0 | BH31: 0 | BI31: 0 | BJ31: 0 | BK31: 0 | BL31: 0 | BM31: 0 | BN31: 0 | BO31: 0 | BP31: 0
A32: Tour de l'Enfer | C32: =IF($B32<>"",VLOOKUP($B32,COSTS_Inferno_Tower[#All],2),"") ->  | D32: =IF($B32<>"",VLOOKUP($B32,COSTS_Inferno_Tower[#All],3)/24,"") ->  | I32: 0 | J32: 0 | K32: 0 | L32: 0 | M32: 0 | N32: 0 | O32: 0 | P32: 0 | Q32: 0 | R32: 0 | S32: 0 | T32: 0 | U32: 0 | V32: 0 | W32: 0 | X32: 0 | Y32: 0 | Z32: 0 | AA32: 0 | AB32: 0 | AC32: 0 | AD32: 0 | AE32: 0 | AF32: 0 | AG32: 0 | AH32: 0 | AI32: 0 | AJ32: 0 | AK32: 0 | AL32: 0 | AM32: 0 | AN32: 0 | AO32: 0 | AP32: 0 | AQ32: 0 | AR32: 0 | AS32: 0 | AT32: 0 | AU32: 0 | AV32: 0 | AW32: 0 | AX32: 0 | AY32: 0 | AZ32: 0 | BA32: 0 | BB32: 0 | BC32: 0 | BD32: 0 | BE32: 0 | BF32: 0 | BG32: 0 | BH32: 0 | BI32: 0 | BJ32: 0 | BK32: 0 | BL32: 0 | BM32: 0 | BN32: 0 | BO32: 0 | BP32: 0
A33: Aigle Artilleur | C33: =IF($B33<>"",VLOOKUP($B33,COSTS_Defense_Aigle[#All],2),"") ->  | D33: =IF($B33<>"",VLOOKUP($B33,COSTS_Defense_Aigle[#All],3)/24,"") ->  | I33: 0 | J33: 0 | K33: 0 | L33: 0 | M33: 0 | N33: 0 | O33: 0 | P33: 0 | Q33: 0 | R33: 0 | S33: 0 | T33: 0 | U33: 0 | V33: 0 | W33: 0 | X33: 0 | Y33: 0 | Z33: 0 | AA33: 0 | AB33: 0 | AC33: 0 | AD33: 0 | AE33: 0 | AF33: 0 | AG33: 0 | AH33: 0 | AI33: 0 | AJ33: 0 | AK33: 0 | AL33: 0 | AM33: 0 | AN33: 0 | AO33: =IF(ISERROR(Plan),0,Plan) -> 0 | AP33: 0 | AQ33: 0 | AR33: 0 | AS33: 0 | AT33: 0 | AU33: 0 | AV33: 0 | AW33: 0 | AX33: 0 | AY33: 0 | AZ33: 0 | BA33: 0 | BB33: 0 | BC33: 0 | BD33: 0 | BE33: 0 | BF33: 0 | BG33: 0 | BH33: 0 | BI33: 0 | BJ33: 0 | BK33: 0 | BL33: 0 | BM33: 0 | BN33: 0 | BO33: 0 | BP33: 0
A34: Pièges Défensifs | I34: 0 | J34: 0 | K34: 0 | L34: 0 | M34: 0 | N34: 0 | O34: 0 | P34: 0 | Q34: 0 | R34: 0 | S34: 0 | T34: 0 | U34: 0 | V34: 0 | W34: 0 | X34: 0 | Y34: 0 | Z34: 0 | AA34: 0 | AB34: =IF(ISERROR(Plan),0,Plan) -> 0 | AC34: 0 | AD34: 0 | AE34: 0 | AF34: 0 | AG34: 0 | AH34: 0 | AI34: 0 | AJ34: 0 | AK34: 0 | AL34: 0 | AM34: 0 | AN34: 0 | AO34: 0 | AP34: 0 | AQ34: 0 | AR34: 0 | AS34: 0 | AT34: 0 | AU34: 0 | AV34: 0 | AW34: 0 | AX34: 0 | AY34: 0 | AZ34: 0 | BA34: 0 | BB34: 0 | BC34: 0 | BD34: 0 | BE34: 0 | BF34: 0 | BG34: 0 | BH34: 0 | BI34: 0 | BJ34: 0 | BK34: 0 | BL34: 0 | BM34: 0 | BN34: 0 | BO34: 0 | BP34: 0
A35: Bombe | C35: =IF($B35<>"",VLOOKUP($B35,COSTS_Bomb[#All],2),"") ->  | D35: =IF($B35<>"",VLOOKUP($B35,COSTS_Bomb[#All],3)/24,"") ->  | G35: =IF($D35<>"",$D35,"") ->  | I35: 0 | J35: 0 | K35: 0 | L35: 0 | M35: 0 | N35: 0 | O35: 0 | P35: 0 | Q35: 0 | R35: 0 | S35: 0 | T35: 0 | U35: 0 | V35: 0 | W35: 0 | X35: 0 | Y35: =IF(ISERROR(Plan),0,Plan) -> 0 | Z35: 0 | AA35: 0 | AB35: 0 | AC35: 0 | AD35: 0 | AE35: 0 | AF35: 0 | AG35: 0 | AH35: 0 | AI35: 0 | AJ35: 0 | AK35: 0 | AL35: 0 | AM35: 0 | AN35: 0 | AO35: 0 | AP35: 0 | AQ35: 0 | AR35: 0 | AS35: 0 | AT35: 0 | AU35: 0 | AV35: 0 | AW35: 0 | AX35: 0 | AY35: 0 | AZ35: 0 | BA35: 0 | BB35: 0 | BC35: 0 | BD35: 0 | BE35: 0 | BF35: 0 | BG35: 0 | BH35: 0 | BI35: 0 | BJ35: 0 | BK35: =IF(ISERROR(Plan),0,Plan) -> 0 | BL35: 0 | BM35: 0 | BN35: 0 | BO35: 0 | BP35: 0
A36: Piège à ressort | C36: =IF($B36<>"",VLOOKUP($B36,COSTS_Spring_Trap[#All],2),"") ->  | D36: =IF($B36<>"",VLOOKUP($B36,COSTS_Spring_Trap[#All],3)/24,"") ->  | I36: 0 | J36: 0 | K36: 0 | L36: 0 | M36: 0 | N36: 0 | O36: 0 | P36: 0 | Q36: 0 | R36: =IF(ISERROR(Plan),0,Plan) -> 0 | S36: 0 | T36: 0 | U36: 0 | V36: 0 | W36: 0 | X36: 0 | Y36: 0 | Z36: 0 | AA36: 0 | AB36: 0 | AC36: 0 | AD36: 0 | AE36: 0 | AF36: 0 | AG36: 0 | AH36: 0 | AI36: 0 | AJ36: 0 | AK36: 0 | AL36: 0 | AM36: 0 | AN36: 0 | AO36: 0 | AP36: 0 | AQ36: 0 | AR36: 0 | AS36: 0 | AT36: 0 | AU36: 0 | AV36: 0 | AW36: 0 | AX36: 0 | AY36: 0 | AZ36: 0 | BA36: 0 | BB36: 0 | BC36: 0 | BD36: 0 | BE36: =IF(ISERROR(Plan),0,Plan) -> 0 | BF36: 0 | BG36: 0 | BH36: 0 | BI36: 0 | BJ36: 0 | BK36: 0 | BL36: 0 | BM36: 0 | BN36: 0 | BO36: 0 | BP36: 0
A37: Bombe géante | C37: =IF($B37<>"",VLOOKUP($B37,COSTS_Giant_Bomb[#All],2),"") ->  | D37: =IF($B37<>"",VLOOKUP($B37,COSTS_Giant_Bomb[#All],3)/24,"") ->  | I37: =IF(ISERROR(Plan),0,Plan) -> 0 | J37: 0 | K37: 0 | L37: 0 | M37: 0 | N37: 0 | O37: 0 | P37: 0 | Q37: 0 | R37: 0 | S37: 0 | T37: 0 | U37: 0 | V37: 0 | W37: 0 | X37: 0 | Y37: 0 | Z37: 0 | AA37: 0 | AB37: 0 | AC37: 0 | AD37: 0 | AE37: 0 | AF37: 0 | AG37: 0 | AH37: 0 | AI37: 0 | AJ37: 0 | AK37: 0 | AL37: 0 | AM37: 0 | AN37: 0 | AO37: 0 | AP37: 0 | AQ37: 0 | AR37: 0 | AS37: 0 | AT37: 0 | AU37: 0 | AV37: 0 | AW37: 0 | AX37: 0 | AY37: 0 | AZ37: 0 | BA37: 0 | BB37: 0 | BC37: 0 | BD37: 0 | BE37: 0 | BF37: 0 | BG37: 0 | BH37: 0 | BI37: 0 | BJ37: 0 | BK37: 0 | BL37: 0 | BM37: 0 | BN37: 0 | BO37: 0 | BP37: 0
A38: Bombe aérienne | C38: =IF($B38<>"",VLOOKUP($B38,COST_Air_Bomb[#All],2),"") ->  | D38: =IF($B38<>"",VLOOKUP($B38,COST_Air_Bomb[#All],3)/24,"") ->  | I38: 0 | J38: 0 | K38: 0 | L38: 0 | M38: 0 | N38: 0 | O38: 0 | P38: 0 | Q38: 0 | R38: 0 | S38: 0 | T38: 0 | U38: 0 | V38: 0 | W38: 0 | X38: 0 | Y38: 0 | Z38: 0 | AA38: 0 | AB38: 0 | AC38: 0 | AD38: 0 | AE38: 0 | AF38: 0 | AG38: 0 | AH38: 0 | AI38: 0 | AJ38: 0 | AK38: 0 | AL38: 0 | AM38: 0 | AN38: 0 | AO38: 0 | AP38: 0 | AQ38: 0 | AR38: 0 | AS38: 0 | AT38: 0 | AU38: 0 | AV38: 0 | AW38: 0 | AX38: 0 | AY38: 0 | AZ38: 0 | BA38: 0 | BB38: 0 | BC38: 0 | BD38: 0 | BE38: 0 | BF38: 0 | BG38: 0 | BH38: 0 | BI38: 0 | BJ38: 0 | BK38: 0 | BL38: 0 | BM38: 0 | BN38: 0 | BO38: 0 | BP38: 0
A39: Tête chercheuse | C39: =IF($B39<>"",VLOOKUP($B39,COST_Seeking_Air_Mine[#All],2),"") ->  | D39: =IF($B39<>"",VLOOKUP($B39,COST_Seeking_Air_Mine[#All],3)/24,"") ->  | I39: 0 | J39: 0 | K39: 0 | L39: 0 | M39: 0 | N39: 0 | O39: 0 | P39: 0 | Q39: 0 | R39: 0 | S39: 0 | T39: 0 | U39: 0 | V39: 0 | W39: 0 | X39: 0 | Y39: 0 | Z39: 0 | AA39: 0 | AB39: 0 | AC39: 0 | AD39: 0 | AE39: 0 | AF39: 0 | AG39: 0 | AH39: 0 | AI39: 0 | AJ39: 0 | AK39: 0 | AL39: 0 | AM39: 0 | AN39: 0 | AO39: 0 | AP39: 0 | AQ39: 0 | AR39: 0 | AS39: 0 | AT39: 0 | AU39: 0 | AV39: 0 | AW39: 0 | AX39: 0 | AY39: 0 | AZ39: 0 | BA39: 0 | BB39: 0 | BC39: 0 | BD39: 0 | BE39: 0 | BF39: 0 | BG39: 0 | BH39: 0 | BI39: 0 | BJ39: 0 | BK39: 0 | BL39: 0 | BM39: 0 | BN39: 0 | BO39: 0 | BP39: 0
A40: Piège squelettique | C40: =IF($B40<>"",VLOOKUP($B40,COST_Skeleton_Trap[#All],2),"") ->  | D40: =IF($B40<>"",VLOOKUP($B40,COST_Skeleton_Trap[#All],3)/24,"") ->  | I40: 0 | J40: 0 | K40: 0 | L40: 0 | M40: 0 | N40: 0 | O40: 0 | P40: 0 | Q40: 0 | R40: 0 | S40: 0 | T40: 0 | U40: 0 | V40: 0 | W40: 0 | X40: 0 | Y40: 0 | Z40: 0 | AA40: 0 | AB40: 0 | AC40: 0 | AD40: 0 | AE40: 0 | AF40: 0 | AG40: 0 | AH40: 0 | AI40: 0 | AJ40: 0 | AK40: 0 | AL40: 0 | AM40: 0 | AN40: 0 | AO40: 0 | AP40: 0 | AQ40: 0 | AR40: 0 | AS40: 0 | AT40: 0 | AU40: 0 | AV40: 0 | AW40: 0 | AX40: 0 | AY40: 0 | AZ40: 0 | BA40: 0 | BB40: 0 | BC40: 0 | BD40: 0 | BE40: 0 | BF40: 0 | BG40: 0 | BH40: 0 | BI40: 0 | BJ40: 0 | BK40: 0 | BL40: 0 | BM40: 0 | BN40: 0 | BO40: 0 | BP40: 0
A41: Bâtiments Autres | I41: 0 | J41: 0 | K41: 0 | L41: 0 | M41: 0 | N41: 0 | O41: 0 | P41: 0 | Q41: 0 | R41: 0 | S41: 0 | T41: 0 | U41: 0 | V41: 0 | W41: 0 | X41: 0 | Y41: 0 | Z41: 0 | AA41: 0 | AB41: 0 | AC41: 0 | AD41: 0 | AE41: 0 | AF41: 0 | AG41: 0 | AH41: 0 | AI41: 0 | AJ41: 0 | AK41: 0 | AL41: 0 | AM41: 0 | AN41: 0 | AO41: 0 | AP41: 0 | AQ41: 0 | AR41: 0 | AS41: 0 | AT41: 0 | AU41: 0 | AV41: 0 | AW41: 0 | AX41: 0 | AY41: 0 | AZ41: 0 | BA41: 0 | BB41: 0 | BC41: 0 | BD41: 0 | BE41: 0 | BF41: 0 | BG41: 0 | BH41: 0 | BI41: 0 | BJ41: 0 | BK41: 0 | BL41: 0 | BM41: 0 | BN41: 0 | BO41: 0 | BP41: 0
A42: Château de Clan | C42: =IF($B42<>"",VLOOKUP($B42,COSTS_Clan_Castle[#All],2),"") ->  | D42: =IF($B42<>"",VLOOKUP($B42,COSTS_Clan_Castle[#All],3)/24,"") ->  | G42: =IF($D42<>"",$D42,"") ->  | I42: 0 | J42: 0 | K42: 0 | L42: 0 | M42: 0 | N42: 0 | O42: 0 | P42: 0 | Q42: 0 | R42: 0 | S42: 0 | T42: 0 | U42: 0 | V42: 0 | W42: 0 | X42: 0 | Y42: 0 | Z42: 0 | AA42: 0 | AB42: 0 | AC42: 0 | AD42: 0 | AE42: 0 | AF42: 0 | AG42: 0 | AH42: 0 | AI42: 0 | AJ42: 0 | AK42: 0 | AL42: 0 | AM42: 0 | AN42: 0 | AO42: 0 | AP42: 0 | AQ42: 0 | AR42: 0 | AS42: 0 | AT42: 0 | AU42: 0 | AV42: 0 | AW42: 0 | AX42: 0 | AY42: 0 | AZ42: 0 | BA42: 0 | BB42: 0 | BC42: 0 | BD42: 0 | BE42: 0 | BF42: 0 | BG42: 0 | BH42: 0 | BI42: 0 | BJ42: 0 | BK42: 0 | BL42: 0 | BM42: 0 | BN42: 0 | BO42: 0 | BP42: 0
A43: Hôtel de Ville | C43: =IF($B43<>"",VLOOKUP($B43,COSTS_Town_Home[#All],2),"") ->  | D43: =IF($B43<>"",VLOOKUP($B43,COSTS_Town_Home[#All],3)/24,"") ->  | I43: 0 | J43: 0 | K43: 0 | L43: 0 | M43: 0 | N43: 0 | O43: 0 | P43: 0 | Q43: 0 | R43: 0 | S43: 0 | T43: 0 | U43: 0 | V43: 0 | W43: 0 | X43: 0 | Y43: 0 | Z43: 0 | AA43: 0 | AB43: 0 | AC43: 0 | AD43: 0 | AE43: 0 | AF43: 0 | AG43: 0 | AH43: 0 | AI43: 0 | AJ43: 0 | AK43: 0 | AL43: 0 | AM43: 0 | AN43: 0 | AO43: 0 | AP43: 0 | AQ43: 0 | AR43: 0 | AS43: 0 | AT43: 0 | AU43: 0 | AV43: 0 | AW43: 0 | AX43: 0 | AY43: 0 | AZ43: 0 | BA43: 0 | BB43: 0 | BC43: 0 | BD43: 0 | BE43: 0 | BF43: 0 | BG43: 0 | BH43: 0 | BI43: 0 | BJ43: 0 | BK43: 0 | BL43: 0 | BM43: 0 | BN43: 0 | BO43: 0 | BP43: 0
A44: Améliorations de Sorts | I44: =IF(ISERROR(Plan),0,0) -> 0 | J44: 0 | K44: 0 | L44: 0 | M44: 0 | N44: 0 | O44: 0 | P44: 0 | Q44: 0 | R44: 0 | S44: =IF(ISERROR(Plan),0,0) -> 0 | T44: 0 | U44: 0 | V44: 0 | W44: 0 | X44: 0 | Y44: 0 | Z44: 0 | AA44: 0 | AB44: 0 | AC44: =IF(ISERROR(Plan),0,0) -> 0 | AD44: 0 | AE44: 0 | AF44: 0 | AG44: 0 | AH44: 0 | AI44: 0 | AJ44: 0 | AK44: 0 | AL44: 0 | AM44: =IF(ISERROR(Plan),0,0) -> 0 | AN44: 0 | AO44: 0 | AP44: 0 | AQ44: 0 | AR44: 0 | AS44: 0 | AT44: 0 | AU44: 0 | AV44: 0 | AW44: =IF(ISERROR(Plan),0,0) -> 0 | AX44: 0 | AY44: 0 | AZ44: 0 | BA44: 0 | BB44: 0 | BC44: 0 | BD44: 0 | BE44: 0 | BF44: 0 | BG44: =IF(ISERROR(Plan),0,0) -> 0 | BH44: 0 | BI44: 0 | BJ44: 0 | BK44: 0 | BL44: 0 | BM44: 0 | BN44: 0 | BO44: 0 | BP44: 0
A45: Sort de Foudre | C45: =IF($B45<>"",VLOOKUP($B45,COSTS_Spell_Lightning[#All],2),"") ->  | D45: =IF($B45<>"",VLOOKUP($B45,COSTS_Spell_Lightning[#All],3)/24,"") ->  | G45: =IF($D45<>"",$D45,"") ->  | I45: 0 | J45: 0 | K45: 0 | L45: 0 | M45: 0 | N45: 0 | O45: 0 | P45: 0 | Q45: 0 | R45: 0 | S45: 0 | T45: 0 | U45: 0 | V45: 0 | W45: 0 | X45: 0 | Y45: 0 | Z45: 0 | AA45: 0 | AB45: 0 | AC45: 0 | AD45: 0 | AE45: 0 | AF45: 0 | AG45: 0 | AH45: 0 | AI45: 0 | AJ45: 0 | AK45: 0 | AL45: 0 | AM45: 0 | AN45: 0 | AO45: 0 | AP45: 0 | AQ45: 0 | AR45: 0 | AS45: 0 | AT45: 0 | AU45: 0 | AV45: 0 | AW45: 0 | AX45: 0 | AY45: 0 | AZ45: 0 | BA45: 0 | BB45: 0 | BC45: 0 | BD45: 0 | BE45: 0 | BF45: 0 | BG45: 0 | BH45: 0 | BI45: 0 | BJ45: 0 | BK45: 0 | BL45: 0 | BM45: 0 | BN45: 0 | BO45: 0 | BP45: 0
A46: Sort de Guérison | C46: =IF($B46<>"",VLOOKUP($B46,COSTS_Spell_Healing[#All],2),"") ->  | D46: =IF($B46<>"",VLOOKUP($B46,COSTS_Spell_Healing[#All],3)/24,"") ->  | G46: =IF($D46<>"",$D46,"") ->  | I46: 0 | J46: 0 | K46: 0 | L46: 0 | M46: 0 | N46: 0 | O46: 0 | P46: 0 | Q46: 0 | R46: 0 | S46: 0 | T46: 0 | U46: 0 | V46: 0 | W46: 0 | X46: 0 | Y46: 0 | Z46: 0 | AA46: 0 | AB46: 0 | AC46: 0 | AD46: 0 | AE46: 0 | AF46: 0 | AG46: 0 | AH46: 0 | AI46: 0 | AJ46: 0 | AK46: 0 | AL46: 0 | AM46: 0 | AN46: 0 | AO46: 0 | AP46: 0 | AQ46: 0 | AR46: 0 | AS46: 0 | AT46: 0 | AU46: 0 | AV46: 0 | AW46: 0 | AX46: 0 | AY46: 0 | AZ46: 0 | BA46: 0 | BB46: 0 | BC46: 0 | BD46: 0 | BE46: 0 | BF46: 0 | BG46: 0 | BH46: 0 | BI46: 0 | BJ46: 0 | BK46: 0 | BL46: 0 | BM46: 0 | BN46: 0 | BO46: 0 | BP46: 0
A47: Sort de Rage | C47: =IF($B47<>"",VLOOKUP($B47,COSTS_Spell_Rage[#All],2),"") ->  | D47: =IF($B47<>"",VLOOKUP($B47,COSTS_Spell_Rage[#All],3)/24,"") ->  | I47: 0 | J47: 0 | K47: 0 | L47: 0 | M47: 0 | N47: 0 | O47: 0 | P47: 0 | Q47: 0 | R47: 0 | S47: 0 | T47: 0 | U47: 0 | V47: 0 | W47: 0 | X47: 0 | Y47: 0 | Z47: 0 | AA47: 0 | AB47: 0 | AC47: 0 | AD47: 0 | AE47: 0 | AF47: 0 | AG47: 0 | AH47: 0 | AI47: 0 | AJ47: 0 | AK47: 0 | AL47: 0 | AM47: 0 | AN47: 0 | AO47: 0 | AP47: 0 | AQ47: 0 | AR47: 0 | AS47: 0 | AT47: 0 | AU47: 0 | AV47: 0 | AW47: 0 | AX47: 0 | AY47: 0 | AZ47: 0 | BA47: 0 | BB47: 0 | BC47: 0 | BD47: 0 | BE47: 0 | BF47: 0 | BG47: 0 | BH47: 0 | BI47: 0 | BJ47: 0 | BK47: 0 | BL47: 0 | BM47: 0 | BN47: 0 | BO47: 0 | BP47: 0
A48: Sort de Saut | C48: =IF($B48<>"",VLOOKUP($B48,COSTS_Spell_Jump[#All],2),"") ->  | D48: =IF($B48<>"",VLOOKUP($B48,COSTS_Spell_Jump[#All],3)/24,"") ->  | I48: 0 | J48: 0 | K48: 0 | L48: 0 | M48: 0 | N48: 0 | O48: 0 | P48: 0 | Q48: 0 | R48: 0 | S48: 0 | T48: 0 | U48: 0 | V48: 0 | W48: 0 | X48: 0 | Y48: 0 | Z48: 0 | AA48: 0 | AB48: 0 | AC48: 0 | AD48: 0 | AE48: 0 | AF48: 0 | AG48: 0 | AH48: 0 | AI48: 0 | AJ48: 0 | AK48: 0 | AL48: 0 | AM48: 0 | AN48: 0 | AO48: 0 | AP48: 0 | AQ48: 0 | AR48: 0 | AS48: 0 | AT48: 0 | AU48: 0 | AV48: 0 | AW48: 0 | AX48: 0 | AY48: 0 | AZ48: 0 | BA48: 0 | BB48: 0 | BC48: 0 | BD48: 0 | BE48: 0 | BF48: 0 | BG48: 0 | BH48: 0 | BI48: 0 | BJ48: 0 | BK48: 0 | BL48: 0 | BM48: 0 | BN48: 0 | BO48: 0 | BP48: 0
A49: Sort de Gel | C49: =IF($B49<>"",VLOOKUP($B49,COSTS_Spell_Freeze[#All],2),"") ->  | D49: =IF($B49<>"",VLOOKUP($B49,COSTS_Spell_Freeze[#All],3)/24,"") ->  | I49: 0 | J49: 0 | K49: 0 | L49: 0 | M49: 0 | N49: 0 | O49: 0 | P49: 0 | Q49: 0 | R49: 0 | S49: 0 | T49: 0 | U49: 0 | V49: 0 | W49: 0 | X49: 0 | Y49: 0 | Z49: 0 | AA49: 0 | AB49: 0 | AC49: 0 | AD49: 0 | AE49: 0 | AF49: 0 | AG49: 0 | AH49: 0 | AI49: 0 | AJ49: 0 | AK49: 0 | AL49: 0 | AM49: 0 | AN49: 0 | AO49: 0 | AP49: 0 | AQ49: 0 | AR49: 0 | AS49: 0 | AT49: 0 | AU49: 0 | AV49: 0 | AW49: 0 | AX49: 0 | AY49: 0 | AZ49: 0 | BA49: 0 | BB49: 0 | BC49: 0 | BD49: 0 | BE49: 0 | BF49: 0 | BG49: 0 | BH49: 0 | BI49: 0 | BJ49: 0 | BK49: 0 | BL49: 0 | BM49: 0 | BN49: 0 | BO49: 0 | BP49: 0
A50: Sort de clonage | C50: =IF($B50<>"",VLOOKUP($B50,COSTS_Spell_Clone[#All],2),"") ->  | D50: =IF($B50<>"",VLOOKUP($B50,COSTS_Spell_Clone[#All],3)/24,"") ->  | I50: 0 | J50: 0 | K50: 0 | L50: 0 | M50: 0 | N50: 0 | O50: 0 | P50: 0 | Q50: 0 | R50: 0 | S50: 0 | T50: 0 | U50: 0 | V50: 0 | W50: 0 | X50: 0 | Y50: 0 | Z50: 0 | AA50: 0 | AB50: 0 | AC50: 0 | AD50: 0 | AE50: 0 | AF50: 0 | AG50: 0 | AH50: 0 | AI50: 0 | AJ50: 0 | AK50: 0 | AL50: 0 | AM50: 0 | AN50: 0 | AO50: 0 | AP50: 0 | AQ50: 0 | AR50: 0 | AS50: 0 | AT50: 0 | AU50: 0 | AV50: 0 | AW50: 0 | AX50: 0 | AY50: 0 | AZ50: 0 | BA50: 0 | BB50: 0 | BC50: 0 | BD50: 0 | BE50: 0 | BF50: 0 | BG50: 0 | BH50: 0 | BI50: 0 | BJ50: 0 | BK50: 0 | BL50: 0 | BM50: 0 | BN50: 0 | BO50: 0 | BP50: 0
A51: Sort de Poison | C51: =IF($B51<>"",VLOOKUP($B51,COSTS_Spell_Poison[#All],2),"") ->  | D51: =IF($B51<>"",VLOOKUP($B51,COSTS_Spell_Poison[#All],3)/24,"") ->  | I51: 0 | J51: 0 | K51: 0 | L51: 0 | M51: 0 | N51: 0 | O51: 0 | P51: 0 | Q51: 0 | R51: 0 | S51: 0 | T51: 0 | U51: 0 | V51: 0 | W51: 0 | X51: 0 | Y51: 0 | Z51: 0 | AA51: 0 | AB51: 0 | AC51: 0 | AD51: 0 | AE51: 0 | AF51: 0 | AG51: 0 | AH51: 0 | AI51: 0 | AJ51: 0 | AK51: 0 | AL51: 0 | AM51: 0 | AN51: 0 | AO51: 0 | AP51: 0 | AQ51: 0 | AR51: 0 | AS51: 0 | AT51: 0 | AU51: 0 | AV51: 0 | AW51: 0 | AX51: 0 | AY51: 0 | AZ51: 0 | BA51: 0 | BB51: 0 | BC51: 0 | BD51: 0 | BE51: 0 | BF51: 0 | BG51: 0 | BH51: 0 | BI51: 0 | BJ51: 0 | BK51: 0 | BL51: 0 | BM51: 0 | BN51: 0 | BO51: 0 | BP51: 0
A52: Sort de Séisme | C52: =IF($B52<>"",VLOOKUP($B52,COSTS_Spell_Earthquake[#All],2),"") ->  | D52: =IF($B52<>"",VLOOKUP($B52,COSTS_Spell_Earthquake[#All],3)/24,"") ->  | I52: 0 | J52: 0 | K52: 0 | L52: 0 | M52: 0 | N52: 0 | O52: 0 | P52: 0 | Q52: 0 | R52: 0 | S52: 0 | T52: 0 | U52: 0 | V52: 0 | W52: 0 | X52: 0 | Y52: 0 | Z52: 0 | AA52: 0 | AB52: 0 | AC52: 0 | AD52: 0 | AE52: 0 | AF52: 0 | AG52: 0 | AH52: 0 | AI52: 0 | AJ52: 0 | AK52: 0 | AL52: 0 | AM52: 0 | AN52: 0 | AO52: 0 | AP52: 0 | AQ52: 0 | AR52: 0 | AS52: 0 | AT52: 0 | AU52: 0 | AV52: 0 | AW52: 0 | AX52: 0 | AY52: 0 | AZ52: 0 | BA52: 0 | BB52: 0 | BC52: 0 | BD52: 0 | BE52: 0 | BF52: 0 | BG52: 0 | BH52: 0 | BI52: 0 | BJ52: 0 | BK52: 0 | BL52: 0 | BM52: 0 | BN52: 0 | BO52: 0 | BP52: 0
A53: Sort de Hâte | C53: =IF($B53<>"",VLOOKUP($B53,COSTS_Spell_Haste[#All],2),"") ->  | D53: =IF($B53<>"",VLOOKUP($B53,COSTS_Spell_Haste[#All],3)/24,"") ->  | I53: =IF(ISERROR(Plan),0,0) -> 0 | J53: 0 | K53: 0 | L53: 0 | M53: 0 | N53: 0 | O53: 0 | P53: 0 | Q53: 0 | R53: 0 | S53: =IF(ISERROR(Plan),0,0) -> 0 | T53: 0 | U53: 0 | V53: 0 | W53: 0 | X53: 0 | Y53: 0 | Z53: 0 | AA53: 0 | AB53: 0 | AC53: =IF(ISERROR(Plan),0,0) -> 0 | AD53: 0 | AE53: 0 | AF53: 0 | AG53: 0 | AH53: 0 | AI53: 0 | AJ53: 0 | AK53: 0 | AL53: 0 | AM53: =IF(ISERROR(Plan),0,0) -> 0 | AN53: 0 | AO53: 0 | AP53: 0 | AQ53: 0 | AR53: 0 | AS53: 0 | AT53: 0 | AU53: 0 | AV53: 0 | AW53: =IF(ISERROR(Plan),0,0) -> 0 | AX53: 0 | AY53: 0 | AZ53: 0 | BA53: 0 | BB53: 0 | BC53: 0 | BD53: 0 | BE53: 0 | BF53: 0 | BG53: =IF(ISERROR(Plan),0,0) -> 0 | BH53: 0 | BI53: 0 | BJ53: 0 | BK53: 0 | BL53: 0 | BM53: 0 | BN53: 0 | BO53: 0 | BP53: 0
A54: Sort Squelettique | C54: =IF($B54<>"",VLOOKUP($B54,COSTS_Spell_Skeleton[#All],2),"") ->  | D54: =IF($B54<>"",VLOOKUP($B54,COSTS_Spell_Skeleton[#All],3)/24,"") ->  | I54: 0 | J54: 0 | K54: 0 | L54: 0 | M54: 0 | N54: 0 | O54: 0 | P54: 0 | Q54: 0 | R54: 0 | S54: 0 | T54: 0 | U54: 0 | V54: 0 | W54: 0 | X54: 0 | Y54: 0 | Z54: 0 | AA54: 0 | AB54: 0 | AC54: 0 | AD54: 0 | AE54: 0 | AF54: 0 | AG54: 0 | AH54: 0 | AI54: 0 | AJ54: 0 | AK54: 0 | AL54: 0 | AM54: 0 | AN54: 0 | AO54: 0 | AP54: 0 | AQ54: 0 | AR54: 0 | AS54: 0 | AT54: 0 | AU54: 0 | AV54: 0 | AW54: 0 | AX54: 0 | AY54: 0 | AZ54: 0 | BA54: 0 | BB54: 0 | BC54: 0 | BD54: 0 | BE54: 0 | BF54: 0 | BG54: 0 | BH54: 0 | BI54: 0 | BJ54: 0 | BK54: 0 | BL54: 0 | BM54: 0 | BN54: 0 | BO54: 0 | BP54: 0
A55: Améliorations de Troupes | I55: 0 | J55: 0 | K55: 0 | L55: 0 | M55: 0 | N55: 0 | O55: 0 | P55: 0 | Q55: 0 | R55: 0 | S55: 0 | T55: 0 | U55: 0 | V55: 0 | W55: 0 | X55: 0 | Y55: 0 | Z55: 0 | AA55: 0 | AB55: 0 | AC55: 0 | AD55: 0 | AE55: 0 | AF55: 0 | AG55: 0 | AH55: 0 | AI55: 0 | AJ55: 0 | AK55: 0 | AL55: 0 | AM55: 0 | AN55: 0 | AO55: 0 | AP55: 0 | AQ55: 0 | AR55: 0 | AS55: 0 | AT55: 0 | AU55: 0 | AV55: 0 | AW55: 0 | AX55: 0 | AY55: 0 | AZ55: 0 | BA55: 0 | BB55: 0 | BC55: 0 | BD55: 0 | BE55: 0 | BF55: 0 | BG55: 0 | BH55: 0 | BI55: 0 | BJ55: 0 | BK55: 0 | BL55: 0 | BM55: 0 | BN55: 0 | BO55: 0 | BP55: 0
A56: Barbare | C56: =IF($B56<>"",VLOOKUP($B56,COSTS_Barbarian[#All],2),"") ->  | D56: =IF($B56<>"",VLOOKUP($B56,COSTS_Barbarian[#All],3)/24,"") ->  | I56: 0 | J56: 0 | K56: 0 | L56: 0 | M56: 0 | N56: 0 | O56: 0 | P56: 0 | Q56: 0 | R56: 0 | S56: 0 | T56: 0 | U56: 0 | V56: 0 | W56: 0 | X56: 0 | Y56: 0 | Z56: 0 | AA56: 0 | AB56: 0 | AC56: 0 | AD56: 0 | AE56: 0 | AF56: 0 | AG56: 0 | AH56: 0 | AI56: 0 | AJ56: 0 | AK56: 0 | AL56: 0 | AM56: 0 | AN56: 0 | AO56: 0 | AP56: 0 | AQ56: 0 | AR56: 0 | AS56: 0 | AT56: 0 | AU56: 0 | AV56: 0 | AW56: 0 | AX56: 0 | AY56: 0 | AZ56: 0 | BA56: 0 | BB56: 0 | BC56: 0 | BD56: 0 | BE56: 0 | BF56: 0 | BG56: 0 | BH56: 0 | BI56: 0 | BJ56: 0 | BK56: 0 | BL56: 0 | BM56: 0 | BN56: 0 | BO56: 0 | BP56: 0
A57: Archer | C57: =IF($B57<>"",VLOOKUP($B57,COSTS_Archer[#All],2),"") ->  | D57: =IF($B57<>"",VLOOKUP($B57,COSTS_Archer[#All],3)/24,"") ->  | I57: 0 | J57: 0 | K57: 0 | L57: 0 | M57: 0 | N57: 0 | O57: 0 | P57: 0 | Q57: 0 | R57: 0 | S57: 0 | T57: 0 | U57: 0 | V57: 0 | W57: 0 | X57: 0 | Y57: 0 | Z57: 0 | AA57: 0 | AB57: 0 | AC57: 0 | AD57: 0 | AE57: 0 | AF57: 0 | AG57: 0 | AH57: 0 | AI57: 0 | AJ57: 0 | AK57: 0 | AL57: 0 | AM57: 0 | AN57: 0 | AO57: 0 | AP57: 0 | AQ57: 0 | AR57: 0 | AS57: 0 | AT57: 0 | AU57: 0 | AV57: 0 | AW57: 0 | AX57: 0 | AY57: 0 | AZ57: 0 | BA57: 0 | BB57: 0 | BC57: 0 | BD57: 0 | BE57: 0 | BF57: 0 | BG57: 0 | BH57: 0 | BI57: 0 | BJ57: 0 | BK57: 0 | BL57: 0 | BM57: 0 | BN57: 0 | BO57: 0 | BP57: 0
A58: Gobelin | C58: =IF($B58<>"",VLOOKUP($B58,COSTS_Goblin[#All],2),"") ->  | D58: =IF($B58<>"",VLOOKUP($B58,COSTS_Goblin[#All],3)/24,"") ->  | I58: 0 | J58: 0 | K58: 0 | L58: 0 | M58: 0 | N58: 0 | O58: 0 | P58: 0 | Q58: 0 | R58: 0 | S58: 0 | T58: 0 | U58: 0 | V58: 0 | W58: 0 | X58: 0 | Y58: 0 | Z58: 0 | AA58: 0 | AB58: 0 | AC58: 0 | AD58: 0 | AE58: 0 | AF58: 0 | AG58: 0 | AH58: 0 | AI58: 0 | AJ58: 0 | AK58: 0 | AL58: 0 | AM58: 0 | AN58: 0 | AO58: 0 | AP58: 0 | AQ58: 0 | AR58: 0 | AS58: 0 | AT58: 0 | AU58: 0 | AV58: 0 | AW58: 0 | AX58: 0 | AY58: 0 | AZ58: 0 | BA58: 0 | BB58: 0 | BC58: 0 | BD58: 0 | BE58: 0 | BF58: 0 | BG58: 0 | BH58: 0 | BI58: 0 | BJ58: 0 | BK58: 0 | BL58: 0 | BM58: 0 | BN58: 0 | BO58: 0 | BP58: 0
A59: Géant | C59: =IF($B59<>"",VLOOKUP($B59,COSTS_Giant[#All],2),"") ->  | D59: =IF($B59<>"",VLOOKUP($B59,COSTS_Giant[#All],3)/24,"") ->  | I59: 0 | J59: 0 | K59: 0 | L59: 0 | M59: 0 | N59: 0 | O59: 0 | P59: 0 | Q59: 0 | R59: 0 | S59: 0 | T59: 0 | U59: 0 | V59: 0 | W59: 0 | X59: 0 | Y59: 0 | Z59: 0 | AA59: 0 | AB59: 0 | AC59: 0 | AD59: 0 | AE59: 0 | AF59: 0 | AG59: 0 | AH59: 0 | AI59: 0 | AJ59: 0 | AK59: 0 | AL59: 0 | AM59: 0 | AN59: 0 | AO59: 0 | AP59: 0 | AQ59: 0 | AR59: 0 | AS59: 0 | AT59: 0 | AU59: 0 | AV59: 0 | AW59: 0 | AX59: 0 | AY59: 0 | AZ59: 0 | BA59: 0 | BB59: 0 | BC59: 0 | BD59: 0 | BE59: 0 | BF59: 0 | BG59: 0 | BH59: 0 | BI59: 0 | BJ59: 0 | BK59: 0 | BL59: 0 | BM59: 0 | BN59: 0 | BO59: 0 | BP59: 0
A60: Sapeur | C60: =IF($B60<>"",VLOOKUP($B60,COSTS_Wall_Breaker[#All],2),"") ->  | D60: =IF($B60<>"",VLOOKUP($B60,COSTS_Wall_Breaker[#All],3)/24,"") ->  | I60: =IF(ISERROR(Plan),0,0) -> 0 | J60: 0 | K60: 0 | L60: 0 | M60: 0 | N60: 0 | O60: 0 | P60: 0 | Q60: 0 | R60: 0 | S60: =IF(ISERROR(Plan),0,0) -> 0 | T60: 0 | U60: 0 | V60: 0 | W60: 0 | X60: 0 | Y60: 0 | Z60: 0 | AA60: 0 | AB60: 0 | AC60: =IF(ISERROR(Plan),0,0) -> 0 | AD60: 0 | AE60: 0 | AF60: 0 | AG60: 0 | AH60: 0 | AI60: 0 | AJ60: 0 | AK60: 0 | AL60: 0 | AM60: =IF(ISERROR(Plan),0,0) -> 0 | AN60: 0 | AO60: 0 | AP60: 0 | AQ60: 0 | AR60: 0 | AS60: 0 | AT60: 0 | AU60: 0 | AV60: 0 | AW60: =IF(ISERROR(Plan),0,0) -> 0 | AX60: 0 | AY60: 0 | AZ60: 0 | BA60: 0 | BB60: 0 | BC60: 0 | BD60: 0 | BE60: 0 | BF60: 0 | BG60: =IF(ISERROR(Plan),0,0) -> 0 | BH60: 0 | BI60: 0 | BJ60: 0 | BK60: 0 | BL60: 0 | BM60: 0 | BN60: 0 | BO60: 0 | BP60: 0
A61: Ballon | C61: =IF($B61<>"",VLOOKUP($B61,COSTS_Balloon[#All],2),"") ->  | D61: =IF($B61<>"",VLOOKUP($B61,COSTS_Balloon[#All],3)/24,"") ->  | I61: 0 | J61: 0 | K61: 0 | L61: 0 | M61: 0 | N61: 0 | O61: 0 | P61: 0 | Q61: 0 | R61: 0 | S61: 0 | T61: 0 | U61: 0 | V61: 0 | W61: 0 | X61: 0 | Y61: 0 | Z61: 0 | AA61: 0 | AB61: 0 | AC61: 0 | AD61: 0 | AE61: 0 | AF61: 0 | AG61: 0 | AH61: 0 | AI61: 0 | AJ61: 0 | AK61: 0 | AL61: 0 | AM61: 0 | AN61: 0 | AO61: 0 | AP61: 0 | AQ61: 0 | AR61: 0 | AS61: 0 | AT61: 0 | AU61: 0 | AV61: 0 | AW61: 0 | AX61: 0 | AY61: 0 | AZ61: 0 | BA61: 0 | BB61: 0 | BC61: 0 | BD61: 0 | BE61: 0 | BF61: 0 | BG61: 0 | BH61: 0 | BI61: 0 | BJ61: 0 | BK61: 0 | BL61: 0 | BM61: 0 | BN61: 0 | BO61: 0 | BP61: 0
A62: Sorcier | C62: =IF($B62<>"",VLOOKUP($B62,COSTS_Wizard[#All],2),"") ->  | D62: =IF($B62<>"",VLOOKUP($B62,COSTS_Wizard[#All],3)/24,"") ->  | I62: 0 | J62: 0 | K62: 0 | L62: 0 | M62: 0 | N62: 0 | O62: 0 | P62: 0 | Q62: 0 | R62: 0 | S62: 0 | T62: 0 | U62: 0 | V62: 0 | W62: 0 | X62: 0 | Y62: 0 | Z62: 0 | AA62: 0 | AB62: 0 | AC62: 0 | AD62: 0 | AE62: 0 | AF62: 0 | AG62: 0 | AH62: 0 | AI62: 0 | AJ62: 0 | AK62: 0 | AL62: 0 | AM62: 0 | AN62: 0 | AO62: 0 | AP62: 0 | AQ62: 0 | AR62: 0 | AS62: 0 | AT62: 0 | AU62: 0 | AV62: 0 | AW62: 0 | AX62: 0 | AY62: 0 | AZ62: 0 | BA62: 0 | BB62: 0 | BC62: 0 | BD62: 0 | BE62: 0 | BF62: 0 | BG62: 0 | BH62: 0 | BI62: 0 | BJ62: 0 | BK62: 0 | BL62: 0 | BM62: 0 | BN62: 0 | BO62: 0 | BP62: 0
A63: Guérisseuse | C63: =IF($B63<>"",VLOOKUP($B63,COSTS_Healer[#All],2),"") ->  | D63: =IF($B63<>"",VLOOKUP($B63,COSTS_Healer[#All],3)/24,"") ->  | I63: 0 | J63: 0 | K63: 0 | L63: 0 | M63: 0 | N63: 0 | O63: 0 | P63: 0 | Q63: 0 | R63: 0 | S63: 0 | T63: 0 | U63: 0 | V63: 0 | W63: 0 | X63: 0 | Y63: 0 | Z63: 0 | AA63: 0 | AB63: 0 | AC63: 0 | AD63: 0 | AE63: 0 | AF63: 0 | AG63: 0 | AH63: 0 | AI63: 0 | AJ63: 0 | AK63: 0 | AL63: 0 | AM63: 0 | AN63: 0 | AO63: 0 | AP63: 0 | AQ63: 0 | AR63: 0 | AS63: 0 | AT63: 0 | AU63: 0 | AV63: 0 | AW63: 0 | AX63: 0 | AY63: 0 | AZ63: 0 | BA63: 0 | BB63: 0 | BC63: 0 | BD63: 0 | BE63: 0 | BF63: 0 | BG63: 0 | BH63: 0 | BI63: 0 | BJ63: 0 | BK63: 0 | BL63: 0 | BM63: 0 | BN63: 0 | BO63: 0 | BP63: 0
A64: Dragon | C64: =IF($B64<>"",VLOOKUP($B64,COSTS_Dragon[#All],2),"") ->  | D64: =IF($B64<>"",VLOOKUP($B64,COSTS_Dragon[#All],3)/24,"") ->  | I64: 0 | J64: 0 | K64: 0 | L64: 0 | M64: 0 | N64: 0 | O64: 0 | P64: 0 | Q64: 0 | R64: 0 | S64: 0 | T64: 0 | U64: 0 | V64: 0 | W64: 0 | X64: 0 | Y64: 0 | Z64: 0 | AA64: 0 | AB64: 0 | AC64: 0 | AD64: 0 | AE64: 0 | AF64: 0 | AG64: 0 | AH64: 0 | AI64: 0 | AJ64: 0 | AK64: 0 | AL64: 0 | AM64: 0 | AN64: 0 | AO64: 0 | AP64: 0 | AQ64: 0 | AR64: 0 | AS64: 0 | AT64: 0 | AU64: 0 | AV64: 0 | AW64: 0 | AX64: 0 | AY64: 0 | AZ64: 0 | BA64: 0 | BB64: 0 | BC64: 0 | BD64: 0 | BE64: 0 | BF64: 0 | BG64: 0 | BH64: 0 | BI64: 0 | BJ64: 0 | BK64: 0 | BL64: 0 | BM64: 0 | BN64: 0 | BO64: 0 | BP64: 0
A65: P.E.K.K.A | C65: =IF($B65<>"",VLOOKUP($B65,COSTS_PEKKA[#All],2),"") ->  | D65: =IF($B65<>"",VLOOKUP($B65,COSTS_PEKKA[#All],3)/24,"") ->  | I65: 0 | J65: 0 | K65: 0 | L65: 0 | M65: 0 | N65: 0 | O65: 0 | P65: 0 | Q65: 0 | R65: 0 | S65: 0 | T65: 0 | U65: 0 | V65: 0 | W65: 0 | X65: 0 | Y65: 0 | Z65: 0 | AA65: 0 | AB65: 0 | AC65: 0 | AD65: 0 | AE65: 0 | AF65: 0 | AG65: 0 | AH65: 0 | AI65: 0 | AJ65: 0 | AK65: 0 | AL65: 0 | AM65: 0 | AN65: 0 | AO65: 0 | AP65: 0 | AQ65: 0 | AR65: 0 | AS65: 0 | AT65: 0 | AU65: 0 | AV65: 0 | AW65: 0 | AX65: 0 | AY65: 0 | AZ65: 0 | BA65: 0 | BB65: 0 | BC65: 0 | BD65: 0 | BE65: 0 | BF65: 0 | BG65: 0 | BH65: 0 | BI65: 0 | BJ65: 0 | BK65: 0 | BL65: 0 | BM65: 0 | BN65: 0 | BO65: 0 | BP65: 0
A66: Bébé dragon | C66: =IF($B66<>"",VLOOKUP($B66,COSTS_Baby_Dragon[#All],2),"") ->  | D66: =IF($B66<>"",VLOOKUP($B66,COSTS_Baby_Dragon[#All],3)/24,"") ->  | I66: 0 | J66: 0 | K66: 0 | L66: 0 | M66: 0 | N66: 0 | O66: 0 | P66: 0 | Q66: 0 | R66: 0 | S66: 0 | T66: 0 | U66: 0 | V66: 0 | W66: 0 | X66: 0 | Y66: 0 | Z66: 0 | AA66: 0 | AB66: 0 | AC66: 0 | AD66: 0 | AE66: 0 | AF66: 0 | AG66: 0 | AH66: 0 | AI66: 0 | AJ66: 0 | AK66: 0 | AL66: 0 | AM66: 0 | AN66: 0 | AO66: 0 | AP66: 0 | AQ66: 0 | AR66: 0 | AS66: 0 | AT66: 0 | AU66: 0 | AV66: 0 | AW66: 0 | AX66: 0 | AY66: 0 | AZ66: 0 | BA66: 0 | BB66: 0 | BC66: 0 | BD66: 0 | BE66: 0 | BF66: 0 | BG66: 0 | BH66: 0 | BI66: 0 | BJ66: 0 | BK66: 0 | BL66: 0 | BM66: 0 | BN66: 0 | BO66: 0 | BP66: 0
A67: Mineur | C67: =IF($B67<>"",VLOOKUP($B67,COSTS_Miner[#All],2),"") ->  | D67: =IF($B67<>"",VLOOKUP($B67,COSTS_Miner[#All],3)/24,"") ->  | I67: 0 | J67: 0 | K67: 0 | L67: 0 | M67: 0 | N67: 0 | O67: 0 | P67: 0 | Q67: 0 | R67: 0 | S67: 0 | T67: 0 | U67: 0 | V67: 0 | W67: 0 | X67: 0 | Y67: 0 | Z67: 0 | AA67: 0 | AB67: 0 | AC67: 0 | AD67: 0 | AE67: 0 | AF67: 0 | AG67: 0 | AH67: 0 | AI67: 0 | AJ67: 0 | AK67: 0 | AL67: 0 | AM67: 0 | AN67: 0 | AO67: 0 | AP67: 0 | AQ67: 0 | AR67: 0 | AS67: 0 | AT67: 0 | AU67: 0 | AV67: 0 | AW67: 0 | AX67: 0 | AY67: 0 | AZ67: 0 | BA67: 0 | BB67: 0 | BC67: 0 | BD67: 0 | BE67: 0 | BF67: 0 | BG67: 0 | BH67: 0 | BI67: 0 | BJ67: 0 | BK67: 0 | BL67: 0 | BM67: 0 | BN67: 0 | BO67: 0 | BP67: 0
A68: Serviteur | C68: =IF($B68<>"",VLOOKUP($B68,COSTS_Minion[#All],2),"") ->  | D68: =IF($B68<>"",VLOOKUP($B68,COSTS_Minion[#All],3)/24,"") ->  | I68: 0 | J68: 0 | K68: 0 | L68: 0 | M68: 0 | N68: 0 | O68: 0 | P68: 0 | Q68: 0 | R68: 0 | S68: 0 | T68: 0 | U68: 0 | V68: 0 | W68: 0 | X68: 0 | Y68: 0 | Z68: 0 | AA68: 0 | AB68: 0 | AC68: 0 | AD68: 0 | AE68: 0 | AF68: 0 | AG68: 0 | AH68: 0 | AI68: 0 | AJ68: 0 | AK68: 0 | AL68: 0 | AM68: 0 | AN68: 0 | AO68: 0 | AP68: 0 | AQ68: 0 | AR68: 0 | AS68: 0 | AT68: 0 | AU68: 0 | AV68: 0 | AW68: 0 | AX68: 0 | AY68: 0 | AZ68: 0 | BA68: 0 | BB68: 0 | BC68: 0 | BD68: 0 | BE68: 0 | BF68: 0 | BG68: 0 | BH68: 0 | BI68: 0 | BJ68: 0 | BK68: 0 | BL68: 0 | BM68: 0 | BN68: 0 | BO68: 0 | BP68: 0
A69: Chevaucheur de Cochon | C69: =IF($B69<>"",VLOOKUP($B69,COSTS_Hog_Rider[#All],2),"") ->  | D69: =IF($B69<>"",VLOOKUP($B69,COSTS_Hog_Rider[#All],3)/24,"") ->  | I69: 0 | J69: 0 | K69: 0 | L69: 0 | M69: 0 | N69: 0 | O69: 0 | P69: 0 | Q69: 0 | R69: 0 | S69: 0 | T69: 0 | U69: 0 | V69: 0 | W69: 0 | X69: 0 | Y69: 0 | Z69: 0 | AA69: 0 | AB69: 0 | AC69: 0 | AD69: 0 | AE69: 0 | AF69: 0 | AG69: 0 | AH69: 0 | AI69: 0 | AJ69: 0 | AK69: 0 | AL69: 0 | AM69: 0 | AN69: 0 | AO69: 0 | AP69: 0 | AQ69: 0 | AR69: 0 | AS69: 0 | AT69: 0 | AU69: 0 | AV69: 0 | AW69: 0 | AX69: 0 | AY69: 0 | AZ69: 0 | BA69: 0 | BB69: 0 | BC69: 0 | BD69: 0 | BE69: 0 | BF69: 0 | BG69: 0 | BH69: 0 | BI69: 0 | BJ69: 0 | BK69: 0 | BL69: 0 | BM69: 0 | BN69: 0 | BO69: 0 | BP69: 0
A70: Valkyrie | C70: =IF($B70<>"",VLOOKUP($B70,COSTS_Valkyrie[#All],2),"") ->  | D70: =IF($B70<>"",VLOOKUP($B70,COSTS_Valkyrie[#All],3)/24,"") ->  | I70: =IF(ISERROR(Plan),0,0) -> 0 | J70: 0 | K70: 0 | L70: 0 | M70: 0 | N70: 0 | O70: 0 | P70: 0 | Q70: 0 | R70: 0 | S70: =IF(ISERROR(Plan),0,0) -> 0 | T70: 0 | U70: 0 | V70: 0 | W70: 0 | X70: 0 | Y70: 0 | Z70: 0 | AA70: 0 | AB70: 0 | AC70: =IF(ISERROR(Plan),0,0) -> 0 | AD70: 0 | AE70: 0 | AF70: 0 | AG70: 0 | AH70: 0 | AI70: 0 | AJ70: 0 | AK70: 0 | AL70: 0 | AM70: =IF(ISERROR(Plan),0,0) -> 0 | AN70: 0 | AO70: 0 | AP70: 0 | AQ70: 0 | AR70: 0 | AS70: 0 | AT70: 0 | AU70: 0 | AV70: 0 | AW70: =IF(ISERROR(Plan),0,0) -> 0 | AX70: 0 | AY70: 0 | AZ70: 0 | BA70: 0 | BB70: 0 | BC70: 0 | BD70: 0 | BE70: 0 | BF70: 0 | BG70: =IF(ISERROR(Plan),0,0) -> 0 | BH70: 0 | BI70: 0 | BJ70: 0 | BK70: 0 | BL70: 0 | BM70: 0 | BN70: 0 | BO70: 0 | BP70: 0
A71: Golem | C71: =IF($B71<>"",VLOOKUP($B71,COSTS_Golem[#All],2),"") ->  | D71: =IF($B71<>"",VLOOKUP($B71,COSTS_Golem[#All],3)/24,"") ->  | G71: =IF($D71<>"",$D71,"") ->  | I71: 0 | J71: 0 | K71: 0 | L71: 0 | M71: 0 | N71: 0 | O71: 0 | P71: 0 | Q71: 0 | R71: 0 | S71: 0 | T71: 0 | U71: 0 | V71: 0 | W71: 0 | X71: 0 | Y71: 0 | Z71: 0 | AA71: 0 | AB71: 0 | AC71: 0 | AD71: 0 | AE71: 0 | AF71: 0 | AG71: 0 | AH71: 0 | AI71: 0 | AJ71: 0 | AK71: 0 | AL71: 0 | AM71: 0 | AN71: 0 | AO71: 0 | AP71: 0 | AQ71: 0 | AR71: 0 | AS71: 0 | AT71: 0 | AU71: 0 | AV71: 0 | AW71: 0 | AX71: 0 | AY71: 0 | AZ71: 0 | BA71: 0 | BB71: 0 | BC71: 0 | BD71: 0 | BE71: 0 | BF71: 0 | BG71: 0 | BH71: 0 | BI71: 0 | BJ71: 0 | BK71: 0 | BL71: 0 | BM71: 0 | BN71: 0 | BO71: 0 | BP71: 0
A72: Sorcière | C72: =IF($B72<>"",VLOOKUP($B72,COSTS_Witch[#All],2),"") ->  | D72: =IF($B72<>"",VLOOKUP($B72,COSTS_Witch[#All],3)/24,"") ->  | I72: 0 | J72: 0 | K72: 0 | L72: 0 | M72: 0 | N72: 0 | O72: 0 | P72: 0 | Q72: 0 | R72: 0 | S72: 0 | T72: 0 | U72: 0 | V72: 0 | W72: 0 | X72: 0 | Y72: 0 | Z72: 0 | AA72: 0 | AB72: 0 | AC72: 0 | AD72: 0 | AE72: 0 | AF72: 0 | AG72: 0 | AH72: 0 | AI72: 0 | AJ72: 0 | AK72: 0 | AL72: 0 | AM72: 0 | AN72: 0 | AO72: 0 | AP72: 0 | AQ72: 0 | AR72: 0 | AS72: 0 | AT72: 0 | AU72: 0 | AV72: 0 | AW72: 0 | AX72: 0 | AY72: 0 | AZ72: 0 | BA72: 0 | BB72: 0 | BC72: 0 | BD72: 0 | BE72: 0 | BF72: 0 | BG72: 0 | BH72: 0 | BI72: 0 | BJ72: 0 | BK72: 0 | BL72: 0 | BM72: 0 | BN72: 0 | BO72: 0 | BP72: 0
A73: Molosse de lave | C73: =IF($B73<>"",VLOOKUP($B73,COSTS_Lava_Hound[#All],2),"") ->  | D73: =IF($B73<>"",VLOOKUP($B73,COSTS_Lava_Hound[#All],3)/24,"") ->  | I73: 0 | J73: 0 | K73: 0 | L73: 0 | M73: 0 | N73: 0 | O73: 0 | P73: 0 | Q73: 0 | R73: 0 | S73: 0 | T73: 0 | U73: 0 | V73: 0 | W73: 0 | X73: 0 | Y73: 0 | Z73: 0 | AA73: 0 | AB73: 0 | AC73: 0 | AD73: 0 | AE73: 0 | AF73: 0 | AG73: 0 | AH73: 0 | AI73: 0 | AJ73: 0 | AK73: 0 | AL73: 0 | AM73: 0 | AN73: 0 | AO73: 0 | AP73: 0 | AQ73: 0 | AR73: 0 | AS73: 0 | AT73: 0 | AU73: 0 | AV73: 0 | AW73: 0 | AX73: 0 | AY73: 0 | AZ73: 0 | BA73: 0 | BB73: 0 | BC73: 0 | BD73: 0 | BE73: 0 | BF73: 0 | BG73: 0 | BH73: 0 | BI73: 0 | BJ73: 0 | BK73: 0 | BL73: 0 | BM73: 0 | BN73: 0 | BO73: 0 | BP73: 0
A74: Bouliste | C74: =IF($B74<>"",VLOOKUP($B74,COSTS_Bowler[#All],2),"") ->  | D74: =IF($B74<>"",VLOOKUP($B74,COSTS_Bowler[#All],3)/24,"") ->  | I74: 0 | J74: 0 | K74: 0 | L74: 0 | M74: 0 | N74: 0 | O74: 0 | P74: 0 | Q74: 0 | R74: 0 | S74: 0 | T74: 0 | U74: 0 | V74: 0 | W74: 0 | X74: 0 | Y74: 0 | Z74: 0 | AA74: 0 | AB74: 0 | AC74: 0 | AD74: 0 | AE74: 0 | AF74: 0 | AG74: 0 | AH74: 0 | AI74: 0 | AJ74: 0 | AK74: 0 | AL74: 0 | AM74: 0 | AN74: 0 | AO74: 0 | AP74: 0 | AQ74: 0 | AR74: 0 | AS74: 0 | AT74: 0 | AU74: 0 | AV74: 0 | AW74: 0 | AX74: 0 | AY74: 0 | AZ74: 0 | BA74: 0 | BB74: 0 | BC74: 0 | BD74: 0 | BE74: 0 | BF74: 0 | BG74: 0 | BH74: 0 | BI74: 0 | BJ74: 0 | BK74: 0 | BL74: 0 | BM74: 0 | BN74: 0 | BO74: 0 | BP74: 0
A75: Héros | I75: =IF(ISERROR(Plan),0,Plan) -> 0 | J75: 0 | K75: 0 | L75: 0 | M75: 0 | N75: 0 | O75: 0 | P75: 0 | Q75: 0 | R75: 0 | S75: 0 | T75: 0 | U75: 0 | V75: 0 | W75: 0 | X75: 0 | Y75: =IF(ISERROR(Plan),0,Plan) -> 0 | Z75: 0 | AA75: 0 | AB75: 0 | AC75: 0 | AD75: 0 | AE75: 0 | AF75: 0 | AG75: 0 | AH75: 0 | AI75: 0 | AJ75: 0 | AK75: 0 | AL75: 0 | AM75: 0 | AN75: =IF(ISERROR(Plan),0,Plan) -> 0 | AO75: 0 | AP75: 0 | AQ75: 0 | AR75: 0 | AS75: 0 | AT75: 0 | AU75: 0 | AV75: 0 | AW75: 0 | AX75: 0 | AY75: 0 | AZ75: 0 | BA75: 0 | BB75: 0 | BC75: 0 | BD75: =IF(ISERROR(Plan),0,Plan) -> 0 | BE75: 0 | BF75: 0 | BG75: 0 | BH75: 0 | BI75: 0 | BJ75: 0 | BK75: 0 | BL75: 0 | BM75: 0 | BN75: 0 | BO75: 0 | BP75: 0
A76: Roi des Barbares | C76: =IF($B76<>"",VLOOKUP($B76,COSTS_Barbarian_King[#All],2),"") ->  | D76: =IF($B76<>"",VLOOKUP($B76,COSTS_Barbarian_King[#All],3)/24,"") ->  | I76: 0 | J76: 0 | K76: 0 | L76: 0 | M76: 0 | N76: 0 | O76: 0 | P76: 0 | Q76: 0 | R76: 0 | S76: 0 | T76: 0 | U76: 0 | V76: 0 | W76: 0 | X76: 0 | Y76: 0 | Z76: 0 | AA76: 0 | AB76: 0 | AC76: 0 | AD76: 0 | AE76: 0 | AF76: 0 | AG76: 0 | AH76: 0 | AI76: 0 | AJ76: 0 | AK76: 0 | AL76: 0 | AM76: 0 | AN76: 0 | AO76: 0 | AP76: 0 | AQ76: 0 | AR76: 0 | AS76: 0 | AT76: 0 | AU76: 0 | AV76: 0 | AW76: 0 | AX76: 0 | AY76: 0 | AZ76: 0 | BA76: 0 | BB76: 0 | BC76: 0 | BD76: 0 | BE76: 0 | BF76: 0 | BG76: 0 | BH76: 0 | BI76: 0 | BJ76: 0 | BK76: 0 | BL76: 0 | BM76: 0 | BN76: 0 | BO76: 0 | BP76: 0
A77: Reine des Archers | C77: =IF($B77<>"",VLOOKUP($B77,COSTS_Archer_Queen[#All],2),"") ->  | D77: =IF($B77<>"",VLOOKUP($B77,COSTS_Archer_Queen[#All],3)/24,"") ->  | I77: =IF(ISERROR(Plan),0,Plan) -> 0 | J77: 0 | K77: 0 | L77: 0 | M77: 0 | N77: 0 | O77: 0 | P77: 0 | Q77: 0 | R77: 0 | S77: 0 | T77: 0 | U77: 0 | V77: 0 | W77: 0 | X77: 0 | Y77: =IF(ISERROR(Plan),0,Plan) -> 0 | Z77: 0 | AA77: 0 | AB77: 0 | AC77: 0 | AD77: 0 | AE77: 0 | AF77: 0 | AG77: 0 | AH77: 0 | AI77: 0 | AJ77: 0 | AK77: 0 | AL77: 0 | AM77: 0 | AN77: =IF(ISERROR(Plan),0,Plan) -> 0 | AO77: 0 | AP77: 0 | AQ77: 0 | AR77: 0 | AS77: 0 | AT77: 0 | AU77: 0 | AV77: 0 | AW77: 0 | AX77: 0 | AY77: 0 | AZ77: 0 | BA77: 0 | BB77: 0 | BC77: 0 | BD77: =IF(ISERROR(Plan),0,Plan) -> 0 | BE77: 0 | BF77: 0 | BG77: 0 | BH77: 0 | BI77: 0 | BJ77: 0 | BK77: 0 | BL77: 0 | BM77: 0 | BN77: 0 | BO77: 0 | BP77: 0
A78: Grand Gardien | C78: =IF($B78<>"",VLOOKUP($B78,COSTS_Grand_Warden[#All],2),"") ->  | D78: =IF($B78<>"",VLOOKUP($B78,COSTS_Grand_Warden[#All],3)/24,"") ->  | G78: =IF($D78<>"",$D78,"") ->  | I78: =IF(ISERROR(Plan),0,Plan) -> 0 | J78: 0 | K78: 0 | L78: 0 | M78: 0 | N78: 0 | O78: 0 | P78: 0 | Q78: 0 | R78: 0 | S78: 0 | T78: 0 | U78: 0 | V78: 0 | W78: 0 | X78: 0 | Y78: =IF(ISERROR(Plan),0,Plan) -> 0 | Z78: 0 | AA78: 0 | AB78: 0 | AC78: 0 | AD78: 0 | AE78: 0 | AF78: 0 | AG78: 0 | AH78: 0 | AI78: 0 | AJ78: 0 | AK78: 0 | AL78: 0 | AM78: 0 | AN78: =IF(ISERROR(Plan),0,Plan) -> 0 | AO78: 0 | AP78: 0 | AQ78: 0 | AR78: 0 | AS78: 0 | AT78: 0 | AU78: 0 | AV78: 0 | AW78: 0 | AX78: 0 | AY78: 0 | AZ78: 0 | BA78: 0 | BB78: 0 | BC78: 0 | BD78: =IF(ISERROR(Plan),0,Plan) -> 0 | BE78: 0 | BF78: 0 | BG78: 0 | BH78: 0 | BI78: 0 | BJ78: 0 | BK78: 0 | BL78: 0 | BM78: 0 | BN78: 0 | BO78: 0 | BP78: 0
A79: Grand Gardien | C79: =IF($B79<>"",VLOOKUP($B79,COSTS_Grand_Warden[#All],2),"") ->  | D79: =IF($B79<>"",VLOOKUP($B79,COSTS_Grand_Warden[#All],3)/24,"") ->  | G79: =IF($D79<>"",$D79,"") ->  | I79: 0 | J79: 0 | K79: 0 | L79: 0 | M79: 0 | N79: 0 | O79: 0 | P79: 0 | Q79: 0 | R79: 0 | S79: 0 | T79: 0 | U79: 0 | V79: 0 | W79: 0 | X79: 0 | Y79: 0 | Z79: 0 | AA79: 0 | AB79: 0 | AC79: 0 | AD79: 0 | AE79: 0 | AF79: 0 | AG79: 0 | AH79: 0 | AI79: 0 | AJ79: 0 | AK79: 0 | AL79: 0 | AM79: 0 | AN79: 0 | AO79: 0 | AP79: 0 | AQ79: 0 | AR79: 0 | AS79: 0 | AT79: 0 | AU79: 0 | AV79: 0 | AW79: 0 | AX79: 0 | AY79: 0 | AZ79: 0 | BA79: 0 | BB79: 0 | BC79: 0 | BD79: 0 | BE79: 0 | BF79: 0 | BG79: 0 | BH79: 0 | BI79: 0 | BJ79: 0 | BK79: 0 | BL79: 0 | BM79: 0 | BN79: 0 | BO79: 0 | BP79: 0
A80: Grand Gardien | C80: =IF($B80<>"",VLOOKUP($B80,COSTS_Grand_Warden[#All],2),"") ->  | D80: =IF($B80<>"",VLOOKUP($B80,COSTS_Grand_Warden[#All],3)/24,"") ->  | I80: 0 | J80: 0 | K80: 0 | L80: 0 | M80: 0 | N80: 0 | O80: 0 | P80: 0 | Q80: 0 | R80: 0 | S80: 0 | T80: 0 | U80: 0 | V80: 0 | W80: 0 | X80: 0 | Y80: 0 | Z80: 0 | AA80: 0 | AB80: 0 | AC80: 0 | AD80: 0 | AE80: 0 | AF80: 0 | AG80: 0 | AH80: 0 | AI80: 0 | AJ80: 0 | AK80: 0 | AL80: 0 | AM80: 0 | AN80: 0 | AO80: 0 | AP80: 0 | AQ80: 0 | AR80: 0 | AS80: 0 | AT80: 0 | AU80: 0 | AV80: 0 | AW80: 0 | AX80: 0 | AY80: 0 | AZ80: 0 | BA80: 0 | BB80: 0 | BC80: 0 | BD80: 0 | BE80: 0 | BF80: 0 | BG80: 0 | BH80: 0 | BI80: 0 | BJ80: 0 | BK80: 0 | BL80: 0 | BM80: 0 | BN80: 0 | BO80: 0 | BP80: 0
A81: Grand Gardien | C81: =IF($B81<>"",VLOOKUP($B81,COSTS_Grand_Warden[#All],2),"") ->  | D81: =IF($B81<>"",VLOOKUP($B81,COSTS_Grand_Warden[#All],3)/24,"") ->  | I81: 0 | J81: 0 | K81: 0 | L81: 0 | M81: 0 | N81: 0 | O81: 0 | P81: 0 | Q81: 0 | R81: 0 | S81: 0 | T81: 0 | U81: 0 | V81: 0 | W81: 0 | X81: 0 | Y81: 0 | Z81: 0 | AA81: 0 | AB81: 0 | AC81: 0 | AD81: 0 | AE81: 0 | AF81: 0 | AG81: 0 | AH81: 0 | AI81: 0 | AJ81: 0 | AK81: 0 | AL81: 0 | AM81: 0 | AN81: 0 | AO81: 0 | AP81: 0 | AQ81: 0 | AR81: 0 | AS81: 0 | AT81: 0 | AU81: 0 | AV81: 0 | AW81: 0 | AX81: 0 | AY81: 0 | AZ81: 0 | BA81: 0 | BB81: 0 | BC81: 0 | BD81: 0 | BE81: 0 | BF81: 0 | BG81: 0 | BH81: 0 | BI81: 0 | BJ81: 0 | BK81: 0 | BL81: 0 | BM81: 0 | BN81: 0 | BO81: 0 | BP81: 0
A82: Grand Gardien | C82: =IF($B82<>"",VLOOKUP($B82,COSTS_Grand_Warden[#All],2),"") ->  | D82: =IF($B82<>"",VLOOKUP($B82,COSTS_Grand_Warden[#All],3)/24,"") ->  | I82: 0 | J82: 0 | K82: 0 | L82: 0 | M82: 0 | N82: 0 | O82: 0 | P82: 0 | Q82: 0 | R82: 0 | S82: 0 | T82: 0 | U82: 0 | V82: 0 | W82: 0 | X82: 0 | Y82: 0 | Z82: 0 | AA82: 0 | AB82: 0 | AC82: 0 | AD82: 0 | AE82: 0 | AF82: 0 | AG82: 0 | AH82: 0 | AI82: 0 | AJ82: 0 | AK82: 0 | AL82: 0 | AM82: 0 | AN82: 0 | AO82: 0 | AP82: 0 | AQ82: 0 | AR82: 0 | AS82: 0 | AT82: 0 | AU82: 0 | AV82: 0 | AW82: 0 | AX82: 0 | AY82: 0 | AZ82: 0 | BA82: 0 | BB82: 0 | BC82: 0 | BD82: 0 | BE82: 0 | BF82: 0 | BG82: 0 | BH82: 0 | BI82: 0 | BJ82: 0 | BK82: 0 | BL82: 0 | BM82: 0 | BN82: 0 | BO82: 0 | BP82: 0
A83: Grand Gardien | C83: =IF($B83<>"",VLOOKUP($B83,COSTS_Grand_Warden[#All],2),"") ->  | D83: =IF($B83<>"",VLOOKUP($B83,COSTS_Grand_Warden[#All],3)/24,"") ->  | I83: 0 | J83: 0 | K83: 0 | L83: 0 | M83: 0 | N83: 0 | O83: 0 | P83: 0 | Q83: 0 | R83: 0 | S83: 0 | T83: 0 | U83: 0 | V83: 0 | W83: 0 | X83: 0 | Y83: 0 | Z83: 0 | AA83: 0 | AB83: 0 | AC83: 0 | AD83: 0 | AE83: 0 | AF83: 0 | AG83: 0 | AH83: 0 | AI83: 0 | AJ83: 0 | AK83: 0 | AL83: 0 | AM83: 0 | AN83: 0 | AO83: 0 | AP83: 0 | AQ83: 0 | AR83: 0 | AS83: 0 | AT83: 0 | AU83: 0 | AV83: 0 | AW83: 0 | AX83: 0 | AY83: 0 | AZ83: 0 | BA83: 0 | BB83: 0 | BC83: 0 | BD83: 0 | BE83: 0 | BF83: 0 | BG83: 0 | BH83: 0 | BI83: 0 | BJ83: 0 | BK83: 0 | BL83: 0 | BM83: 0 | BN83: 0 | BO83: 0 | BP83: 0
A84: Grand Gardien | C84: =IF($B84<>"",VLOOKUP($B84,COSTS_Grand_Warden[#All],2),"") ->  | D84: =IF($B84<>"",VLOOKUP($B84,COSTS_Grand_Warden[#All],3)/24,"") ->  | I84: 0 | J84: 0 | K84: 0 | L84: 0 | M84: 0 | N84: 0 | O84: 0 | P84: 0 | Q84: 0 | R84: 0 | S84: 0 | T84: 0 | U84: 0 | V84: 0 | W84: 0 | X84: 0 | Y84: 0 | Z84: 0 | AA84: 0 | AB84: 0 | AC84: 0 | AD84: 0 | AE84: 0 | AF84: 0 | AG84: 0 | AH84: 0 | AI84: 0 | AJ84: 0 | AK84: 0 | AL84: 0 | AM84: 0 | AN84: 0 | AO84: 0 | AP84: 0 | AQ84: 0 | AR84: 0 | AS84: 0 | AT84: 0 | AU84: 0 | AV84: 0 | AW84: 0 | AX84: 0 | AY84: 0 | AZ84: 0 | BA84: 0 | BB84: 0 | BC84: 0 | BD84: 0 | BE84: 0 | BF84: 0 | BG84: 0 | BH84: 0 | BI84: 0 | BJ84: 0 | BK84: 0 | BL84: 0 | BM84: 0 | BN84: 0 | BO84: 0 | BP84: 0
A85: Grand Gardien | C85: =IF($B85<>"",VLOOKUP($B85,COSTS_Grand_Warden[#All],2),"") ->  | D85: =IF($B85<>"",VLOOKUP($B85,COSTS_Grand_Warden[#All],3)/24,"") ->  | I85: 0 | J85: 0 | K85: 0 | L85: 0 | M85: 0 | N85: 0 | O85: 0 | P85: 0 | Q85: 0 | R85: 0 | S85: 0 | T85: 0 | U85: 0 | V85: 0 | W85: 0 | X85: 0 | Y85: 0 | Z85: 0 | AA85: 0 | AB85: 0 | AC85: 0 | AD85: 0 | AE85: 0 | AF85: 0 | AG85: 0 | AH85: 0 | AI85: 0 | AJ85: 0 | AK85: 0 | AL85: 0 | AM85: 0 | AN85: 0 | AO85: 0 | AP85: 0 | AQ85: 0 | AR85: 0 | AS85: 0 | AT85: 0 | AU85: 0 | AV85: 0 | AW85: 0 | AX85: 0 | AY85: 0 | AZ85: 0 | BA85: 0 | BB85: 0 | BC85: 0 | BD85: 0 | BE85: 0 | BF85: 0 | BG85: 0 | BH85: 0 | BI85: 0 | BJ85: 0 | BK85: 0 | BL85: 0 | BM85: 0 | BN85: 0 | BO85: 0 | BP85: 0
A86: Grand Gardien | C86: =IF($B86<>"",VLOOKUP($B86,COSTS_Grand_Warden[#All],2),"") ->  | D86: =IF($B86<>"",VLOOKUP($B86,COSTS_Grand_Warden[#All],3)/24,"") ->  | I86: 0 | J86: 0 | K86: 0 | L86: 0 | M86: 0 | N86: 0 | O86: 0 | P86: 0 | Q86: 0 | R86: 0 | S86: 0 | T86: 0 | U86: 0 | V86: 0 | W86: 0 | X86: 0 | Y86: 0 | Z86: 0 | AA86: 0 | AB86: 0 | AC86: 0 | AD86: 0 | AE86: 0 | AF86: 0 | AG86: 0 | AH86: 0 | AI86: 0 | AJ86: 0 | AK86: 0 | AL86: 0 | AM86: 0 | AN86: 0 | AO86: 0 | AP86: 0 | AQ86: 0 | AR86: 0 | AS86: 0 | AT86: 0 | AU86: 0 | AV86: 0 | AW86: 0 | AX86: 0 | AY86: 0 | AZ86: 0 | BA86: 0 | BB86: 0 | BC86: 0 | BD86: 0 | BE86: 0 | BF86: 0 | BG86: 0 | BH86: 0 | BI86: 0 | BJ86: 0 | BK86: 0 | BL86: 0 | BM86: 0 | BN86: 0 | BO86: 0 | BP86: 0
A87: Grand Gardien | C87: =IF($B87<>"",VLOOKUP($B87,COSTS_Grand_Warden[#All],2),"") ->  | D87: =IF($B87<>"",VLOOKUP($B87,COSTS_Grand_Warden[#All],3)/24,"") ->  | I87: 0 | J87: 0 | K87: 0 | L87: 0 | M87: 0 | N87: 0 | O87: 0 | P87: 0 | Q87: 0 | R87: 0 | S87: 0 | T87: 0 | U87: 0 | V87: 0 | W87: 0 | X87: 0 | Y87: 0 | Z87: 0 | AA87: 0 | AB87: 0 | AC87: 0 | AD87: 0 | AE87: 0 | AF87: 0 | AG87: 0 | AH87: 0 | AI87: 0 | AJ87: 0 | AK87: 0 | AL87: 0 | AM87: 0 | AN87: 0 | AO87: 0 | AP87: 0 | AQ87: 0 | AR87: 0 | AS87: 0 | AT87: 0 | AU87: 0 | AV87: 0 | AW87: 0 | AX87: 0 | AY87: 0 | AZ87: 0 | BA87: 0 | BB87: 0 | BC87: 0 | BD87: 0 | BE87: 0 | BF87: 0 | BG87: 0 | BH87: 0 | BI87: 0 | BJ87: 0 | BK87: 0 | BL87: 0 | BM87: 0 | BN87: 0 | BO87: 0 | BP87: 0
A88: Grand Gardien | C88: =IF($B88<>"",VLOOKUP($B88,COSTS_Grand_Warden[#All],2),"") ->  | D88: =IF($B88<>"",VLOOKUP($B88,COSTS_Grand_Warden[#All],3)/24,"") ->  | I88: 0 | J88: 0 | K88: 0 | L88: 0 | M88: 0 | N88: 0 | O88: 0 | P88: 0 | Q88: 0 | R88: 0 | S88: 0 | T88: 0 | U88: 0 | V88: 0 | W88: 0 | X88: 0 | Y88: 0 | Z88: 0 | AA88: 0 | AB88: 0 | AC88: 0 | AD88: 0 | AE88: 0 | AF88: 0 | AG88: 0 | AH88: 0 | AI88: 0 | AJ88: 0 | AK88: 0 | AL88: 0 | AM88: 0 | AN88: 0 | AO88: 0 | AP88: 0 | AQ88: 0 | AR88: 0 | AS88: 0 | AT88: 0 | AU88: 0 | AV88: 0 | AW88: 0 | AX88: 0 | AY88: 0 | AZ88: 0 | BA88: 0 | BB88: 0 | BC88: 0 | BD88: 0 | BE88: 0 | BF88: 0 | BG88: 0 | BH88: 0 | BI88: 0 | BJ88: 0 | BK88: 0 | BL88: 0 | BM88: 0 | BN88: 0 | BO88: 0 | BP88: 0
A89: Grand Gardien | C89: =IF($B89<>"",VLOOKUP($B89,COSTS_Grand_Warden[#All],2),"") ->  | D89: =IF($B89<>"",VLOOKUP($B89,COSTS_Grand_Warden[#All],3)/24,"") ->  | I89: 0 | J89: 0 | K89: 0 | L89: 0 | M89: 0 | N89: 0 | O89: 0 | P89: 0 | Q89: 0 | R89: 0 | S89: 0 | T89: 0 | U89: 0 | V89: 0 | W89: 0 | X89: 0 | Y89: 0 | Z89: 0 | AA89: 0 | AB89: 0 | AC89: 0 | AD89: 0 | AE89: 0 | AF89: 0 | AG89: 0 | AH89: 0 | AI89: 0 | AJ89: 0 | AK89: 0 | AL89: 0 | AM89: 0 | AN89: 0 | AO89: 0 | AP89: 0 | AQ89: 0 | AR89: 0 | AS89: 0 | AT89: 0 | AU89: 0 | AV89: 0 | AW89: 0 | AX89: 0 | AY89: 0 | AZ89: 0 | BA89: 0 | BB89: 0 | BC89: 0 | BD89: 0 | BE89: 0 | BF89: 0 | BG89: 0 | BH89: 0 | BI89: 0 | BJ89: 0 | BK89: 0 | BL89: 0 | BM89: 0 | BN89: 0 | BO89: 0 | BP89: 0
A90: Grand Gardien | C90: =IF($B90<>"",VLOOKUP($B90,COSTS_Grand_Warden[#All],2),"") ->  | D90: =IF($B90<>"",VLOOKUP($B90,COSTS_Grand_Warden[#All],3)/24,"") ->  | I90: 0 | J90: 0 | K90: 0 | L90: 0 | M90: 0 | N90: 0 | O90: 0 | P90: 0 | Q90: 0 | R90: 0 | S90: 0 | T90: 0 | U90: 0 | V90: 0 | W90: 0 | X90: 0 | Y90: 0 | Z90: 0 | AA90: 0 | AB90: 0 | AC90: 0 | AD90: 0 | AE90: 0 | AF90: 0 | AG90: 0 | AH90: 0 | AI90: 0 | AJ90: 0 | AK90: 0 | AL90: 0 | AM90: 0 | AN90: 0 | AO90: 0 | AP90: 0 | AQ90: 0 | AR90: 0 | AS90: 0 | AT90: 0 | AU90: 0 | AV90: 0 | AW90: 0 | AX90: 0 | AY90: 0 | AZ90: 0 | BA90: 0 | BB90: 0 | BC90: 0 | BD90: 0 | BE90: 0 | BF90: 0 | BG90: 0 | BH90: 0 | BI90: 0 | BJ90: 0 | BK90: 0 | BL90: 0 | BM90: 0 | BN90: 0 | BO90: 0 | BP90: 0
A91: Grand Gardien | C91: =IF($B91<>"",VLOOKUP($B91,COSTS_Grand_Warden[#All],2),"") ->  | D91: =IF($B91<>"",VLOOKUP($B91,COSTS_Grand_Warden[#All],3)/24,"") ->  | I91: 0 | J91: 0 | K91: 0 | L91: 0 | M91: 0 | N91: 0 | O91: 0 | P91: 0 | Q91: 0 | R91: 0 | S91: 0 | T91: 0 | U91: 0 | V91: 0 | W91: 0 | X91: 0 | Y91: 0 | Z91: 0 | AA91: 0 | AB91: 0 | AC91: 0 | AD91: 0 | AE91: 0 | AF91: 0 | AG91: 0 | AH91: 0 | AI91: 0 | AJ91: 0 | AK91: 0 | AL91: 0 | AM91: 0 | AN91: 0 | AO91: 0 | AP91: 0 | AQ91: 0 | AR91: 0 | AS91: 0 | AT91: 0 | AU91: 0 | AV91: 0 | AW91: 0 | AX91: 0 | AY91: 0 | AZ91: 0 | BA91: 0 | BB91: 0 | BC91: 0 | BD91: 0 | BE91: 0 | BF91: 0 | BG91: 0 | BH91: 0 | BI91: 0 | BJ91: 0 | BK91: 0 | BL91: 0 | BM91: 0 | BN91: 0 | BO91: 0 | BP91: 0
A92: Grand Gardien | C92: =IF($B92<>"",VLOOKUP($B92,COSTS_Grand_Warden[#All],2),"") ->  | D92: =IF($B92<>"",VLOOKUP($B92,COSTS_Grand_Warden[#All],3)/24,"") ->  | I92: 0 | J92: 0 | K92: 0 | L92: 0 | M92: 0 | N92: 0 | O92: 0 | P92: 0 | Q92: 0 | R92: 0 | S92: 0 | T92: 0 | U92: 0 | V92: 0 | W92: 0 | X92: 0 | Y92: 0 | Z92: 0 | AA92: 0 | AB92: 0 | AC92: 0 | AD92: 0 | AE92: 0 | AF92: 0 | AG92: 0 | AH92: 0 | AI92: 0 | AJ92: 0 | AK92: 0 | AL92: 0 | AM92: 0 | AN92: 0 | AO92: 0 | AP92: 0 | AQ92: 0 | AR92: 0 | AS92: 0 | AT92: 0 | AU92: 0 | AV92: 0 | AW92: 0 | AX92: 0 | AY92: 0 | AZ92: 0 | BA92: 0 | BB92: 0 | BC92: 0 | BD92: 0 | BE92: 0 | BF92: 0 | BG92: 0 | BH92: 0 | BI92: 0 | BJ92: 0 | BK92: 0 | BL92: 0 | BM92: 0 | BN92: 0 | BO92: 0 | BP92: 0
A93: Grand Gardien | C93: =IF($B93<>"",VLOOKUP($B93,COSTS_Grand_Warden[#All],2),"") ->  | D93: =IF($B93<>"",VLOOKUP($B93,COSTS_Grand_Warden[#All],3)/24,"") ->  | I93: 0 | J93: 0 | K93: 0 | L93: 0 | M93: 0 | N93: 0 | O93: 0 | P93: 0 | Q93: 0 | R93: 0 | S93: 0 | T93: 0 | U93: 0 | V93: 0 | W93: 0 | X93: =IF(ISERROR(Plan),0,Plan) -> 0 | Y93: 0 | Z93: 0 | AA93: 0 | AB93: 0 | AC93: 0 | AD93: 0 | AE93: 0 | AF93: 0 | AG93: 0 | AH93: 0 | AI93: 0 | AJ93: 0 | AK93: 0 | AL93: 0 | AM93: 0 | AN93: 0 | AO93: 0 | AP93: 0 | AQ93: 0 | AR93: 0 | AS93: 0 | AT93: 0 | AU93: 0 | AV93: 0 | AW93: 0 | AX93: 0 | AY93: 0 | AZ93: 0 | BA93: 0 | BB93: 0 | BC93: =IF(ISERROR(Plan),0,Plan) -> 0 | BD93: 0 | BE93: 0 | BF93: 0 | BG93: 0 | BH93: 0 | BI93: 0 | BJ93: 0 | BK93: 0 | BL93: 0 | BM93: 0 | BN93: 0 | BO93: 0 | BP93: 0
A94: Grand Gardien | C94: =IF($B94<>"",VLOOKUP($B94,COSTS_Grand_Warden[#All],2),"") ->  | D94: =IF($B94<>"",VLOOKUP($B94,COSTS_Grand_Warden[#All],3)/24,"") ->  | I94: 0 | J94: 0 | K94: 0 | L94: 0 | M94: 0 | N94: 0 | O94: 0 | P94: 0 | Q94: 0 | R94: 0 | S94: 0 | T94: 0 | U94: 0 | V94: 0 | W94: 0 | X94: 0 | Y94: =IF(ISERROR(Plan),0,Plan) -> 0 | Z94: 0 | AA94: 0 | AB94: 0 | AC94: 0 | AD94: 0 | AE94: 0 | AF94: 0 | AG94: 0 | AH94: 0 | AI94: 0 | AJ94: 0 | AK94: 0 | AL94: 0 | AM94: 0 | AN94: 0 | AO94: 0 | AP94: 0 | AQ94: 0 | AR94: 0 | AS94: 0 | AT94: 0 | AU94: 0 | AV94: 0 | AW94: 0 | AX94: 0 | AY94: 0 | AZ94: 0 | BA94: 0 | BB94: 0 | BC94: 0 | BD94: =IF(ISERROR(Plan),0,Plan) -> 0 | BE94: 0 | BF94: 0 | BG94: 0 | BH94: 0 | BI94: 0 | BJ94: 0 | BK94: 0 | BL94: 0 | BM94: 0 | BN94: 0 | BO94: 0 | BP94: 0
A95: Grand Gardien | C95: =IF($B95<>"",VLOOKUP($B95,COSTS_Grand_Warden[#All],2),"") ->  | D95: =IF($B95<>"",VLOOKUP($B95,COSTS_Grand_Warden[#All],3)/24,"") ->  | I95: 0 | J95: 0 | K95: 0 | L95: 0 | M95: 0 | N95: 0 | O95: 0 | P95: 0 | Q95: 0 | R95: 0 | S95: 0 | T95: 0 | U95: 0 | V95: 0 | W95: 0 | X95: 0 | Y95: 0 | Z95: 0 | AA95: 0 | AB95: 0 | AC95: 0 | AD95: 0 | AE95: 0 | AF95: 0 | AG95: 0 | AH95: 0 | AI95: 0 | AJ95: 0 | AK95: 0 | AL95: 0 | AM95: 0 | AN95: 0 | AO95: 0 | AP95: 0 | AQ95: 0 | AR95: 0 | AS95: 0 | AT95: 0 | AU95: 0 | AV95: 0 | AW95: 0 | AX95: 0 | AY95: 0 | AZ95: 0 | BA95: 0 | BB95: 0 | BC95: 0 | BD95: 0 | BE95: 0 | BF95: 0 | BG95: 0 | BH95: 0 | BI95: 0 | BJ95: 0 | BK95: 0 | BL95: 0 | BM95: 0 | BN95: 0 | BO95: 0 | BP95: 0
A96: Grand Gardien | C96: =IF($B96<>"",VLOOKUP($B96,COSTS_Grand_Warden[#All],2),"") ->  | D96: =IF($B96<>"",VLOOKUP($B96,COSTS_Grand_Warden[#All],3)/24,"") ->  | I96: 0 | J96: 0 | K96: 0 | L96: 0 | M96: 0 | N96: 0 | O96: 0 | P96: 0 | Q96: 0 | R96: 0 | S96: 0 | T96: 0 | U96: 0 | V96: 0 | W96: 0 | X96: 0 | Y96: 0 | Z96: 0 | AA96: 0 | AB96: 0 | AC96: 0 | AD96: 0 | AE96: 0 | AF96: 0 | AG96: 0 | AH96: 0 | AI96: 0 | AJ96: 0 | AK96: 0 | AL96: 0 | AM96: 0 | AN96: 0 | AO96: 0 | AP96: 0 | AQ96: 0 | AR96: 0 | AS96: 0 | AT96: 0 | AU96: 0 | AV96: 0 | AW96: 0 | AX96: 0 | AY96: 0 | AZ96: 0 | BA96: 0 | BB96: 0 | BC96: 0 | BD96: 0 | BE96: 0 | BF96: 0 | BG96: 0 | BH96: 0 | BI96: 0 | BJ96: 0 | BK96: 0 | BL96: 0 | BM96: 0 | BN96: 0 | BO96: 0 | BP96: 0
A97: Grand Gardien | C97: =IF($B97<>"",VLOOKUP($B97,COSTS_Grand_Warden[#All],2),"") ->  | D97: =IF($B97<>"",VLOOKUP($B97,COSTS_Grand_Warden[#All],3)/24,"") ->  | I97: 0 | J97: 0 | K97: 0 | L97: 0 | M97: 0 | N97: 0 | O97: 0 | P97: 0 | Q97: 0 | R97: 0 | S97: 0 | T97: 0 | U97: 0 | V97: 0 | W97: 0 | X97: 0 | Y97: 0 | Z97: 0 | AA97: 0 | AB97: 0 | AC97: 0 | AD97: 0 | AE97: 0 | AF97: 0 | AG97: 0 | AH97: 0 | AI97: 0 | AJ97: 0 | AK97: 0 | AL97: 0 | AM97: 0 | AN97: 0 | AO97: 0 | AP97: 0 | AQ97: 0 | AR97: 0 | AS97: 0 | AT97: 0 | AU97: 0 | AV97: 0 | AW97: 0 | AX97: 0 | AY97: 0 | AZ97: 0 | BA97: 0 | BB97: 0 | BC97: 0 | BD97: 0 | BE97: 0 | BF97: 0 | BG97: 0 | BH97: 0 | BI97: 0 | BJ97: 0 | BK97: 0 | BL97: 0 | BM97: 0 | BN97: 0 | BO97: 0 | BP97: 0
A98: Grand Gardien | C98: =IF($B98<>"",VLOOKUP($B98,COSTS_Grand_Warden[#All],2),"") ->  | D98: =IF($B98<>"",VLOOKUP($B98,COSTS_Grand_Warden[#All],3)/24,"") ->  | I98: 0 | J98: 0 | K98: 0 | L98: 0 | M98: 0 | N98: 0 | O98: 0 | P98: 0 | Q98: 0 | R98: 0 | S98: 0 | T98: 0 | U98: 0 | V98: 0 | W98: 0 | X98: 0 | Y98: 0 | Z98: 0 | AA98: 0 | AB98: 0 | AC98: 0 | AD98: 0 | AE98: 0 | AF98: 0 | AG98: 0 | AH98: 0 | AI98: 0 | AJ98: 0 | AK98: 0 | AL98: 0 | AM98: 0 | AN98: 0 | AO98: 0 | AP98: 0 | AQ98: 0 | AR98: 0 | AS98: 0 | AT98: 0 | AU98: 0 | AV98: 0 | AW98: 0 | AX98: 0 | AY98: 0 | AZ98: 0 | BA98: 0 | BB98: 0 | BC98: 0 | BD98: 0 | BE98: 0 | BF98: 0 | BG98: 0 | BH98: 0 | BI98: 0 | BJ98: 0 | BK98: 0 | BL98: 0 | BM98: 0 | BN98: 0 | BO98: 0 | BP98: 0

Sheet À Faire - Récapitulatif
A1: LVL HdV | B1: Affichage Temps | D1: Mur | E1: HDV | F1: Héros | H1: Or Total : | K1: Élixir Total : | M1: Élixir Noir Total : | O1: Temps Total : | Q1: ='Paramètres - Admin'!$D$7 & IF($B$2='Paramètres - Admin'!$B$2,TEXT((E13+K13+E28+Q28+Q13)*60*60,"# 0")&" " & 'Paramètres - Admin'!$B$2,IF($B$2='Paramètres - Admin'!$B$3,TEXT((E13+K13+E28+Q28+Q13)*60,"# 0")&" " & 'Paramètres - Admin'!$B$3,IF($B$2='Paramètres - Admin'!$B$4,TEXT((E13+K13+E28+Q28+Q13),"# 0,00")&" " & 'Paramètres - Admin'!$B$4,IF($B$2='Paramètres - Admin'!$B$5,TEXT((E13+K13+E28+Q28+Q13)/24,"# 0,00")&" " & 'Paramètres - Admin'!$B$5,IF($B$2='Paramètres - Admin'!$B$6,TEXT(((E13+K13+E28+Q28+Q13)/24)/30,"# 0,00")&" " & 'Paramètres - Admin'!$B$6,IF((E13+K13+E28+Q28+Q13)/24>=1,INT((E13+K13+E28+Q28+Q13)/24)&" " & 'Paramètres - Admin'!$D$4 & " " & HOUR((E13+K13+E28+Q28+Q13)/24-INT((E13+K13+E28+Q28+Q13)/24))&" " & 'Paramètres - Admin'!$D$3 & " " & MINUTE((E13+K13+E28+Q28+Q13)/24-INT((E13+K13+E28+Q28+Q13)/24))&" " & 'Paramètres - Admin'!$D$2,HOUR((E13+K13+E28+Q28+Q13)/24-INT((E13+K13+E28+Q28+Q13)/24))&" " & 'Paramètres - Admin'!$D$3 & " " & MINUTE((E13+K13+E28+Q28+Q13)/24-INT((E13+K13+E28+Q28+Q13)/24))&" " & 'Paramètres - Admin'!$D$2)))))) -> Bâtiments : 0,15 jours | T1: => Temps par Ouvrier : | W1: Améliorations Troupes/Sorts :
A2: =Paramètres!$BN$2 -> 1 | B2: jours | D2: Non | E2: Non | F2: Oui | H2: =TEXT(D8+D11+D28+P28+P13,"# ### ### ##0") -> 4 250 | K2: =TEXT(D7+D9+D10+D12+J13+P23+J29+V26,"# ### ### ##0") -> 4 700 | M2: =TEXT(V14+V27+V21,"# ### ### ##0") -> 0 | O2: =IF($B$2='Paramètres - Admin'!$B$2,TEXT((Z6)*60*60,"# 0")&" " & 'Paramètres - Admin'!$B$2,IF($B$2='Paramètres - Admin'!$B$3,TEXT(Z6*60,"# 0")&" " & 'Paramètres - Admin'!$B$3,IF($B$2='Paramètres - Admin'!$B$4,TEXT(Z6,"# 0,00")&" " & 'Paramètres - Admin'!$B$4,IF($B$2='Paramètres - Admin'!$B$5,TEXT(Z6/24,"# 0,00")&" " & 'Paramètres - Admin'!$B$5,IF($B$2='Paramètres - Admin'!$B$6,TEXT((Z6/24)/30,"# 0,00")&" " & 'Paramètres - Admin'!$B$6,IF(Z6/24>=1,INT(Z6/24)&" " & 'Paramètres - Admin'!$D$4 & " " & HOUR(Z6/24-INT(Z6/24))&" " & 'Paramètres - Admin'!$D$3 & " " & MINUTE(Z6/24-INT(Z6/24))&" " & 'Paramètres - Admin'!$D$2,HOUR(Z6/24-INT(Z6/24))&" " & 'Paramètres - Admin'!$D$3 & " " & MINUTE(Z6/24-INT(Z6/24))&" " & 'Paramètres - Admin'!$D$2)))))) -> 0,15 jours | Q2: ='Paramètres - Admin'!$D$6 & IF($B$2='Paramètres - Admin'!$B$2,TEXT(W27*60*60,"# 0")&" " & 'Paramètres - Admin'!$B$2,IF($B$2='Paramètres - Admin'!$B$3,TEXT(W27*60,"# 0")&" " & 'Paramètres - Admin'!$B$3,IF($B$2='Paramètres - Admin'!$B$4,TEXT(W27,"# 0,00")&" " & 'Paramètres - Admin'!$B$4,IF($B$2='Paramètres - Admin'!$B$5,TEXT(W27/24,"# 0,00")&" " & 'Paramètres - Admin'!$B$5,IF($B$2='Paramètres - Admin'!$B$6,TEXT((W27/24)/30,"# 0,00")&" " & 'Paramètres - Admin'!$B$6,IF(W27/24>=1,INT(W27/24)&" " & 'Paramètres - Admin'!$D$4 & " " & HOUR(W27/24-INT(W27/24))&" " & 'Paramètres - Admin'!$D$3 & " " & MINUTE(W27/24-INT(W27/24))&" " & 'Paramètres - Admin'!$D$2,HOUR(W27/24-INT(W27/24))&" " & 'Paramètres - Admin'!$D$3 & " " & MINUTE(W27/24-INT(W27/24))&" " & 'Paramètres - Admin'!$D$2)))))) -> Héros : 0,00 jours | T2: =IF($B$2='Paramètres - Admin'!$B$2,TEXT((E13+K13+E28+Q28+Q13+W27)/Paramètres!$BO$2*60*60,"# 0")&" " & 'Paramètres - Admin'!$B$2,IF($B$2='Paramètres - Admin'!$B$3,TEXT((E13+K13+E28+Q28+Q13+W27)/Paramètres!$BO$2*60,"# 0")&" " & 'Paramètres - Admin'!$B$3,IF($B$2='Paramètres - Admin'!$B$4,TEXT((E13+K13+E28+Q28+Q13+W27)/Paramètres!$BO$2,"# 0,00")&" " & 'Paramètres - Admin'!$B$4,IF($B$2='Paramètres - Admin'!$B$5,TEXT((E13+K13+E28+Q28+Q13+W27)/Paramètres!$BO$2/24,"# 0,00")&" " & 'Paramètres - Admin'!$B$5,IF($B$2='Paramètres - Admin'!$B$6,TEXT(((E13+K13+E28+Q28+Q13+W27)/Paramètres!$BO$2/24)/30,"# 0,00")&" " & 'Paramètres - Admin'!$B$6,IF((E13+K13+E28+Q28+Q13+W27)/Paramètres!$BO$2/24>=1,INT((E13+K13+E28+Q28+Q13+W27)/Paramètres!$BO$2/24)&" " & 'Paramètres - Admin'!$D$4 & " " & HOUR((E13+K13+E28+Q28+Q13+W27)/Paramètres!$BO$2/24-INT((E13+K13+E28+Q28+Q13+W27)/Paramètres!$BO$2/24))&" " & 'Paramètres - Admin'!$D$3 & " " & MINUTE((E13+K13+E28+Q28+Q13+W27)/Paramètres!$BO$2/24-INT((E13+K13+E28+Q28+Q13+W27)/Paramètres!$BO$2/24))&" " & 'Paramètres - Admin'!$D$2,HOUR((E13+K13+E28+Q28+Q13+W27)/Paramètres!$BO$2/24-INT((E13+K13+E28+Q28+Q13+W27)/Paramètres!$BO$2/24))&" " & 'Paramètres - Admin'!$D$3 & " " & MINUTE((E13+K13+E28+Q28+Q13+W27)/Paramètres!$BO$2/24-INT((E13+K13+E28+Q28+Q13+W27)/Paramètres!$BO$2/24))&" " & 'Paramètres - Admin'!$D$2)))))) -> 0,15 jours | W2: =IF($B$2='Paramètres - Admin'!$B$2,TEXT((Q23+K29+W14+W21)*60*60,"# 0")&" " & 'Paramètres - Admin'!$B$2,IF($B$2='Paramètres - Admin'!$B$3,TEXT((Q23+K29+W14+W21)*60,"# 0")&" " & 'Paramètres - Admin'!$B$3,IF($B$2='Paramètres - Admin'!$B$4,TEXT((Q23+K29+W14+W21),"# 0,00")&" " & 'Paramètres - Admin'!$B$4,IF($B$2='Paramètres - Admin'!$B$5,TEXT((Q23+K29+W14+W21)/24,"# 0,00")&" " & 'Paramètres - Admin'!$B$5,IF($B$2='Paramètres - Admin'!$B$6,TEXT(((Q23+K29+W14+W21)/24)/30,"# 0,00")&" " & 'Paramètres - Admin'!$B$6,IF((Q23+K29+W14+W21)/24>=1,INT((Q23+K29+W14+W21)/24)&" " & 'Paramètres - Admin'!$D$4 & " " & HOUR((Q23+K29+W14+W21)/24-INT((Q23+K29+W14+W21)/24))&" " & 'Paramètres - Admin'!$D$3 & " " & MINUTE((Q23+K29+W14+W21)/24-INT((Q23+K29+W14+W21)/24))&" " & 'Paramètres - Admin'!$D$2,HOUR((Q23+K29+W14+W21)/24-INT((Q23+K29+W14+W21)/24))&" " & 'Paramètres - Admin'!$D$3 & " " & MINUTE((Q23+K29+W14+W21)/24-INT((Q23+K29+W14+W21)/24))&" " & 'Paramètres - Admin'!$D$2)))))) -> 0,00 jours
A3: Tableaux récapitulatifs | Y3: Or | Z3: =D8+D11+D28+P28+P13-IF(D2="Non",D17,0)-IF(E2="Non",P27,0) -> 3250
Y4: Élixir | Z4: =D7+D9+D10+D12+J13+P23+J29+IF(F2="Non",0,V26) -> 4700
A5: Bâtiments de Ressources | G5: Bâtiments d'Armée | M5: Pièges Défensifs | S5: Améliorations de Troupes Noires | Y5: Élixir Noir | Z5: =V14+V21+IF(F2="Non",0,V27) -> 0
A6: Bâtiment | B6: À Faire | C6: Up. | D6: Coût Total | E6: Temps Total | F6: Temps Total | G6: Bâtiment | H6: À Faire | I6: Up. | J6: Coût Total | K6: Temps Total | L6: Temps Total | M6: Bâtiment | N6: À Faire | O6: Up. | P6: Coût Total | Q6: Temps Total | R6: Temps Total | S6: Troupe Noire | T6: À Faire | U6: Up. | V6: Coût Total | W6: Temps Total | X6: Temps Total | Y6: Temps | Z6: =E13+K13+Q13+W14+K29+E28+Q23+Q28+W21+W27 -> 3.67
A7: Mine d'Or | B7: ='À Faire - Détails'!H5 -> 1 | C7: ='À Faire - Détails'!I5 -> 2 | D7: ='À Faire - Détails'!H19 -> 450 | E7: ='À Faire - Détails'!I19 -> 0.1 | F7: =IF($B$2='Paramètres - Admin'!$B$2,TEXT(E7*60*60,"# 0")&" " & 'Paramètres - Admin'!$B$2,IF($B$2='Paramètres - Admin'!$B$3,TEXT(E7*60,"# 0")&" " & 'Paramètres - Admin'!$B$3,IF($B$2='Paramètres - Admin'!$B$4,TEXT(E7,"# 0,00")&" " & 'Paramètres - Admin'!$B$4,IF($B$2='Paramètres - Admin'!$B$5,TEXT(E7/24,"# 0,00")&" " & 'Paramètres - Admin'!$B$5,IF($B$2='Paramètres - Admin'!$B$6,TEXT((E7/24)/30,"# 0,00")&" " & 'Paramètres - Admin'!$B$6,IF(E7/24>=1,INT(E7/24)&" " & 'Paramètres - Admin'!$D$4 & " " & HOUR(E7/24-INT(E7/24))&" " & 'Paramètres - Admin'!$D$3 & " " & MINUTE(E7/24-INT(E7/24))&" " & 'Paramètres - Admin'!$D$2,HOUR(E7/24-INT(E7/24))&" " & 'Paramètres - Admin'!$D$3 & " " & MINUTE(E7/24-INT(E7/24))&" " & 'Paramètres - Admin'!$D$2)))))) -> 0,00 jours | G7: Caserne | H7: ='À Faire - Détails'!H40 -> 1 | I7: ='À Faire - Détails'!I40 -> 3 | J7: ='À Faire - Détails'!H54 -> 3700 | K7: ='À Faire - Détails'!I54 -> 2.27 | L7: =IF($B$2='Paramètres - Admin'!$B$2,TEXT(K7*60*60,"# 0")&" " & 'Paramètres - Admin'!$B$2,IF($B$2='Paramètres - Admin'!$B$3,TEXT(K7*60,"# 0")&" " & 'Paramètres - Admin'!$B$3,IF($B$2='Paramètres - Admin'!$B$4,TEXT(K7,"# 0,00")&" " & 'Paramètres - Admin'!$B$4,IF($B$2='Paramètres - Admin'!$B$5,TEXT(K7/24,"# 0,00")&" " & 'Paramètres - Admin'!$B$5,IF($B$2='Paramètres - Admin'!$B$6,TEXT((K7/24)/30,"# 0,00")&" " & 'Paramètres - Admin'!$B$6,IF(K7/24>=1,INT(K7/24)&" " & 'Paramètres - Admin'!$D$4 & " " & HOUR(K7/24-INT(K7/24))&" " & 'Paramètres - Admin'!$D$3 & " " & MINUTE(K7/24-INT(K7/24))&" " & 'Paramètres - Admin'!$D$2,HOUR(K7/24-INT(K7/24))&" " & 'Paramètres - Admin'!$D$3 & " " & MINUTE(K7/24-INT(K7/24))&" " & 'Paramètres - Admin'!$D$2)))))) -> 0,09 jours | M7: Bombe | N7: ='À Faire - Détails'!H117 -> 0 | O7: ='À Faire - Détails'!I117 -> 0 | P7: ='À Faire - Détails'!H125 -> 0 | Q7: ='À Faire - Détails'!I125 -> 0 | R7: =IF($B$2='Paramètres - Admin'!$B$2,TEXT(Q7*60*60,"# 0")&" " & 'Paramètres - Admin'!$B$2,IF($B$2='Paramètres - Admin'!$B$3,TEXT(Q7*60,"# 0")&" " & 'Paramètres - Admin'!$B$3,IF($B$2='Paramètres - Admin'!$B$4,TEXT(Q7,"# 0,00")&" " & 'Paramètres - Admin'!$B$4,IF($B$2='Paramètres - Admin'!$B$5,TEXT(Q7/24,"# 0,00")&" " & 'Paramètres - Admin'!$B$5,IF($B$2='Paramètres - Admin'!$B$6,TEXT((Q7/24)/30,"# 0,00")&" " & 'Paramètres - Admin'!$B$6,IF(Q7/24>=1,INT(Q7/24)&" " & 'Paramètres - Admin'!$D$4 & " " & HOUR(Q7/24-INT(Q7/24))&" " & 'Paramètres - Admin'!$D$3 & " " & MINUTE(Q7/24-INT(Q7/24))&" " & 'Paramètres - Admin'!$D$2,HOUR(Q7/24-INT(Q7/24))&" " & 'Paramètres - Admin'!$D$3 & " " & MINUTE(Q7/24-INT(Q7/24))&" " & 'Paramètres - Admin'!$D$2)))))) -> 0,00 jours | S7: Serviteur | T7: ='À Faire - Détails'!H245 -> 0 | U7: ='À Faire - Détails'!I245 -> 0 | V7: ='À Faire - Détails'!H254 -> 0 | W7: ='À Faire - Détails'!I254 -> 0 | X7: =IF($B$2='Paramètres - Admin'!$B$2,TEXT(W7*60*60,"# 0")&" " & 'Paramètres - Admin'!$B$2,IF($B$2='Paramètres - Admin'!$B$3,TEXT(W7*60,"# 0")&" " & 'Paramètres - Admin'!$B$3,IF($B$2='Paramètres - Admin'!$B$4,TEXT(W7,"# 0,00")&" " & 'Paramètres - Admin'!$B$4,IF($B$2='Paramètres - Admin'!$B$5,TEXT(W7/24,"# 0,00")&" " & 'Paramètres - Admin'!$B$5,IF($B$2='Paramètres - Admin'!$B$6,TEXT((W7/24)/30,"# 0,00")&" " & 'Paramètres - Admin'!$B$6,IF(W7/24>=1,INT(W7/24)&" " & 'Paramètres - Admin'!$D$4 & " " & HOUR(W7/24-INT(W7/24))&" " & 'Paramètres - Admin'!$D$3 & " " & MINUTE(W7/24-INT(W7/24))&" " & 'Paramètres - Admin'!$D$2,HOUR(W7/24-INT(W7/24))&" " & 'Paramètres - Admin'!$D$3 & " " & MINUTE(W7/24-INT(W7/24))&" " & 'Paramètres - Admin'!$D$2)))))) -> 0,00 jours
A8: Extracteur d'Élixir | B8: ='À Faire - Détails'!Q5 -> 1 | C8: ='À Faire - Détails'!R5 -> 2 | D8: ='À Faire - Détails'!Q19 -> 450 | E8: ='À Faire - Détails'!R19 -> 0.1 | F8: =IF($B$2='Paramètres - Admin'!$B$2,TEXT(E8*60*60,"# 0")&" " & 'Paramètres - Admin'!$B$2,IF($B$2='Paramètres - Admin'!$B$3,TEXT(E8*60,"# 0")&" " & 'Paramètres - Admin'!$B$3,IF($B$2='Paramètres - Admin'!$B$4,TEXT(E8,"# 0,00")&" " & 'Paramètres - Admin'!$B$4,IF($B$2='Paramètres - Admin'!$B$5,TEXT(E8/24,"# 0,00")&" " & 'Paramètres - Admin'!$B$5,IF($B$2='Paramètres - Admin'!$B$6,TEXT((E8/24)/30,"# 0,00")&" " & 'Paramètres - Admin'!$B$6,IF(E8/24>=1,INT(E8/24)&" " & 'Paramètres - Admin'!$D$4 & " " & HOUR(E8/24-INT(E8/24))&" " & 'Paramètres - Admin'!$D$3 & " " & MINUTE(E8/24-INT(E8/24))&" " & 'Paramètres - Admin'!$D$2,HOUR(E8/24-INT(E8/24))&" " & 'Paramètres - Admin'!$D$3 & " " & MINUTE(E8/24-INT(E8/24))&" " & 'Paramètres - Admin'!$D$2)))))) -> 0,00 jours | G8: Caserne Noire | H8: ='À Faire - Détails'!Z52 -> 0 | I8: ='À Faire - Détails'!AA52 -> 0 | J8: ='À Faire - Détails'!Z61 -> 0 | K8: ='À Faire - Détails'!AA61 -> 0 | L8: =IF($B$2='Paramètres - Admin'!$B$2,TEXT(K8*60*60,"# 0")&" " & 'Paramètres - Admin'!$B$2,IF($B$2='Paramètres - Admin'!$B$3,TEXT(K8*60,"# 0")&" " & 'Paramètres - Admin'!$B$3,IF($B$2='Paramètres - Admin'!$B$4,TEXT(K8,"# 0,00")&" " & 'Paramètres - Admin'!$B$4,IF($B$2='Paramètres - Admin'!$B$5,TEXT(K8/24,"# 0,00")&" " & 'Paramètres - Admin'!$B$5,IF($B$2='Paramètres - Admin'!$B$6,TEXT((K8/24)/30,"# 0,00")&" " & 'Paramètres - Admin'!$B$6,IF(K8/24>=1,INT(K8/24)&" " & 'Paramètres - Admin'!$D$4 & " " & HOUR(K8/24-INT(K8/24))&" " & 'Paramètres - Admin'!$D$3 & " " & MINUTE(K8/24-INT(K8/24))&" " & 'Paramètres - Admin'!$D$2,HOUR(K8/24-INT(K8/24))&" " & 'Paramètres - Admin'!$D$3 & " " & MINUTE(K8/24-INT(K8/24))&" " & 'Paramètres - Admin'!$D$2)))))) -> 0,00 jours | M8: Piège à ressort | N8: ='À Faire - Détails'!Z117 -> 0 | O8: ='À Faire - Détails'!AA117 -> 0 | P8: ='À Faire - Détails'!Z124 -> 0 | Q8: ='À Faire - Détails'!AA124 -> 0 | R8: =IF($B$2='Paramètres - Admin'!$B$2,TEXT(Q8*60*60,"# 0")&" " & 'Paramètres - Admin'!$B$2,IF($B$2='Paramètres - Admin'!$B$3,TEXT(Q8*60,"# 0")&" " & 'Paramètres - Admin'!$B$3,IF($B$2='Paramètres - Admin'!$B$4,TEXT(Q8,"# 0,00")&" " & 'Paramètres - Admin'!$B$4,IF($B$2='Paramètres - Admin'!$B$5,TEXT(Q8/24,"# 0,00")&" " & 'Paramètres - Admin'!$B$5,IF($B$2='Paramètres - Admin'!$B$6,TEXT((Q8/24)/30,"# 0,00")&" " & 'Paramètres - Admin'!$B$6,IF(Q8/24>=1,INT(Q8/24)&" " & 'Paramètres - Admin'!$D$4 & " " & HOUR(Q8/24-INT(Q8/24))&" " & 'Paramètres - Admin'!$D$3 & " " & MINUTE(Q8/24-INT(Q8/24))&" " & 'Paramètres - Admin'!$D$2,HOUR(Q8/24-INT(Q8/24))&" " & 'Paramètres - Admin'!$D$3 & " " & MINUTE(Q8/24-INT(Q8/24))&" " & 'Paramètres - Admin'!$D$2)))))) -> 0,00 jours | S8: Chevaucheur de Cochon | T8: ='À Faire - Détails'!H256 -> 0 | U8: ='À Faire - Détails'!I256 -> 0 | V8: ='À Faire - Détails'!H265 -> 0 | W8: ='À Faire - Détails'!I265 -> 0 | X8: =IF($B$2='Paramètres - Admin'!$B$2,TEXT(W8*60*60,"# 0")&" " & 'Paramètres - Admin'!$B$2,IF($B$2='Paramètres - Admin'!$B$3,TEXT(W8*60,"# 0")&" " & 'Paramètres - Admin'!$B$3,IF($B$2='Paramètres - Admin'!$B$4,TEXT(W8,"# 0,00")&" " & 'Paramètres - Admin'!$B$4,IF($B$2='Paramètres - Admin'!$B$5,TEXT(W8/24,"# 0,00")&" " & 'Paramètres - Admin'!$B$5,IF($B$2='Paramètres - Admin'!$B$6,TEXT((W8/24)/30,"# 0,00")&" " & 'Paramètres - Admin'!$B$6,IF(W8/24>=1,INT(W8/24)&" " & 'Paramètres - Admin'!$D$4 & " " & HOUR(W8/24-INT(W8/24))&" " & 'Paramètres - Admin'!$D$3 & " " & MINUTE(W8/24-INT(W8/24))&" " & 'Paramètres - Admin'!$D$2,HOUR(W8/24-INT(W8/24))&" " & 'Paramètres - Admin'!$D$3 & " " & MINUTE(W8/24-INT(W8/24))&" " & 'Paramètres - Admin'!$D$2)))))) -> 0,00 jours
A9: Foreuse d'Élixir Noir | B9: ='À Faire - Détails'!Z5 -> 0 | C9: ='À Faire - Détails'!AA5 -> 0 | D9: ='À Faire - Détails'!Z13 -> 0 | E9: ='À Faire - Détails'!AA13 -> 0 | F9: =IF($B$2='Paramètres - Admin'!$B$2,TEXT(E9*60*60,"# 0")&" " & 'Paramètres - Admin'!$B$2,IF($B$2='Paramètres - Admin'!$B$3,TEXT(E9*60,"# 0")&" " & 'Paramètres - Admin'!$B$3,IF($B$2='Paramètres - Admin'!$B$4,TEXT(E9,"# 0,00")&" " & 'Paramètres - Admin'!$B$4,IF($B$2='Paramètres - Admin'!$B$5,TEXT(E9/24,"# 0,00")&" " & 'Paramètres - Admin'!$B$5,IF($B$2='Paramètres - Admin'!$B$6,TEXT((E9/24)/30,"# 0,00")&" " & 'Paramètres - Admin'!$B$6,IF(E9/24>=1,INT(E9/24)&" " & 'Paramètres - Admin'!$D$4 & " " & HOUR(E9/24-INT(E9/24))&" " & 'Paramètres - Admin'!$D$3 & " " & MINUTE(E9/24-INT(E9/24))&" " & 'Paramètres - Admin'!$D$2,HOUR(E9/24-INT(E9/24))&" " & 'Paramètres - Admin'!$D$3 & " " & MINUTE(E9/24-INT(E9/24))&" " & 'Paramètres - Admin'!$D$2)))))) -> 0,00 jours | G9: Camp Militaire | H9: ='À Faire - Détails'!Z40 -> 1 | I9: ='À Faire - Détails'!AA40 -> 1 | J9: ='À Faire - Détails'!Z50 -> 250 | K9: ='À Faire - Détails'!AA50 -> 0.08333333333 | L9: =IF($B$2='Paramètres - Admin'!$B$2,TEXT(K9*60*60,"# 0")&" " & 'Paramètres - Admin'!$B$2,IF($B$2='Paramètres - Admin'!$B$3,TEXT(K9*60,"# 0")&" " & 'Paramètres - Admin'!$B$3,IF($B$2='Paramètres - Admin'!$B$4,TEXT(K9,"# 0,00")&" " & 'Paramètres - Admin'!$B$4,IF($B$2='Paramètres - Admin'!$B$5,TEXT(K9/24,"# 0,00")&" " & 'Paramètres - Admin'!$B$5,IF($B$2='Paramètres - Admin'!$B$6,TEXT((K9/24)/30,"# 0,00")&" " & 'Paramètres - Admin'!$B$6,IF(K9/24>=1,INT(K9/24)&" " & 'Paramètres - Admin'!$D$4 & " " & HOUR(K9/24-INT(K9/24))&" " & 'Paramètres - Admin'!$D$3 & " " & MINUTE(K9/24-INT(K9/24))&" " & 'Paramètres - Admin'!$D$2,HOUR(K9/24-INT(K9/24))&" " & 'Paramètres - Admin'!$D$3 & " " & MINUTE(K9/24-INT(K9/24))&" " & 'Paramètres - Admin'!$D$2)))))) -> 0,00 jours | M9: Bombe géante | N9: ='À Faire - Détails'!H127 -> 0 | O9: ='À Faire - Détails'!I127 -> 0 | P9: ='À Faire - Détails'!H133 -> 0 | Q9: ='À Faire - Détails'!I133 -> 0 | R9: =IF($B$2='Paramètres - Admin'!$B$2,TEXT(Q9*60*60,"# 0")&" " & 'Paramètres - Admin'!$B$2,IF($B$2='Paramètres - Admin'!$B$3,TEXT(Q9*60,"# 0")&" " & 'Paramètres - Admin'!$B$3,IF($B$2='Paramètres - Admin'!$B$4,TEXT(Q9,"# 0,00")&" " & 'Paramètres - Admin'!$B$4,IF($B$2='Paramètres - Admin'!$B$5,TEXT(Q9/24,"# 0,00")&" " & 'Paramètres - Admin'!$B$5,IF($B$2='Paramètres - Admin'!$B$6,TEXT((Q9/24)/30,"# 0,00")&" " & 'Paramètres - Admin'!$B$6,IF(Q9/24>=1,INT(Q9/24)&" " & 'Paramètres - Admin'!$D$4 & " " & HOUR(Q9/24-INT(Q9/24))&" " & 'Paramètres - Admin'!$D$3 & " " & MINUTE(Q9/24-INT(Q9/24))&" " & 'Paramètres - Admin'!$D$2,HOUR(Q9/24-INT(Q9/24))&" " & 'Paramètres - Admin'!$D$3 & " " & MINUTE(Q9/24-INT(Q9/24))&" " & 'Paramètres - Admin'!$D$2)))))) -> 0,00 jours | S9: Valkyrie | T9: ='À Faire - Détails'!Q256 -> 0 | U9: ='À Faire - Détails'!R256 -> 0 | V9: ='À Faire - Détails'!Q263 -> 0 | W9: ='À Faire - Détails'!R263 -> 0 | X9: =IF($B$2='Paramètres - Admin'!$B$2,TEXT(W9*60*60,"# 0")&" " & 'Paramètres - Admin'!$B$2,IF($B$2='Paramètres - Admin'!$B$3,TEXT(W9*60,"# 0")&" " & 'Paramètres - Admin'!$B$3,IF($B$2='Paramètres - Admin'!$B$4,TEXT(W9,"# 0,00")&" " & 'Paramètres - Admin'!$B$4,IF($B$2='Paramètres - Admin'!$B$5,TEXT(W9/24,"# 0,00")&" " & 'Paramètres - Admin'!$B$5,IF($B$2='Paramètres - Admin'!$B$6,TEXT((W9/24)/30,"# 0,00")&" " & 'Paramètres - Admin'!$B$6,IF(W9/24>=1,INT(W9/24)&" " & 'Paramètres - Admin'!$D$4 & " " & HOUR(W9/24-INT(W9/24))&" " & 'Paramètres - Admin'!$D$3 & " " & MINUTE(W9/24-INT(W9/24))&" " & 'Paramètres - Admin'!$D$2,HOUR(W9/24-INT(W9/24))&" " & 'Paramètres - Admin'!$D$3 & " " & MINUTE(W9/24-INT(W9/24))&" " & 'Paramètres - Admin'!$D$2)))))) -> 0,00 jours
A10: Réserve d'Or | B10: ='À Faire - Détails'!H21 -> 1 | C10: ='À Faire - Détails'!I21 -> 1 | D10: ='À Faire - Détails'!H35 -> 300 | E10: ='À Faire - Détails'!I35 -> 0.25 | F10: =IF($B$2='Paramètres - Admin'!$B$2,TEXT(E10*60*60,"# 0")&" " & 'Paramètres - Admin'!$B$2,IF($B$2='Paramètres - Admin'!$B$3,TEXT(E10*60,"# 0")&" " & 'Paramètres - Admin'!$B$3,IF($B$2='Paramètres - Admin'!$B$4,TEXT(E10,"# 0,00")&" " & 'Paramètres - Admin'!$B$4,IF($B$2='Paramètres - Admin'!$B$5,TEXT(E10/24,"# 0,00")&" " & 'Paramètres - Admin'!$B$5,IF($B$2='Paramètres - Admin'!$B$6,TEXT((E10/24)/30,"# 0,00")&" " & 'Paramètres - Admin'!$B$6,IF(E10/24>=1,INT(E10/24)&" " & 'Paramètres - Admin'!$D$4 & " " & HOUR(E10/24-INT(E10/24))&" " & 'Paramètres - Admin'!$D$3 & " " & MINUTE(E10/24-INT(E10/24))&" " & 'Paramètres - Admin'!$D$2,HOUR(E10/24-INT(E10/24))&" " & 'Paramètres - Admin'!$D$3 & " " & MINUTE(E10/24-INT(E10/24))&" " & 'Paramètres - Admin'!$D$2)))))) -> 0,01 jours | G10: Laboratoire | H10: ='À Faire - Détails'!Q40 -> 0 | I10: ='À Faire - Détails'!R40 -> 0 | J10: ='À Faire - Détails'!Q51 -> 0 | K10: ='À Faire - Détails'!R51 -> 0 | L10: =IF($B$2='Paramètres - Admin'!$B$2,TEXT(K10*60*60,"# 0")&" " & 'Paramètres - Admin'!$B$2,IF($B$2='Paramètres - Admin'!$B$3,TEXT(K10*60,"# 0")&" " & 'Paramètres - Admin'!$B$3,IF($B$2='Paramètres - Admin'!$B$4,TEXT(K10,"# 0,00")&" " & 'Paramètres - Admin'!$B$4,IF($B$2='Paramètres - Admin'!$B$5,TEXT(K10/24,"# 0,00")&" " & 'Paramètres - Admin'!$B$5,IF($B$2='Paramètres - Admin'!$B$6,TEXT((K10/24)/30,"# 0,00")&" " & 'Paramètres - Admin'!$B$6,IF(K10/24>=1,INT(K10/24)&" " & 'Paramètres - Admin'!$D$4 & " " & HOUR(K10/24-INT(K10/24))&" " & 'Paramètres - Admin'!$D$3 & " " & MINUTE(K10/24-INT(K10/24))&" " & 'Paramètres - Admin'!$D$2,HOUR(K10/24-INT(K10/24))&" " & 'Paramètres - Admin'!$D$3 & " " & MINUTE(K10/24-INT(K10/24))&" " & 'Paramètres - Admin'!$D$2)))))) -> 0,00 jours | M10: Bombe aérienne | N10: ='À Faire - Détails'!Q117 -> 0 | O10: ='À Faire - Détails'!R117 -> 0 | P10: ='À Faire - Détails'!Q123 -> 0 | Q10: ='À Faire - Détails'!R123 -> 0 | R10: =IF($B$2='Paramètres - Admin'!$B$2,TEXT(Q10*60*60,"# 0")&" " & 'Paramètres - Admin'!$B$2,IF($B$2='Paramètres - Admin'!$B$3,TEXT(Q10*60,"# 0")&" " & 'Paramètres - Admin'!$B$3,IF($B$2='Paramètres - Admin'!$B$4,TEXT(Q10,"# 0,00")&" " & 'Paramètres - Admin'!$B$4,IF($B$2='Paramètres - Admin'!$B$5,TEXT(Q10/24,"# 0,00")&" " & 'Paramètres - Admin'!$B$5,IF($B$2='Paramètres - Admin'!$B$6,TEXT((Q10/24)/30,"# 0,00")&" " & 'Paramètres - Admin'!$B$6,IF(Q10/24>=1,INT(Q10/24)&" " & 'Paramètres - Admin'!$D$4 & " " & HOUR(Q10/24-INT(Q10/24))&" " & 'Paramètres - Admin'!$D$3 & " " & MINUTE(Q10/24-INT(Q10/24))&" " & 'Paramètres - Admin'!$D$2,HOUR(Q10/24-INT(Q10/24))&" " & 'Paramètres - Admin'!$D$3 & " " & MINUTE(Q10/24-INT(Q10/24))&" " & 'Paramètres - Admin'!$D$2)))))) -> 0,00 jours | S10: Golem | T10: ='À Faire - Détails'!Q245 -> 0 | U10: ='À Faire - Détails'!R245 -> 0 | V10: ='À Faire - Détails'!Q253 -> 0 | W10: ='À Faire - Détails'!R253 -> 0 | X10: =IF($B$2='Paramètres - Admin'!$B$2,TEXT(W10*60*60,"# 0")&" " & 'Paramètres - Admin'!$B$2,IF($B$2='Paramètres - Admin'!$B$3,TEXT(W10*60,"# 0")&" " & 'Paramètres - Admin'!$B$3,IF($B$2='Paramètres - Admin'!$B$4,TEXT(W10,"# 0,00")&" " & 'Paramètres - Admin'!$B$4,IF($B$2='Paramètres - Admin'!$B$5,TEXT(W10/24,"# 0,00")&" " & 'Paramètres - Admin'!$B$5,IF($B$2='Paramètres - Admin'!$B$6,TEXT((W10/24)/30,"# 0,00")&" " & 'Paramètres - Admin'!$B$6,IF(W10/24>=1,INT(W10/24)&" " & 'Paramètres - Admin'!$D$4 & " " & HOUR(W10/24-INT(W10/24))&" " & 'Paramètres - Admin'!$D$3 & " " & MINUTE(W10/24-INT(W10/24))&" " & 'Paramètres - Admin'!$D$2,HOUR(W10/24-INT(W10/24))&" " & 'Paramètres - Admin'!$D$3 & " " & MINUTE(W10/24-INT(W10/24))&" " & 'Paramètres - Admin'!$D$2)))))) -> 0,00 jours
A11: Réservoir d'Élixir | B11: ='À Faire - Détails'!Q21 -> 1 | C11: ='À Faire - Détails'!R21 -> 1 | D11: ='À Faire - Détails'!Q35 -> 300 | E11: ='À Faire - Détails'!R35 -> 0.25 | F11: =IF($B$2='Paramètres - Admin'!$B$2,TEXT(E11*60*60,"# 0")&" " & 'Paramètres - Admin'!$B$2,IF($B$2='Paramètres - Admin'!$B$3,TEXT(E11*60,"# 0")&" " & 'Paramètres - Admin'!$B$3,IF($B$2='Paramètres - Admin'!$B$4,TEXT(E11,"# 0,00")&" " & 'Paramètres - Admin'!$B$4,IF($B$2='Paramètres - Admin'!$B$5,TEXT(E11/24,"# 0,00")&" " & 'Paramètres - Admin'!$B$5,IF($B$2='Paramètres - Admin'!$B$6,TEXT((E11/24)/30,"# 0,00")&" " & 'Paramètres - Admin'!$B$6,IF(E11/24>=1,INT(E11/24)&" " & 'Paramètres - Admin'!$D$4 & " " & HOUR(E11/24-INT(E11/24))&" " & 'Paramètres - Admin'!$D$3 & " " & MINUTE(E11/24-INT(E11/24))&" " & 'Paramètres - Admin'!$D$2,HOUR(E11/24-INT(E11/24))&" " & 'Paramètres - Admin'!$D$3 & " " & MINUTE(E11/24-INT(E11/24))&" " & 'Paramètres - Admin'!$D$2)))))) -> 0,01 jours | G11: Usine de Sorts | H11: ='À Faire - Détails'!Q53 -> 0 | I11: ='À Faire - Détails'!R53 -> 0 | J11: ='À Faire - Détails'!Q60 -> 0 | K11: ='À Faire - Détails'!R60 -> 0 | L11: =IF($B$2='Paramètres - Admin'!$B$2,TEXT(K11*60*60,"# 0")&" " & 'Paramètres - Admin'!$B$2,IF($B$2='Paramètres - Admin'!$B$3,TEXT(K11*60,"# 0")&" " & 'Paramètres - Admin'!$B$3,IF($B$2='Paramètres - Admin'!$B$4,TEXT(K11,"# 0,00")&" " & 'Paramètres - Admin'!$B$4,IF($B$2='Paramètres - Admin'!$B$5,TEXT(K11/24,"# 0,00")&" " & 'Paramètres - Admin'!$B$5,IF($B$2='Paramètres - Admin'!$B$6,TEXT((K11/24)/30,"# 0,00")&" " & 'Paramètres - Admin'!$B$6,IF(K11/24>=1,INT(K11/24)&" " & 'Paramètres - Admin'!$D$4 & " " & HOUR(K11/24-INT(K11/24))&" " & 'Paramètres - Admin'!$D$3 & " " & MINUTE(K11/24-INT(K11/24))&" " & 'Paramètres - Admin'!$D$2,HOUR(K11/24-INT(K11/24))&" " & 'Paramètres - Admin'!$D$3 & " " & MINUTE(K11/24-INT(K11/24))&" " & 'Paramètres - Admin'!$D$2)))))) -> 0,00 jours | M11: Tête chercheuse | N11: ='À Faire - Détails'!Q125 -> 0 | O11: ='À Faire - Détails'!R125 -> 0 | P11: ='À Faire - Détails'!Q130 -> 0 | Q11: ='À Faire - Détails'!R130 -> 0 | R11: =IF($B$2='Paramètres - Admin'!$B$2,TEXT(Q11*60*60,"# 0")&" " & 'Paramètres - Admin'!$B$2,IF($B$2='Paramètres - Admin'!$B$3,TEXT(Q11*60,"# 0")&" " & 'Paramètres - Admin'!$B$3,IF($B$2='Paramètres - Admin'!$B$4,TEXT(Q11,"# 0,00")&" " & 'Paramètres - Admin'!$B$4,IF($B$2='Paramètres - Admin'!$B$5,TEXT(Q11/24,"# 0,00")&" " & 'Paramètres - Admin'!$B$5,IF($B$2='Paramètres - Admin'!$B$6,TEXT((Q11/24)/30,"# 0,00")&" " & 'Paramètres - Admin'!$B$6,IF(Q11/24>=1,INT(Q11/24)&" " & 'Paramètres - Admin'!$D$4 & " " & HOUR(Q11/24-INT(Q11/24))&" " & 'Paramètres - Admin'!$D$3 & " " & MINUTE(Q11/24-INT(Q11/24))&" " & 'Paramètres - Admin'!$D$2,HOUR(Q11/24-INT(Q11/24))&" " & 'Paramètres - Admin'!$D$3 & " " & MINUTE(Q11/24-INT(Q11/24))&" " & 'Paramètres - Admin'!$D$2)))))) -> 0,00 jours | S11: Sorcière | T11: ='À Faire - Détails'!Z245 -> 0 | U11: ='À Faire - Détails'!AA245 -> 0 | V11: ='À Faire - Détails'!Z248 -> 0 | W11: ='À Faire - Détails'!AA250 -> 0 | X11: =IF($B$2='Paramètres - Admin'!$B$2,TEXT(W11*60*60,"# 0")&" " & 'Paramètres - Admin'!$B$2,IF($B$2='Paramètres - Admin'!$B$3,TEXT(W11*60,"# 0")&" " & 'Paramètres - Admin'!$B$3,IF($B$2='Paramètres - Admin'!$B$4,TEXT(W11,"# 0,00")&" " & 'Paramètres - Admin'!$B$4,IF($B$2='Paramètres - Admin'!$B$5,TEXT(W11/24,"# 0,00")&" " & 'Paramètres - Admin'!$B$5,IF($B$2='Paramètres - Admin'!$B$6,TEXT((W11/24)/30,"# 0,00")&" " & 'Paramètres - Admin'!$B$6,IF(W11/24>=1,INT(W11/24)&" " & 'Paramètres - Admin'!$D$4 & " " & HOUR(W11/24-INT(W11/24))&" " & 'Paramètres - Admin'!$D$3 & " " & MINUTE(W11/24-INT(W11/24))&" " & 'Paramètres - Admin'!$D$2,HOUR(W11/24-INT(W11/24))&" " & 'Paramètres - Admin'!$D$3 & " " & MINUTE(W11/24-INT(W11/24))&" " & 'Paramètres - Admin'!$D$2)))))) -> 0,00 jours
A12: Réservoir d'Élixir Noir | B12: ='À Faire - Détails'!Z21 -> 0 | C12: ='À Faire - Détails'!AA21 -> 0 | D12: ='À Faire - Détails'!Z29 -> 0 | E12: ='À Faire - Détails'!AA29 -> 0 | F12: =IF($B$2='Paramètres - Admin'!$B$2,TEXT(E12*60*60,"# 0")&" " & 'Paramètres - Admin'!$B$2,IF($B$2='Paramètres - Admin'!$B$3,TEXT(E12*60,"# 0")&" " & 'Paramètres - Admin'!$B$3,IF($B$2='Paramètres - Admin'!$B$4,TEXT(E12,"# 0,00")&" " & 'Paramètres - Admin'!$B$4,IF($B$2='Paramètres - Admin'!$B$5,TEXT(E12/24,"# 0,00")&" " & 'Paramètres - Admin'!$B$5,IF($B$2='Paramètres - Admin'!$B$6,TEXT((E12/24)/30,"# 0,00")&" " & 'Paramètres - Admin'!$B$6,IF(E12/24>=1,INT(E12/24)&" " & 'Paramètres - Admin'!$D$4 & " " & HOUR(E12/24-INT(E12/24))&" " & 'Paramètres - Admin'!$D$3 & " " & MINUTE(E12/24-INT(E12/24))&" " & 'Paramètres - Admin'!$D$2,HOUR(E12/24-INT(E12/24))&" " & 'Paramètres - Admin'!$D$3 & " " & MINUTE(E12/24-INT(E12/24))&" " & 'Paramètres - Admin'!$D$2)))))) -> 0,00 jours | G12: Usine de Sorts Noirs | H12: ='À Faire - Détails'!H56 -> 0 | I12: ='À Faire - Détails'!I56 -> 0 | J12: ='À Faire - Détails'!H62 -> 0 | K12: ='À Faire - Détails'!I62 -> 0 | L12: =IF($B$2='Paramètres - Admin'!$B$2,TEXT(K12*60*60,"# 0")&" " & 'Paramètres - Admin'!$B$2,IF($B$2='Paramètres - Admin'!$B$3,TEXT(K12*60,"# 0")&" " & 'Paramètres - Admin'!$B$3,IF($B$2='Paramètres - Admin'!$B$4,TEXT(K12,"# 0,00")&" " & 'Paramètres - Admin'!$B$4,IF($B$2='Paramètres - Admin'!$B$5,TEXT(K12/24,"# 0,00")&" " & 'Paramètres - Admin'!$B$5,IF($B$2='Paramètres - Admin'!$B$6,TEXT((K12/24)/30,"# 0,00")&" " & 'Paramètres - Admin'!$B$6,IF(K12/24>=1,INT(K12/24)&" " & 'Paramètres - Admin'!$D$4 & " " & HOUR(K12/24-INT(K12/24))&" " & 'Paramètres - Admin'!$D$3 & " " & MINUTE(K12/24-INT(K12/24))&" " & 'Paramètres - Admin'!$D$2,HOUR(K12/24-INT(K12/24))&" " & 'Paramètres - Admin'!$D$3 & " " & MINUTE(K12/24-INT(K12/24))&" " & 'Paramètres - Admin'!$D$2)))))) -> 0,00 jours | M12: Piège squelettique | N12: ='À Faire - Détails'!Z126 -> 0 | O12: ='À Faire - Détails'!AA126 -> 0 | P12: ='À Faire - Détails'!Z131 -> 0 | Q12: ='À Faire - Détails'!AA131 -> 0 | R12: =IF($B$2='Paramètres - Admin'!$B$2,TEXT(Q12*60*60,"# 0")&" " & 'Paramètres - Admin'!$B$2,IF($B$2='Paramètres - Admin'!$B$3,TEXT(Q12*60,"# 0")&" " & 'Paramètres - Admin'!$B$3,IF($B$2='Paramètres - Admin'!$B$4,TEXT(Q12,"# 0,00")&" " & 'Paramètres - Admin'!$B$4,IF($B$2='Paramètres - Admin'!$B$5,TEXT(Q12/24,"# 0,00")&" " & 'Paramètres - Admin'!$B$5,IF($B$2='Paramètres - Admin'!$B$6,TEXT((Q12/24)/30,"# 0,00")&" " & 'Paramètres - Admin'!$B$6,IF(Q12/24>=1,INT(Q12/24)&" " & 'Paramètres - Admin'!$D$4 & " " & HOUR(Q12/24-INT(Q12/24))&" " & 'Paramètres - Admin'!$D$3 & " " & MINUTE(Q12/24-INT(Q12/24))&" " & 'Paramètres - Admin'!$D$2,HOUR(Q12/24-INT(Q12/24))&" " & 'Paramètres - Admin'!$D$3 & " " & MINUTE(Q12/24-INT(Q12/24))&" " & 'Paramètres - Admin'!$D$2)))))) -> 0,00 jours | S12: Molosse de lave | T12: ='À Faire - Détails'!Z252 -> 0 | U12: ='À Faire - Détails'!AA252 -> 0 | V12: ='À Faire - Détails'!Z258 -> 0 | W12: ='À Faire - Détails'!AA258 -> 0 | X12: =IF($B$2='Paramètres - Admin'!$B$2,TEXT(W12*60*60,"# 0")&" " & 'Paramètres - Admin'!$B$2,IF($B$2='Paramètres - Admin'!$B$3,TEXT(W12*60,"# 0")&" " & 'Paramètres - Admin'!$B$3,IF($B$2='Paramètres - Admin'!$B$4,TEXT(W12,"# 0,00")&" " & 'Paramètres - Admin'!$B$4,IF($B$2='Paramètres - Admin'!$B$5,TEXT(W12/24,"# 0,00")&" " & 'Paramètres - Admin'!$B$5,IF($B$2='Paramètres - Admin'!$B$6,TEXT((W12/24)/30,"# 0,00")&" " & 'Paramètres - Admin'!$B$6,IF(W12/24>=1,INT(W12/24)&" " & 'Paramètres - Admin'!$D$4 & " " & HOUR(W12/24-INT(W12/24))&" " & 'Paramètres - Admin'!$D$3 & " " & MINUTE(W12/24-INT(W12/24))&" " & 'Paramètres - Admin'!$D$2,HOUR(W12/24-INT(W12/24))&" " & 'Paramètres - Admin'!$D$3 & " " & MINUTE(W12/24-INT(W12/24))&" " & 'Paramètres - Admin'!$D$2)))))) -> 0,00 jours
A13: Total | B13: =SUM(B7:B12) -> 4 | C13: =SUM(C7:C12) -> 6 | D13: =SUM(D7:D12) -> 1500 | E13: =SUM(E7:E12) -> 0.7 | F13: =IF($B$2='Paramètres - Admin'!$B$2,TEXT(E13*60*60,"# 0")&" " & 'Paramètres - Admin'!$B$2,IF($B$2='Paramètres - Admin'!$B$3,TEXT(E13*60,"# 0")&" " & 'Paramètres - Admin'!$B$3,IF($B$2='Paramètres - Admin'!$B$4,TEXT(E13,"# 0,00")&" " & 'Paramètres - Admin'!$B$4,IF($B$2='Paramètres - Admin'!$B$5,TEXT(E13/24,"# 0,00")&" " & 'Paramètres - Admin'!$B$5,IF($B$2='Paramètres - Admin'!$B$6,TEXT((E13/24)/30,"# 0,00")&" " & 'Paramètres - Admin'!$B$6,IF(E13/24>=1,INT(E13/24)&" " & 'Paramètres - Admin'!$D$4 & " " & HOUR(E13/24-INT(E13/24))&" " & 'Paramètres - Admin'!$D$3 & " " & MINUTE(E13/24-INT(E13/24))&" " & 'Paramètres - Admin'!$D$2,HOUR(E13/24-INT(E13/24))&" " & 'Paramètres - Admin'!$D$3 & " " & MINUTE(E13/24-INT(E13/24))&" " & 'Paramètres - Admin'!$D$2)))))) -> 0,03 jours | G13: Total | H13: =SUM(H7:H12) -> 2 | I13: =SUM(I7:I12) -> 4 | J13: =SUM(J7:J12) -> 3950 | K13: =SUM(K7:K12) -> 2.353333333 | L13: =IF($B$2='Paramètres - Admin'!$B$2,TEXT(K13*60*60,"# 0")&" " & 'Paramètres - Admin'!$B$2,IF($B$2='Paramètres - Admin'!$B$3,TEXT(K13*60,"# 0")&" " & 'Paramètres - Admin'!$B$3,IF($B$2='Paramètres - Admin'!$B$4,TEXT(K13,"# 0,00")&" " & 'Paramètres - Admin'!$B$4,IF($B$2='Paramètres - Admin'!$B$5,TEXT(K13/24,"# 0,00")&" " & 'Paramètres - Admin'!$B$5,IF($B$2='Paramètres - Admin'!$B$6,TEXT((K13/24)/30,"# 0,00")&" " & 'Paramètres - Admin'!$B$6,IF(K13/24>=1,INT(K13/24)&" " & 'Paramètres - Admin'!$D$4 & " " & HOUR(K13/24-INT(K13/24))&" " & 'Paramètres - Admin'!$D$3 & " " & MINUTE(K13/24-INT(K13/24))&" " & 'Paramètres - Admin'!$D$2,HOUR(K13/24-INT(K13/24))&" " & 'Paramètres - Admin'!$D$3 & " " & MINUTE(K13/24-INT(K13/24))&" " & 'Paramètres - Admin'!$D$2)))))) -> 0,10 jours | M13: Total | N13: =SUM(N7:N12) -> 0 | O13: =SUM(O7:O12) -> 0 | P13: =SUM(P7:P12) -> 0 | Q13: =SUM(Q7:Q12) -> 0 | R13: =IF($B$2='Paramètres - Admin'!$B$2,TEXT(Q13*60*60,"# 0")&" " & 'Paramètres - Admin'!$B$2,IF($B$2='Paramètres - Admin'!$B$3,TEXT(Q13*60,"# 0")&" " & 'Paramètres - Admin'!$B$3,IF($B$2='Paramètres - Admin'!$B$4,TEXT(Q13,"# 0,00")&" " & 'Paramètres - Admin'!$B$4,IF($B$2='Paramètres - Admin'!$B$5,TEXT(Q13/24,"# 0,00")&" " & 'Paramètres - Admin'!$B$5,IF($B$2='Paramètres - Admin'!$B$6,TEXT((Q13/24)/30,"# 0,00")&" " & 'Paramètres - Admin'!$B$6,IF(Q13/24>=1,INT(Q13/24)&" " & 'Paramètres - Admin'!$D$4 & " " & HOUR(Q13/24-INT(Q13/24))&" " & 'Paramètres - Admin'!$D$3 & " " & MINUTE(Q13/24-INT(Q13/24))&" " & 'Paramètres - Admin'!$D$2,HOUR(Q13/24-INT(Q13/24))&" " & 'Paramètres - Admin'!$D$3 & " " & MINUTE(Q13/24-INT(Q13/24))&" " & 'Paramètres - Admin'!$D$2)))))) -> 0,00 jours | S13: Bouliste | T13: ='À Faire - Détails'!Z260 -> 0 | U13: ='À Faire - Détails'!AA260 -> 0 | V13: ='À Faire - Détails'!Z265 -> 0 | W13: ='À Faire - Détails'!AA265 -> 0 | X13: =IF($B$2='Paramètres - Admin'!$B$2,TEXT(W13*60*60,"# 0")&" " & 'Paramètres - Admin'!$B$2,IF($B$2='Paramètres - Admin'!$B$3,TEXT(W13*60,"# 0")&" " & 'Paramètres - Admin'!$B$3,IF($B$2='Paramètres - Admin'!$B$4,TEXT(W13,"# 0,00")&" " & 'Paramètres - Admin'!$B$4,IF($B$2='Paramètres - Admin'!$B$5,TEXT(W13/24,"# 0,00")&" " & 'Paramètres - Admin'!$B$5,IF($B$2='Paramètres - Admin'!$B$6,TEXT((W13/24)/30,"# 0,00")&" " & 'Paramètres - Admin'!$B$6,IF(W13/24>=1,INT(W13/24)&" " & 'Paramètres - Admin'!$D$4 & " " & HOUR(W13/24-INT(W13/24))&" " & 'Paramètres - Admin'!$D$3 & " " & MINUTE(W13/24-INT(W13/24))&" " & 'Paramètres - Admin'!$D$2,HOUR(W13/24-INT(W13/24))&" " & 'Paramètres - Admin'!$D$3 & " " & MINUTE(W13/24-INT(W13/24))&" " & 'Paramètres - Admin'!$D$2)))))) -> 0,00 jours
S14: Total | T14: =SUM(T7:T13) -> 0 | U14: =SUM(U7:U13) -> 0 | V14: =SUM(V7:V13) -> 0 | W14: =SUM(W7:W13) -> 0 | X14: =IF($B$2='Paramètres - Admin'!$B$2,TEXT(W14*60*60,"# 0")&" " & 'Paramètres - Admin'!$B$2,IF($B$2='Paramètres - Admin'!$B$3,TEXT(W14*60,"# 0")&" " & 'Paramètres - Admin'!$B$3,IF($B$2='Paramètres - Admin'!$B$4,TEXT(W14,"# 0,00")&" " & 'Paramètres - Admin'!$B$4,IF($B$2='Paramètres - Admin'!$B$5,TEXT(W14/24,"# 0,00")&" " & 'Paramètres - Admin'!$B$5,IF($B$2='Paramètres - Admin'!$B$6,TEXT((W14/24)/30,"# 0,00")&" " & 'Paramètres - Admin'!$B$6,IF(W14/24>=1,INT(W14/24)&" " & 'Paramètres - Admin'!$D$4 & " " & HOUR(W14/24-INT(W14/24))&" " & 'Paramètres - Admin'!$D$3 & " " & MINUTE(W14/24-INT(W14/24))&" " & 'Paramètres - Admin'!$D$2,HOUR(W14/24-INT(W14/24))&" " & 'Paramètres - Admin'!$D$3 & " " & MINUTE(W14/24-INT(W14/24))&" " & 'Paramètres - Admin'!$D$2)))))) -> 0,00 jours
A15: Bâtiments Défensifs | G15: Améliorations de Troupes | M15: Améliorations de Sorts | S15: Améliorations de Sorts Noirs
A16: Bâtiment | B16: À Faire | C16: Up. | D16: Coût Total | E16: Temps Total | F16: Temps Total | G16: Troupe Normale | H16: À Faire | I16: Up. | J16: Coût Total | K16: Temps Total | L16: Temps Total | M16: Sort | N16: À Faire | O16: Up. | P16: Coût Total | Q16: Temps Total | R16: Temps Total | S16: Sort | T16: À Faire | U16: Up. | V16: Coût Total | W16: Temps Total | X16: Temps Total
A17: Rempart | B17: ='À Faire - Détails'!Q67 -> 0 | C17: ='À Faire - Détails'!R67 -> 0 | D17: ='À Faire - Détails'!Q81 -> 0 | E17: ='À Faire - Détails'!R81 -> 0 | F17: =IF($B$2='Paramètres - Admin'!$B$2,TEXT(E17*60*60,"# 0")&" " & 'Paramètres - Admin'!$B$2,IF($B$2='Paramètres - Admin'!$B$3,TEXT(E17*60,"# 0")&" " & 'Paramètres - Admin'!$B$3,IF($B$2='Paramètres - Admin'!$B$4,TEXT(E17,"# 0,00")&" " & 'Paramètres - Admin'!$B$4,IF($B$2='Paramètres - Admin'!$B$5,TEXT(E17/24,"# 0,00")&" " & 'Paramètres - Admin'!$B$5,IF($B$2='Paramètres - Admin'!$B$6,TEXT((E17/24)/30,"# 0,00")&" " & 'Paramètres - Admin'!$B$6,IF(E17/24>=1,INT(E17/24)&" " & 'Paramètres - Admin'!$D$4 & " " & HOUR(E17/24-INT(E17/24))&" " & 'Paramètres - Admin'!$D$3 & " " & MINUTE(E17/24-INT(E17/24))&" " & 'Paramètres - Admin'!$D$2,HOUR(E17/24-INT(E17/24))&" " & 'Paramètres - Admin'!$D$3 & " " & MINUTE(E17/24-INT(E17/24))&" " & 'Paramètres - Admin'!$D$2)))))) -> 0,00 jours | G17: Barbare | H17: ='À Faire - Détails'!H179 -> 0 | I17: ='À Faire - Détails'!I179 -> 0 | J17: ='À Faire - Détails'!H188 -> 0 | K17: ='À Faire - Détails'!I188 -> 0 | L17: =IF($B$2='Paramètres - Admin'!$B$2,TEXT(K17*60*60,"# 0")&" " & 'Paramètres - Admin'!$B$2,IF($B$2='Paramètres - Admin'!$B$3,TEXT(K17*60,"# 0")&" " & 'Paramètres - Admin'!$B$3,IF($B$2='Paramètres - Admin'!$B$4,TEXT(K17,"# 0,00")&" " & 'Paramètres - Admin'!$B$4,IF($B$2='Paramètres - Admin'!$B$5,TEXT(K17/24,"# 0,00")&" " & 'Paramètres - Admin'!$B$5,IF($B$2='Paramètres - Admin'!$B$6,TEXT((K17/24)/30,"# 0,00")&" " & 'Paramètres - Admin'!$B$6,IF(K17/24>=1,INT(K17/24)&" " & 'Paramètres - Admin'!$D$4 & " " & HOUR(K17/24-INT(K17/24))&" " & 'Paramètres - Admin'!$D$3 & " " & MINUTE(K17/24-INT(K17/24))&" " & 'Paramètres - Admin'!$D$2,HOUR(K17/24-INT(K17/24))&" " & 'Paramètres - Admin'!$D$3 & " " & MINUTE(K17/24-INT(K17/24))&" " & 'Paramètres - Admin'!$D$2)))))) -> 0,00 jours | M17: Sort de Foudre | N17: ='À Faire - Détails'!H156 -> 0 | O17: ='À Faire - Détails'!I156 -> 0 | P17: ='À Faire - Détails'!H165 -> 0 | Q17: ='À Faire - Détails'!I165 -> 0 | R17: =IF($B$2='Paramètres - Admin'!$B$2,TEXT(Q17*60*60,"# 0")&" " & 'Paramètres - Admin'!$B$2,IF($B$2='Paramètres - Admin'!$B$3,TEXT(Q17*60,"# 0")&" " & 'Paramètres - Admin'!$B$3,IF($B$2='Paramètres - Admin'!$B$4,TEXT(Q17,"# 0,00")&" " & 'Paramètres - Admin'!$B$4,IF($B$2='Paramètres - Admin'!$B$5,TEXT(Q17/24,"# 0,00")&" " & 'Paramètres - Admin'!$B$5,IF($B$2='Paramètres - Admin'!$B$6,TEXT((Q17/24)/30,"# 0,00")&" " & 'Paramètres - Admin'!$B$6,IF(Q17/24>=1,INT(Q17/24)&" " & 'Paramètres - Admin'!$D$4 & " " & HOUR(Q17/24-INT(Q17/24))&" " & 'Paramètres - Admin'!$D$3 & " " & MINUTE(Q17/24-INT(Q17/24))&" " & 'Paramètres - Admin'!$D$2,HOUR(Q17/24-INT(Q17/24))&" " & 'Paramètres - Admin'!$D$3 & " " & MINUTE(Q17/24-INT(Q17/24))&" " & 'Paramètres - Admin'!$D$2)))))) -> 0,00 jours | S17: Sort de Poison | T17: ='À Faire - Détails'!H225 -> 0 | U17: ='À Faire - Détails'!I225 -> 0 | V17: ='À Faire - Détails'!H232 -> 0 | W17: ='À Faire - Détails'!I232 -> 0 | X17: =IF($B$2='Paramètres - Admin'!$B$2,TEXT(W17*60*60,"# 0")&" " & 'Paramètres - Admin'!$B$2,IF($B$2='Paramètres - Admin'!$B$3,TEXT(W17*60,"# 0")&" " & 'Paramètres - Admin'!$B$3,IF($B$2='Paramètres - Admin'!$B$4,TEXT(W17,"# 0,00")&" " & 'Paramètres - Admin'!$B$4,IF($B$2='Paramètres - Admin'!$B$5,TEXT(W17/24,"# 0,00")&" " & 'Paramètres - Admin'!$B$5,IF($B$2='Paramètres - Admin'!$B$6,TEXT((W17/24)/30,"# 0,00")&" " & 'Paramètres - Admin'!$B$6,IF(W17/24>=1,INT(W17/24)&" " & 'Paramètres - Admin'!$D$4 & " " & HOUR(W17/24-INT(W17/24))&" " & 'Paramètres - Admin'!$D$3 & " " & MINUTE(W17/24-INT(W17/24))&" " & 'Paramètres - Admin'!$D$2,HOUR(W17/24-INT(W17/24))&" " & 'Paramètres - Admin'!$D$3 & " " & MINUTE(W17/24-INT(W17/24))&" " & 'Paramètres - Admin'!$D$2)))))) -> 0,00 jours
A18: Canon | B18: ='À Faire - Détails'!H67 -> 2 | C18: ='À Faire - Détails'!I67 -> 4 | D18: ='À Faire - Détails'!H83 -> 2500 | E18: ='À Faire - Détails'!I83 -> 0.5333333333 | F18: =IF($B$2='Paramètres - Admin'!$B$2,TEXT(E18*60*60,"# 0")&" " & 'Paramètres - Admin'!$B$2,IF($B$2='Paramètres - Admin'!$B$3,TEXT(E18*60,"# 0")&" " & 'Paramètres - Admin'!$B$3,IF($B$2='Paramètres - Admin'!$B$4,TEXT(E18,"# 0,00")&" " & 'Paramètres - Admin'!$B$4,IF($B$2='Paramètres - Admin'!$B$5,TEXT(E18/24,"# 0,00")&" " & 'Paramètres - Admin'!$B$5,IF($B$2='Paramètres - Admin'!$B$6,TEXT((E18/24)/30,"# 0,00")&" " & 'Paramètres - Admin'!$B$6,IF(E18/24>=1,INT(E18/24)&" " & 'Paramètres - Admin'!$D$4 & " " & HOUR(E18/24-INT(E18/24))&" " & 'Paramètres - Admin'!$D$3 & " " & MINUTE(E18/24-INT(E18/24))&" " & 'Paramètres - Admin'!$D$2,HOUR(E18/24-INT(E18/24))&" " & 'Paramètres - Admin'!$D$3 & " " & MINUTE(E18/24-INT(E18/24))&" " & 'Paramètres - Admin'!$D$2)))))) -> 0,02 jours | G18: Archer | H18: ='À Faire - Détails'!H190 -> 0 | I18: ='À Faire - Détails'!I190 -> 0 | J18: ='À Faire - Détails'!H199 -> 0 | K18: ='À Faire - Détails'!I199 -> 0 | L18: =IF($B$2='Paramètres - Admin'!$B$2,TEXT(K18*60*60,"# 0")&" " & 'Paramètres - Admin'!$B$2,IF($B$2='Paramètres - Admin'!$B$3,TEXT(K18*60,"# 0")&" " & 'Paramètres - Admin'!$B$3,IF($B$2='Paramètres - Admin'!$B$4,TEXT(K18,"# 0,00")&" " & 'Paramètres - Admin'!$B$4,IF($B$2='Paramètres - Admin'!$B$5,TEXT(K18/24,"# 0,00")&" " & 'Paramètres - Admin'!$B$5,IF($B$2='Paramètres - Admin'!$B$6,TEXT((K18/24)/30,"# 0,00")&" " & 'Paramètres - Admin'!$B$6,IF(K18/24>=1,INT(K18/24)&" " & 'Paramètres - Admin'!$D$4 & " " & HOUR(K18/24-INT(K18/24))&" " & 'Paramètres - Admin'!$D$3 & " " & MINUTE(K18/24-INT(K18/24))&" " & 'Paramètres - Admin'!$D$2,HOUR(K18/24-INT(K18/24))&" " & 'Paramètres - Admin'!$D$3 & " " & MINUTE(K18/24-INT(K18/24))&" " & 'Paramètres - Admin'!$D$2)))))) -> 0,00 jours | M18: Sort de Guérison | N18: ='À Faire - Détails'!Q156 -> 0 | O18: ='À Faire - Détails'!R156 -> 0 | P18: ='À Faire - Détails'!Q164 -> 0 | Q18: ='À Faire - Détails'!R164 -> 0 | R18: =IF($B$2='Paramètres - Admin'!$B$2,TEXT(Q18*60*60,"# 0")&" " & 'Paramètres - Admin'!$B$2,IF($B$2='Paramètres - Admin'!$B$3,TEXT(Q18*60,"# 0")&" " & 'Paramètres - Admin'!$B$3,IF($B$2='Paramètres - Admin'!$B$4,TEXT(Q18,"# 0,00")&" " & 'Paramètres - Admin'!$B$4,IF($B$2='Paramètres - Admin'!$B$5,TEXT(Q18/24,"# 0,00")&" " & 'Paramètres - Admin'!$B$5,IF($B$2='Paramètres - Admin'!$B$6,TEXT((Q18/24)/30,"# 0,00")&" " & 'Paramètres - Admin'!$B$6,IF(Q18/24>=1,INT(Q18/24)&" " & 'Paramètres - Admin'!$D$4 & " " & HOUR(Q18/24-INT(Q18/24))&" " & 'Paramètres - Admin'!$D$3 & " " & MINUTE(Q18/24-INT(Q18/24))&" " & 'Paramètres - Admin'!$D$2,HOUR(Q18/24-INT(Q18/24))&" " & 'Paramètres - Admin'!$D$3 & " " & MINUTE(Q18/24-INT(Q18/24))&" " & 'Paramètres - Admin'!$D$2)))))) -> 0,00 jours | S18: Sort de Séisme | T18: ='À Faire - Détails'!Z225 -> 0 | U18: ='À Faire - Détails'!AA225 -> 0 | V18: ='À Faire - Détails'!Z231 -> 0 | W18: ='À Faire - Détails'!AA231 -> 0 | X18: =IF($B$2='Paramètres - Admin'!$B$2,TEXT(W18*60*60,"# 0")&" " & 'Paramètres - Admin'!$B$2,IF($B$2='Paramètres - Admin'!$B$3,TEXT(W18*60,"# 0")&" " & 'Paramètres - Admin'!$B$3,IF($B$2='Paramètres - Admin'!$B$4,TEXT(W18,"# 0,00")&" " & 'Paramètres - Admin'!$B$4,IF($B$2='Paramètres - Admin'!$B$5,TEXT(W18/24,"# 0,00")&" " & 'Paramètres - Admin'!$B$5,IF($B$2='Paramètres - Admin'!$B$6,TEXT((W18/24)/30,"# 0,00")&" " & 'Paramètres - Admin'!$B$6,IF(W18/24>=1,INT(W18/24)&" " & 'Paramètres - Admin'!$D$4 & " " & HOUR(W18/24-INT(W18/24))&" " & 'Paramètres - Admin'!$D$3 & " " & MINUTE(W18/24-INT(W18/24))&" " & 'Paramètres - Admin'!$D$2,HOUR(W18/24-INT(W18/24))&" " & 'Paramètres - Admin'!$D$3 & " " & MINUTE(W18/24-INT(W18/24))&" " & 'Paramètres - Admin'!$D$2)))))) -> 0,00 jours
A19: Tour d'Archers | B19: ='À Faire - Détails'!Z67 -> 0 | C19: ='À Faire - Détails'!AA67 -> 0 | D19: ='À Faire - Détails'!Z82 -> 0 | E19: ='À Faire - Détails'!AA82 -> 0 | F19: =IF($B$2='Paramètres - Admin'!$B$2,TEXT(E19*60*60,"# 0")&" " & 'Paramètres - Admin'!$B$2,IF($B$2='Paramètres - Admin'!$B$3,TEXT(E19*60,"# 0")&" " & 'Paramètres - Admin'!$B$3,IF($B$2='Paramètres - Admin'!$B$4,TEXT(E19,"# 0,00")&" " & 'Paramètres - Admin'!$B$4,IF($B$2='Paramètres - Admin'!$B$5,TEXT(E19/24,"# 0,00")&" " & 'Paramètres - Admin'!$B$5,IF($B$2='Paramètres - Admin'!$B$6,TEXT((E19/24)/30,"# 0,00")&" " & 'Paramètres - Admin'!$B$6,IF(E19/24>=1,INT(E19/24)&" " & 'Paramètres - Admin'!$D$4 & " " & HOUR(E19/24-INT(E19/24))&" " & 'Paramètres - Admin'!$D$3 & " " & MINUTE(E19/24-INT(E19/24))&" " & 'Paramètres - Admin'!$D$2,HOUR(E19/24-INT(E19/24))&" " & 'Paramètres - Admin'!$D$3 & " " & MINUTE(E19/24-INT(E19/24))&" " & 'Paramètres - Admin'!$D$2)))))) -> 0,00 jours | G19: Gobelin | H19: ='À Faire - Détails'!Q201 -> 0 | I19: ='À Faire - Détails'!R201 -> 0 | J19: ='À Faire - Détails'!Q210 -> 0 | K19: ='À Faire - Détails'!R210 -> 0 | L19: =IF($B$2='Paramètres - Admin'!$B$2,TEXT(K19*60*60,"# 0")&" " & 'Paramètres - Admin'!$B$2,IF($B$2='Paramètres - Admin'!$B$3,TEXT(K19*60,"# 0")&" " & 'Paramètres - Admin'!$B$3,IF($B$2='Paramètres - Admin'!$B$4,TEXT(K19,"# 0,00")&" " & 'Paramètres - Admin'!$B$4,IF($B$2='Paramètres - Admin'!$B$5,TEXT(K19/24,"# 0,00")&" " & 'Paramètres - Admin'!$B$5,IF($B$2='Paramètres - Admin'!$B$6,TEXT((K19/24)/30,"# 0,00")&" " & 'Paramètres - Admin'!$B$6,IF(K19/24>=1,INT(K19/24)&" " & 'Paramètres - Admin'!$D$4 & " " & HOUR(K19/24-INT(K19/24))&" " & 'Paramètres - Admin'!$D$3 & " " & MINUTE(K19/24-INT(K19/24))&" " & 'Paramètres - Admin'!$D$2,HOUR(K19/24-INT(K19/24))&" " & 'Paramètres - Admin'!$D$3 & " " & MINUTE(K19/24-INT(K19/24))&" " & 'Paramètres - Admin'!$D$2)))))) -> 0,00 jours | M19: Sort de Rage | N19: ='À Faire - Détails'!H167 -> 0 | O19: ='À Faire - Détails'!I167 -> 0 | P19: ='À Faire - Détails'!H174 -> 0 | Q19: ='À Faire - Détails'!I174 -> 0 | R19: =IF($B$2='Paramètres - Admin'!$B$2,TEXT(Q19*60*60,"# 0")&" " & 'Paramètres - Admin'!$B$2,IF($B$2='Paramètres - Admin'!$B$3,TEXT(Q19*60,"# 0")&" " & 'Paramètres - Admin'!$B$3,IF($B$2='Paramètres - Admin'!$B$4,TEXT(Q19,"# 0,00")&" " & 'Paramètres - Admin'!$B$4,IF($B$2='Paramètres - Admin'!$B$5,TEXT(Q19/24,"# 0,00")&" " & 'Paramètres - Admin'!$B$5,IF($B$2='Paramètres - Admin'!$B$6,TEXT((Q19/24)/30,"# 0,00")&" " & 'Paramètres - Admin'!$B$6,IF(Q19/24>=1,INT(Q19/24)&" " & 'Paramètres - Admin'!$D$4 & " " & HOUR(Q19/24-INT(Q19/24))&" " & 'Paramètres - Admin'!$D$3 & " " & MINUTE(Q19/24-INT(Q19/24))&" " & 'Paramètres - Admin'!$D$2,HOUR(Q19/24-INT(Q19/24))&" " & 'Paramètres - Admin'!$D$3 & " " & MINUTE(Q19/24-INT(Q19/24))&" " & 'Paramètres - Admin'!$D$2)))))) -> 0,00 jours | S19: Sort de Hâte | T19: ='À Faire - Détails'!Q225 -> 0 | U19: ='À Faire - Détails'!R225 -> 0 | V19: ='À Faire - Détails'!Q231 -> 0 | W19: ='À Faire - Détails'!R231 -> 0 | X19: =IF($B$2='Paramètres - Admin'!$B$2,TEXT(W19*60*60,"# 0")&" " & 'Paramètres - Admin'!$B$2,IF($B$2='Paramètres - Admin'!$B$3,TEXT(W19*60,"# 0")&" " & 'Paramètres - Admin'!$B$3,IF($B$2='Paramètres - Admin'!$B$4,TEXT(W19,"# 0,00")&" " & 'Paramètres - Admin'!$B$4,IF($B$2='Paramètres - Admin'!$B$5,TEXT(W19/24,"# 0,00")&" " & 'Paramètres - Admin'!$B$5,IF($B$2='Paramètres - Admin'!$B$6,TEXT((W19/24)/30,"# 0,00")&" " & 'Paramètres - Admin'!$B$6,IF(W19/24>=1,INT(W19/24)&" " & 'Paramètres - Admin'!$D$4 & " " & HOUR(W19/24-INT(W19/24))&" " & 'Paramètres - Admin'!$D$3 & " " & MINUTE(W19/24-INT(W19/24))&" " & 'Paramètres - Admin'!$D$2,HOUR(W19/24-INT(W19/24))&" " & 'Paramètres - Admin'!$D$3 & " " & MINUTE(W19/24-INT(W19/24))&" " & 'Paramètres - Admin'!$D$2)))))) -> 0,00 jours
A20: Mortier | B20: ='À Faire - Détails'!Z84 -> 0 | C20: ='À Faire - Détails'!AA84 -> 0 | D20: ='À Faire - Détails'!Z96 -> 0 | E20: ='À Faire - Détails'!AA96 -> 0 | F20: =IF($B$2='Paramètres - Admin'!$B$2,TEXT(E20*60*60,"# 0")&" " & 'Paramètres - Admin'!$B$2,IF($B$2='Paramètres - Admin'!$B$3,TEXT(E20*60,"# 0")&" " & 'Paramètres - Admin'!$B$3,IF($B$2='Paramètres - Admin'!$B$4,TEXT(E20,"# 0,00")&" " & 'Paramètres - Admin'!$B$4,IF($B$2='Paramètres - Admin'!$B$5,TEXT(E20/24,"# 0,00")&" " & 'Paramètres - Admin'!$B$5,IF($B$2='Paramètres - Admin'!$B$6,TEXT((E20/24)/30,"# 0,00")&" " & 'Paramètres - Admin'!$B$6,IF(E20/24>=1,INT(E20/24)&" " & 'Paramètres - Admin'!$D$4 & " " & HOUR(E20/24-INT(E20/24))&" " & 'Paramètres - Admin'!$D$3 & " " & MINUTE(E20/24-INT(E20/24))&" " & 'Paramètres - Admin'!$D$2,HOUR(E20/24-INT(E20/24))&" " & 'Paramètres - Admin'!$D$3 & " " & MINUTE(E20/24-INT(E20/24))&" " & 'Paramètres - Admin'!$D$2)))))) -> 0,00 jours | G20: Géant | H20: ='À Faire - Détails'!H201 -> 0 | I20: ='À Faire - Détails'!I201 -> 0 | J20: ='À Faire - Détails'!H211 -> 0 | K20: ='À Faire - Détails'!I211 -> 0 | L20: =IF($B$2='Paramètres - Admin'!$B$2,TEXT(K20*60*60,"# 0")&" " & 'Paramètres - Admin'!$B$2,IF($B$2='Paramètres - Admin'!$B$3,TEXT(K20*60,"# 0")&" " & 'Paramètres - Admin'!$B$3,IF($B$2='Paramètres - Admin'!$B$4,TEXT(K20,"# 0,00")&" " & 'Paramètres - Admin'!$B$4,IF($B$2='Paramètres - Admin'!$B$5,TEXT(K20/24,"# 0,00")&" " & 'Paramètres - Admin'!$B$5,IF($B$2='Paramètres - Admin'!$B$6,TEXT((K20/24)/30,"# 0,00")&" " & 'Paramètres - Admin'!$B$6,IF(K20/24>=1,INT(K20/24)&" " & 'Paramètres - Admin'!$D$4 & " " & HOUR(K20/24-INT(K20/24))&" " & 'Paramètres - Admin'!$D$3 & " " & MINUTE(K20/24-INT(K20/24))&" " & 'Paramètres - Admin'!$D$2,HOUR(K20/24-INT(K20/24))&" " & 'Paramètres - Admin'!$D$3 & " " & MINUTE(K20/24-INT(K20/24))&" " & 'Paramètres - Admin'!$D$2)))))) -> 0,00 jours | M20: Sort de Saut | N20: ='À Faire - Détails'!Q166 -> 0 | O20: ='À Faire - Détails'!R166 -> 0 | P20: ='À Faire - Détails'!Q171 -> 0 | Q20: ='À Faire - Détails'!R171 -> 0 | R20: =IF($B$2='Paramètres - Admin'!$B$2,TEXT(Q20*60*60,"# 0")&" " & 'Paramètres - Admin'!$B$2,IF($B$2='Paramètres - Admin'!$B$3,TEXT(Q20*60,"# 0")&" " & 'Paramètres - Admin'!$B$3,IF($B$2='Paramètres - Admin'!$B$4,TEXT(Q20,"# 0,00")&" " & 'Paramètres - Admin'!$B$4,IF($B$2='Paramètres - Admin'!$B$5,TEXT(Q20/24,"# 0,00")&" " & 'Paramètres - Admin'!$B$5,IF($B$2='Paramètres - Admin'!$B$6,TEXT((Q20/24)/30,"# 0,00")&" " & 'Paramètres - Admin'!$B$6,IF(Q20/24>=1,INT(Q20/24)&" " & 'Paramètres - Admin'!$D$4 & " " & HOUR(Q20/24-INT(Q20/24))&" " & 'Paramètres - Admin'!$D$3 & " " & MINUTE(Q20/24-INT(Q20/24))&" " & 'Paramètres - Admin'!$D$2,HOUR(Q20/24-INT(Q20/24))&" " & 'Paramètres - Admin'!$D$3 & " " & MINUTE(Q20/24-INT(Q20/24))&" " & 'Paramètres - Admin'!$D$2)))))) -> 0,00 jours | S20: Sort Squelettique | T20: ='À Faire - Détails'!H234 -> 0 | U20: ='À Faire - Détails'!I234 -> 0 | V20: ='À Faire - Détails'!H240 -> 0 | W20: ='À Faire - Détails'!I240 -> 0 | X20: =IF($B$2='Paramètres - Admin'!$B$2,TEXT(W20*60*60,"# 0")&" " & 'Paramètres - Admin'!$B$2,IF($B$2='Paramètres - Admin'!$B$3,TEXT(W20*60,"# 0")&" " & 'Paramètres - Admin'!$B$3,IF($B$2='Paramètres - Admin'!$B$4,TEXT(W20,"# 0,00")&" " & 'Paramètres - Admin'!$B$4,IF($B$2='Paramètres - Admin'!$B$5,TEXT(W20/24,"# 0,00")&" " & 'Paramètres - Admin'!$B$5,IF($B$2='Paramètres - Admin'!$B$6,TEXT((W20/24)/30,"# 0,00")&" " & 'Paramètres - Admin'!$B$6,IF(W20/24>=1,INT(W20/24)&" " & 'Paramètres - Admin'!$D$4 & " " & HOUR(W20/24-INT(W20/24))&" " & 'Paramètres - Admin'!$D$3 & " " & MINUTE(W20/24-INT(W20/24))&" " & 'Paramètres - Admin'!$D$2,HOUR(W20/24-INT(W20/24))&" " & 'Paramètres - Admin'!$D$3 & " " & MINUTE(W20/24-INT(W20/24))&" " & 'Paramètres - Admin'!$D$2)))))) -> 0,00 jours
A21: Défense Antiaérienne | B21: ='À Faire - Détails'!Q93 -> 0 | C21: ='À Faire - Détails'!R93 -> 0 | D21: ='À Faire - Détails'!Q103 -> 0 | E21: ='À Faire - Détails'!R103 -> 0 | F21: =IF($B$2='Paramètres - Admin'!$B$2,TEXT(E21*60*60,"# 0")&" " & 'Paramètres - Admin'!$B$2,IF($B$2='Paramètres - Admin'!$B$3,TEXT(E21*60,"# 0")&" " & 'Paramètres - Admin'!$B$3,IF($B$2='Paramètres - Admin'!$B$4,TEXT(E21,"# 0,00")&" " & 'Paramètres - Admin'!$B$4,IF($B$2='Paramètres - Admin'!$B$5,TEXT(E21/24,"# 0,00")&" " & 'Paramètres - Admin'!$B$5,IF($B$2='Paramètres - Admin'!$B$6,TEXT((E21/24)/30,"# 0,00")&" " & 'Paramètres - Admin'!$B$6,IF(E21/24>=1,INT(E21/24)&" " & 'Paramètres - Admin'!$D$4 & " " & HOUR(E21/24-INT(E21/24))&" " & 'Paramètres - Admin'!$D$3 & " " & MINUTE(E21/24-INT(E21/24))&" " & 'Paramètres - Admin'!$D$2,HOUR(E21/24-INT(E21/24))&" " & 'Paramètres - Admin'!$D$3 & " " & MINUTE(E21/24-INT(E21/24))&" " & 'Paramètres - Admin'!$D$2)))))) -> 0,00 jours | G21: Sapeur | H21: ='À Faire - Détails'!Z187 -> 0 | I21: ='À Faire - Détails'!AA187 -> 0 | J21: ='À Faire - Détails'!Z195 -> 0 | K21: ='À Faire - Détails'!AA195 -> 0 | L21: =IF($B$2='Paramètres - Admin'!$B$2,TEXT(K21*60*60,"# 0")&" " & 'Paramètres - Admin'!$B$2,IF($B$2='Paramètres - Admin'!$B$3,TEXT(K21*60,"# 0")&" " & 'Paramètres - Admin'!$B$3,IF($B$2='Paramètres - Admin'!$B$4,TEXT(K21,"# 0,00")&" " & 'Paramètres - Admin'!$B$4,IF($B$2='Paramètres - Admin'!$B$5,TEXT(K21/24,"# 0,00")&" " & 'Paramètres - Admin'!$B$5,IF($B$2='Paramètres - Admin'!$B$6,TEXT((K21/24)/30,"# 0,00")&" " & 'Paramètres - Admin'!$B$6,IF(K21/24>=1,INT(K21/24)&" " & 'Paramètres - Admin'!$D$4 & " " & HOUR(K21/24-INT(K21/24))&" " & 'Paramètres - Admin'!$D$3 & " " & MINUTE(K21/24-INT(K21/24))&" " & 'Paramètres - Admin'!$D$2,HOUR(K21/24-INT(K21/24))&" " & 'Paramètres - Admin'!$D$3 & " " & MINUTE(K21/24-INT(K21/24))&" " & 'Paramètres - Admin'!$D$2)))))) -> 0,00 jours | M21: Sort de Gel | N21: ='À Faire - Détails'!Z156 -> 0 | O21: ='À Faire - Détails'!AA156 -> 0 | P21: ='À Faire - Détails'!Z163 -> 0 | Q21: ='À Faire - Détails'!AA163 -> 0 | R21: =IF($B$2='Paramètres - Admin'!$B$2,TEXT(Q21*60*60,"# 0")&" " & 'Paramètres - Admin'!$B$2,IF($B$2='Paramètres - Admin'!$B$3,TEXT(Q21*60,"# 0")&" " & 'Paramètres - Admin'!$B$3,IF($B$2='Paramètres - Admin'!$B$4,TEXT(Q21,"# 0,00")&" " & 'Paramètres - Admin'!$B$4,IF($B$2='Paramètres - Admin'!$B$5,TEXT(Q21/24,"# 0,00")&" " & 'Paramètres - Admin'!$B$5,IF($B$2='Paramètres - Admin'!$B$6,TEXT((Q21/24)/30,"# 0,00")&" " & 'Paramètres - Admin'!$B$6,IF(Q21/24>=1,INT(Q21/24)&" " & 'Paramètres - Admin'!$D$4 & " " & HOUR(Q21/24-INT(Q21/24))&" " & 'Paramètres - Admin'!$D$3 & " " & MINUTE(Q21/24-INT(Q21/24))&" " & 'Paramètres - Admin'!$D$2,HOUR(Q21/24-INT(Q21/24))&" " & 'Paramètres - Admin'!$D$3 & " " & MINUTE(Q21/24-INT(Q21/24))&" " & 'Paramètres - Admin'!$D$2)))))) -> 0,00 jours | S21: Total | T21: =SUM(T17:T20) -> 0 | U21: =SUM(U17:U20) -> 0 | V21: =SUM(V17:V20) -> 0 | W21: =SUM(W17:W20) -> 0 | X21: =IF($B$2='Paramètres - Admin'!$B$2,TEXT(W21*60*60,"# 0")&" " & 'Paramètres - Admin'!$B$2,IF($B$2='Paramètres - Admin'!$B$3,TEXT(W21*60,"# 0")&" " & 'Paramètres - Admin'!$B$3,IF($B$2='Paramètres - Admin'!$B$4,TEXT(W21,"# 0,00")&" " & 'Paramètres - Admin'!$B$4,IF($B$2='Paramètres - Admin'!$B$5,TEXT(W21/24,"# 0,00")&" " & 'Paramètres - Admin'!$B$5,IF($B$2='Paramètres - Admin'!$B$6,TEXT((W21/24)/30,"# 0,00")&" " & 'Paramètres - Admin'!$B$6,IF(W21/24>=1,INT(W21/24)&" " & 'Paramètres - Admin'!$D$4 & " " & HOUR(W21/24-INT(W21/24))&" " & 'Paramètres - Admin'!$D$3 & " " & MINUTE(W21/24-INT(W21/24))&" " & 'Paramètres - Admin'!$D$2,HOUR(W21/24-INT(W21/24))&" " & 'Paramètres - Admin'!$D$3 & " " & MINUTE(W21/24-INT(W21/24))&" " & 'Paramètres - Admin'!$D$2)))))) -> 0,00 jours
A22: Tour de Sorciers | B22: ='À Faire - Détails'!H85 -> 0 | C22: ='À Faire - Détails'!I85 -> 0 | D22: ='À Faire - Détails'!H97 -> 0 | E22: ='À Faire - Détails'!I97 -> 0 | F22: =IF($B$2='Paramètres - Admin'!$B$2,TEXT(E22*60*60,"# 0")&" " & 'Paramètres - Admin'!$B$2,IF($B$2='Paramètres - Admin'!$B$3,TEXT(E22*60,"# 0")&" " & 'Paramètres - Admin'!$B$3,IF($B$2='Paramètres - Admin'!$B$4,TEXT(E22,"# 0,00")&" " & 'Paramètres - Admin'!$B$4,IF($B$2='Paramètres - Admin'!$B$5,TEXT(E22/24,"# 0,00")&" " & 'Paramètres - Admin'!$B$5,IF($B$2='Paramètres - Admin'!$B$6,TEXT((E22/24)/30,"# 0,00")&" " & 'Paramètres - Admin'!$B$6,IF(E22/24>=1,INT(E22/24)&" " & 'Paramètres - Admin'!$D$4 & " " & HOUR(E22/24-INT(E22/24))&" " & 'Paramètres - Admin'!$D$3 & " " & MINUTE(E22/24-INT(E22/24))&" " & 'Paramètres - Admin'!$D$2,HOUR(E22/24-INT(E22/24))&" " & 'Paramètres - Admin'!$D$3 & " " & MINUTE(E22/24-INT(E22/24))&" " & 'Paramètres - Admin'!$D$2)))))) -> 0,00 jours | G22: Ballon | H22: ='À Faire - Détails'!Q179 -> 0 | I22: ='À Faire - Détails'!R179 -> 0 | J22: ='À Faire - Détails'!Q188 -> 0 | K22: ='À Faire - Détails'!R188 -> 0 | L22: =IF($B$2='Paramètres - Admin'!$B$2,TEXT(K22*60*60,"# 0")&" " & 'Paramètres - Admin'!$B$2,IF($B$2='Paramètres - Admin'!$B$3,TEXT(K22*60,"# 0")&" " & 'Paramètres - Admin'!$B$3,IF($B$2='Paramètres - Admin'!$B$4,TEXT(K22,"# 0,00")&" " & 'Paramètres - Admin'!$B$4,IF($B$2='Paramètres - Admin'!$B$5,TEXT(K22/24,"# 0,00")&" " & 'Paramètres - Admin'!$B$5,IF($B$2='Paramètres - Admin'!$B$6,TEXT((K22/24)/30,"# 0,00")&" " & 'Paramètres - Admin'!$B$6,IF(K22/24>=1,INT(K22/24)&" " & 'Paramètres - Admin'!$D$4 & " " & HOUR(K22/24-INT(K22/24))&" " & 'Paramètres - Admin'!$D$3 & " " & MINUTE(K22/24-INT(K22/24))&" " & 'Paramètres - Admin'!$D$2,HOUR(K22/24-INT(K22/24))&" " & 'Paramètres - Admin'!$D$3 & " " & MINUTE(K22/24-INT(K22/24))&" " & 'Paramètres - Admin'!$D$2)))))) -> 0,00 jours | M22: Sort de clonage | N22: ='À Faire - Détails'!Z165 -> 0 | O22: ='À Faire - Détails'!AA165 -> 0 | P22: ='À Faire - Détails'!Z171 -> 0 | Q22: ='À Faire - Détails'!AA171 -> 0 | R22: =IF($B$2='Paramètres - Admin'!$B$2,TEXT(Q22*60*60,"# 0")&" " & 'Paramètres - Admin'!$B$2,IF($B$2='Paramètres - Admin'!$B$3,TEXT(Q22*60,"# 0")&" " & 'Paramètres - Admin'!$B$3,IF($B$2='Paramètres - Admin'!$B$4,TEXT(Q22,"# 0,00")&" " & 'Paramètres - Admin'!$B$4,IF($B$2='Paramètres - Admin'!$B$5,TEXT(Q22/24,"# 0,00")&" " & 'Paramètres - Admin'!$B$5,IF($B$2='Paramètres - Admin'!$B$6,TEXT((Q22/24)/30,"# 0,00")&" " & 'Paramètres - Admin'!$B$6,IF(Q22/24>=1,INT(Q22/24)&" " & 'Paramètres - Admin'!$D$4 & " " & HOUR(Q22/24-INT(Q22/24))&" " & 'Paramètres - Admin'!$D$3 & " " & MINUTE(Q22/24-INT(Q22/24))&" " & 'Paramètres - Admin'!$D$2,HOUR(Q22/24-INT(Q22/24))&" " & 'Paramètres - Admin'!$D$3 & " " & MINUTE(Q22/24-INT(Q22/24))&" " & 'Paramètres - Admin'!$D$2)))))) -> 0,00 jours | S22: Héros
A23: Propulseur d'air | B23: ='À Faire - Détails'!Q83 -> 0 | C23: ='À Faire - Détails'!R83 -> 0 | D23: ='À Faire - Détails'!Q91 -> 0 | E23: ='À Faire - Détails'!R91 -> 0 | F23: =IF($B$2='Paramètres - Admin'!$B$2,TEXT(E23*60*60,"# 0")&" " & 'Paramètres - Admin'!$B$2,IF($B$2='Paramètres - Admin'!$B$3,TEXT(E23*60,"# 0")&" " & 'Paramètres - Admin'!$B$3,IF($B$2='Paramètres - Admin'!$B$4,TEXT(E23,"# 0,00")&" " & 'Paramètres - Admin'!$B$4,IF($B$2='Paramètres - Admin'!$B$5,TEXT(E23/24,"# 0,00")&" " & 'Paramètres - Admin'!$B$5,IF($B$2='Paramètres - Admin'!$B$6,TEXT((E23/24)/30,"# 0,00")&" " & 'Paramètres - Admin'!$B$6,IF(E23/24>=1,INT(E23/24)&" " & 'Paramètres - Admin'!$D$4 & " " & HOUR(E23/24-INT(E23/24))&" " & 'Paramètres - Admin'!$D$3 & " " & MINUTE(E23/24-INT(E23/24))&" " & 'Paramètres - Admin'!$D$2,HOUR(E23/24-INT(E23/24))&" " & 'Paramètres - Admin'!$D$3 & " " & MINUTE(E23/24-INT(E23/24))&" " & 'Paramètres - Admin'!$D$2)))))) -> 0,00 jours | G23: Sorcier | H23: ='À Faire - Détails'!Q190 -> 0 | I23: ='À Faire - Détails'!R190 -> 0 | J23: ='À Faire - Détails'!Q199 -> 0 | K23: ='À Faire - Détails'!R199 -> 0 | L23: =IF($B$2='Paramètres - Admin'!$B$2,TEXT(K23*60*60,"# 0")&" " & 'Paramètres - Admin'!$B$2,IF($B$2='Paramètres - Admin'!$B$3,TEXT(K23*60,"# 0")&" " & 'Paramètres - Admin'!$B$3,IF($B$2='Paramètres - Admin'!$B$4,TEXT(K23,"# 0,00")&" " & 'Paramètres - Admin'!$B$4,IF($B$2='Paramètres - Admin'!$B$5,TEXT(K23/24,"# 0,00")&" " & 'Paramètres - Admin'!$B$5,IF($B$2='Paramètres - Admin'!$B$6,TEXT((K23/24)/30,"# 0,00")&" " & 'Paramètres - Admin'!$B$6,IF(K23/24>=1,INT(K23/24)&" " & 'Paramètres - Admin'!$D$4 & " " & HOUR(K23/24-INT(K23/24))&" " & 'Paramètres - Admin'!$D$3 & " " & MINUTE(K23/24-INT(K23/24))&" " & 'Paramètres - Admin'!$D$2,HOUR(K23/24-INT(K23/24))&" " & 'Paramètres - Admin'!$D$3 & " " & MINUTE(K23/24-INT(K23/24))&" " & 'Paramètres - Admin'!$D$2)))))) -> 0,00 jours | M23: Total | N23: =SUM(N17:N22) -> 0 | O23: =SUM(O17:O22) -> 0 | P23: =SUM(P17:P22) -> 0 | Q23: =SUM(Q17:Q22) -> 0 | R23: =IF($B$2='Paramètres - Admin'!$B$2,TEXT(Q23*60*60,"# 0")&" " & 'Paramètres - Admin'!$B$2,IF($B$2='Paramètres - Admin'!$B$3,TEXT(Q23*60,"# 0")&" " & 'Paramètres - Admin'!$B$3,IF($B$2='Paramètres - Admin'!$B$4,TEXT(Q23,"# 0,00")&" " & 'Paramètres - Admin'!$B$4,IF($B$2='Paramètres - Admin'!$B$5,TEXT(Q23/24,"# 0,00")&" " & 'Paramètres - Admin'!$B$5,IF($B$2='Paramètres - Admin'!$B$6,TEXT((Q23/24)/30,"# 0,00")&" " & 'Paramètres - Admin'!$B$6,IF(Q23/24>=1,INT(Q23/24)&" " & 'Paramètres - Admin'!$D$4 & " " & HOUR(Q23/24-INT(Q23/24))&" " & 'Paramètres - Admin'!$D$3 & " " & MINUTE(Q23/24-INT(Q23/24))&" " & 'Paramètres - Admin'!$D$2,HOUR(Q23/24-INT(Q23/24))&" " & 'Paramètres - Admin'!$D$3 & " " & MINUTE(Q23/24-INT(Q23/24))&" " & 'Paramètres - Admin'!$D$2)))))) -> 0,00 jours | S23: Héros | T23: À Faire | U23: Up. | V23: Coût Total | W23: Temps Total | X23: Temps Total
A24: Tesla Camouflée | B24: ='À Faire - Détails'!Z98 -> 0 | C24: ='À Faire - Détails'!AA98 -> 0 | D24: ='À Faire - Détails'!Z109 -> 0 | E24: ='À Faire - Détails'!AA109 -> 0 | F24: =IF($B$2='Paramètres - Admin'!$B$2,TEXT(E24*60*60,"# 0")&" " & 'Paramètres - Admin'!$B$2,IF($B$2='Paramètres - Admin'!$B$3,TEXT(E24*60,"# 0")&" " & 'Paramètres - Admin'!$B$3,IF($B$2='Paramètres - Admin'!$B$4,TEXT(E24,"# 0,00")&" " & 'Paramètres - Admin'!$B$4,IF($B$2='Paramètres - Admin'!$B$5,TEXT(E24/24,"# 0,00")&" " & 'Paramètres - Admin'!$B$5,IF($B$2='Paramètres - Admin'!$B$6,TEXT((E24/24)/30,"# 0,00")&" " & 'Paramètres - Admin'!$B$6,IF(E24/24>=1,INT(E24/24)&" " & 'Paramètres - Admin'!$D$4 & " " & HOUR(E24/24-INT(E24/24))&" " & 'Paramètres - Admin'!$D$3 & " " & MINUTE(E24/24-INT(E24/24))&" " & 'Paramètres - Admin'!$D$2,HOUR(E24/24-INT(E24/24))&" " & 'Paramètres - Admin'!$D$3 & " " & MINUTE(E24/24-INT(E24/24))&" " & 'Paramètres - Admin'!$D$2)))))) -> 0,00 jours | G24: Guérisseuse | H24: ='À Faire - Détails'!Z179 -> 0 | I24: ='À Faire - Détails'!AA179 -> 0 | J24: ='À Faire - Détails'!Z185 -> 0 | K24: ='À Faire - Détails'!AA185 -> 0 | L24: =IF($B$2='Paramètres - Admin'!$B$2,TEXT(K24*60*60,"# 0")&" " & 'Paramètres - Admin'!$B$2,IF($B$2='Paramètres - Admin'!$B$3,TEXT(K24*60,"# 0")&" " & 'Paramètres - Admin'!$B$3,IF($B$2='Paramètres - Admin'!$B$4,TEXT(K24,"# 0,00")&" " & 'Paramètres - Admin'!$B$4,IF($B$2='Paramètres - Admin'!$B$5,TEXT(K24/24,"# 0,00")&" " & 'Paramètres - Admin'!$B$5,IF($B$2='Paramètres - Admin'!$B$6,TEXT((K24/24)/30,"# 0,00")&" " & 'Paramètres - Admin'!$B$6,IF(K24/24>=1,INT(K24/24)&" " & 'Paramètres - Admin'!$D$4 & " " & HOUR(K24/24-INT(K24/24))&" " & 'Paramètres - Admin'!$D$3 & " " & MINUTE(K24/24-INT(K24/24))&" " & 'Paramètres - Admin'!$D$2,HOUR(K24/24-INT(K24/24))&" " & 'Paramètres - Admin'!$D$3 & " " & MINUTE(K24/24-INT(K24/24))&" " & 'Paramètres - Admin'!$D$2)))))) -> 0,00 jours | M24: Bâtiments Autres | S24: Roi des Barbares | T24: ='À Faire - Détails'!H269 -> 0 | U24: ='À Faire - Détails'!I269 -> 0 | V24: ='À Faire - Détails'!H316 -> 0 | W24: ='À Faire - Détails'!I316 -> 0 | X24: =IF($B$2='Paramètres - Admin'!$B$2,TEXT(W24*60*60,"# 0")&" " & 'Paramètres - Admin'!$B$2,IF($B$2='Paramètres - Admin'!$B$3,TEXT(W24*60,"# 0")&" " & 'Paramètres - Admin'!$B$3,IF($B$2='Paramètres - Admin'!$B$4,TEXT(W24,"# 0,00")&" " & 'Paramètres - Admin'!$B$4,IF($B$2='Paramètres - Admin'!$B$5,TEXT(W24/24,"# 0,00")&" " & 'Paramètres - Admin'!$B$5,IF($B$2='Paramètres - Admin'!$B$6,TEXT((W24/24)/30,"# 0,00")&" " & 'Paramètres - Admin'!$B$6,IF(W24/24>=1,INT(W24/24)&" " & 'Paramètres - Admin'!$D$4 & " " & HOUR(W24/24-INT(W24/24))&" " & 'Paramètres - Admin'!$D$3 & " " & MINUTE(W24/24-INT(W24/24))&" " & 'Paramètres - Admin'!$D$2,HOUR(W24/24-INT(W24/24))&" " & 'Paramètres - Admin'!$D$3 & " " & MINUTE(W24/24-INT(W24/24))&" " & 'Paramètres - Admin'!$D$2)))))) -> 0,00 jours
A25: Arc-X | B25: ='À Faire - Détails'!Q105 -> 0 | C25: ='À Faire - Détails'!R105 -> 0 | D25: ='À Faire - Détails'!Q112 -> 0 | E25: ='À Faire - Détails'!R112 -> 0 | F25: =IF($B$2='Paramètres - Admin'!$B$2,TEXT(E25*60*60,"# 0")&" " & 'Paramètres - Admin'!$B$2,IF($B$2='Paramètres - Admin'!$B$3,TEXT(E25*60,"# 0")&" " & 'Paramètres - Admin'!$B$3,IF($B$2='Paramètres - Admin'!$B$4,TEXT(E25,"# 0,00")&" " & 'Paramètres - Admin'!$B$4,IF($B$2='Paramètres - Admin'!$B$5,TEXT(E25/24,"# 0,00")&" " & 'Paramètres - Admin'!$B$5,IF($B$2='Paramètres - Admin'!$B$6,TEXT((E25/24)/30,"# 0,00")&" " & 'Paramètres - Admin'!$B$6,IF(E25/24>=1,INT(E25/24)&" " & 'Paramètres - Admin'!$D$4 & " " & HOUR(E25/24-INT(E25/24))&" " & 'Paramètres - Admin'!$D$3 & " " & MINUTE(E25/24-INT(E25/24))&" " & 'Paramètres - Admin'!$D$2,HOUR(E25/24-INT(E25/24))&" " & 'Paramètres - Admin'!$D$3 & " " & MINUTE(E25/24-INT(E25/24))&" " & 'Paramètres - Admin'!$D$2)))))) -> 0,00 jours | G25: Dragon | H25: ='À Faire - Détails'!Z197 -> 0 | I25: ='À Faire - Détails'!AA197 -> 0 | J25: ='À Faire - Détails'!Z205 -> 0 | K25: ='À Faire - Détails'!AA205 -> 0 | L25: =IF($B$2='Paramètres - Admin'!$B$2,TEXT(K25*60*60,"# 0")&" " & 'Paramètres - Admin'!$B$2,IF($B$2='Paramètres - Admin'!$B$3,TEXT(K25*60,"# 0")&" " & 'Paramètres - Admin'!$B$3,IF($B$2='Paramètres - Admin'!$B$4,TEXT(K25,"# 0,00")&" " & 'Paramètres - Admin'!$B$4,IF($B$2='Paramètres - Admin'!$B$5,TEXT(K25/24,"# 0,00")&" " & 'Paramètres - Admin'!$B$5,IF($B$2='Paramètres - Admin'!$B$6,TEXT((K25/24)/30,"# 0,00")&" " & 'Paramètres - Admin'!$B$6,IF(K25/24>=1,INT(K25/24)&" " & 'Paramètres - Admin'!$D$4 & " " & HOUR(K25/24-INT(K25/24))&" " & 'Paramètres - Admin'!$D$3 & " " & MINUTE(K25/24-INT(K25/24))&" " & 'Paramètres - Admin'!$D$2,HOUR(K25/24-INT(K25/24))&" " & 'Paramètres - Admin'!$D$3 & " " & MINUTE(K25/24-INT(K25/24))&" " & 'Paramètres - Admin'!$D$2)))))) -> 0,00 jours | M25: Bâtiment | N25: À Faire | O25: Up. | P25: Coût Total | Q25: Temps Total | R25: Temps Total | S25: Reine des Archers | T25: ='À Faire - Détails'!Q269 -> 0 | U25: ='À Faire - Détails'!R269 -> 0 | V25: ='À Faire - Détails'!Q316 -> 0 | W25: ='À Faire - Détails'!R316 -> 0 | X25: =IF($B$2='Paramètres - Admin'!$B$2,TEXT(W25*60*60,"# 0")&" " & 'Paramètres - Admin'!$B$2,IF($B$2='Paramètres - Admin'!$B$3,TEXT(W25*60,"# 0")&" " & 'Paramètres - Admin'!$B$3,IF($B$2='Paramètres - Admin'!$B$4,TEXT(W25,"# 0,00")&" " & 'Paramètres - Admin'!$B$4,IF($B$2='Paramètres - Admin'!$B$5,TEXT(W25/24,"# 0,00")&" " & 'Paramètres - Admin'!$B$5,IF($B$2='Paramètres - Admin'!$B$6,TEXT((W25/24)/30,"# 0,00")&" " & 'Paramètres - Admin'!$B$6,IF(W25/24>=1,INT(W25/24)&" " & 'Paramètres - Admin'!$D$4 & " " & HOUR(W25/24-INT(W25/24))&" " & 'Paramètres - Admin'!$D$3 & " " & MINUTE(W25/24-INT(W25/24))&" " & 'Paramètres - Admin'!$D$2,HOUR(W25/24-INT(W25/24))&" " & 'Paramètres - Admin'!$D$3 & " " & MINUTE(W25/24-INT(W25/24))&" " & 'Paramètres - Admin'!$D$2)))))) -> 0,00 jours
A26: Tour de l'Enfer | B26: ='À Faire - Détails'!H99 -> 0 | C26: ='À Faire - Détails'!I99 -> 0 | D26: ='À Faire - Détails'!H105 -> 0 | E26: ='À Faire - Détails'!I105 -> 0 | F26: =IF($B$2='Paramètres - Admin'!$B$2,TEXT(E26*60*60,"# 0")&" " & 'Paramètres - Admin'!$B$2,IF($B$2='Paramètres - Admin'!$B$3,TEXT(E26*60,"# 0")&" " & 'Paramètres - Admin'!$B$3,IF($B$2='Paramètres - Admin'!$B$4,TEXT(E26,"# 0,00")&" " & 'Paramètres - Admin'!$B$4,IF($B$2='Paramètres - Admin'!$B$5,TEXT(E26/24,"# 0,00")&" " & 'Paramètres - Admin'!$B$5,IF($B$2='Paramètres - Admin'!$B$6,TEXT((E26/24)/30,"# 0,00")&" " & 'Paramètres - Admin'!$B$6,IF(E26/24>=1,INT(E26/24)&" " & 'Paramètres - Admin'!$D$4 & " " & HOUR(E26/24-INT(E26/24))&" " & 'Paramètres - Admin'!$D$3 & " " & MINUTE(E26/24-INT(E26/24))&" " & 'Paramètres - Admin'!$D$2,HOUR(E26/24-INT(E26/24))&" " & 'Paramètres - Admin'!$D$3 & " " & MINUTE(E26/24-INT(E26/24))&" " & 'Paramètres - Admin'!$D$2)))))) -> 0,00 jours | G26: P.E.K.K.A | H26: ='À Faire - Détails'!Z207 -> 0 | I26: ='À Faire - Détails'!AA207 -> 0 | J26: ='À Faire - Détails'!Z214 -> 0 | K26: ='À Faire - Détails'!AA214 -> 0 | L26: =IF($B$2='Paramètres - Admin'!$B$2,TEXT(K26*60*60,"# 0")&" " & 'Paramètres - Admin'!$B$2,IF($B$2='Paramètres - Admin'!$B$3,TEXT(K26*60,"# 0")&" " & 'Paramètres - Admin'!$B$3,IF($B$2='Paramètres - Admin'!$B$4,TEXT(K26,"# 0,00")&" " & 'Paramètres - Admin'!$B$4,IF($B$2='Paramètres - Admin'!$B$5,TEXT(K26/24,"# 0,00")&" " & 'Paramètres - Admin'!$B$5,IF($B$2='Paramètres - Admin'!$B$6,TEXT((K26/24)/30,"# 0,00")&" " & 'Paramètres - Admin'!$B$6,IF(K26/24>=1,INT(K26/24)&" " & 'Paramètres - Admin'!$D$4 & " " & HOUR(K26/24-INT(K26/24))&" " & 'Paramètres - Admin'!$D$3 & " " & MINUTE(K26/24-INT(K26/24))&" " & 'Paramètres - Admin'!$D$2,HOUR(K26/24-INT(K26/24))&" " & 'Paramètres - Admin'!$D$3 & " " & MINUTE(K26/24-INT(K26/24))&" " & 'Paramètres - Admin'!$D$2)))))) -> 0,00 jours | M26: Château de Clan | N26: ='À Faire - Détails'!Q138 -> 0 | O26: ='À Faire - Détails'!R138 -> 0 | P26: ='À Faire - Détails'!Q147 -> 0 | Q26: ='À Faire - Détails'!R147 -> 0 | R26: =IF($B$2='Paramètres - Admin'!$B$2,TEXT(Q26*60*60,"# 0")&" " & 'Paramètres - Admin'!$B$2,IF($B$2='Paramètres - Admin'!$B$3,TEXT(Q26*60,"# 0")&" " & 'Paramètres - Admin'!$B$3,IF($B$2='Paramètres - Admin'!$B$4,TEXT(Q26,"# 0,00")&" " & 'Paramètres - Admin'!$B$4,IF($B$2='Paramètres - Admin'!$B$5,TEXT(Q26/24,"# 0,00")&" " & 'Paramètres - Admin'!$B$5,IF($B$2='Paramètres - Admin'!$B$6,TEXT((Q26/24)/30,"# 0,00")&" " & 'Paramètres - Admin'!$B$6,IF(Q26/24>=1,INT(Q26/24)&" " & 'Paramètres - Admin'!$D$4 & " " & HOUR(Q26/24-INT(Q26/24))&" " & 'Paramètres - Admin'!$D$3 & " " & MINUTE(Q26/24-INT(Q26/24))&" " & 'Paramètres - Admin'!$D$2,HOUR(Q26/24-INT(Q26/24))&" " & 'Paramètres - Admin'!$D$3 & " " & MINUTE(Q26/24-INT(Q26/24))&" " & 'Paramètres - Admin'!$D$2)))))) -> 0,00 jours | S26: Grand Gardien | T26: ='À Faire - Détails'!Z269 -> 0 | U26: ='À Faire - Détails'!AA269 -> 0 | V26: ='À Faire - Détails'!Z316 -> 0 | W26: ='À Faire - Détails'!AA316 -> 0 | X26: =IF($B$2='Paramètres - Admin'!$B$2,TEXT(W26*60*60,"# 0")&" " & 'Paramètres - Admin'!$B$2,IF($B$2='Paramètres - Admin'!$B$3,TEXT(W26*60,"# 0")&" " & 'Paramètres - Admin'!$B$3,IF($B$2='Paramètres - Admin'!$B$4,TEXT(W26,"# 0,00")&" " & 'Paramètres - Admin'!$B$4,IF($B$2='Paramètres - Admin'!$B$5,TEXT(W26/24,"# 0,00")&" " & 'Paramètres - Admin'!$B$5,IF($B$2='Paramètres - Admin'!$B$6,TEXT((W26/24)/30,"# 0,00")&" " & 'Paramètres - Admin'!$B$6,IF(W26/24>=1,INT(W26/24)&" " & 'Paramètres - Admin'!$D$4 & " " & HOUR(W26/24-INT(W26/24))&" " & 'Paramètres - Admin'!$D$3 & " " & MINUTE(W26/24-INT(W26/24))&" " & 'Paramètres - Admin'!$D$2,HOUR(W26/24-INT(W26/24))&" " & 'Paramètres - Admin'!$D$3 & " " & MINUTE(W26/24-INT(W26/24))&" " & 'Paramètres - Admin'!$D$2)))))) -> 0,00 jours
A27: Aigle Artilleur | B27: ='À Faire - Détails'!H107 -> 0 | C27: ='À Faire - Détails'!I107 -> 0 | D27: ='À Faire - Détails'!H111 -> 0 | E27: ='À Faire - Détails'!I111 -> 0 | F27: =IF($B$2='Paramètres - Admin'!$B$2,TEXT(E27*60*60,"# 0")&" " & 'Paramètres - Admin'!$B$2,IF($B$2='Paramètres - Admin'!$B$3,TEXT(E27*60,"# 0")&" " & 'Paramètres - Admin'!$B$3,IF($B$2='Paramètres - Admin'!$B$4,TEXT(E27,"# 0,00")&" " & 'Paramètres - Admin'!$B$4,IF($B$2='Paramètres - Admin'!$B$5,TEXT(E27/24,"# 0,00")&" " & 'Paramètres - Admin'!$B$5,IF($B$2='Paramètres - Admin'!$B$6,TEXT((E27/24)/30,"# 0,00")&" " & 'Paramètres - Admin'!$B$6,IF(E27/24>=1,INT(E27/24)&" " & 'Paramètres - Admin'!$D$4 & " " & HOUR(E27/24-INT(E27/24))&" " & 'Paramètres - Admin'!$D$3 & " " & MINUTE(E27/24-INT(E27/24))&" " & 'Paramètres - Admin'!$D$2,HOUR(E27/24-INT(E27/24))&" " & 'Paramètres - Admin'!$D$3 & " " & MINUTE(E27/24-INT(E27/24))&" " & 'Paramètres - Admin'!$D$2)))))) -> 0,00 jours | G27: Bébé dragon | H27: ='À Faire - Détails'!H213 -> 0 | I27: ='À Faire - Détails'!I213 -> 0 | J27: ='À Faire - Détails'!H220 -> 0 | K27: ='À Faire - Détails'!I220 -> 0 | L27: =IF($B$2='Paramètres - Admin'!$B$2,TEXT(K27*60*60,"# 0")&" " & 'Paramètres - Admin'!$B$2,IF($B$2='Paramètres - Admin'!$B$3,TEXT(K27*60,"# 0")&" " & 'Paramètres - Admin'!$B$3,IF($B$2='Paramètres - Admin'!$B$4,TEXT(K27,"# 0,00")&" " & 'Paramètres - Admin'!$B$4,IF($B$2='Paramètres - Admin'!$B$5,TEXT(K27/24,"# 0,00")&" " & 'Paramètres - Admin'!$B$5,IF($B$2='Paramètres - Admin'!$B$6,TEXT((K27/24)/30,"# 0,00")&" " & 'Paramètres - Admin'!$B$6,IF(K27/24>=1,INT(K27/24)&" " & 'Paramètres - Admin'!$D$4 & " " & HOUR(K27/24-INT(K27/24))&" " & 'Paramètres - Admin'!$D$3 & " " & MINUTE(K27/24-INT(K27/24))&" " & 'Paramètres - Admin'!$D$2,HOUR(K27/24-INT(K27/24))&" " & 'Paramètres - Admin'!$D$3 & " " & MINUTE(K27/24-INT(K27/24))&" " & 'Paramètres - Admin'!$D$2)))))) -> 0,00 jours | M27: Hôtel de Ville | N27: ='À Faire - Détails'!H138 -> 0 | O27: ='À Faire - Détails'!I138 -> 1 | P27: ='À Faire - Détails'!H151 -> 1000 | Q27: ='À Faire - Détails'!I151 -> 0.08333333333 | R27: =IF($B$2='Paramètres - Admin'!$B$2,TEXT(Q27*60*60,"# 0")&" " & 'Paramètres - Admin'!$B$2,IF($B$2='Paramètres - Admin'!$B$3,TEXT(Q27*60,"# 0")&" " & 'Paramètres - Admin'!$B$3,IF($B$2='Paramètres - Admin'!$B$4,TEXT(Q27,"# 0,00")&" " & 'Paramètres - Admin'!$B$4,IF($B$2='Paramètres - Admin'!$B$5,TEXT(Q27/24,"# 0,00")&" " & 'Paramètres - Admin'!$B$5,IF($B$2='Paramètres - Admin'!$B$6,TEXT((Q27/24)/30,"# 0,00")&" " & 'Paramètres - Admin'!$B$6,IF(Q27/24>=1,INT(Q27/24)&" " & 'Paramètres - Admin'!$D$4 & " " & HOUR(Q27/24-INT(Q27/24))&" " & 'Paramètres - Admin'!$D$3 & " " & MINUTE(Q27/24-INT(Q27/24))&" " & 'Paramètres - Admin'!$D$2,HOUR(Q27/24-INT(Q27/24))&" " & 'Paramètres - Admin'!$D$3 & " " & MINUTE(Q27/24-INT(Q27/24))&" " & 'Paramètres - Admin'!$D$2)))))) -> 0,00 jours | S27: Total | T27: =SUM(T24:T26) -> 0 | U27: =SUM(U24:U26) -> 0 | V27: =SUM(V24:V25) -> 0 | W27: =SUM(W24:W26) -> 0 | X27: =IF($B$2='Paramètres - Admin'!$B$2,TEXT(W27*60*60,"# 0")&" " & 'Paramètres - Admin'!$B$2,IF($B$2='Paramètres - Admin'!$B$3,TEXT(W27*60,"# 0")&" " & 'Paramètres - Admin'!$B$3,IF($B$2='Paramètres - Admin'!$B$4,TEXT(W27,"# 0,00")&" " & 'Paramètres - Admin'!$B$4,IF($B$2='Paramètres - Admin'!$B$5,TEXT(W27/24,"# 0,00")&" " & 'Paramètres - Admin'!$B$5,IF($B$2='Paramètres - Admin'!$B$6,TEXT((W27/24)/30,"# 0,00")&" " & 'Paramètres - Admin'!$B$6,IF(W27/24>=1,INT(W27/24)&" " & 'Paramètres - Admin'!$D$4 & " " & HOUR(W27/24-INT(W27/24))&" " & 'Paramètres - Admin'!$D$3 & " " & MINUTE(W27/24-INT(W27/24))&" " & 'Paramètres - Admin'!$D$2,HOUR(W27/24-INT(W27/24))&" " & 'Paramètres - Admin'!$D$3 & " " & MINUTE(W27/24-INT(W27/24))&" " & 'Paramètres - Admin'!$D$2)))))) -> 0,00 jours
A28: Total | B28: =SUM(B17:B27) -> 2 | C28: =SUM(C17:C27) -> 4 | D28: =SUM(D17:D27) -> 2500 | E28: =SUM(E17:E27) -> 0.5333333333 | F28: =IF($B$2='Paramètres - Admin'!$B$2,TEXT(E28*60*60,"# 0")&" " & 'Paramètres - Admin'!$B$2,IF($B$2='Paramètres - Admin'!$B$3,TEXT(E28*60,"# 0")&" " & 'Paramètres - Admin'!$B$3,IF($B$2='Paramètres - Admin'!$B$4,TEXT(E28,"# 0,00")&" " & 'Paramètres - Admin'!$B$4,IF($B$2='Paramètres - Admin'!$B$5,TEXT(E28/24,"# 0,00")&" " & 'Paramètres - Admin'!$B$5,IF($B$2='Paramètres - Admin'!$B$6,TEXT((E28/24)/30,"# 0,00")&" " & 'Paramètres - Admin'!$B$6,IF(E28/24>=1,INT(E28/24)&" " & 'Paramètres - Admin'!$D$4 & " " & HOUR(E28/24-INT(E28/24))&" " & 'Paramètres - Admin'!$D$3 & " " & MINUTE(E28/24-INT(E28/24))&" " & 'Paramètres - Admin'!$D$2,HOUR(E28/24-INT(E28/24))&" " & 'Paramètres - Admin'!$D$3 & " " & MINUTE(E28/24-INT(E28/24))&" " & 'Paramètres - Admin'!$D$2)))))) -> 0,02 jours | G28: Mineur | H28: ='À Faire - Détails'!Q212 -> 0 | I28: ='À Faire - Détails'!R212 -> 0 | J28: ='À Faire - Détails'!Q218 -> 0 | K28: ='À Faire - Détails'!R218 -> 0 | L28: =IF($B$2='Paramètres - Admin'!$B$2,TEXT(K28*60*60,"# 0")&" " & 'Paramètres - Admin'!$B$2,IF($B$2='Paramètres - Admin'!$B$3,TEXT(K28*60,"# 0")&" " & 'Paramètres - Admin'!$B$3,IF($B$2='Paramètres - Admin'!$B$4,TEXT(K28,"# 0,00")&" " & 'Paramètres - Admin'!$B$4,IF($B$2='Paramètres - Admin'!$B$5,TEXT(K28/24,"# 0,00")&" " & 'Paramètres - Admin'!$B$5,IF($B$2='Paramètres - Admin'!$B$6,TEXT((K28/24)/30,"# 0,00")&" " & 'Paramètres - Admin'!$B$6,IF(K28/24>=1,INT(K28/24)&" " & 'Paramètres - Admin'!$D$4 & " " & HOUR(K28/24-INT(K28/24))&" " & 'Paramètres - Admin'!$D$3 & " " & MINUTE(K28/24-INT(K28/24))&" " & 'Paramètres - Admin'!$D$2,HOUR(K28/24-INT(K28/24))&" " & 'Paramètres - Admin'!$D$3 & " " & MINUTE(K28/24-INT(K28/24))&" " & 'Paramètres - Admin'!$D$2)))))) -> 0,00 jours | M28: Total | N28: =SUM(N26:N27) -> 0 | O28: =SUM(O26:O27) -> 1 | P28: =SUM(P26:P27) -> 1000 | Q28: =SUM(Q26:Q27) -> 0.08333333333 | R28: =IF($B$2='Paramètres - Admin'!$B$2,TEXT(Q28*60*60,"# 0")&" " & 'Paramètres - Admin'!$B$2,IF($B$2='Paramètres - Admin'!$B$3,TEXT(Q28*60,"# 0")&" " & 'Paramètres - Admin'!$B$3,IF($B$2='Paramètres - Admin'!$B$4,TEXT(Q28,"# 0,00")&" " & 'Paramètres - Admin'!$B$4,IF($B$2='Paramètres - Admin'!$B$5,TEXT(Q28/24,"# 0,00")&" " & 'Paramètres - Admin'!$B$5,IF($B$2='Paramètres - Admin'!$B$6,TEXT((Q28/24)/30,"# 0,00")&" " & 'Paramètres - Admin'!$B$6,IF(Q28/24>=1,INT(Q28/24)&" " & 'Paramètres - Admin'!$D$4 & " " & HOUR(Q28/24-INT(Q28/24))&" " & 'Paramètres - Admin'!$D$3 & " " & MINUTE(Q28/24-INT(Q28/24))&" " & 'Paramètres - Admin'!$D$2,HOUR(Q28/24-INT(Q28/24))&" " & 'Paramètres - Admin'!$D$3 & " " & MINUTE(Q28/24-INT(Q28/24))&" " & 'Paramètres - Admin'!$D$2)))))) -> 0,00 jours
G29: Total | H29: =SUM(H17:H28) -> 0 | I29: =SUM(I17:I28) -> 0 | J29: =SUM(J17:J28) -> 0 | K29: =SUM(K17:K28) -> 0 | L29: =IF($B$2='Paramètres - Admin'!$B$2,TEXT(K29*60*60,"# 0")&" " & 'Paramètres - Admin'!$B$2,IF($B$2='Paramètres - Admin'!$B$3,TEXT(K29*60,"# 0")&" " & 'Paramètres - Admin'!$B$3,IF($B$2='Paramètres - Admin'!$B$4,TEXT(K29,"# 0,00")&" " & 'Paramètres - Admin'!$B$4,IF($B$2='Paramètres - Admin'!$B$5,TEXT(K29/24,"# 0,00")&" " & 'Paramètres - Admin'!$B$5,IF($B$2='Paramètres - Admin'!$B$6,TEXT((K29/24)/30,"# 0,00")&" " & 'Paramètres - Admin'!$B$6,IF(K29/24>=1,INT(K29/24)&" " & 'Paramètres - Admin'!$D$4 & " " & HOUR(K29/24-INT(K29/24))&" " & 'Paramètres - Admin'!$D$3 & " " & MINUTE(K29/24-INT(K29/24))&" " & 'Paramètres - Admin'!$D$2,HOUR(K29/24-INT(K29/24))&" " & 'Paramètres - Admin'!$D$3 & " " & MINUTE(K29/24-INT(K29/24))&" " & 'Paramètres - Admin'!$D$2)))))) -> 0,00 jours

Sheet À Faire - Détails
A1: LVL HdV | C1: Or Total : | F1: Élixir Total : | I1: Élixir Noir Total : | K1: Temps Total : | N1: ='À Faire - Récapitulatif'!Q1 -> Bâtiments : 0,15 jours | R1: => Temps par Ouvrier : | U1: Améliorations de Troupes/Sorts :
A2: =Paramètres!$BN$2 -> 1 | C2: ='À Faire - Récapitulatif'!H2 -> 4 250 | F2: ='À Faire - Récapitulatif'!K2 -> 4 700 | I2: ='À Faire - Récapitulatif'!M2 -> 0 | K2: ='À Faire - Récapitulatif'!O2 -> 0,15 jours | N2: ='À Faire - Récapitulatif'!Q2 -> Héros : 0,00 jours | R2: ='À Faire - Récapitulatif'!T2 -> 0,15 jours | U2: ='À Faire - Récapitulatif'!W2 -> 0,00 jours
A3: Bâtiments de Ressources
A4: Mine d'Or | D4: Max | E4: Max + | G4: Actuel | H4: À Faire | I4: Améliorations | J4: Extracteur d'Élixir | M4: Max | N4: Max + | P4: Actuel | Q4: À Faire | R4: Améliorations | S4: Foreuse d'Élixir Noir | V4: Max | W4: Max + | Y4: Actuel | Z4: À Faire | AA4: Améliorations
D5: =VLOOKUP($A$2,AVAILABLE_Buildings_Resource[#All],MATCH(A4,AVAILABLE_Buildings_Resource[#Headers],0)) -> 1 | E5: =VLOOKUP($A$2,AVAILABLE_Buildings_Resource[#All],MATCH(A4,AVAILABLE_Buildings_Resource[#Headers],0)+1) -> 2 | G5: =IF(SUM(B7:B18)>D5,"Error",SUM(B7:B18)) -> 0 | H5: =IF(G$5="Error","Error",D5-G5) -> 1 | I5: =IF(G$5="Error","Error",SUM(D7:D18)) -> 2 | M5: =VLOOKUP($A$2,AVAILABLE_Buildings_Resource[#All],MATCH(J4,AVAILABLE_Buildings_Resource[#Headers],0)) -> 1 | N5: =VLOOKUP($A$2,AVAILABLE_Buildings_Resource[#All],MATCH(J4,AVAILABLE_Buildings_Resource[#Headers],0)+1) -> 2 | P5: =IF(SUM(K7:K18)>M5,"Error",SUM(K7:K18)) -> 0 | Q5: =IF(P$5="Error","Error",M5-P5) -> 1 | R5: =IF(P$5="Error","Error",SUM(M7:M18)) -> 2 | V5: =VLOOKUP($A$2,AVAILABLE_Buildings_Resource[#All],MATCH(S4,AVAILABLE_Buildings_Resource[#Headers],0)) -> 0 | W5: =VLOOKUP($A$2,AVAILABLE_Buildings_Resource[#All],MATCH(S4,AVAILABLE_Buildings_Resource[#Headers],0)+1) -> 0 | Y5: =IF(SUM(T7:T12)>V5,"Error",SUM(T7:T12)) -> 0 | Z5: =IF(Y$5="Error","Error",V5-Y5) -> 0 | AA5: =IF(Y$5="Error","Error",SUM(V7:V12)) -> 0
A6: + | B6: NB | D6: NB | E6: + | F6: Coût | G6: Temps | H6: Coût Total | I6: Temps Total | J6: + | K6: NB | M6: NB | N6: + | O6: Coût | P6: Temps | Q6: Coût Total | R6: Temps Total | S6: + | T6: NB | V6: NB | W6: + | X6: Coût | Y6: Temps | Z6: Coût Total | AA6: Temps Total
A7: 1 | B7: =IF(Paramètres!B6=0,"",Paramètres!B6) ->  | C7: =IF(C6<>0,C6+IF(AND(B6<>"",A6<E$5),B6,0),IF(AND(B6<>"",A6<E$5),B6,0)) -> 0 | D7: =IF(E7<>"/",IF(G$5="Error","Error",$H$5+C7),"/") -> 1 | E7: =IF(G$5="Error","Error",IF(AND($E$5<>"/",$E$5>'Paramètres - Admin'!$A2),'Paramètres - Admin'!$A3,"/")) -> 1 | F7: =IF(E7<>"/",VLOOKUP(E7,COSTS_Gold_Mine[#All],2),"/") -> 150 | G7: =IF(E7<>"/",VLOOKUP(E7,COSTS_Gold_Mine[#All],3),"/") -> 0.01666666667 | H7: =IF(G$5="Error","Error",IF(F7<>"/",D7*F7,0)) -> 150 | I7: =IF(G$5="Error","Error",IF(G7<>"/",D7*G7,0)) -> 0.01666666667 | J7: 1 | K7: =IF(Paramètres!C6=0,"",Paramètres!C6) ->  | L7: =IF(L6<>0,L6+IF(AND(K6<>"",J6<N$5),K6,0),IF(AND(K6<>"",J6<N$5),K6,0)) -> 0 | M7: =IF(N7<>"/",IF(P$5="Error","Error",$Q$5+L7),"/") -> 1 | N7: =IF(P$5="Error","Error",IF(AND($N$5<>"/",$N$5>'Paramètres - Admin'!$A2),'Paramètres - Admin'!$A3,"/")) -> 1 | O7: =IF(N7<>"/",VLOOKUP(N7,COSTS_Elixir_Collector[#All],2),"/") -> 150 | P7: =IF(N7<>"/",VLOOKUP(N7,COSTS_Elixir_Collector[#All],3),"/") -> 0.01666666667 | Q7: =IF(P$5="Error","Error",IF(O7<>"/",M7*O7,0)) -> 150 | R7: =IF(P$5="Error","Error",IF(P7<>"/",M7*P7,0)) -> 0.01666666667 | S7: 1 | T7: =IF(Paramètres!D6=0,"",Paramètres!D6) ->  | U7: =IF(U6<>0,U6+IF(AND(T6<>"",S6<W$5),T6,0),IF(AND(T6<>"",S6<W$5),T6,0)) -> 0 | V7: =IF(W7<>"/",IF(Y$5="Error","Error",$Z$5+U7),"/") -> / | W7: =IF(Y$5="Error","Error",IF(AND($W$5<>"/",$W$5>'Paramètres - Admin'!$A2),'Paramètres - Admin'!$A3,"/")) -> / | X7: =IF(W7<>"/",VLOOKUP(W7,COSTS_Dark_Elixir_Drill[#All],2),"/") -> / | Y7: =IF(W7<>"/",VLOOKUP(W7,COSTS_Dark_Elixir_Drill[#All],3),"/") -> / | Z7: =IF(Y$5="Error","Error",IF(X7<>"/",V7*X7,0)) -> 0 | AA7: =IF(Y$5="Error","Error",IF(Y7<>"/",V7*Y7,0)) -> 0
A8: 2 | B8: =IF(Paramètres!B7=0,"",Paramètres!B7) ->  | C8: =IF(C7<>0,C7+IF(AND(B7<>"",A7<E$5),B7,0),IF(AND(B7<>"",A7<E$5),B7,0)) -> 0 | D8: 1 | E8: =IF(G$5="Error","Error",IF(AND($E$5<>"/",$E$5>'Paramètres - Admin'!$A3),'Paramètres - Admin'!$A4,"/")) -> 2 | F8: =IF(E8<>"/",VLOOKUP(E8,COSTS_Gold_Mine[#All],2),"/") -> 300 | G8: =IF(E8<>"/",VLOOKUP(E8,COSTS_Gold_Mine[#All],3),"/") -> 0.08333333333 | H8: 300 | I8: 0.08333333333 | J8: 2 | K8: =IF(Paramètres!C7=0,"",Paramètres!C7) ->  | L8: =IF(L7<>0,L7+IF(AND(K7<>"",J7<N$5),K7,0),IF(AND(K7<>"",J7<N$5),K7,0)) -> 0 | M8: 1 | N8: =IF(P$5="Error","Error",IF(AND($N$5<>"/",$N$5>'Paramètres - Admin'!$A3),'Paramètres - Admin'!$A4,"/")) -> 2 | O8: =IF(N8<>"/",VLOOKUP(N8,COSTS_Elixir_Collector[#All],2),"/") -> 300 | P8: =IF(N8<>"/",VLOOKUP(N8,COSTS_Elixir_Collector[#All],3),"/") -> 0.08333333333 | Q8: 300 | R8: 0.08333333333 | S8: 2 | T8: =IF(Paramètres!D7=0,"",Paramètres!D7) ->  | U8: 0 | V8: / | W8: =IF(Y$5="Error","Error",IF(AND($W$5<>"/",$W$5>'Paramètres - Admin'!$A3),'Paramètres - Admin'!$A4,"/")) -> / | X8: =IF(W8<>"/",VLOOKUP(W8,COSTS_Dark_Elixir_Drill[#All],2),"/") -> / | Y8: =IF(W8<>"/",VLOOKUP(W8,COSTS_Dark_Elixir_Drill[#All],3),"/") -> / | Z8: 0 | AA8: 0
A9: 3 | B9: =IF(Paramètres!B8=0,"",Paramètres!B8) ->  | C9: 0 | D9: / | E9: =IF(G$5="Error","Error",IF(AND($E$5<>"/",$E$5>'Paramètres - Admin'!$A4),'Paramètres - Admin'!$A5,"/")) -> / | F9: =IF(E9<>"/",VLOOKUP(E9,COSTS_Gold_Mine[#All],2),"/") -> / | G9: =IF(E9<>"/",VLOOKUP(E9,COSTS_Gold_Mine[#All],3),"/") -> / | H9: 0 | I9: 0 | J9: 3 | K9: =IF(Paramètres!C8=0,"",Paramètres!C8) ->  | L9: 0 | M9: / | N9: =IF(P$5="Error","Error",IF(AND($N$5<>"/",$N$5>'Paramètres - Admin'!$A4),'Paramètres - Admin'!$A5,"/")) -> / | O9: =IF(N9<>"/",VLOOKUP(N9,COSTS_Elixir_Collector[#All],2),"/") -> / | P9: =IF(N9<>"/",VLOOKUP(N9,COSTS_Elixir_Collector[#All],3),"/") -> / | Q9: 0 | R9: 0 | S9: 3 | T9: =IF(Paramètres!D8=0,"",Paramètres!D8) ->  | U9: 0 | V9: / | W9: =IF(Y$5="Error","Error",IF(AND($W$5<>"/",$W$5>'Paramètres - Admin'!$A4),'Paramètres - Admin'!$A5,"/")) -> / | X9: =IF(W9<>"/",VLOOKUP(W9,COSTS_Dark_Elixir_Drill[#All],2),"/") -> / | Y9: =IF(W9<>"/",VLOOKUP(W9,COSTS_Dark_Elixir_Drill[#All],3),"/") -> / | Z9: 0 | AA9: 0
A10: 4 | B10: =IF(Paramètres!B9=0,"",Paramètres!B9) ->  | C10: 0 | D10: / | E10: =IF(G$5="Error","Error",IF(AND($E$5<>"/",$E$5>'Paramètres - Admin'!$A5),'Paramètres - Admin'!$A6,"/")) -> / | F10: =IF(E10<>"/",VLOOKUP(E10,COSTS_Gold_Mine[#All],2),"/") -> / | G10: =IF(E10<>"/",VLOOKUP(E10,COSTS_Gold_Mine[#All],3),"/") -> / | H10: 0 | I10: 0 | J10: 4 | K10: =IF(Paramètres!C9=0,"",Paramètres!C9) ->  | L10: 0 | M10: / | N10: =IF(P$5="Error","Error",IF(AND($N$5<>"/",$N$5>'Paramètres - Admin'!$A5),'Paramètres - Admin'!$A6,"/")) -> / | O10: =IF(N10<>"/",VLOOKUP(N10,COSTS_Elixir_Collector[#All],2),"/") -> / | P10: =IF(N10<>"/",VLOOKUP(N10,COSTS_Elixir_Collector[#All],3),"/") -> / | Q10: 0 | R10: 0 | S10: 4 | T10: =IF(Paramètres!D9=0,"",Paramètres!D9) ->  | U10: 0 | V10: / | W10: =IF(Y$5="Error","Error",IF(AND($W$5<>"/",$W$5>'Paramètres - Admin'!$A5),'Paramètres - Admin'!$A6,"/")) -> / | X10: =IF(W10<>"/",VLOOKUP(W10,COSTS_Dark_Elixir_Drill[#All],2),"/") -> / | Y10: =IF(W10<>"/",VLOOKUP(W10,COSTS_Dark_Elixir_Drill[#All],3),"/") -> / | Z10: 0 | AA10: 0
A11: 5 | B11: =IF(Paramètres!B10=0,"",Paramètres!B10) ->  | C11: 0 | D11: / | E11: =IF(G$5="Error","Error",IF(AND($E$5<>"/",$E$5>'Paramètres - Admin'!$A6),'Paramètres - Admin'!$A7,"/")) -> / | F11: =IF(E11<>"/",VLOOKUP(E11,COSTS_Gold_Mine[#All],2),"/") -> / | G11: =IF(E11<>"/",VLOOKUP(E11,COSTS_Gold_Mine[#All],3),"/") -> / | H11: 0 | I11: 0 | J11: 5 | K11: =IF(Paramètres!C10=0,"",Paramètres!C10) ->  | L11: 0 | M11: / | N11: =IF(P$5="Error","Error",IF(AND($N$5<>"/",$N$5>'Paramètres - Admin'!$A6),'Paramètres - Admin'!$A7,"/")) -> / | O11: =IF(N11<>"/",VLOOKUP(N11,COSTS_Elixir_Collector[#All],2),"/") -> / | P11: =IF(N11<>"/",VLOOKUP(N11,COSTS_Elixir_Collector[#All],3),"/") -> / | Q11: 0 | R11: 0 | S11: 5 | T11: =IF(Paramètres!D10=0,"",Paramètres!D10) ->  | U11: 0 | V11: / | W11: =IF(Y$5="Error","Error",IF(AND($W$5<>"/",$W$5>'Paramètres - Admin'!$A6),'Paramètres - Admin'!$A7,"/")) -> / | X11: =IF(W11<>"/",VLOOKUP(W11,COSTS_Dark_Elixir_Drill[#All],2),"/") -> / | Y11: =IF(W11<>"/",VLOOKUP(W11,COSTS_Dark_Elixir_Drill[#All],3),"/") -> / | Z11: 0 | AA11: 0
A12: 6 | B12: =IF(Paramètres!B11=0,"",Paramètres!B11) ->  | C12: 0 | D12: / | E12: =IF(G$5="Error","Error",IF(AND($E$5<>"/",$E$5>'Paramètres - Admin'!$A7),'Paramètres - Admin'!$A8,"/")) -> / | F12: =IF(E12<>"/",VLOOKUP(E12,COSTS_Gold_Mine[#All],2),"/") -> / | G12: =IF(E12<>"/",VLOOKUP(E12,COSTS_Gold_Mine[#All],3),"/") -> / | H12: 0 | I12: 0 | J12: 6 | K12: =IF(Paramètres!C11=0,"",Paramètres!C11) ->  | L12: 0 | M12: / | N12: =IF(P$5="Error","Error",IF(AND($N$5<>"/",$N$5>'Paramètres - Admin'!$A7),'Paramètres - Admin'!$A8,"/")) -> / | O12: =IF(N12<>"/",VLOOKUP(N12,COSTS_Elixir_Collector[#All],2),"/") -> / | P12: =IF(N12<>"/",VLOOKUP(N12,COSTS_Elixir_Collector[#All],3),"/") -> / | Q12: 0 | R12: 0 | S12: 6 | T12: =IF(Paramètres!D11=0,"",Paramètres!D11) ->  | U12: 0 | V12: / | W12: =IF(Y$5="Error","Error",IF(AND($W$5<>"/",$W$5>'Paramètres - Admin'!$A7),'Paramètres - Admin'!$A8,"/")) -> / | X12: =IF(W12<>"/",VLOOKUP(W12,COSTS_Dark_Elixir_Drill[#All],2),"/") -> / | Y12: =IF(W12<>"/",VLOOKUP(W12,COSTS_Dark_Elixir_Drill[#All],3),"/") -> / | Z12: 0 | AA12: 0
A13: 7 | B13: =IF(Paramètres!B12=0,"",Paramètres!B12) ->  | C13: 0 | D13: / | E13: =IF(G$5="Error","Error",IF(AND($E$5<>"/",$E$5>'Paramètres - Admin'!$A8),'Paramètres - Admin'!$A9,"/")) -> / | F13: =IF(E13<>"/",VLOOKUP(E13,COSTS_Gold_Mine[#All],2),"/") -> / | G13: =IF(E13<>"/",VLOOKUP(E13,COSTS_Gold_Mine[#All],3),"/") -> / | H13: 0 | I13: 0 | J13: 7 | K13: =IF(Paramètres!C12=0,"",Paramètres!C12) ->  | L13: 0 | M13: / | N13: =IF(P$5="Error","Error",IF(AND($N$5<>"/",$N$5>'Paramètres - Admin'!$A8),'Paramètres - Admin'!$A9,"/")) -> / | O13: =IF(N13<>"/",VLOOKUP(N13,COSTS_Elixir_Collector[#All],2),"/") -> / | P13: =IF(N13<>"/",VLOOKUP(N13,COSTS_Elixir_Collector[#All],3),"/") -> / | Q13: 0 | R13: 0 | Y13: Total | Z13: =IF(Y$5="Error","Error",SUM(Z7:Z12)) -> 0 | AA13: =IF(Y$5="Error","Error",SUM(AA7:AA12)) -> 0
A14: 8 | B14: =IF(Paramètres!B13=0,"",Paramètres!B13) ->  | C14: 0 | D14: / | E14: =IF(G$5="Error","Error",IF(AND($E$5<>"/",$E$5>'Paramètres - Admin'!$A9),'Paramètres - Admin'!$A10,"/")) -> / | F14: =IF(E14<>"/",VLOOKUP(E14,COSTS_Gold_Mine[#All],2),"/") -> / | G14: =IF(E14<>"/",VLOOKUP(E14,COSTS_Gold_Mine[#All],3),"/") -> / | H14: 0 | I14: 0 | J14: 8 | K14: =IF(Paramètres!C13=0,"",Paramètres!C13) ->  | L14: 0 | M14: / | N14: =IF(P$5="Error","Error",IF(AND($N$5<>"/",$N$5>'Paramètres - Admin'!$A9),'Paramètres - Admin'!$A10,"/")) -> / | O14: =IF(N14<>"/",VLOOKUP(N14,COSTS_Elixir_Collector[#All],2),"/") -> / | P14: =IF(N14<>"/",VLOOKUP(N14,COSTS_Elixir_Collector[#All],3),"/") -> / | Q14: 0 | R14: 0
A15: 9 | B15: =IF(Paramètres!B14=0,"",Paramètres!B14) ->  | C15: 0 | D15: / | E15: =IF(G$5="Error","Error",IF(AND($E$5<>"/",$E$5>'Paramètres - Admin'!$A10),'Paramètres - Admin'!$A11,"/")) -> / | F15: =IF(E15<>"/",VLOOKUP(E15,COSTS_Gold_Mine[#All],2),"/") -> / | G15: =IF(E15<>"/",VLOOKUP(E15,COSTS_Gold_Mine[#All],3),"/") -> / | H15: 0 | I15: 0 | J15: 9 | K15: =IF(Paramètres!C14=0,"",Paramètres!C14) ->  | L15: 0 | M15: / | N15: =IF(P$5="Error","Error",IF(AND($N$5<>"/",$N$5>'Paramètres - Admin'!$A10),'Paramètres - Admin'!$A11,"/")) -> / | O15: =IF(N15<>"/",VLOOKUP(N15,COSTS_Elixir_Collector[#All],2),"/") -> / | P15: =IF(N15<>"/",VLOOKUP(N15,COSTS_Elixir_Collector[#All],3),"/") -> / | Q15: 0 | R15: 0
A16: 10 | B16: =IF(Paramètres!B15=0,"",Paramètres!B15) ->  | C16: 0 | D16: / | E16: =IF(G$5="Error","Error",IF(AND($E$5<>"/",$E$5>'Paramètres - Admin'!$A11),'Paramètres - Admin'!$A12,"/")) -> / | F16: =IF(E16<>"/",VLOOKUP(E16,COSTS_Gold_Mine[#All],2),"/") -> / | G16: =IF(E16<>"/",VLOOKUP(E16,COSTS_Gold_Mine[#All],3),"/") -> / | H16: 0 | I16: 0 | J16: 10 | K16: =IF(Paramètres!C15=0,"",Paramètres!C15) ->  | L16: 0 | M16: / | N16: =IF(P$5="Error","Error",IF(AND($N$5<>"/",$N$5>'Paramètres - Admin'!$A11),'Paramètres - Admin'!$A12,"/")) -> / | O16: =IF(N16<>"/",VLOOKUP(N16,COSTS_Elixir_Collector[#All],2),"/") -> / | P16: =IF(N16<>"/",VLOOKUP(N16,COSTS_Elixir_Collector[#All],3),"/") -> / | Q16: 0 | R16: 0
A17: 11 | B17: =IF(Paramètres!B16=0,"",Paramètres!B16) ->  | C17: 0 | D17: / | E17: =IF(G$5="Error","Error",IF(AND($E$5<>"/",$E$5>'Paramètres - Admin'!$A12),'Paramètres - Admin'!$A13,"/")) -> / | F17: =IF(E17<>"/",VLOOKUP(E17,COSTS_Gold_Mine[#All],2),"/") -> / | G17: =IF(E17<>"/",VLOOKUP(E17,COSTS_Gold_Mine[#All],3),"/") -> / | H17: 0 | I17: 0 | J17: 11 | K17: =IF(Paramètres!C16=0,"",Paramètres!C16) ->  | L17: =IF(L16<>0,L16+IF(AND(K16<>"",J16<N$5),K16,0),IF(AND(K16<>"",J16<N$5),K16,0)) -> 0 | M17: / | N17: =IF(P$5="Error","Error",IF(AND($N$5<>"/",$N$5>'Paramètres - Admin'!$A12),'Paramètres - Admin'!$A13,"/")) -> / | O17: =IF(N17<>"/",VLOOKUP(N17,COSTS_Elixir_Collector[#All],2),"/") -> / | P17: =IF(N17<>"/",VLOOKUP(N17,COSTS_Elixir_Collector[#All],3),"/") -> / | Q17: 0 | R17: 0
A18: 12 | B18: =IF(Paramètres!B17=0,"",Paramètres!B17) ->  | C18: =IF(C17<>0,C17+IF(AND(B17<>"",A17<E$5),B17,0),IF(AND(B17<>"",A17<E$5),B17,0)) -> 0 | D18: / | E18: =IF(G$5="Error","Error",IF(AND($E$5<>"/",$E$5>'Paramètres - Admin'!$A13),'Paramètres - Admin'!$A14,"/")) -> / | F18: =IF(E18<>"/",VLOOKUP(E18,COSTS_Gold_Mine[#All],2),"/") -> / | G18: =IF(E18<>"/",VLOOKUP(E18,COSTS_Gold_Mine[#All],3),"/") -> / | H18: 0 | I18: 0 | J18: 12 | K18: =IF(Paramètres!C17=0,"",Paramètres!C17) ->  | L18: =IF(L17<>0,L17+IF(AND(K17<>"",J17<N$5),K17,0),IF(AND(K17<>"",J17<N$5),K17,0)) -> 0 | M18: / | N18: =IF(P$5="Error","Error",IF(AND($N$5<>"/",$N$5>'Paramètres - Admin'!$A13),'Paramètres - Admin'!$A14,"/")) -> / | O18: =IF(N18<>"/",VLOOKUP(N18,COSTS_Elixir_Collector[#All],2),"/") -> / | P18: =IF(N18<>"/",VLOOKUP(N18,COSTS_Elixir_Collector[#All],3),"/") -> / | Q18: 0 | R18: 0
G19: Total | H19: =IF(G$5="Error","Error",SUM(H7:H18)) -> 450 | I19: =IF(G$5="Error","Error",SUM(I7:I18)) -> 0.1 | P19: Total | Q19: =IF(P$5="Error","Error",SUM(Q7:Q18)) -> 450 | R19: =IF(P$5="Error","Error",SUM(R7:R18)) -> 0.1
A20: Réserve d'Or | D20: Max | E20: Max + | G20: Actuel | H20: À Faire | I20: Améliorations | J20: Réservoir d'Élixir | M20: Max | N20: Max + | P20: Actuel | Q20: À Faire | R20: Améliorations | S20: Réservoir d'Élixir Noir | V20: Max | W20: Max + | Y20: Actuel | Z20: À Faire | AA20: Améliorations
D21: =VLOOKUP($A$2,AVAILABLE_Buildings_Resource[#All],MATCH(A20,AVAILABLE_Buildings_Resource[#Headers],0)) -> 1 | E21: =VLOOKUP($A$2,AVAILABLE_Buildings_Resource[#All],MATCH(A20,AVAILABLE_Buildings_Resource[#Headers],0)+1) -> 1 | G21: =IF(SUM(B23:B34)>D21,"Error",SUM(B23:B34)) -> 0 | H21: =IF(G$21="Error","Error",D21-G21) -> 1 | I21: =IF(G$21="Error","Error",SUM(D23:D34)) -> 1 | M21: =VLOOKUP($A$2,AVAILABLE_Buildings_Resource[#All],MATCH(J20,AVAILABLE_Buildings_Resource[#Headers],0)) -> 1 | N21: =VLOOKUP($A$2,AVAILABLE_Buildings_Resource[#All],MATCH(J20,AVAILABLE_Buildings_Resource[#Headers],0)+1) -> 1 | P21: =IF(SUM(K23:K34)>M21,"Error",SUM(K23:K34)) -> 0 | Q21: =IF(P$21="Error","Error",M21-P21) -> 1 | R21: =IF(P$21="Error","Error",SUM(M23:M34)) -> 1 | V21: =VLOOKUP($A$2,AVAILABLE_Buildings_Resource[#All],MATCH(S20,AVAILABLE_Buildings_Resource[#Headers],0)) -> 0 | W21: =VLOOKUP($A$2,AVAILABLE_Buildings_Resource[#All],MATCH(S20,AVAILABLE_Buildings_Resource[#Headers],0)+1) -> 0 | Y21: =IF(SUM(T23:T28)>V21,"Error",SUM(T23:T28)) -> 0 | Z21: =IF(Y$21="Error","Error",V21-Y21) -> 0 | AA21: =IF(Y$21="Error","Error",SUM(V23:V28)) -> 0
A22: + | B22: NB | D22: NB | E22: + | F22: Coût | G22: Temps | H22: Coût Total | I22: Temps Total | J22: + | K22: NB | M22: NB | N22: + | O22: Coût | P22: Temps | Q22: Coût Total | R22: Temps Total | S22: + | T22: NB | V22: NB | W22: + | X22: Coût | Y22: Temps | Z22: Coût Total | AA22: Temps Total
A23: 1 | B23: =IF(Paramètres!E6=0,"",Paramètres!E6) ->  | C23: =IF(C22<>0,C22+IF(AND(B22<>"",A22<E$21),B22,0),IF(AND(B22<>"",A22<E$21),B22,0)) -> 0 | D23: =IF(E23<>"/",IF(G$21="Error","Error",$H$21+C23),"/") -> 1 | E23: =IF(G$21="Error","Error",IF(AND($E$21<>"/",$E$21>'Paramètres - Admin'!$A2),'Paramètres - Admin'!$A3,"/")) -> 1 | F23: =IF(E23<>"/",VLOOKUP(E23,COSTS_Gold_Storage[#All],2),"/") -> 300 | G23: =IF(E23<>"/",VLOOKUP(E23,COSTS_Gold_Storage[#All],3),"/") -> 0.25 | H23: =IF(G$21="Error","Error",IF(F23<>"/",D23*F23,0)) -> 300 | I23: =IF(G$21="Error","Error",IF(G23<>"/",D23*G23,0)) -> 0.25 | J23: 1 | K23: =IF(Paramètres!F6=0,"",Paramètres!F6) ->  | L23: =IF(L22<>0,L22+IF(AND(K22<>"",J22<N$21),K22,0),IF(AND(K22<>"",J22<N$21),K22,0)) -> 0 | M23: =IF(N23<>"/",IF(P$21="Error","Error",$Q$21+L23),"/") -> 1 | N23: =IF(P$21="Error","Error",IF(AND($N$21<>"/",$N$21>'Paramètres - Admin'!$A2),'Paramètres - Admin'!$A3,"/")) -> 1 | O23: =IF(N23<>"/",VLOOKUP(N23,COSTS_Elixir_Storage[#All],2),"/") -> 300 | P23: =IF(N23<>"/",VLOOKUP(N23,COSTS_Elixir_Storage[#All],3),"/") -> 0.25 | Q23: =IF(P$21="Error","Error",IF(O23<>"/",M23*O23,0)) -> 300 | R23: =IF(P$21="Error","Error",IF(P23<>"/",M23*P23,0)) -> 0.25 | S23: 1 | T23: =IF(Paramètres!G6=0,"",Paramètres!G6) ->  | U23: =IF(U22<>0,U22+IF(AND(T22<>"",S22<W$21),T22,0),IF(AND(T22<>"",S22<W$21),T22,0)) -> 0 | V23: =IF(W23<>"/",IF(Y$21="Error","Error",$Z$21+U23),"/") -> / | W23: =IF(Y$21="Error","Error",IF(AND($W$21<>"/",$W$21>'Paramètres - Admin'!$A2),'Paramètres - Admin'!$A3,"/")) -> / | X23: =IF(W23<>"/",VLOOKUP(W23,COSTS_Dark_Elixir_Storage[#All],2),"/") -> / | Y23: =IF(W23<>"/",VLOOKUP(W23,COSTS_Dark_Elixir_Storage[#All],3),"/") -> / | Z23: =IF(Y$21="Error","Error",IF(X23<>"/",V23*X23,0)) -> 0 | AA23: =IF(Y$21="Error","Error",IF(Y23<>"/",V23*Y23,0)) -> 0
A24: 2 | B24: =IF(Paramètres!E7=0,"",Paramètres!E7) ->  | C24: 0 | D24: / | E24: =IF(G$21="Error","Error",IF(AND($E$21<>"/",$E$21>'Paramètres - Admin'!$A3),'Paramètres - Admin'!$A4,"/")) -> / | F24: =IF(E24<>"/",VLOOKUP(E24,COSTS_Gold_Storage[#All],2),"/") -> / | G24: =IF(E24<>"/",VLOOKUP(E24,COSTS_Gold_Storage[#All],3),"/") -> / | H24: 0 | I24: 0 | J24: 2 | K24: =IF(Paramètres!F7=0,"",Paramètres!F7) ->  | L24: =IF(L23<>0,L23+IF(AND(K23<>"",J23<N$21),K23,0),IF(AND(K23<>"",J23<N$21),K23,0)) -> 0 | M24: / | N24: =IF(P$21="Error","Error",IF(AND($N$21<>"/",$N$21>'Paramètres - Admin'!$A3),'Paramètres - Admin'!$A4,"/")) -> / | O24: =IF(N24<>"/",VLOOKUP(N24,COSTS_Elixir_Storage[#All],2),"/") -> / | P24: =IF(N24<>"/",VLOOKUP(N24,COSTS_Elixir_Storage[#All],3),"/") -> / | Q24: 0 | R24: 0 | S24: 2 | T24: =IF(Paramètres!G7=0,"",Paramètres!G7) ->  | U24: 0 | V24: / | W24: =IF(Y$21="Error","Error",IF(AND($W$21<>"/",$W$21>'Paramètres - Admin'!$A3),'Paramètres - Admin'!$A4,"/")) -> / | X24: =IF(W24<>"/",VLOOKUP(W24,COSTS_Dark_Elixir_Storage[#All],2),"/") -> / | Y24: =IF(W24<>"/",VLOOKUP(W24,COSTS_Dark_Elixir_Storage[#All],3),"/") -> / | Z24: 0 | AA24: 0
A25: 3 | B25: =IF(Paramètres!E8=0,"",Paramètres!E8) ->  | C25: 0 | D25: / | E25: =IF(G$21="Error","Error",IF(AND($E$21<>"/",$E$21>'Paramètres - Admin'!$A4),'Paramètres - Admin'!$A5,"/")) -> / | F25: =IF(E25<>"/",VLOOKUP(E25,COSTS_Gold_Storage[#All],2),"/") -> / | G25: =IF(E25<>"/",VLOOKUP(E25,COSTS_Gold_Storage[#All],3),"/") -> / | H25: 0 | I25: 0 | J25: 3 | K25: =IF(Paramètres!F8=0,"",Paramètres!F8) ->  | L25: 0 | M25: / | N25: =IF(P$21="Error","Error",IF(AND($N$21<>"/",$N$21>'Paramètres - Admin'!$A4),'Paramètres - Admin'!$A5,"/")) -> / | O25: =IF(N25<>"/",VLOOKUP(N25,COSTS_Elixir_Storage[#All],2),"/") -> / | P25: =IF(N25<>"/",VLOOKUP(N25,COSTS_Elixir_Storage[#All],3),"/") -> / | Q25: 0 | R25: 0 | S25: 3 | T25: =IF(Paramètres!G8=0,"",Paramètres!G8) ->  | U25: 0 | V25: / | W25: =IF(Y$21="Error","Error",IF(AND($W$21<>"/",$W$21>'Paramètres - Admin'!$A4),'Paramètres - Admin'!$A5,"/")) -> / | X25: =IF(W25<>"/",VLOOKUP(W25,COSTS_Dark_Elixir_Storage[#All],2),"/") -> / | Y25: =IF(W25<>"/",VLOOKUP(W25,COSTS_Dark_Elixir_Storage[#All],3),"/") -> / | Z25: 0 | AA25: 0
A26: 4 | B26: =IF(Paramètres!E9=0,"",Paramètres!E9) ->  | C26: 0 | D26: / | E26: =IF(G$21="Error","Error",IF(AND($E$21<>"/",$E$21>'Paramètres - Admin'!$A5),'Paramètres - Admin'!$A6,"/")) -> / | F26: =IF(E26<>"/",VLOOKUP(E26,COSTS_Gold_Storage[#All],2),"/") -> / | G26: =IF(E26<>"/",VLOOKUP(E26,COSTS_Gold_Storage[#All],3),"/") -> / | H26: 0 | I26: 0 | J26: 4 | K26: =IF(Paramètres!F9=0,"",Paramètres!F9) ->  | L26: 0 | M26: / | N26: =IF(P$21="Error","Error",IF(AND($N$21<>"/",$N$21>'Paramètres - Admin'!$A5),'Paramètres - Admin'!$A6,"/")) -> / | O26: =IF(N26<>"/",VLOOKUP(N26,COSTS_Elixir_Storage[#All],2),"/") -> / | P26: =IF(N26<>"/",VLOOKUP(N26,COSTS_Elixir_Storage[#All],3),"/") -> / | Q26: 0 | R26: 0 | S26: 4 | T26: =IF(Paramètres!G9=0,"",Paramètres!G9) ->  | U26: 0 | V26: / | W26: =IF(Y$21="Error","Error",IF(AND($W$21<>"/",$W$21>'Paramètres - Admin'!$A5),'Paramètres - Admin'!$A6,"/")) -> / | X26: =IF(W26<>"/",VLOOKUP(W26,COSTS_Dark_Elixir_Storage[#All],2),"/") -> / | Y26: =IF(W26<>"/",VLOOKUP(W26,COSTS_Dark_Elixir_Storage[#All],3),"/") -> / | Z26: 0 | AA26: 0
A27: 5 | B27: =IF(Paramètres!E10=0,"",Paramètres!E10) ->  | C27: 0 | D27: / | E27: =IF(G$21="Error","Error",IF(AND($E$21<>"/",$E$21>'Paramètres - Admin'!$A6),'Paramètres - Admin'!$A7,"/")) -> / | F27: =IF(E27<>"/",VLOOKUP(E27,COSTS_Gold_Storage[#All],2),"/") -> / | G27: =IF(E27<>"/",VLOOKUP(E27,COSTS_Gold_Storage[#All],3),"/") -> / | H27: 0 | I27: 0 | J27: 5 | K27: =IF(Paramètres!F10=0,"",Paramètres!F10) ->  | L27: 0 | M27: / | N27: =IF(P$21="Error","Error",IF(AND($N$21<>"/",$N$21>'Paramètres - Admin'!$A6),'Paramètres - Admin'!$A7,"/")) -> / | O27: =IF(N27<>"/",VLOOKUP(N27,COSTS_Elixir_Storage[#All],2),"/") -> / | P27: =IF(N27<>"/",VLOOKUP(N27,COSTS_Elixir_Storage[#All],3),"/") -> / | Q27: 0 | R27: 0 | S27: 5 | T27: =IF(Paramètres!G10=0,"",Paramètres!G10) ->  | U27: 0 | V27: / | W27: =IF(Y$21="Error","Error",IF(AND($W$21<>"/",$W$21>'Paramètres - Admin'!$A6),'Paramètres - Admin'!$A7,"/")) -> / | X27: =IF(W27<>"/",VLOOKUP(W27,COSTS_Dark_Elixir_Storage[#All],2),"/") -> / | Y27: =IF(W27<>"/",VLOOKUP(W27,COSTS_Dark_Elixir_Storage[#All],3),"/") -> / | Z27: 0 | AA27: 0
A28: 6 | B28: =IF(Paramètres!E11=0,"",Paramètres!E11) ->  | C28: 0 | D28: / | E28: =IF(G$21="Error","Error",IF(AND($E$21<>"/",$E$21>'Paramètres - Admin'!$A7),'Paramètres - Admin'!$A8,"/")) -> / | F28: =IF(E28<>"/",VLOOKUP(E28,COSTS_Gold_Storage[#All],2),"/") -> / | G28: =IF(E28<>"/",VLOOKUP(E28,COSTS_Gold_Storage[#All],3),"/") -> / | H28: 0 | I28: 0 | J28: 6 | K28: =IF(Paramètres!F11=0,"",Paramètres!F11) ->  | L28: 0 | M28: / | N28: =IF(P$21="Error","Error",IF(AND($N$21<>"/",$N$21>'Paramètres - Admin'!$A7),'Paramètres - Admin'!$A8,"/")) -> / | O28: =IF(N28<>"/",VLOOKUP(N28,COSTS_Elixir_Storage[#All],2),"/") -> / | P28: =IF(N28<>"/",VLOOKUP(N28,COSTS_Elixir_Storage[#All],3),"/") -> / | Q28: 0 | R28: 0 | S28: 6 | T28: =IF(Paramètres!G11=0,"",Paramètres!G11) ->  | U28: 0 | V28: / | W28: =IF(Y$21="Error","Error",IF(AND($W$21<>"/",$W$21>'Paramètres - Admin'!$A7),'Paramètres - Admin'!$A8,"/")) -> / | X28: =IF(W28<>"/",VLOOKUP(W28,COSTS_Dark_Elixir_Storage[#All],2),"/") -> / | Y28: =IF(W28<>"/",VLOOKUP(W28,COSTS_Dark_Elixir_Storage[#All],3),"/") -> / | Z28: 0 | AA28: 0
A29: 7 | B29: =IF(Paramètres!E12=0,"",Paramètres!E12) ->  | C29: 0 | D29: / | E29: =IF(G$21="Error","Error",IF(AND($E$21<>"/",$E$21>'Paramètres - Admin'!$A8),'Paramètres - Admin'!$A9,"/")) -> / | F29: =IF(E29<>"/",VLOOKUP(E29,COSTS_Gold_Storage[#All],2),"/") -> / | G29: =IF(E29<>"/",VLOOKUP(E29,COSTS_Gold_Storage[#All],3),"/") -> / | H29: 0 | I29: 0 | J29: 7 | K29: =IF(Paramètres!F12=0,"",Paramètres!F12) ->  | L29: 0 | M29: / | N29: =IF(P$21="Error","Error",IF(AND($N$21<>"/",$N$21>'Paramètres - Admin'!$A8),'Paramètres - Admin'!$A9,"/")) -> / | O29: =IF(N29<>"/",VLOOKUP(N29,COSTS_Elixir_Storage[#All],2),"/") -> / | P29: =IF(N29<>"/",VLOOKUP(N29,COSTS_Elixir_Storage[#All],3),"/") -> / | Q29: 0 | R29: 0 | Y29: Total | Z29: =IF(Y$21="Error","Error",SUM(Z23:Z28)) -> 0 | AA29: =IF(Y$21="Error","Error",SUM(AA23:AA28)) -> 0
A30: 8 | B30: =IF(Paramètres!E13=0,"",Paramètres!E13) ->  | C30: 0 | D30: / | E30: =IF(G$21="Error","Error",IF(AND($E$21<>"/",$E$21>'Paramètres - Admin'!$A9),'Paramètres - Admin'!$A10,"/")) -> / | F30: =IF(E30<>"/",VLOOKUP(E30,COSTS_Gold_Storage[#All],2),"/") -> / | G30: =IF(E30<>"/",VLOOKUP(E30,COSTS_Gold_Storage[#All],3),"/") -> / | H30: 0 | I30: 0 | J30: 8 | K30: =IF(Paramètres!F13=0,"",Paramètres!F13) ->  | L30: 0 | M30: / | N30: =IF(P$21="Error","Error",IF(AND($N$21<>"/",$N$21>'Paramètres - Admin'!$A9),'Paramètres - Admin'!$A10,"/")) -> / | O30: =IF(N30<>"/",VLOOKUP(N30,COSTS_Elixir_Storage[#All],2),"/") -> / | P30: =IF(N30<>"/",VLOOKUP(N30,COSTS_Elixir_Storage[#All],3),"/") -> / | Q30: 0 | R30: 0
A31: 9 | B31: =IF(Paramètres!E14=0,"",Paramètres!E14) ->  | C31: 0 | D31: / | E31: =IF(G$21="Error","Error",IF(AND($E$21<>"/",$E$21>'Paramètres - Admin'!$A10),'Paramètres - Admin'!$A11,"/")) -> / | F31: =IF(E31<>"/",VLOOKUP(E31,COSTS_Gold_Storage[#All],2),"/") -> / | G31: =IF(E31<>"/",VLOOKUP(E31,COSTS_Gold_Storage[#All],3),"/") -> / | H31: 0 | I31: 0 | J31: 9 | K31: =IF(Paramètres!F14=0,"",Paramètres!F14) ->  | L31: 0 | M31: / | N31: =IF(P$21="Error","Error",IF(AND($N$21<>"/",$N$21>'Paramètres - Admin'!$A10),'Paramètres - Admin'!$A11,"/")) -> / | O31: =IF(N31<>"/",VLOOKUP(N31,COSTS_Elixir_Storage[#All],2),"/") -> / | P31: =IF(N31<>"/",VLOOKUP(N31,COSTS_Elixir_Storage[#All],3),"/") -> / | Q31: 0 | R31: 0
A32: 10 | B32: =IF(Paramètres!E15=0,"",Paramètres!E15) ->  | C32: 0 | D32: / | E32: =IF(G$21="Error","Error",IF(AND($E$21<>"/",$E$21>'Paramètres - Admin'!$A11),'Paramètres - Admin'!$A12,"/")) -> / | F32: =IF(E32<>"/",VLOOKUP(E32,COSTS_Gold_Storage[#All],2),"/") -> / | G32: =IF(E32<>"/",VLOOKUP(E32,COSTS_Gold_Storage[#All],3),"/") -> / | H32: 0 | I32: 0 | J32: 10 | K32: =IF(Paramètres!F15=0,"",Paramètres!F15) ->  | L32: 0 | M32: / | N32: =IF(P$21="Error","Error",IF(AND($N$21<>"/",$N$21>'Paramètres - Admin'!$A11),'Paramètres - Admin'!$A12,"/")) -> / | O32: =IF(N32<>"/",VLOOKUP(N32,COSTS_Elixir_Storage[#All],2),"/") -> / | P32: =IF(N32<>"/",VLOOKUP(N32,COSTS_Elixir_Storage[#All],3),"/") -> / | Q32: 0 | R32: 0
A33: 11 | B33: =IF(Paramètres!E16=0,"",Paramètres!E16) ->  | C33: 0 | D33: / | E33: =IF(G$21="Error","Error",IF(AND($E$21<>"/",$E$21>'Paramètres - Admin'!$A12),'Paramètres - Admin'!$A13,"/")) -> / | F33: =IF(E33<>"/",VLOOKUP(E33,COSTS_Gold_Storage[#All],2),"/") -> / | G33: =IF(E33<>"/",VLOOKUP(E33,COSTS_Gold_Storage[#All],3),"/") -> / | H33: 0 | I33: 0 | J33: 11 | K33: =IF(Paramètres!F16=0,"",Paramètres!F16) ->  | L33: 0 | M33: / | N33: =IF(P$21="Error","Error",IF(AND($N$21<>"/",$N$21>'Paramètres - Admin'!$A12),'Paramètres - Admin'!$A13,"/")) -> / | O33: =IF(N33<>"/",VLOOKUP(N33,COSTS_Elixir_Storage[#All],2),"/") -> / | P33: =IF(N33<>"/",VLOOKUP(N33,COSTS_Elixir_Storage[#All],3),"/") -> / | Q33: 0 | R33: 0
A34: 12 | B34: =IF(Paramètres!E17=0,"",Paramètres!E17) ->  | C34: 0 | D34: / | E34: =IF(G$21="Error","Error",IF(AND($E$21<>"/",$E$21>'Paramètres - Admin'!$A13),'Paramètres - Admin'!$A14,"/")) -> / | F34: =IF(E34<>"/",VLOOKUP(E34,COSTS_Gold_Storage[#All],2),"/") -> / | G34: =IF(E34<>"/",VLOOKUP(E34,COSTS_Gold_Storage[#All],3),"/") -> / | H34: 0 | I34: 0 | J34: 12 | K34: =IF(Paramètres!F17=0,"",Paramètres!F17) ->  | L34: =IF(L33<>0,L33+IF(AND(K33<>"",J33<N$21),K33,0),IF(AND(K33<>"",J33<N$21),K33,0)) -> 0 | M34: / | N34: =IF(P$21="Error","Error",IF(AND($N$21<>"/",$N$21>'Paramètres - Admin'!$A13),'Paramètres - Admin'!$A14,"/")) -> / | O34: =IF(N34<>"/",VLOOKUP(N34,COSTS_Elixir_Storage[#All],2),"/") -> / | P34: =IF(N34<>"/",VLOOKUP(N34,COSTS_Elixir_Storage[#All],3),"/") -> / | Q34: 0 | R34: 0
G35: Total | H35: =IF(G$21="Error","Error",SUM(H23:H33)) -> 300 | I35: =IF(G$21="Error","Error",SUM(I23:I33)) -> 0.25 | P35: Total | Q35: =IF(P$21="Error","Error",SUM(Q23:Q33)) -> 300 | R35: =IF(P$21="Error","Error",SUM(R23:R33)) -> 0.25
A38: Bâtiments d'Armée
A39: Caserne | D39: Max | E39: Max + | G39: Actuel | H39: À Faire | I39: Améliorations | J39: Laboratoire | M39: Max | N39: Max + | P39: Actuel | Q39: À Faire | R39: Améliorations | S39: Camp Militaire | V39: Max | W39: Max + | Y39: Actuel | Z39: À Faire | AA39: Améliorations
D40: =VLOOKUP($A$2,AVAILABLE_Buildings_Army[#All],MATCH(A39,AVAILABLE_Buildings_Army[#Headers],0)) -> 1 | E40: =VLOOKUP($A$2,AVAILABLE_Buildings_Army[#All],MATCH(A39,AVAILABLE_Buildings_Army[#Headers],0)+1) -> 3 | G40: =IF(SUM(B42:B53)>D40,"Error",SUM(B42:B53)) -> 0 | H40: =IF(G$40="Error","Error",D40-G40) -> 1 | I40: =IF(G$40="Error","Error",SUM(D42:D53)) -> 3 | M40: =VLOOKUP($A$2,AVAILABLE_Buildings_Army[#All],MATCH(J39,AVAILABLE_Buildings_Army[#Headers],0)) -> 0 | N40: =VLOOKUP($A$2,AVAILABLE_Buildings_Army[#All],MATCH(J39,AVAILABLE_Buildings_Army[#Headers],0)+1) -> 0 | P40: =IF(SUM(K42:K50)>M40,"Error",SUM(K42:K50)) -> 0 | Q40: =IF(P$40="Error","Error",M40-P40) -> 0 | R40: =IF(P$40="Error","Error",SUM(M42:M50)) -> 0 | V40: =VLOOKUP($A$2,AVAILABLE_Buildings_Army[#All],MATCH(S39,AVAILABLE_Buildings_Army[#Headers],0)) -> 1 | W40: =VLOOKUP($A$2,AVAILABLE_Buildings_Army[#All],MATCH(S39,AVAILABLE_Buildings_Army[#Headers],0)+1) -> 1 | Y40: =IF(SUM(T42:T49)>V40,"Error",SUM(T42:T49)) -> 0 | Z40: =IF(Y$40="Error","Error",V40-Y40) -> 1 | AA40: =IF(Y$40="Error","Error",SUM(V42:V49)) -> 1
A41: + | B41: NB | D41: NB | E41: + | F41: Coût | G41: Temps | H41: Coût Total | I41: Temps Total | J41: + | K41: NB | M41: NB | N41: + | O41: Coût | P41: Temps | Q41: Coût Total | R41: Temps Total | S41: + | T41: NB | V41: NB | W41: + | X41: Coût | Y41: Temps | Z41: Coût Total | AA41: Temps Total
A42: 1 | B42: =IF(Paramètres!H6=0,"",Paramètres!H6) ->  | C42: =IF(C41<>0,C41+IF(AND(B41<>"",A41<E$40),B41,0),IF(AND(B41<>"",A41<E$40),B41,0)) -> 0 | D42: =IF(E42<>"/",IF(G$40="Error","Error",$H$40+C42),"/") -> 1 | E42: =IF(G$40="Error","Error",IF(AND($E$40<>"/",$E$40>'Paramètres - Admin'!$A2),'Paramètres - Admin'!$A3,"/")) -> 1 | F42: =IF(E42<>"/",VLOOKUP(E42,COSTS_Barrack[#All],2),"/") -> 200 | G42: =IF(E42<>"/",VLOOKUP(E42,COSTS_Barrack[#All],3),"/") -> 0.02 | H42: =IF(G$40="Error","Error",IF(F42<>"/",D42*F42,0)) -> 200 | I42: =IF(G$40="Error","Error",IF(G42<>"/",D42*G42,0)) -> 0.02 | J42: 1 | K42: =IF(Paramètres!K6=0,"",Paramètres!K6) ->  | L42: =IF(L41<>0,L41+IF(AND(K41<>"",J41<N$40),K41,0),IF(AND(K41<>"",J41<N$40),K41,0)) -> 0 | M42: =IF(N42<>"/",IF(P$40="Error","Error",$Q$40+L42),"/") -> / | N42: =IF(P$40="Error","Error",IF(AND($N$40<>"/",$N$40>'Paramètres - Admin'!$A2),'Paramètres - Admin'!$A3,"/")) -> / | O42: =IF(N42<>"/",VLOOKUP(N42,COSTS_Laboratory[#All],2),"/") -> / | P42: =IF(N42<>"/",VLOOKUP(N42,COSTS_Laboratory[#All],3),"/") -> / | Q42: =IF(P$40="Error","Error",IF(O42<>"/",M42*O42,0)) -> 0 | R42: =IF(P$40="Error","Error",IF(P42<>"/",M42*P42,0)) -> 0 | S42: 1 | T42: =IF(Paramètres!J6=0,"",Paramètres!J6) ->  | U42: =IF(U41<>0,U41+IF(AND(T41<>"",S41<W$40),T41,0),IF(AND(T41<>"",S41<W$40),T41,0)) -> 0 | V42: =IF(W42<>"/",IF(Y$40="Error","Error",$Z$40+U42),"/") -> 1 | W42: =IF(Y$40="Error","Error",IF(AND($W$40<>"/",$W$40>'Paramètres - Admin'!$A2),'Paramètres - Admin'!$A3,"/")) -> 1 | X42: =IF(W42<>"/",VLOOKUP(W42,COSTS_Army_Camp[#All],2),"/") -> 250 | Y42: =IF(W42<>"/",VLOOKUP(W42,COSTS_Army_Camp[#All],3),"/") -> 0.08333333333 | Z42: =IF(Y$40="Error","Error",IF(X42<>"/",V42*X42,0)) -> 250 | AA42: =IF(Y$40="Error","Error",IF(Y42<>"/",V42*Y42,0)) -> 0.08333333333
A43: 2 | B43: =IF(Paramètres!H7=0,"",Paramètres!H7) ->  | C43: 0 | D43: 1 | E43: =IF(G$40="Error","Error",IF(AND($E$40<>"/",$E$40>'Paramètres - Admin'!$A3),'Paramètres - Admin'!$A4,"/")) -> 2 | F43: =IF(E43<>"/",VLOOKUP(E43,COSTS_Barrack[#All],2),"/") -> 1000 | G43: =IF(E43<>"/",VLOOKUP(E43,COSTS_Barrack[#All],3),"/") -> 0.25 | H43: 1000 | I43: 0.25 | J43: 2 | K43: =IF(Paramètres!K7=0,"",Paramètres!K7) ->  | L43: 0 | M43: / | N43: =IF(P$40="Error","Error",IF(AND($N$40<>"/",$N$40>'Paramètres - Admin'!$A3),'Paramètres - Admin'!$A4,"/")) -> / | O43: =IF(N43<>"/",VLOOKUP(N43,COSTS_Laboratory[#All],2),"/") -> / | P43: =IF(N43<>"/",VLOOKUP(N43,COSTS_Laboratory[#All],3),"/") -> / | Q43: 0 | R43: 0 | S43: 2 | T43: =IF(Paramètres!J7=0,"",Paramètres!J7) ->  | U43: =IF(U42<>0,U42+IF(AND(T42<>"",S42<E$5),T42,0),IF(AND(T42<>"",S42<E$5),T42,0)) -> 0 | V43: / | W43: =IF(Y$40="Error","Error",IF(AND($W$40<>"/",$W$40>'Paramètres - Admin'!$A3),'Paramètres - Admin'!$A4,"/")) -> / | X43: =IF(W43<>"/",VLOOKUP(W43,COSTS_Army_Camp[#All],2),"/") -> / | Y43: =IF(W43<>"/",VLOOKUP(W43,COSTS_Army_Camp[#All],3),"/") -> / | Z43: 0 | AA43: 0
A44: 3 | B44: =IF(Paramètres!H8=0,"",Paramètres!H8) ->  | C44: 0 | D44: 1 | E44: =IF(G$40="Error","Error",IF(AND($E$40<>"/",$E$40>'Paramètres - Admin'!$A4),'Paramètres - Admin'!$A5,"/")) -> 3 | F44: =IF(E44<>"/",VLOOKUP(E44,COSTS_Barrack[#All],2),"/") -> 2500 | G44: =IF(E44<>"/",VLOOKUP(E44,COSTS_Barrack[#All],3),"/") -> 2 | H44: 2500 | I44: 2 | J44: 3 | K44: =IF(Paramètres!K8=0,"",Paramètres!K8) ->  | L44: 0 | M44: / | N44: =IF(P$40="Error","Error",IF(AND($N$40<>"/",$N$40>'Paramètres - Admin'!$A4),'Paramètres - Admin'!$A5,"/")) -> / | O44: =IF(N44<>"/",VLOOKUP(N44,COSTS_Laboratory[#All],2),"/") -> / | P44: =IF(N44<>"/",VLOOKUP(N44,COSTS_Laboratory[#All],3),"/") -> / | Q44: 0 | R44: 0 | S44: 3 | T44: =IF(Paramètres!J8=0,"",Paramètres!J8) ->  | U44: 0 | V44: / | W44: =IF(Y$40="Error","Error",IF(AND($W$40<>"/",$W$40>'Paramètres - Admin'!$A4),'Paramètres - Admin'!$A5,"/")) -> / | X44: =IF(W44<>"/",VLOOKUP(W44,COSTS_Army_Camp[#All],2),"/") -> / | Y44: =IF(W44<>"/",VLOOKUP(W44,COSTS_Army_Camp[#All],3),"/") -> / | Z44: 0 | AA44: 0
A45: 4 | B45: =IF(Paramètres!H9=0,"",Paramètres!H9) ->  | C45: 0 | D45: / | E45: =IF(G$40="Error","Error",IF(AND($E$40<>"/",$E$40>'Paramètres - Admin'!$A5),'Paramètres - Admin'!$A6,"/")) -> / | F45: =IF(E45<>"/",VLOOKUP(E45,COSTS_Barrack[#All],2),"/") -> / | G45: =IF(E45<>"/",VLOOKUP(E45,COSTS_Barrack[#All],3),"/") -> / | H45: 0 | I45: 0 | J45: 4 | K45: =IF(Paramètres!K9=0,"",Paramètres!K9) ->  | L45: 0 | M45: / | N45: =IF(P$40="Error","Error",IF(AND($N$40<>"/",$N$40>'Paramètres - Admin'!$A5),'Paramètres - Admin'!$A6,"/")) -> / | O45: =IF(N45<>"/",VLOOKUP(N45,COSTS_Laboratory[#All],2),"/") -> / | P45: =IF(N45<>"/",VLOOKUP(N45,COSTS_Laboratory[#All],3),"/") -> / | Q45: 0 | R45: 0 | S45: 4 | T45: =IF(Paramètres!J9=0,"",Paramètres!J9) ->  | U45: 0 | V45: / | W45: =IF(Y$40="Error","Error",IF(AND($W$40<>"/",$W$40>'Paramètres - Admin'!$A5),'Paramètres - Admin'!$A6,"/")) -> / | X45: =IF(W45<>"/",VLOOKUP(W45,COSTS_Army_Camp[#All],2),"/") -> / | Y45: =IF(W45<>"/",VLOOKUP(W45,COSTS_Army_Camp[#All],3),"/") -> / | Z45: 0 | AA45: 0
A46: 5 | B46: =IF(Paramètres!H10=0,"",Paramètres!H10) ->  | C46: 0 | D46: / | E46: =IF(G$40="Error","Error",IF(AND($E$40<>"/",$E$40>'Paramètres - Admin'!$A6),'Paramètres - Admin'!$A7,"/")) -> / | F46: =IF(E46<>"/",VLOOKUP(E46,COSTS_Barrack[#All],2),"/") -> / | G46: =IF(E46<>"/",VLOOKUP(E46,COSTS_Barrack[#All],3),"/") -> / | H46: 0 | I46: 0 | J46: 5 | K46: =IF(Paramètres!K10=0,"",Paramètres!K10) ->  | L46: 0 | M46: / | N46: =IF(P$40="Error","Error",IF(AND($N$40<>"/",$N$40>'Paramètres - Admin'!$A6),'Paramètres - Admin'!$A7,"/")) -> / | O46: =IF(N46<>"/",VLOOKUP(N46,COSTS_Laboratory[#All],2),"/") -> / | P46: =IF(N46<>"/",VLOOKUP(N46,COSTS_Laboratory[#All],3),"/") -> / | Q46: 0 | R46: 0 | S46: 5 | T46: =IF(Paramètres!J10=0,"",Paramètres!J10) ->  | U46: 0 | V46: / | W46: =IF(Y$40="Error","Error",IF(AND($W$40<>"/",$W$40>'Paramètres - Admin'!$A6),'Paramètres - Admin'!$A7,"/")) -> / | X46: =IF(W46<>"/",VLOOKUP(W46,COSTS_Army_Camp[#All],2),"/") -> / | Y46: =IF(W46<>"/",VLOOKUP(W46,COSTS_Army_Camp[#All],3),"/") -> / | Z46: 0 | AA46: 0
A47: 6 | B47: =IF(Paramètres!H11=0,"",Paramètres!H11) ->  | C47: 0 | D47: / | E47: =IF(G$40="Error","Error",IF(AND($E$40<>"/",$E$40>'Paramètres - Admin'!$A7),'Paramètres - Admin'!$A8,"/")) -> / | F47: =IF(E47<>"/",VLOOKUP(E47,COSTS_Barrack[#All],2),"/") -> / | G47: =IF(E47<>"/",VLOOKUP(E47,COSTS_Barrack[#All],3),"/") -> / | H47: 0 | I47: 0 | J47: 6 | K47: =IF(Paramètres!K11=0,"",Paramètres!K11) ->  | L47: 0 | M47: / | N47: =IF(P$40="Error","Error",IF(AND($N$40<>"/",$N$40>'Paramètres - Admin'!$A7),'Paramètres - Admin'!$A8,"/")) -> / | O47: =IF(N47<>"/",VLOOKUP(N47,COSTS_Laboratory[#All],2),"/") -> / | P47: =IF(N47<>"/",VLOOKUP(N47,COSTS_Laboratory[#All],3),"/") -> / | Q47: 0 | R47: 0 | S47: 6 | T47: =IF(Paramètres!J11=0,"",Paramètres!J11) ->  | U47: 0 | V47: / | W47: =IF(Y$40="Error","Error",IF(AND($W$40<>"/",$W$40>'Paramètres - Admin'!$A7),'Paramètres - Admin'!$A8,"/")) -> / | X47: =IF(W47<>"/",VLOOKUP(W47,COSTS_Army_Camp[#All],2),"/") -> / | Y47: =IF(W47<>"/",VLOOKUP(W47,COSTS_Army_Camp[#All],3),"/") -> / | Z47: 0 | AA47: 0
A48: 7 | B48: =IF(Paramètres!H12=0,"",Paramètres!H12) ->  | C48: 0 | D48: / | E48: =IF(G$40="Error","Error",IF(AND($E$40<>"/",$E$40>'Paramètres - Admin'!$A8),'Paramètres - Admin'!$A9,"/")) -> / | F48: =IF(E48<>"/",VLOOKUP(E48,COSTS_Barrack[#All],2),"/") -> / | G48: =IF(E48<>"/",VLOOKUP(E48,COSTS_Barrack[#All],3),"/") -> / | H48: 0 | I48: 0 | J48: 7 | K48: =IF(Paramètres!K12=0,"",Paramètres!K12) ->  | L48: 0 | M48: / | N48: =IF(P$40="Error","Error",IF(AND($N$40<>"/",$N$40>'Paramètres - Admin'!$A8),'Paramètres - Admin'!$A9,"/")) -> / | O48: =IF(N48<>"/",VLOOKUP(N48,COSTS_Laboratory[#All],2),"/") -> / | P48: =IF(N48<>"/",VLOOKUP(N48,COSTS_Laboratory[#All],3),"/") -> / | Q48: 0 | R48: 0 | S48: 7 | T48: =IF(Paramètres!J12=0,"",Paramètres!J12) ->  | U48: 0 | V48: / | W48: =IF(Y$40="Error","Error",IF(AND($W$40<>"/",$W$40>'Paramètres - Admin'!$A8),'Paramètres - Admin'!$A9,"/")) -> / | X48: =IF(W48<>"/",VLOOKUP(W48,COSTS_Army_Camp[#All],2),"/") -> / | Y48: =IF(W48<>"/",VLOOKUP(W48,COSTS_Army_Camp[#All],3),"/") -> / | Z48: 0 | AA48: 0
A49: 8 | B49: =IF(Paramètres!H13=0,"",Paramètres!H13) ->  | C49: 0 | D49: / | E49: =IF(G$40="Error","Error",IF(AND($E$40<>"/",$E$40>'Paramètres - Admin'!$A9),'Paramètres - Admin'!$A10,"/")) -> / | F49: =IF(E49<>"/",VLOOKUP(E49,COSTS_Barrack[#All],2),"/") -> / | G49: =IF(E49<>"/",VLOOKUP(E49,COSTS_Barrack[#All],3),"/") -> / | H49: 0 | I49: 0 | J49: 8 | K49: =IF(Paramètres!K13=0,"",Paramètres!K13) ->  | L49: 0 | M49: / | N49: =IF(P$40="Error","Error",IF(AND($N$40<>"/",$N$40>'Paramètres - Admin'!$A9),'Paramètres - Admin'!$A10,"/")) -> / | O49: =IF(N49<>"/",VLOOKUP(N49,COSTS_Laboratory[#All],2),"/") -> / | P49: =IF(N49<>"/",VLOOKUP(N49,COSTS_Laboratory[#All],3),"/") -> / | Q49: 0 | R49: 0 | S49: 8 | T49: =IF(Paramètres!J13=0,"",Paramètres!J13) ->  | U49: 0 | V49: / | W49: =IF(Y$40="Error","Error",IF(AND($W$40<>"/",$W$40>'Paramètres - Admin'!$A9),'Paramètres - Admin'!$A10,"/")) -> / | X49: =IF(W49<>"/",VLOOKUP(W49,COSTS_Army_Camp[#All],2),"/") -> / | Y49: =IF(W49<>"/",VLOOKUP(W49,COSTS_Army_Camp[#All],3),"/") -> / | Z49: 0 | AA49: 0
A50: 9 | B50: =IF(Paramètres!H14=0,"",Paramètres!H14) ->  | C50: 0 | D50: / | E50: =IF(G$40="Error","Error",IF(AND($E$40<>"/",$E$40>'Paramètres - Admin'!$A10),'Paramètres - Admin'!$A11,"/")) -> / | F50: =IF(E50<>"/",VLOOKUP(E50,COSTS_Barrack[#All],2),"/") -> / | G50: =IF(E50<>"/",VLOOKUP(E50,COSTS_Barrack[#All],3),"/") -> / | H50: 0 | I50: 0 | J50: 9 | K50: =IF(Paramètres!K14=0,"",Paramètres!K14) ->  | L50: 0 | M50: / | N50: =IF(P$40="Error","Error",IF(AND($N$40<>"/",$N$40>'Paramètres - Admin'!$A10),'Paramètres - Admin'!$A11,"/")) -> / | O50: =IF(N50<>"/",VLOOKUP(N50,COSTS_Laboratory[#All],2),"/") -> / | P50: =IF(N50<>"/",VLOOKUP(N50,COSTS_Laboratory[#All],3),"/") -> / | Q50: 0 | R50: 0 | Y50: Total | Z50: =IF(Y$40="Error","Error",SUM(Z42:Z49)) -> 250 | AA50: =IF(Y$40="Error","Error",SUM(AA42:AA49)) -> 0.08333333333
A51: 10 | B51: =IF(Paramètres!H15=0,"",Paramètres!H15) ->  | C51: 0 | D51: / | E51: =IF(G$40="Error","Error",IF(AND($E$40<>"/",$E$40>'Paramètres - Admin'!$A11),'Paramètres - Admin'!$A12,"/")) -> / | F51: =IF(E51<>"/",VLOOKUP(E51,COSTS_Barrack[#All],2),"/") -> / | G51: =IF(E51<>"/",VLOOKUP(E51,COSTS_Barrack[#All],3),"/") -> / | H51: 0 | I51: 0 | P51: Total | Q51: =IF(P$40="Error","Error",SUM(Q42:Q49)) -> 0 | R51: =IF(P$40="Error","Error",SUM(R42:R49)) -> 0 | S51: Caserne Noire | V51: Max | W51: Max + | Y51: Actuel | Z51: À Faire | AA51: Améliorations
A52: 11 | B52: =IF(Paramètres!H16=0,"",Paramètres!H16) ->  | C52: 0 | D52: / | E52: =IF(G$40="Error","Error",IF(AND($E$40<>"/",$E$40>'Paramètres - Admin'!$A12),'Paramètres - Admin'!$A13,"/")) -> / | F52: =IF(E52<>"/",VLOOKUP(E52,COSTS_Barrack[#All],2),"/") -> / | G52: =IF(E52<>"/",VLOOKUP(E52,COSTS_Barrack[#All],3),"/") -> / | H52: 0 | I52: 0 | J52: Usine de Sorts | M52: Max | N52: Max + | P52: Actuel | Q52: À Faire | R52: Améliorations | V52: =VLOOKUP($A$2,AVAILABLE_Buildings_Army[#All],MATCH(S51,AVAILABLE_Buildings_Army[#Headers],0)) -> 0 | W52: =VLOOKUP($A$2,AVAILABLE_Buildings_Army[#All],MATCH(S51,AVAILABLE_Buildings_Army[#Headers],0)+1) -> 0 | Y52: =IF(SUM(T54:T60)>V52,"Error",SUM(T54:T60)) -> 0 | Z52: =IF(Y$52="Error","Error",V52-Y52) -> 0 | AA52: =IF(Y$52="Error","Error",SUM(V54:V60)) -> 0
A53: 12 | B53: =IF(Paramètres!H17=0,"",Paramètres!H17) ->  | C53: 0 | D53: / | E53: =IF(G$40="Error","Error",IF(AND($E$40<>"/",$E$40>'Paramètres - Admin'!$A13),'Paramètres - Admin'!$A14,"/")) -> / | F53: =IF(E53<>"/",VLOOKUP(E53,COSTS_Barrack[#All],2),"/") -> / | G53: =IF(E53<>"/",VLOOKUP(E53,COSTS_Barrack[#All],3),"/") -> / | H53: 0 | I53: 0 | M53: =VLOOKUP($A$2,AVAILABLE_Buildings_Army[#All],MATCH(J52,AVAILABLE_Buildings_Army[#Headers],0)) -> 0 | N53: =VLOOKUP($A$2,AVAILABLE_Buildings_Army[#All],MATCH(J52,AVAILABLE_Buildings_Army[#Headers],0)+1) -> 0 | P53: =IF(SUM(K55:K59)>M53,"Error",SUM(K55:K59)) -> 0 | Q53: =IF(P$53="Error","Error",M53-P53) -> 0 | R53: =IF(P$53="Error","Error",SUM(M55:M59)) -> 0 | S53: + | T53: NB | V53: NB | W53: + | X53: Coût | Y53: Temps | Z53: Coût Total | AA53: Temps Total
G54: Total | H54: =IF(G$40="Error","Error",SUM(H42:H53)) -> 3700 | I54: =IF(G$40="Error","Error",SUM(I42:I53)) -> 2.27 | J54: + | K54: NB | M54: NB | N54: + | O54: Coût | P54: Temps | Q54: Coût Total | R54: Temps Total | S54: 1 | T54: =IF(Paramètres!I6=0,"",Paramètres!I6) ->  | U54: =IF(U53<>0,U53+IF(AND(T53<>"",S53<W$52),T53,0),IF(AND(T53<>"",S53<W$52),T53,0)) -> 0 | V54: =IF(W54<>"/",IF(Y$52="Error","Error",$Z$52+U54),"/") -> / | W54: =IF(Y$52="Error","Error",IF(AND($W$52<>"/",$W$52>'Paramètres - Admin'!$A2),'Paramètres - Admin'!$A3,"/")) -> / | X54: =IF(W54<>"/",VLOOKUP(W54,COSTS_Dark_Barrack[#All],2),"/") -> / | Y54: =IF(W54<>"/",VLOOKUP(W54,COSTS_Dark_Barrack[#All],3),"/") -> / | Z54: =IF(Y$52="Error","Error",IF(X54<>"/",V54*X54,0)) -> 0 | AA54: =IF(Y$52="Error","Error",IF(Y54<>"/",V54*Y54,0)) -> 0
A55: Usine de Sorts Noirs | D55: Max | E55: Max + | G55: Actuel | H55: À Faire | I55: Améliorations | J55: 1 | K55: =IF(Paramètres!L6=0,"",Paramètres!L6) ->  | L55: =IF(L54<>0,L54+IF(AND(K54<>"",J54<N$53),K54,0),IF(AND(K54<>"",J54<N$53),K54,0)) -> 0 | M55: =IF(N55<>"/",IF(P$53="Error","Error",$Q$53+L55),"/") -> / | N55: =IF(P$53="Error","Error",IF(AND($N$53<>"/",$N$53>'Paramètres - Admin'!$A2),'Paramètres - Admin'!$A3,"/")) -> / | O55: =IF(N55<>"/",VLOOKUP(N55,COSTS_Spell_Factory[#All],2),"/") -> / | P55: =IF(N55<>"/",VLOOKUP(N55,COSTS_Spell_Factory[#All],3),"/") -> / | Q55: =IF(P$53="Error","Error",IF(O55<>"/",M55*O55,0)) -> 0 | R55: =IF(P$53="Error","Error",IF(P55<>"/",M55*P55,0)) -> 0 | S55: 2 | T55: =IF(Paramètres!I7=0,"",Paramètres!I7) ->  | U55: 0 | V55: / | W55: =IF(Y$52="Error","Error",IF(AND($W$52<>"/",$W$52>'Paramètres - Admin'!$A3),'Paramètres - Admin'!$A4,"/")) -> / | X55: =IF(W55<>"/",VLOOKUP(W55,COSTS_Dark_Barrack[#All],2),"/") -> / | Y55: =IF(W55<>"/",VLOOKUP(W55,COSTS_Dark_Barrack[#All],3),"/") -> / | Z55: 0 | AA55: 0
D56: =VLOOKUP($A$2,AVAILABLE_Buildings_Army[#All],MATCH(A55,AVAILABLE_Buildings_Army[#Headers],0)) -> 0 | E56: =VLOOKUP($A$2,AVAILABLE_Buildings_Army[#All],MATCH(A55,AVAILABLE_Buildings_Army[#Headers],0)+1) -> 0 | G56: =IF(SUM(B58:B61)>D56,"Error",SUM(B58:B61)) -> 0 | H56: =IF(G$56="Error","Error",D56-G56) -> 0 | I56: =IF(G$56="Error","Error",SUM(D58:D61)) -> 0 | J56: 2 | K56: =IF(Paramètres!L7=0,"",Paramètres!L7) ->  | L56: =IF(L55<>0,L55+IF(AND(K55<>"",J55<N$53),K55,0),IF(AND(K55<>"",J55<N$53),K55,0)) -> 0 | M56: =IF(N56<>"/",IF(P$53="Error","Error",$Q$53+L56),"/") -> / | N56: =IF(P$53="Error","Error",IF(AND($N$53<>"/",$N$53>'Paramètres - Admin'!$A3),'Paramètres - Admin'!$A4,"/")) -> / | O56: =IF(N56<>"/",VLOOKUP(N56,COSTS_Spell_Factory[#All],2),"/") -> / | P56: =IF(N56<>"/",VLOOKUP(N56,COSTS_Spell_Factory[#All],3),"/") -> / | Q56: =IF(P$53="Error","Error",IF(O56<>"/",M56*O56,0)) -> 0 | R56: =IF(P$53="Error","Error",IF(P56<>"/",M56*P56,0)) -> 0 | S56: 3 | T56: =IF(Paramètres!I8=0,"",Paramètres!I8) ->  | U56: 0 | V56: / | W56: =IF(Y$52="Error","Error",IF(AND($W$52<>"/",$W$52>'Paramètres - Admin'!$A4),'Paramètres - Admin'!$A5,"/")) -> / | X56: =IF(W56<>"/",VLOOKUP(W56,COSTS_Dark_Barrack[#All],2),"/") -> / | Y56: =IF(W56<>"/",VLOOKUP(W56,COSTS_Dark_Barrack[#All],3),"/") -> / | Z56: 0 | AA56: 0
A57: + | B57: NB | D57: NB | E57: + | F57: Coût | G57: Temps | H57: Coût Total | I57: Temps Total | J57: 3 | K57: =IF(Paramètres!L8=0,"",Paramètres!L8) ->  | L57: =IF(L56<>0,L56+IF(AND(K56<>"",J56<N$53),K56,0),IF(AND(K56<>"",J56<N$53),K56,0)) -> 0 | M57: =IF(N57<>"/",IF(P$53="Error","Error",$Q$53+L57),"/") -> / | N57: =IF(P$53="Error","Error",IF(AND($N$53<>"/",$N$53>'Paramètres - Admin'!$A4),'Paramètres - Admin'!$A5,"/")) -> / | O57: =IF(N57<>"/",VLOOKUP(N57,COSTS_Spell_Factory[#All],2),"/") -> / | P57: =IF(N57<>"/",VLOOKUP(N57,COSTS_Spell_Factory[#All],3),"/") -> / | Q57: =IF(P$53="Error","Error",IF(O57<>"/",M57*O57,0)) -> 0 | R57: =IF(P$53="Error","Error",IF(P57<>"/",M57*P57,0)) -> 0 | S57: 4 | T57: =IF(Paramètres!I9=0,"",Paramètres!I9) ->  | U57: 0 | V57: / | W57: =IF(Y$52="Error","Error",IF(AND($W$52<>"/",$W$52>'Paramètres - Admin'!$A5),'Paramètres - Admin'!$A6,"/")) -> / | X57: =IF(W57<>"/",VLOOKUP(W57,COSTS_Dark_Barrack[#All],2),"/") -> / | Y57: =IF(W57<>"/",VLOOKUP(W57,COSTS_Dark_Barrack[#All],3),"/") -> / | Z57: 0 | AA57: 0
A58: 1 | B58: =IF(Paramètres!M6=0,"",Paramètres!M6) ->  | C58: =IF(C57<>0,C57+IF(AND(B57<>"",A57<E$56),B57,0),IF(AND(B57<>"",A57<E$56),B57,0)) -> 0 | D58: =IF(E58<>"/",IF(G$56="Error","Error",$H$56+C58),"/") -> / | E58: =IF(G$56="Error","Error",IF(AND($E$56<>"/",$E$56>'Paramètres - Admin'!$A2),'Paramètres - Admin'!$A3,"/")) -> / | F58: =IF(E58<>"/",VLOOKUP(E58,COSTS_Dark_Spell_Factory[#All],2),"/") -> / | G58: =IF(E58<>"/",VLOOKUP(E58,COSTS_Dark_Spell_Factory[#All],3),"/") -> / | H58: =IF(G$56="Error","Error",IF(F58<>"/",D58*F58,0)) -> 0 | I58: =IF(G$56="Error","Error",IF(G58<>"/",D58*G58,0)) -> 0 | J58: 4 | K58: =IF(Paramètres!L9=0,"",Paramètres!L9) ->  | L58: =IF(L57<>0,L57+IF(AND(K57<>"",J57<N$53),K57,0),IF(AND(K57<>"",J57<N$53),K57,0)) -> 0 | M58: =IF(N58<>"/",IF(P$53="Error","Error",$Q$53+L58),"/") -> / | N58: =IF(P$53="Error","Error",IF(AND($N$53<>"/",$N$53>'Paramètres - Admin'!$A5),'Paramètres - Admin'!$A6,"/")) -> / | O58: =IF(N58<>"/",VLOOKUP(N58,COSTS_Spell_Factory[#All],2),"/") -> / | P58: =IF(N58<>"/",VLOOKUP(N58,COSTS_Spell_Factory[#All],3),"/") -> / | Q58: =IF(P$53="Error","Error",IF(O58<>"/",M58*O58,0)) -> 0 | R58: =IF(P$53="Error","Error",IF(P58<>"/",M58*P58,0)) -> 0 | S58: 5 | T58: =IF(Paramètres!I10=0,"",Paramètres!I10) ->  | U58: 0 | V58: / | W58: =IF(Y$52="Error","Error",IF(AND($W$52<>"/",$W$52>'Paramètres - Admin'!$A6),'Paramètres - Admin'!$A7,"/")) -> / | X58: =IF(W58<>"/",VLOOKUP(W58,COSTS_Dark_Barrack[#All],2),"/") -> / | Y58: =IF(W58<>"/",VLOOKUP(W58,COSTS_Dark_Barrack[#All],3),"/") -> / | Z58: 0 | AA58: 0
A59: 2 | B59: =IF(Paramètres!M7=0,"",Paramètres!M7) ->  | C59: =IF(C58<>0,C58+IF(AND(B58<>"",A58<E$56),B58,0),IF(AND(B58<>"",A58<E$56),B58,0)) -> 0 | D59: =IF(E59<>"/",IF(G$56="Error","Error",$H$56+C59),"/") -> / | E59: =IF(G$56="Error","Error",IF(AND($E$56<>"/",$E$56>'Paramètres - Admin'!$A3),'Paramètres - Admin'!$A4,"/")) -> / | F59: =IF(E59<>"/",VLOOKUP(E59,COSTS_Dark_Spell_Factory[#All],2),"/") -> / | G59: =IF(E59<>"/",VLOOKUP(E59,COSTS_Dark_Spell_Factory[#All],3),"/") -> / | H59: =IF(P$53="Error","Error",IF(F59<>"/",D59*F59,0)) -> 0 | I59: =IF(P$53="Error","Error",IF(G59<>"/",D59*G59,0)) -> 0 | J59: 5 | K59: =IF(Paramètres!L10=0,"",Paramètres!L10) ->  | L59: =IF(L58<>0,L58+IF(AND(K58<>"",J58<N$53),K58,0),IF(AND(K58<>"",J58<N$53),K58,0)) -> 0 | M59: =IF(N59<>"/",IF(P$53="Error","Error",$Q$53+L59),"/") -> / | N59: =IF(P$53="Error","Error",IF(AND($N$53<>"/",$N$53>'Paramètres - Admin'!$A6),'Paramètres - Admin'!$A7,"/")) -> / | O59: =IF(N59<>"/",VLOOKUP(N59,COSTS_Spell_Factory[#All],2),"/") -> / | P59: =IF(N59<>"/",VLOOKUP(N59,COSTS_Spell_Factory[#All],3),"/") -> / | Q59: =IF(P$53="Error","Error",IF(O59<>"/",M59*O59,0)) -> 0 | R59: =IF(P$53="Error","Error",IF(P59<>"/",M59*P59,0)) -> 0 | S59: 6 | T59: =IF(Paramètres!I11=0,"",Paramètres!I11) ->  | U59: 0 | V59: / | W59: =IF(Y$52="Error","Error",IF(AND($W$52<>"/",$W$52>'Paramètres - Admin'!$A7),'Paramètres - Admin'!$A8,"/")) -> / | X59: =IF(W59<>"/",VLOOKUP(W59,COSTS_Dark_Barrack[#All],2),"/") -> / | Y59: =IF(W59<>"/",VLOOKUP(W59,COSTS_Dark_Barrack[#All],3),"/") -> / | Z59: 0 | AA59: 0
A60: 3 | B60: =IF(Paramètres!M8=0,"",Paramètres!M8) ->  | C60: =IF(C59<>0,C59+IF(AND(B59<>"",A59<E$56),B59,0),IF(AND(B59<>"",A59<E$56),B59,0)) -> 0 | D60: =IF(E60<>"/",IF(G$56="Error","Error",$H$56+C60),"/") -> / | E60: =IF(G$56="Error","Error",IF(AND($E$56<>"/",$E$56>'Paramètres - Admin'!$A4),'Paramètres - Admin'!$A5,"/")) -> / | F60: =IF(E60<>"/",VLOOKUP(E60,COSTS_Dark_Spell_Factory[#All],2),"/") -> / | G60: =IF(E60<>"/",VLOOKUP(E60,COSTS_Dark_Spell_Factory[#All],3),"/") -> / | H60: =IF(P$53="Error","Error",IF(F60<>"/",D60*F60,0)) -> 0 | I60: =IF(P$53="Error","Error",IF(G60<>"/",D60*G60,0)) -> 0 | P60: Total | Q60: =IF(P$53="Error","Error",SUM(Q55:Q59)) -> 0 | R60: =IF(P$53="Error","Error",SUM(R55:R59)) -> 0 | S60: 7 | T60: =IF(Paramètres!I12=0,"",Paramètres!I12) ->  | U60: 0 | V60: / | W60: =IF(Y$52="Error","Error",IF(AND($W$52<>"/",$W$52>'Paramètres - Admin'!$A8),'Paramètres - Admin'!$A9,"/")) -> / | X60: =IF(W60<>"/",VLOOKUP(W60,COSTS_Dark_Barrack[#All],2),"/") -> / | Y60: =IF(W60<>"/",VLOOKUP(W60,COSTS_Dark_Barrack[#All],3),"/") -> / | Z60: 0 | AA60: 0
A61: 4 | B61: =IF(Paramètres!M9=0,"",Paramètres!M9) ->  | C61: =IF(C60<>0,C60+IF(AND(B60<>"",A60<E$56),B60,0),IF(AND(B60<>"",A60<E$56),B60,0)) -> 0 | D61: =IF(E61<>"/",IF(G$56="Error","Error",$H$56+C61),"/") -> / | E61: =IF(G$56="Error","Error",IF(AND($E$56<>"/",$E$56>'Paramètres - Admin'!$A5),'Paramètres - Admin'!$A6,"/")) -> / | F61: =IF(E61<>"/",VLOOKUP(E61,COSTS_Dark_Spell_Factory[#All],2),"/") -> / | G61: =IF(E61<>"/",VLOOKUP(E61,COSTS_Dark_Spell_Factory[#All],3),"/") -> / | H61: =IF(P$53="Error","Error",IF(F61<>"/",D61*F61,0)) -> 0 | I61: =IF(P$53="Error","Error",IF(G61<>"/",D61*G61,0)) -> 0 | Y61: Total | Z61: =IF(Y$52="Error","Error",SUM(Z54:Z60)) -> 0 | AA61: =IF(Y$52="Error","Error",SUM(AA54:AA60)) -> 0
G62: Total | H62: =IF(P$53="Error","Error",SUM(H58:H61)) -> 0 | I62: =IF(P$53="Error","Error",SUM(I58:I61)) -> 0
A65: Bâtiments Défensifs
A66: Canon | D66: Max | E66: Max + | G66: Actuel | H66: À Faire | I66: Améliorations | J66: Rempart | M66: Max | N66: Max + | P66: Actuel | Q66: À Faire | R66: Améliorations | S66: Tour d'Archers | V66: Max | W66: Max + | Y66: Actuel | Z66: À Faire | AA66: Améliorations
D67: =VLOOKUP($A$2,AVAILABLE_Buildings_Defensive[#All],MATCH(A66,AVAILABLE_Buildings_Defensive[#Headers],0)) -> 2 | E67: =VLOOKUP($A$2,AVAILABLE_Buildings_Defensive[#All],MATCH(A66,AVAILABLE_Buildings_Defensive[#Headers],0)+1) -> 2 | G67: =IF(SUM(B69:B82)>D67,"Error",SUM(B69:B82)) -> 0 | H67: =IF(G$67="Error","Error",D67-G67) -> 2 | I67: =IF(G$67="Error","Error",SUM(D69:D82)) -> 4 | M67: =VLOOKUP($A$2,AVAILABLE_Buildings_Defensive[#All],MATCH(J66,AVAILABLE_Buildings_Defensive[#Headers],0)) -> 0 | N67: =VLOOKUP($A$2,AVAILABLE_Buildings_Defensive[#All],MATCH(J66,AVAILABLE_Buildings_Defensive[#Headers],0)+1) -> 0 | P67: =IF(SUM(K69:K80)>M67,"Error",SUM(K69:K80)) -> 0 | Q67: =IF(P$67="Error","Error",M67-P67) -> 0 | R67: =IF(P$67="Error","Error",SUM(M69:M80)) -> 0 | V67: =VLOOKUP($A$2,AVAILABLE_Buildings_Defensive[#All],MATCH(S66,AVAILABLE_Buildings_Defensive[#Headers],0)) -> 0 | W67: =VLOOKUP($A$2,AVAILABLE_Buildings_Defensive[#All],MATCH(S66,AVAILABLE_Buildings_Defensive[#Headers],0)+1) -> 0 | Y67: =IF(SUM(T69:T81)>V67,"Error",SUM(T69:T81)) -> 0 | Z67: =IF(Y$67="Error","Error",V67-Y67) -> 0 | AA67: =IF(Y$67="Error","Error",SUM(V69:V81)) -> 0
A68: + | B68: NB | D68: NB | E68: + | F68: Coût | G68: Temps | H68: Coût Total | I68: Temps Total | J68: + | K68: NB | M68: NB | N68: + | O68: Coût | P68: Temps | Q68: Coût Total | R68: Temps Total | S68: + | T68: NB | V68: NB | W68: + | X68: Coût | Y68: Temps | Z68: Coût Total | AA68: Temps Total
A69: 1 | B69: =IF(Paramètres!O6=0,"",Paramètres!O6) ->  | C69: =IF(C68<>0,C68+IF(AND(B68<>"",A68<$E$67),B68,0),IF(AND(B68<>"",A68<$E$67),B68,0)) -> 0 | D69: =IF(E69<>"/",IF(G$67="Error","Error",$H$67+C69),"/") -> 2 | E69: =IF(G$67="Error","Error",IF(AND($E$67<>"/",$E$67>'Paramètres - Admin'!$A2),'Paramètres - Admin'!$A3,"/")) -> 1 | F69: =IF(E69<>"/",VLOOKUP(E69,COSTS_Cannon[#All],2),"/") -> 250 | G69: =IF(E69<>"/",VLOOKUP(E69,COSTS_Cannon[#All],3),"/") -> 0.01666666667 | H69: =IF(G$67="Error","Error",IF(F69<>"/",D69*F69,0)) -> 500 | I69: =IF(G$67="Error","Error",IF(G69<>"/",D69*G69,0)) -> 0.03333333333 | J69: 1 | K69: =IF(Paramètres!N6=0,"",Paramètres!N6) ->  | L69: =IF(L68<>0,L68+IF(AND(K68<>"",J68<N$67),K68,0),IF(AND(K68<>"",J68<N$67),K68,0)) -> 0 | M69: =IF(N69<>"/",IF(P$67="Error","Error",$Q$67+L69),"/") -> / | N69: =IF(P$67="Error","Error",IF(AND($N$67<>"/",$N$67>'Paramètres - Admin'!$A2),'Paramètres - Admin'!$A3,"/")) -> / | O69: =IF(N69<>"/",VLOOKUP(N69,COSTS_Wall[#All],2),"/") -> / | P69: =IF(N69<>"/",VLOOKUP(N69,COSTS_Wall[#All],3),"/") -> / | Q69: =IF(P$67="Error","Error",IF(O69<>"/",M69*O69,0)) -> 0 | R69: =IF(P$67="Error","Error",IF(P69<>"/",M69*P69,0)) -> 0 | S69: 1 | T69: =IF(Paramètres!P6=0,"",Paramètres!P6) ->  | U69: =IF(U68<>0,U68+IF(AND(T68<>"",S68<$W$67),T68,0),IF(AND(T68<>"",S68<$W$67),T68,0)) -> 0 | V69: =IF(W69<>"/",IF(Y$67="Error","Error",$Z$67+U69),"/") -> / | W69: =IF(Y$67="Error","Error",IF(AND($W$67<>"/",$W$67>'Paramètres - Admin'!$A2),'Paramètres - Admin'!$A3,"/")) -> / | X69: =IF(W69<>"/",VLOOKUP(W69,COSTS_Archer_Tower[#All],2),"/") -> / | Y69: =IF(W69<>"/",VLOOKUP(W69,COSTS_Archer_Tower[#All],3),"/") -> / | Z69: =IF(Y$67="Error","Error",IF(X69<>"/",V69*X69,0)) -> 0 | AA69: =IF(Y$67="Error","Error",IF(Y69<>"/",V69*Y69,0)) -> 0
A70: 2 | B70: =IF(Paramètres!O7=0,"",Paramètres!O7) ->  | C70: 0 | D70: 2 | E70: =IF(G$67="Error","Error",IF(AND($E$67<>"/",$E$67>'Paramètres - Admin'!$A3),'Paramètres - Admin'!$A4,"/")) -> 2 | F70: =IF(E70<>"/",VLOOKUP(E70,COSTS_Cannon[#All],2),"/") -> 1000 | G70: =IF(E70<>"/",VLOOKUP(E70,COSTS_Cannon[#All],3),"/") -> 0.25 | H70: 2000 | I70: 0.5 | J70: 2 | K70: =IF(Paramètres!N7=0,"",Paramètres!N7) ->  | L70: 0 | M70: / | N70: =IF(P$67="Error","Error",IF(AND($N$67<>"/",$N$67>'Paramètres - Admin'!$A3),'Paramètres - Admin'!$A4,"/")) -> / | O70: =IF(N70<>"/",VLOOKUP(N70,COSTS_Wall[#All],2),"/") -> / | P70: =IF(N70<>"/",VLOOKUP(N70,COSTS_Wall[#All],3),"/") -> / | Q70: 0 | R70: 0 | S70: 2 | T70: =IF(Paramètres!P7=0,"",Paramètres!P7) ->  | U70: 0 | V70: / | W70: =IF(Y$67="Error","Error",IF(AND($W$67<>"/",$W$67>'Paramètres - Admin'!$A3),'Paramètres - Admin'!$A4,"/")) -> / | X70: =IF(W70<>"/",VLOOKUP(W70,COSTS_Archer_Tower[#All],2),"/") -> / | Y70: =IF(W70<>"/",VLOOKUP(W70,COSTS_Archer_Tower[#All],3),"/") -> / | Z70: 0 | AA70: 0
A71: 3 | B71: =IF(Paramètres!O8=0,"",Paramètres!O8) ->  | C71: 0 | D71: / | E71: =IF(G$67="Error","Error",IF(AND($E$67<>"/",$E$67>'Paramètres - Admin'!$A4),'Paramètres - Admin'!$A5,"/")) -> / | F71: =IF(E71<>"/",VLOOKUP(E71,COSTS_Cannon[#All],2),"/") -> / | G71: =IF(E71<>"/",VLOOKUP(E71,COSTS_Cannon[#All],3),"/") -> / | H71: 0 | I71: 0 | J71: 3 | K71: =IF(Paramètres!N8=0,"",Paramètres!N8) ->  | L71: 0 | M71: / | N71: =IF(P$67="Error","Error",IF(AND($N$67<>"/",$N$67>'Paramètres - Admin'!$A4),'Paramètres - Admin'!$A5,"/")) -> / | O71: =IF(N71<>"/",VLOOKUP(N71,COSTS_Wall[#All],2),"/") -> / | P71: =IF(N71<>"/",VLOOKUP(N71,COSTS_Wall[#All],3),"/") -> / | Q71: 0 | R71: 0 | S71: 3 | T71: =IF(Paramètres!P8=0,"",Paramètres!P8) ->  | U71: 0 | V71: / | W71: =IF(Y$67="Error","Error",IF(AND($W$67<>"/",$W$67>'Paramètres - Admin'!$A4),'Paramètres - Admin'!$A5,"/")) -> / | X71: =IF(W71<>"/",VLOOKUP(W71,COSTS_Archer_Tower[#All],2),"/") -> / | Y71: =IF(W71<>"/",VLOOKUP(W71,COSTS_Archer_Tower[#All],3),"/") -> / | Z71: 0 | AA71: 0
A72: 4 | B72: =IF(Paramètres!O9=0,"",Paramètres!O9) ->  | C72: 0 | D72: / | E72: =IF(G$67="Error","Error",IF(AND($E$67<>"/",$E$67>'Paramètres - Admin'!$A5),'Paramètres - Admin'!$A6,"/")) -> / | F72: =IF(E72<>"/",VLOOKUP(E72,COSTS_Cannon[#All],2),"/") -> / | G72: =IF(E72<>"/",VLOOKUP(E72,COSTS_Cannon[#All],3),"/") -> / | H72: 0 | I72: 0 | J72: 4 | K72: =IF(Paramètres!N9=0,"",Paramètres!N9) ->  | L72: 0 | M72: / | N72: =IF(P$67="Error","Error",IF(AND($N$67<>"/",$N$67>'Paramètres - Admin'!$A5),'Paramètres - Admin'!$A6,"/")) -> / | O72: =IF(N72<>"/",VLOOKUP(N72,COSTS_Wall[#All],2),"/") -> / | P72: =IF(N72<>"/",VLOOKUP(N72,COSTS_Wall[#All],3),"/") -> / | Q72: 0 | R72: 0 | S72: 4 | T72: =IF(Paramètres!P9=0,"",Paramètres!P9) ->  | U72: 0 | V72: / | W72: =IF(Y$67="Error","Error",IF(AND($W$67<>"/",$W$67>'Paramètres - Admin'!$A5),'Paramètres - Admin'!$A6,"/")) -> / | X72: =IF(W72<>"/",VLOOKUP(W72,COSTS_Archer_Tower[#All],2),"/") -> / | Y72: =IF(W72<>"/",VLOOKUP(W72,COSTS_Archer_Tower[#All],3),"/") -> / | Z72: 0 | AA72: 0
A73: 5 | B73: =IF(Paramètres!O10=0,"",Paramètres!O10) ->  | C73: 0 | D73: / | E73: =IF(G$67="Error","Error",IF(AND($E$67<>"/",$E$67>'Paramètres - Admin'!$A6),'Paramètres - Admin'!$A7,"/")) -> / | F73: =IF(E73<>"/",VLOOKUP(E73,COSTS_Cannon[#All],2),"/") -> / | G73: =IF(E73<>"/",VLOOKUP(E73,COSTS_Cannon[#All],3),"/") -> / | H73: 0 | I73: 0 | J73: 5 | K73: =IF(Paramètres!N10=0,"",Paramètres!N10) ->  | L73: 0 | M73: / | N73: =IF(P$67="Error","Error",IF(AND($N$67<>"/",$N$67>'Paramètres - Admin'!$A6),'Paramètres - Admin'!$A7,"/")) -> / | O73: =IF(N73<>"/",VLOOKUP(N73,COSTS_Wall[#All],2),"/") -> / | P73: =IF(N73<>"/",VLOOKUP(N73,COSTS_Wall[#All],3),"/") -> / | Q73: 0 | R73: 0 | S73: 5 | T73: =IF(Paramètres!P10=0,"",Paramètres!P10) ->  | U73: 0 | V73: / | W73: =IF(Y$67="Error","Error",IF(AND($W$67<>"/",$W$67>'Paramètres - Admin'!$A6),'Paramètres - Admin'!$A7,"/")) -> / | X73: =IF(W73<>"/",VLOOKUP(W73,COSTS_Archer_Tower[#All],2),"/") -> / | Y73: =IF(W73<>"/",VLOOKUP(W73,COSTS_Archer_Tower[#All],3),"/") -> / | Z73: 0 | AA73: 0
A74: 6 | B74: =IF(Paramètres!O11=0,"",Paramètres!O11) ->  | C74: 0 | D74: / | E74: =IF(G$67="Error","Error",IF(AND($E$67<>"/",$E$67>'Paramètres - Admin'!$A7),'Paramètres - Admin'!$A8,"/")) -> / | F74: =IF(E74<>"/",VLOOKUP(E74,COSTS_Cannon[#All],2),"/") -> / | G74: =IF(E74<>"/",VLOOKUP(E74,COSTS_Cannon[#All],3),"/") -> / | H74: 0 | I74: 0 | J74: 6 | K74: =IF(Paramètres!N11=0,"",Paramètres!N11) ->  | L74: 0 | M74: / | N74: =IF(P$67="Error","Error",IF(AND($N$67<>"/",$N$67>'Paramètres - Admin'!$A7),'Paramètres - Admin'!$A8,"/")) -> / | O74: =IF(N74<>"/",VLOOKUP(N74,COSTS_Wall[#All],2),"/") -> / | P74: =IF(N74<>"/",VLOOKUP(N74,COSTS_Wall[#All],3),"/") -> / | Q74: 0 | R74: 0 | S74: 6 | T74: =IF(Paramètres!P11=0,"",Paramètres!P11) ->  | U74: 0 | V74: / | W74: =IF(Y$67="Error","Error",IF(AND($W$67<>"/",$W$67>'Paramètres - Admin'!$A7),'Paramètres - Admin'!$A8,"/")) -> / | X74: =IF(W74<>"/",VLOOKUP(W74,COSTS_Archer_Tower[#All],2),"/") -> / | Y74: =IF(W74<>"/",VLOOKUP(W74,COSTS_Archer_Tower[#All],3),"/") -> / | Z74: 0 | AA74: 0
A75: 7 | B75: =IF(Paramètres!O12=0,"",Paramètres!O12) ->  | C75: 0 | D75: / | E75: =IF(G$67="Error","Error",IF(AND($E$67<>"/",$E$67>'Paramètres - Admin'!$A8),'Paramètres - Admin'!$A9,"/")) -> / | F75: =IF(E75<>"/",VLOOKUP(E75,COSTS_Cannon[#All],2),"/") -> / | G75: =IF(E75<>"/",VLOOKUP(E75,COSTS_Cannon[#All],3),"/") -> / | H75: 0 | I75: 0 | J75: 7 | K75: =IF(Paramètres!N12=0,"",Paramètres!N12) ->  | L75: 0 | M75: / | N75: =IF(P$67="Error","Error",IF(AND($N$67<>"/",$N$67>'Paramètres - Admin'!$A8),'Paramètres - Admin'!$A9,"/")) -> / | O75: =IF(N75<>"/",VLOOKUP(N75,COSTS_Wall[#All],2),"/") -> / | P75: =IF(N75<>"/",VLOOKUP(N75,COSTS_Wall[#All],3),"/") -> / | Q75: 0 | R75: 0 | S75: 7 | T75: =IF(Paramètres!P12=0,"",Paramètres!P12) ->  | U75: 0 | V75: / | W75: =IF(Y$67="Error","Error",IF(AND($W$67<>"/",$W$67>'Paramètres - Admin'!$A8),'Paramètres - Admin'!$A9,"/")) -> / | X75: =IF(W75<>"/",VLOOKUP(W75,COSTS_Archer_Tower[#All],2),"/") -> / | Y75: =IF(W75<>"/",VLOOKUP(W75,COSTS_Archer_Tower[#All],3),"/") -> / | Z75: 0 | AA75: 0
A76: 8 | B76: =IF(Paramètres!O13=0,"",Paramètres!O13) ->  | C76: 0 | D76: / | E76: =IF(G$67="Error","Error",IF(AND($E$67<>"/",$E$67>'Paramètres - Admin'!$A9),'Paramètres - Admin'!$A10,"/")) -> / | F76: =IF(E76<>"/",VLOOKUP(E76,COSTS_Cannon[#All],2),"/") -> / | G76: =IF(E76<>"/",VLOOKUP(E76,COSTS_Cannon[#All],3),"/") -> / | H76: 0 | I76: 0 | J76: 8 | K76: =IF(Paramètres!N13=0,"",Paramètres!N13) ->  | L76: 0 | M76: / | N76: =IF(P$67="Error","Error",IF(AND($N$67<>"/",$N$67>'Paramètres - Admin'!$A9),'Paramètres - Admin'!$A10,"/")) -> / | O76: =IF(N76<>"/",VLOOKUP(N76,COSTS_Wall[#All],2),"/") -> / | P76: =IF(N76<>"/",VLOOKUP(N76,COSTS_Wall[#All],3),"/") -> / | Q76: 0 | R76: 0 | S76: 8 | T76: =IF(Paramètres!P13=0,"",Paramètres!P13) ->  | U76: 0 | V76: / | W76: =IF(Y$67="Error","Error",IF(AND($W$67<>"/",$W$67>'Paramètres - Admin'!$A9),'Paramètres - Admin'!$A10,"/")) -> / | X76: =IF(W76<>"/",VLOOKUP(W76,COSTS_Archer_Tower[#All],2),"/") -> / | Y76: =IF(W76<>"/",VLOOKUP(W76,COSTS_Archer_Tower[#All],3),"/") -> / | Z76: 0 | AA76: 0
A77: 9 | B77: =IF(Paramètres!O14=0,"",Paramètres!O14) ->  | C77: 0 | D77: / | E77: =IF(G$67="Error","Error",IF(AND($E$67<>"/",$E$67>'Paramètres - Admin'!$A10),'Paramètres - Admin'!$A11,"/")) -> / | F77: =IF(E77<>"/",VLOOKUP(E77,COSTS_Cannon[#All],2),"/") -> / | G77: =IF(E77<>"/",VLOOKUP(E77,COSTS_Cannon[#All],3),"/") -> / | H77: 0 | I77: 0 | J77: 9 | K77: =IF(Paramètres!N14=0,"",Paramètres!N14) ->  | L77: 0 | M77: / | N77: =IF(P$67="Error","Error",IF(AND($N$67<>"/",$N$67>'Paramètres - Admin'!$A10),'Paramètres - Admin'!$A11,"/")) -> / | O77: =IF(N77<>"/",VLOOKUP(N77,COSTS_Wall[#All],2),"/") -> / | P77: =IF(N77<>"/",VLOOKUP(N77,COSTS_Wall[#All],3),"/") -> / | Q77: 0 | R77: 0 | S77: 9 | T77: =IF(Paramètres!P14=0,"",Paramètres!P14) ->  | U77: 0 | V77: / | W77: =IF(Y$67="Error","Error",IF(AND($W$67<>"/",$W$67>'Paramètres - Admin'!$A10),'Paramètres - Admin'!$A11,"/")) -> / | X77: =IF(W77<>"/",VLOOKUP(W77,COSTS_Archer_Tower[#All],2),"/") -> / | Y77: =IF(W77<>"/",VLOOKUP(W77,COSTS_Archer_Tower[#All],3),"/") -> / | Z77: 0 | AA77: 0
A78: 10 | B78: =IF(Paramètres!O15=0,"",Paramètres!O15) ->  | C78: 0 | D78: / | E78: =IF(G$67="Error","Error",IF(AND($E$67<>"/",$E$67>'Paramètres - Admin'!$A11),'Paramètres - Admin'!$A12,"/")) -> / | F78: =IF(E78<>"/",VLOOKUP(E78,COSTS_Cannon[#All],2),"/") -> / | G78: =IF(E78<>"/",VLOOKUP(E78,COSTS_Cannon[#All],3),"/") -> / | H78: 0 | I78: 0 | J78: 10 | K78: =IF(Paramètres!N15=0,"",Paramètres!N15) ->  | L78: 0 | M78: / | N78: =IF(P$67="Error","Error",IF(AND($N$67<>"/",$N$67>'Paramètres - Admin'!$A11),'Paramètres - Admin'!$A12,"/")) -> / | O78: =IF(N78<>"/",VLOOKUP(N78,COSTS_Wall[#All],2),"/") -> / | P78: =IF(N78<>"/",VLOOKUP(N78,COSTS_Wall[#All],3),"/") -> / | Q78: 0 | R78: 0 | S78: 10 | T78: =IF(Paramètres!P15=0,"",Paramètres!P15) ->  | U78: 0 | V78: / | W78: =IF(Y$67="Error","Error",IF(AND($W$67<>"/",$W$67>'Paramètres - Admin'!$A11),'Paramètres - Admin'!$A12,"/")) -> / | X78: =IF(W78<>"/",VLOOKUP(W78,COSTS_Archer_Tower[#All],2),"/") -> / | Y78: =IF(W78<>"/",VLOOKUP(W78,COSTS_Archer_Tower[#All],3),"/") -> / | Z78: 0 | AA78: 0
A79: 11 | B79: =IF(Paramètres!O16=0,"",Paramètres!O16) ->  | C79: 0 | D79: / | E79: =IF(G$67="Error","Error",IF(AND($E$67<>"/",$E$67>'Paramètres - Admin'!$A12),'Paramètres - Admin'!$A13,"/")) -> / | F79: =IF(E79<>"/",VLOOKUP(E79,COSTS_Cannon[#All],2),"/") -> / | G79: =IF(E79<>"/",VLOOKUP(E79,COSTS_Cannon[#All],3),"/") -> / | H79: 0 | I79: 0 | J79: 11 | K79: =IF(Paramètres!N16=0,"",Paramètres!N16) ->  | L79: 0 | M79: / | N79: =IF(P$67="Error","Error",IF(AND($N$67<>"/",$N$67>'Paramètres - Admin'!$A12),'Paramètres - Admin'!$A13,"/")) -> / | O79: =IF(N79<>"/",VLOOKUP(N79,COSTS_Wall[#All],2),"/") -> / | P79: =IF(N79<>"/",VLOOKUP(N79,COSTS_Wall[#All],3),"/") -> / | Q79: 0 | R79: 0 | S79: 11 | T79: =IF(Paramètres!P16=0,"",Paramètres!P16) ->  | U79: 0 | V79: / | W79: =IF(Y$67="Error","Error",IF(AND($W$67<>"/",$W$67>'Paramètres - Admin'!$A12),'Paramètres - Admin'!$A13,"/")) -> / | X79: =IF(W79<>"/",VLOOKUP(W79,COSTS_Archer_Tower[#All],2),"/") -> / | Y79: =IF(W79<>"/",VLOOKUP(W79,COSTS_Archer_Tower[#All],3),"/") -> / | Z79: 0 | AA79: 0
A80: 12 | B80: =IF(Paramètres!O17=0,"",Paramètres!O17) ->  | C80: 0 | D80: / | E80: =IF(G$67="Error","Error",IF(AND($E$67<>"/",$E$67>'Paramètres - Admin'!$A13),'Paramètres - Admin'!$A14,"/")) -> / | F80: =IF(E80<>"/",VLOOKUP(E80,COSTS_Cannon[#All],2),"/") -> / | G80: =IF(E80<>"/",VLOOKUP(E80,COSTS_Cannon[#All],3),"/") -> / | H80: 0 | I80: 0 | J80: 12 | K80: =IF(Paramètres!N17=0,"",Paramètres!N17) ->  | L80: 0 | M80: =IF(N80<>"/",IF(P$67="Error","Error",$Q$67+L80),"/") -> / | N80: =IF(P$67="Error","Error",IF(AND($N$67<>"/",$N$67>'Paramètres - Admin'!$A13),'Paramètres - Admin'!$A14,"/")) -> / | O80: =IF(N80<>"/",VLOOKUP(N80,COSTS_Wall[#All],2),"/") -> / | P80: =IF(N80<>"/",VLOOKUP(N80,COSTS_Wall[#All],3),"/") -> / | Q80: =IF(P$67="Error","Error",IF(O80<>"/",M80*O80,0)) -> 0 | R80: =IF(P$67="Error","Error",IF(P80<>"/",M80*P80,0)) -> 0 | S80: 12 | T80: =IF(Paramètres!P17=0,"",Paramètres!P17) ->  | U80: 0 | V80: / | W80: =IF(Y$67="Error","Error",IF(AND($W$67<>"/",$W$67>'Paramètres - Admin'!$A13),'Paramètres - Admin'!$A14,"/")) -> / | X80: =IF(W80<>"/",VLOOKUP(W80,COSTS_Archer_Tower[#All],2),"/") -> / | Y80: =IF(W80<>"/",VLOOKUP(W80,COSTS_Archer_Tower[#All],3),"/") -> / | Z80: 0 | AA80: 0
A81: 13 | B81: =IF(Paramètres!O18=0,"",Paramètres!O18) ->  | C81: 0 | D81: / | E81: =IF(G$67="Error","Error",IF(AND($E$67<>"/",$E$67>'Paramètres - Admin'!$A14),'Paramètres - Admin'!$A15,"/")) -> / | F81: =IF(E81<>"/",VLOOKUP(E81,COSTS_Cannon[#All],2),"/") -> / | G81: =IF(E81<>"/",VLOOKUP(E81,COSTS_Cannon[#All],3),"/") -> / | H81: 0 | I81: 0 | P81: Total | Q81: =IF(P$67="Error","Error",SUM(Q69:Q80)) -> 0 | R81: =IF(P$67="Error","Error",SUM(R69:R79)) -> 0 | S81: 13 | T81: =IF(Paramètres!P18=0,"",Paramètres!P18) ->  | U81: 0 | V81: / | W81: =IF(Y$67="Error","Error",IF(AND($W$67<>"/",$W$67>'Paramètres - Admin'!$A14),'Paramètres - Admin'!$A15,"/")) -> / | X81: =IF(W81<>"/",VLOOKUP(W81,COSTS_Archer_Tower[#All],2),"/") -> / | Y81: =IF(W81<>"/",VLOOKUP(W81,COSTS_Archer_Tower[#All],3),"/") -> / | Z81: 0 | AA81: 0
A82: 14 | B82: =IF(Paramètres!O19=0,"",Paramètres!O19) ->  | C82: 0 | D82: / | E82: =IF(G$67="Error","Error",IF(AND($E$67<>"/",$E$67>'Paramètres - Admin'!$A15),'Paramètres - Admin'!$A16,"/")) -> / | F82: =IF(E82<>"/",VLOOKUP(E82,COSTS_Cannon[#All],2),"/") -> / | G82: =IF(E82<>"/",VLOOKUP(E82,COSTS_Cannon[#All],3),"/") -> / | H82: 0 | I82: 0 | J82: Propulseur d'air | M82: Max | N82: Max + | P82: Actuel | Q82: À Faire | R82: Améliorations | Y82: Total | Z82: =IF(Y$67="Error","Error",SUM(Z69:Z81)) -> 0 | AA82: =IF(Y$67="Error","Error",SUM(AA69:AA81)) -> 0
G83: Total | H83: =IF(G$67="Error","Error",SUM(H69:H82)) -> 2500 | I83: =IF(G$67="Error","Error",SUM(I69:I82)) -> 0.5333333333 | M83: =VLOOKUP($A$2,AVAILABLE_Buildings_Defensive[#All],MATCH(J82,AVAILABLE_Buildings_Defensive[#Headers],0)) -> 0 | N83: =VLOOKUP($A$2,AVAILABLE_Buildings_Defensive[#All],MATCH(J82,AVAILABLE_Buildings_Defensive[#Headers],0)+1) -> 0 | P83: =IF(SUM(K85:K90)>M83,"Error",SUM(K85:K90)) -> 0 | Q83: =IF(P$83="Error","Error",M83-P83) -> 0 | R83: =IF(P$83="Error","Error",SUM(M85:M90)) -> 0 | S83: Mortier | V83: Max | W83: Max + | Y83: Actuel | Z83: À Faire | AA83: Améliorations
A84: Tour de Sorciers | D84: Max | E84: Max + | G84: Actuel | H84: À Faire | I84: Améliorations | J84: + | K84: NB | M84: NB | N84: + | O84: Coût | P84: Temps | Q84: Coût Total | R84: Temps Total | V84: =VLOOKUP($A$2,AVAILABLE_Buildings_Defensive[#All],MATCH(S83,AVAILABLE_Buildings_Defensive[#Headers],0)) -> 0 | W84: =VLOOKUP($A$2,AVAILABLE_Buildings_Defensive[#All],MATCH(S83,AVAILABLE_Buildings_Defensive[#Headers],0)+1) -> 0 | Y84: =IF(SUM(T86:T95)>V84,"Error",SUM(T86:T95)) -> 0 | Z84: =IF(Y$84="Error","Error",V84-Y84) -> 0 | AA84: =IF(Y$84="Error","Error",SUM(V86:V94)) -> 0
D85: =VLOOKUP($A$2,AVAILABLE_Buildings_Defensive[#All],MATCH(A84,AVAILABLE_Buildings_Defensive[#Headers],0)) -> 0 | E85: =VLOOKUP($A$2,AVAILABLE_Buildings_Defensive[#All],MATCH(A84,AVAILABLE_Buildings_Defensive[#Headers],0)+1) -> 0 | G85: =IF(SUM(B87:B96)>D85,"Error",SUM(B87:B96)) -> 0 | H85: =IF(G$85="Error","Error",D85-G85) -> 0 | I85: =IF(G$85="Error","Error",SUM(D87:D95)) -> 0 | J85: 1 | K85: =IF(Paramètres!T6=0,"",Paramètres!T6) ->  | L85: =IF(L84<>0,L84+IF(AND(K84<>"",J84<N$83),K84,0),IF(AND(K84<>"",J84<N$83),K84,0)) -> 0 | M85: =IF(N85<>"/",IF(P$83="Error","Error",$Q$83+L85),"/") -> / | N85: =IF(P$83="Error","Error",IF(AND($N$83<>"/",$N$83>'Paramètres - Admin'!$A2),'Paramètres - Admin'!$A3,"/")) -> / | O85: =IF(N85<>"/",VLOOKUP(N85,COSTS_Air_Sweeper[#All],2),"/") -> / | P85: =IF(N85<>"/",VLOOKUP(N85,COSTS_Air_Sweeper[#All],3),"/") -> / | Q85: =IF(P$83="Error","Error",IF(O85<>"/",M85*O85,0)) -> 0 | R85: =IF(P$83="Error","Error",IF(P85<>"/",M85*P85,0)) -> 0 | S85: + | T85: NB | V85: NB | W85: + | X85: Coût | Y85: Temps | Z85: Coût Total | AA85: Temps Total
A86: + | B86: NB | D86: NB | E86: + | F86: Coût | G86: Temps | H86: Coût Total | I86: Temps Total | J86: 2 | K86: =IF(Paramètres!T7=0,"",Paramètres!T7) ->  | L86: 0 | M86: / | N86: =IF(P$83="Error","Error",IF(AND($N$83<>"/",$N$83>'Paramètres - Admin'!$A3),'Paramètres - Admin'!$A4,"/")) -> / | O86: =IF(N86<>"/",VLOOKUP(N86,COSTS_Air_Sweeper[#All],2),"/") -> / | P86: =IF(N86<>"/",VLOOKUP(N86,COSTS_Air_Sweeper[#All],3),"/") -> / | Q86: 0 | R86: 0 | S86: 1 | T86: =IF(Paramètres!Q6=0,"",Paramètres!Q6) ->  | U86: =IF(U85<>0,U85+IF(AND(T85<>"",S85<W$84),T85,0),IF(AND(T85<>"",S85<W$84),T85,0)) -> 0 | V86: =IF(W86<>"/",IF(Y$84="Error","Error",$Z$84+U86),"/") -> / | W86: =IF(Y$84="Error","Error",IF(AND($W$84<>"/",$W$84>'Paramètres - Admin'!$A2),'Paramètres - Admin'!$A3,"/")) -> / | X86: =IF(W86<>"/",VLOOKUP(W86,COSTS_Mortar[#All],2),"/") -> / | Y86: =IF(W86<>"/",VLOOKUP(W86,COSTS_Mortar[#All],3),"/") -> / | Z86: =IF(Y$84="Error","Error",IF(X86<>"/",V86*X86,0)) -> 0 | AA86: =IF(Y$84="Error","Error",IF(Y86<>"/",V86*Y86,0)) -> 0
A87: 1 | B87: =IF(Paramètres!S6=0,"",Paramètres!S6) ->  | C87: =IF(C86<>0,C86+IF(AND(B86<>"",A86<E$85),B86,0),IF(AND(B86<>"",A86<E$85),B86,0)) -> 0 | D87: =IF(E87<>"/",IF(G$85="Error","Error",$H$85+C87),"/") -> / | E87: =IF(G$85="Error","Error",IF(AND($E$85<>"/",$E$85>'Paramètres - Admin'!$A2),'Paramètres - Admin'!$A3,"/")) -> / | F87: =IF(E87<>"/",VLOOKUP(E87,COSTS_Wizard_Tower[#All],2),"/") -> / | G87: =IF(E87<>"/",VLOOKUP(E87,COSTS_Wizard_Tower[#All],3),"/") -> / | H87: =IF(G$85="Error","Error",IF(F87<>"/",D87*F87,0)) -> 0 | I87: =IF(G$85="Error","Error",IF(G87<>"/",D87*G87,0)) -> 0 | J87: 3 | K87: =IF(Paramètres!T8=0,"",Paramètres!T8) ->  | L87: 0 | M87: / | N87: =IF(P$83="Error","Error",IF(AND($N$83<>"/",$N$83>'Paramètres - Admin'!$A4),'Paramètres - Admin'!$A5,"/")) -> / | O87: =IF(N87<>"/",VLOOKUP(N87,COSTS_Air_Sweeper[#All],2),"/") -> / | P87: =IF(N87<>"/",VLOOKUP(N87,COSTS_Air_Sweeper[#All],3),"/") -> / | Q87: 0 | R87: 0 | S87: 2 | T87: =IF(Paramètres!Q7=0,"",Paramètres!Q7) ->  | U87: 0 | V87: / | W87: =IF(Y$84="Error","Error",IF(AND($W$84<>"/",$W$84>'Paramètres - Admin'!$A3),'Paramètres - Admin'!$A4,"/")) -> / | X87: =IF(W87<>"/",VLOOKUP(W87,COSTS_Mortar[#All],2),"/") -> / | Y87: =IF(W87<>"/",VLOOKUP(W87,COSTS_Mortar[#All],3),"/") -> / | Z87: 0 | AA87: 0
A88: 2 | B88: =IF(Paramètres!S7=0,"",Paramètres!S7) ->  | C88: 0 | D88: / | E88: =IF(G$85="Error","Error",IF(AND($E$85<>"/",$E$85>'Paramètres - Admin'!$A3),'Paramètres - Admin'!$A4,"/")) -> / | F88: =IF(E88<>"/",VLOOKUP(E88,COSTS_Wizard_Tower[#All],2),"/") -> / | G88: =IF(E88<>"/",VLOOKUP(E88,COSTS_Wizard_Tower[#All],3),"/") -> / | H88: 0 | I88: 0 | J88: 4 | K88: =IF(Paramètres!T9=0,"",Paramètres!T9) ->  | L88: 0 | M88: / | N88: =IF(P$83="Error","Error",IF(AND($N$83<>"/",$N$83>'Paramètres - Admin'!$A5),'Paramètres - Admin'!$A6,"/")) -> / | O88: =IF(N88<>"/",VLOOKUP(N88,COSTS_Air_Sweeper[#All],2),"/") -> / | P88: =IF(N88<>"/",VLOOKUP(N88,COSTS_Air_Sweeper[#All],3),"/") -> / | Q88: 0 | R88: 0 | S88: 3 | T88: =IF(Paramètres!Q8=0,"",Paramètres!Q8) ->  | U88: 0 | V88: / | W88: =IF(Y$84="Error","Error",IF(AND($W$84<>"/",$W$84>'Paramètres - Admin'!$A4),'Paramètres - Admin'!$A5,"/")) -> / | X88: =IF(W88<>"/",VLOOKUP(W88,COSTS_Mortar[#All],2),"/") -> / | Y88: =IF(W88<>"/",VLOOKUP(W88,COSTS_Mortar[#All],3),"/") -> / | Z88: 0 | AA88: 0
A89: 3 | B89: =IF(Paramètres!S8=0,"",Paramètres!S8) ->  | C89: 0 | D89: / | E89: =IF(G$85="Error","Error",IF(AND($E$85<>"/",$E$85>'Paramètres - Admin'!$A4),'Paramètres - Admin'!$A5,"/")) -> / | F89: =IF(E89<>"/",VLOOKUP(E89,COSTS_Wizard_Tower[#All],2),"/") -> / | G89: =IF(E89<>"/",VLOOKUP(E89,COSTS_Wizard_Tower[#All],3),"/") -> / | H89: 0 | I89: 0 | J89: 5 | K89: =IF(Paramètres!T10=0,"",Paramètres!T10) ->  | L89: 0 | M89: / | N89: =IF(P$83="Error","Error",IF(AND($N$83<>"/",$N$83>'Paramètres - Admin'!$A6),'Paramètres - Admin'!$A7,"/")) -> / | O89: =IF(N89<>"/",VLOOKUP(N89,COSTS_Air_Sweeper[#All],2),"/") -> / | P89: =IF(N89<>"/",VLOOKUP(N89,COSTS_Air_Sweeper[#All],3),"/") -> / | Q89: 0 | R89: 0 | S89: 4 | T89: =IF(Paramètres!Q9=0,"",Paramètres!Q9) ->  | U89: 0 | V89: / | W89: =IF(Y$84="Error","Error",IF(AND($W$84<>"/",$W$84>'Paramètres - Admin'!$A5),'Paramètres - Admin'!$A6,"/")) -> / | X89: =IF(W89<>"/",VLOOKUP(W89,COSTS_Mortar[#All],2),"/") -> / | Y89: =IF(W89<>"/",VLOOKUP(W89,COSTS_Mortar[#All],3),"/") -> / | Z89: 0 | AA89: 0
A90: 4 | B90: =IF(Paramètres!S9=0,"",Paramètres!S9) ->  | C90: 0 | D90: / | E90: =IF(G$85="Error","Error",IF(AND($E$85<>"/",$E$85>'Paramètres - Admin'!$A5),'Paramètres - Admin'!$A6,"/")) -> / | F90: =IF(E90<>"/",VLOOKUP(E90,COSTS_Wizard_Tower[#All],2),"/") -> / | G90: =IF(E90<>"/",VLOOKUP(E90,COSTS_Wizard_Tower[#All],3),"/") -> / | H90: 0 | I90: 0 | J90: 6 | K90: =IF(Paramètres!T11=0,"",Paramètres!T11) ->  | L90: 0 | M90: / | N90: =IF(P$83="Error","Error",IF(AND($N$83<>"/",$N$83>'Paramètres - Admin'!$A7),'Paramètres - Admin'!$A8,"/")) -> / | O90: =IF(N90<>"/",VLOOKUP(N90,COSTS_Air_Sweeper[#All],2),"/") -> / | P90: =IF(N90<>"/",VLOOKUP(N90,COSTS_Air_Sweeper[#All],3),"/") -> / | Q90: 0 | R90: 0 | S90: 5 | T90: =IF(Paramètres!Q10=0,"",Paramètres!Q10) ->  | U90: 0 | V90: / | W90: =IF(Y$84="Error","Error",IF(AND($W$84<>"/",$W$84>'Paramètres - Admin'!$A6),'Paramètres - Admin'!$A7,"/")) -> / | X90: =IF(W90<>"/",VLOOKUP(W90,COSTS_Mortar[#All],2),"/") -> / | Y90: =IF(W90<>"/",VLOOKUP(W90,COSTS_Mortar[#All],3),"/") -> / | Z90: 0 | AA90: 0
A91: 5 | B91: =IF(Paramètres!S10=0,"",Paramètres!S10) ->  | C91: 0 | D91: / | E91: =IF(G$85="Error","Error",IF(AND($E$85<>"/",$E$85>'Paramètres - Admin'!$A6),'Paramètres - Admin'!$A7,"/")) -> / | F91: =IF(E91<>"/",VLOOKUP(E91,COSTS_Wizard_Tower[#All],2),"/") -> / | G91: =IF(E91<>"/",VLOOKUP(E91,COSTS_Wizard_Tower[#All],3),"/") -> / | H91: 0 | I91: 0 | P91: Total | Q91: =IF(P$83="Error","Error",SUM(Q85:Q90)) -> 0 | R91: =IF(P$83="Error","Error",SUM(R85:R90)) -> 0 | S91: 6 | T91: =IF(Paramètres!Q11=0,"",Paramètres!Q11) ->  | U91: 0 | V91: / | W91: =IF(Y$84="Error","Error",IF(AND($W$84<>"/",$W$84>'Paramètres - Admin'!$A7),'Paramètres - Admin'!$A8,"/")) -> / | X91: =IF(W91<>"/",VLOOKUP(W91,COSTS_Mortar[#All],2),"/") -> / | Y91: =IF(W91<>"/",VLOOKUP(W91,COSTS_Mortar[#All],3),"/") -> / | Z91: 0 | AA91: 0
A92: 6 | B92: =IF(Paramètres!S11=0,"",Paramètres!S11) ->  | C92: 0 | D92: / | E92: =IF(G$85="Error","Error",IF(AND($E$85<>"/",$E$85>'Paramètres - Admin'!$A7),'Paramètres - Admin'!$A8,"/")) -> / | F92: =IF(E92<>"/",VLOOKUP(E92,COSTS_Wizard_Tower[#All],2),"/") -> / | G92: =IF(E92<>"/",VLOOKUP(E92,COSTS_Wizard_Tower[#All],3),"/") -> / | H92: 0 | I92: 0 | J92: Défense Antiaérienne | M92: Max | N92: Max + | P92: Actuel | Q92: À Faire | R92: Améliorations | S92: 7 | T92: =IF(Paramètres!Q12=0,"",Paramètres!Q12) ->  | U92: 0 | V92: / | W92: =IF(Y$84="Error","Error",IF(AND($W$84<>"/",$W$84>'Paramètres - Admin'!$A8),'Paramètres - Admin'!$A9,"/")) -> / | X92: =IF(W92<>"/",VLOOKUP(W92,COSTS_Mortar[#All],2),"/") -> / | Y92: =IF(W92<>"/",VLOOKUP(W92,COSTS_Mortar[#All],3),"/") -> / | Z92: 0 | AA92: 0
A93: 7 | B93: =IF(Paramètres!S12=0,"",Paramètres!S12) ->  | C93: 0 | D93: / | E93: =IF(G$85="Error","Error",IF(AND($E$85<>"/",$E$85>'Paramètres - Admin'!$A8),'Paramètres - Admin'!$A9,"/")) -> / | F93: =IF(E93<>"/",VLOOKUP(E93,COSTS_Wizard_Tower[#All],2),"/") -> / | G93: =IF(E93<>"/",VLOOKUP(E93,COSTS_Wizard_Tower[#All],3),"/") -> / | H93: 0 | I93: 0 | M93: =VLOOKUP($A$2,AVAILABLE_Buildings_Defensive[#All],MATCH(J92,AVAILABLE_Buildings_Defensive[#Headers],0)) -> 0 | N93: =VLOOKUP($A$2,AVAILABLE_Buildings_Defensive[#All],MATCH(J92,AVAILABLE_Buildings_Defensive[#Headers],0)+1) -> 0 | P93: =IF(SUM(K95:K102)>M93,"Error",SUM(K95:K102)) -> 0 | Q93: =IF(P$93="Error","Error",M93-P93) -> 0 | R93: =IF(P$93="Error","Error",SUM(M95:M102)) -> 0 | S93: 8 | T93: =IF(Paramètres!Q13=0,"",Paramètres!Q13) ->  | U93: 0 | V93: / | W93: =IF(Y$84="Error","Error",IF(AND($W$84<>"/",$W$84>'Paramètres - Admin'!$A9),'Paramètres - Admin'!$A10,"/")) -> / | X93: =IF(W93<>"/",VLOOKUP(W93,COSTS_Mortar[#All],2),"/") -> / | Y93: =IF(W93<>"/",VLOOKUP(W93,COSTS_Mortar[#All],3),"/") -> / | Z93: 0 | AA93: 0
A94: 8 | B94: =IF(Paramètres!S13=0,"",Paramètres!S13) ->  | C94: 0 | D94: / | E94: =IF(G$85="Error","Error",IF(AND($E$85<>"/",$E$85>'Paramètres - Admin'!$A9),'Paramètres - Admin'!$A10,"/")) -> / | F94: =IF(E94<>"/",VLOOKUP(E94,COSTS_Wizard_Tower[#All],2),"/") -> / | G94: =IF(E94<>"/",VLOOKUP(E94,COSTS_Wizard_Tower[#All],3),"/") -> / | H94: 0 | I94: 0 | J94: + | K94: NB | M94: NB | N94: + | O94: Coût | P94: Temps | Q94: Coût Total | R94: Temps Total | S94: 9 | T94: =IF(Paramètres!Q14=0,"",Paramètres!Q14) ->  | U94: 0 | V94: / | W94: =IF(Y$84="Error","Error",IF(AND($W$84<>"/",$W$84>'Paramètres - Admin'!$A10),'Paramètres - Admin'!$A11,"/")) -> / | X94: =IF(W94<>"/",VLOOKUP(W94,COSTS_Mortar[#All],2),"/") -> / | Y94: =IF(W94<>"/",VLOOKUP(W94,COSTS_Mortar[#All],3),"/") -> / | Z94: 0 | AA94: 0
A95: 9 | B95: =IF(Paramètres!S14=0,"",Paramètres!S14) ->  | C95: 0 | D95: / | E95: =IF(G$85="Error","Error",IF(AND($E$85<>"/",$E$85>'Paramètres - Admin'!$A10),'Paramètres - Admin'!$A11,"/")) -> / | F95: =IF(E95<>"/",VLOOKUP(E95,COSTS_Wizard_Tower[#All],2),"/") -> / | G95: =IF(E95<>"/",VLOOKUP(E95,COSTS_Wizard_Tower[#All],3),"/") -> / | H95: 0 | I95: 0 | J95: 1 | K95: =IF(Paramètres!R6=0,"",Paramètres!R6) ->  | L95: =IF(L94<>0,L94+IF(AND(K94<>"",J94<N$93),K94,0),IF(AND(K94<>"",J94<N$93),K94,0)) -> 0 | M95: =IF(N95<>"/",IF(P$93="Error","Error",$Q$93+L95),"/") -> / | N95: =IF(P$93="Error","Error",IF(AND($N$93<>"/",$N$93>'Paramètres - Admin'!$A2),'Paramètres - Admin'!$A3,"/")) -> / | O95: =IF(N95<>"/",VLOOKUP(N95,COSTS_Air_Defense[#All],2),"/") -> / | P95: =IF(N95<>"/",VLOOKUP(N95,COSTS_Air_Defense[#All],3),"/") -> / | Q95: =IF(P$93="Error","Error",IF(O95<>"/",M95*O95,0)) -> 0 | R95: =IF(P$93="Error","Error",IF(P95<>"/",M95*P95,0)) -> 0 | S95: 9 | T95: =IF(Paramètres!Q15=0,"",Paramètres!Q15) ->  | U95: 0 | V95: =IF(W95<>"/",IF(Y$84="Error","Error",$Z$84+U95),"/") -> / | W95: =IF(Y$84="Error","Error",IF(AND($W$84<>"/",$W$84>'Paramètres - Admin'!$A11),'Paramètres - Admin'!$A12,"/")) -> / | X95: =IF(W95<>"/",VLOOKUP(W95,COSTS_Mortar[#All],2),"/") -> / | Y95: =IF(W95<>"/",VLOOKUP(W95,COSTS_Mortar[#All],3),"/") -> / | Z95: =IF(Y$84="Error","Error",IF(X95<>"/",V95*X95,0)) -> 0 | AA95: =IF(Y$84="Error","Error",IF(Y95<>"/",V95*Y95,0)) -> 0
A96: 9 | B96: =IF(Paramètres!S15=0,"",Paramètres!S15) ->  | C96: 0 | D96: =IF(E96<>"/",IF(G$85="Error","Error",$H$85+C96),"/") -> / | E96: =IF(G$85="Error","Error",IF(AND($E$85<>"/",$E$85>'Paramètres - Admin'!$A11),'Paramètres - Admin'!$A12,"/")) -> / | F96: =IF(E96<>"/",VLOOKUP(E96,COSTS_Wizard_Tower[#All],2),"/") -> / | G96: =IF(E96<>"/",VLOOKUP(E96,COSTS_Wizard_Tower[#All],3),"/") -> / | H96: 0 | I96: =IF(G$85="Error","Error",IF(G96<>"/",D96*G96,0)) -> 0 | J96: 2 | K96: =IF(Paramètres!R7=0,"",Paramètres!R7) ->  | L96: 0 | M96: / | N96: =IF(P$93="Error","Error",IF(AND($N$93<>"/",$N$93>'Paramètres - Admin'!$A3),'Paramètres - Admin'!$A4,"/")) -> / | O96: =IF(N96<>"/",VLOOKUP(N96,COSTS_Air_Defense[#All],2),"/") -> / | P96: =IF(N96<>"/",VLOOKUP(N96,COSTS_Air_Defense[#All],3),"/") -> / | Q96: 0 | R96: 0 | Y96: Total | Z96: =IF(Y$84="Error","Error",SUM(Z86:Z95)) -> 0 | AA96: =IF(Y$84="Error","Error",SUM(AA86:AA94)) -> 0
G97: Total | H97: =IF(G$85="Error","Error",SUM(H87:H96)) -> 0 | I97: =IF(G$85="Error","Error",SUM(I87:I95)) -> 0 | J97: 3 | K97: =IF(Paramètres!R8=0,"",Paramètres!R8) ->  | L97: 0 | M97: / | N97: =IF(P$93="Error","Error",IF(AND($N$93<>"/",$N$93>'Paramètres - Admin'!$A4),'Paramètres - Admin'!$A5,"/")) -> / | O97: =IF(N97<>"/",VLOOKUP(N97,COSTS_Air_Defense[#All],2),"/") -> / | P97: =IF(N97<>"/",VLOOKUP(N97,COSTS_Air_Defense[#All],3),"/") -> / | Q97: 0 | R97: 0 | S97: Tesla Camouflée | V97: Max | W97: Max + | Y97: Actuel | Z97: À Faire | AA97: Améliorations
A98: Tour de l'Enfer | D98: Max | E98: Max + | G98: Actuel | H98: À Faire | I98: Améliorations | J98: 4 | K98: =IF(Paramètres!R9=0,"",Paramètres!R9) ->  | L98: 0 | M98: / | N98: =IF(P$93="Error","Error",IF(AND($N$93<>"/",$N$93>'Paramètres - Admin'!$A5),'Paramètres - Admin'!$A6,"/")) -> / | O98: =IF(N98<>"/",VLOOKUP(N98,COSTS_Air_Defense[#All],2),"/") -> / | P98: =IF(N98<>"/",VLOOKUP(N98,COSTS_Air_Defense[#All],3),"/") -> / | Q98: 0 | R98: 0 | V98: =VLOOKUP($A$2,AVAILABLE_Buildings_Defensive[#All],MATCH(S97,AVAILABLE_Buildings_Defensive[#Headers],0)) -> 0 | W98: =VLOOKUP($A$2,AVAILABLE_Buildings_Defensive[#All],MATCH(S97,AVAILABLE_Buildings_Defensive[#Headers],0)+1) -> 0 | Y98: =IF(SUM(T100:T108)>V98,"Error",SUM(T100:T108)) -> 0 | Z98: =IF(Y$98="Error","Error",V98-Y98) -> 0 | AA98: =IF(Y$98="Error","Error",SUM(V100:V107)) -> 0
D99: =VLOOKUP($A$2,AVAILABLE_Buildings_Defensive[#All],MATCH(A98,AVAILABLE_Buildings_Defensive[#Headers],0)) -> 0 | E99: =VLOOKUP($A$2,AVAILABLE_Buildings_Defensive[#All],MATCH(A98,AVAILABLE_Buildings_Defensive[#Headers],0)+1) -> 0 | G99: =IF(SUM(B101:B104)>D99,"Error",SUM(B101:B104)) -> 0 | H99: =IF(G$99="Error","Error",D99-G99) -> 0 | I99: =IF(G$99="Error","Error",SUM(D101:D104)) -> 0 | J99: 5 | K99: =IF(Paramètres!R10=0,"",Paramètres!R10) ->  | L99: 0 | M99: / | N99: =IF(P$93="Error","Error",IF(AND($N$93<>"/",$N$93>'Paramètres - Admin'!$A6),'Paramètres - Admin'!$A7,"/")) -> / | O99: =IF(N99<>"/",VLOOKUP(N99,COSTS_Air_Defense[#All],2),"/") -> / | P99: =IF(N99<>"/",VLOOKUP(N99,COSTS_Air_Defense[#All],3),"/") -> / | Q99: 0 | R99: 0 | S99: + | T99: NB | V99: NB | W99: + | X99: Coût | Y99: Temps | Z99: Coût Total | AA99: Temps Total
A100: + | B100: NB | D100: NB | E100: + | F100: Coût | G100: Temps | H100: Coût Total | I100: Temps Total | J100: 6 | K100: =IF(Paramètres!R11=0,"",Paramètres!R11) ->  | L100: 0 | M100: / | N100: =IF(P$93="Error","Error",IF(AND($N$93<>"/",$N$93>'Paramètres - Admin'!$A7),'Paramètres - Admin'!$A8,"/")) -> / | O100: =IF(N100<>"/",VLOOKUP(N100,COSTS_Air_Defense[#All],2),"/") -> / | P100: =IF(N100<>"/",VLOOKUP(N100,COSTS_Air_Defense[#All],3),"/") -> / | Q100: 0 | R100: 0 | S100: 1 | T100: =IF(Paramètres!U6=0,"",Paramètres!U6) ->  | U100: =IF(U99<>0,U99+IF(AND(T99<>"",S99<W$98),T99,0),IF(AND(T99<>"",S99<W$98),T99,0)) -> 0 | V100: =IF(W100<>"/",IF(Y$98="Error","Error",$Z$98+U100),"/") -> / | W100: =IF(Y$98="Error","Error",IF(AND($W$98<>"/",$W$98>'Paramètres - Admin'!$A2),'Paramètres - Admin'!$A3,"/")) -> / | X100: =IF(W100<>"/",VLOOKUP(W100,COSTS_Hidden_Tesla[#All],2),"/") -> / | Y100: =IF(W100<>"/",VLOOKUP(W100,COSTS_Hidden_Tesla[#All],3),"/") -> / | Z100: =IF(Y$98="Error","Error",IF(X100<>"/",V100*X100,0)) -> 0 | AA100: =IF(Y$98="Error","Error",IF(Y100<>"/",V100*Y100,0)) -> 0
A101: 1 | B101: =IF(Paramètres!W6=0,"",Paramètres!W6) ->  | C101: =IF(C100<>0,C100+IF(AND(B100<>"",A100<E$99),B100,0),IF(AND(B100<>"",A100<E$99),B100,0)) -> 0 | D101: =IF(E101<>"/",IF(G$99="Error","Error",$H$99+C101),"/") -> / | E101: =IF(G$99="Error","Error",IF(AND($E$99<>"/",$E$99>'Paramètres - Admin'!$A2),'Paramètres - Admin'!$A3,"/")) -> / | F101: =IF(E101<>"/",VLOOKUP(E101,COSTS_Inferno_Tower[#All],2),"/") -> / | G101: =IF(E101<>"/",VLOOKUP(E101,COSTS_Inferno_Tower[#All],3),"/") -> / | H101: =IF(G$99="Error","Error",IF(F101<>"/",D101*F101,0)) -> 0 | I101: =IF(G$99="Error","Error",IF(G101<>"/",D101*G101,0)) -> 0 | J101: 7 | K101: =IF(Paramètres!R12=0,"",Paramètres!R12) ->  | L101: 0 | M101: / | N101: =IF(P$93="Error","Error",IF(AND($N$93<>"/",$N$93>'Paramètres - Admin'!$A8),'Paramètres - Admin'!$A9,"/")) -> / | O101: =IF(N101<>"/",VLOOKUP(N101,COSTS_Air_Defense[#All],2),"/") -> / | P101: =IF(N101<>"/",VLOOKUP(N101,COSTS_Air_Defense[#All],3),"/") -> / | Q101: 0 | R101: 0 | S101: 2 | T101: =IF(Paramètres!U7=0,"",Paramètres!U7) ->  | U101: =IF(U100<>0,U100+IF(AND(T100<>"",S100<W$98),T100,0),IF(AND(T100<>"",S100<W$98),T100,0)) -> 0 | V101: / | W101: =IF(Y$98="Error","Error",IF(AND($W$98<>"/",$W$98>'Paramètres - Admin'!$A3),'Paramètres - Admin'!$A4,"/")) -> / | X101: =IF(W101<>"/",VLOOKUP(W101,COSTS_Hidden_Tesla[#All],2),"/") -> / | Y101: =IF(W101<>"/",VLOOKUP(W101,COSTS_Hidden_Tesla[#All],3),"/") -> / | Z101: 0 | AA101: 0
A102: 2 | B102: =IF(Paramètres!W7=0,"",Paramètres!W7) ->  | C102: =IF(C101<>0,C101+IF(AND(B101<>"",A101<E$99),B101,0),IF(AND(B101<>"",A101<E$99),B101,0)) -> 0 | D102: =IF(E102<>"/",IF(G$99="Error","Error",$H$99+C102),"/") -> / | E102: =IF(G$99="Error","Error",IF(AND($E$99<>"/",$E$99>'Paramètres - Admin'!$A3),'Paramètres - Admin'!$A4,"/")) -> / | F102: =IF(E102<>"/",VLOOKUP(E102,COSTS_Inferno_Tower[#All],2),"/") -> / | G102: =IF(E102<>"/",VLOOKUP(E102,COSTS_Inferno_Tower[#All],3),"/") -> / | H102: =IF(G$99="Error","Error",IF(F102<>"/",D102*F102,0)) -> 0 | I102: =IF(G$99="Error","Error",IF(G102<>"/",D102*G102,0)) -> 0 | J102: 8 | K102: =IF(Paramètres!R13=0,"",Paramètres!R13) ->  | L102: 0 | M102: / | N102: =IF(P$93="Error","Error",IF(AND($N$93<>"/",$N$93>'Paramètres - Admin'!$A9),'Paramètres - Admin'!$A10,"/")) -> / | O102: =IF(N102<>"/",VLOOKUP(N102,COSTS_Air_Defense[#All],2),"/") -> / | P102: =IF(N102<>"/",VLOOKUP(N102,COSTS_Air_Defense[#All],3),"/") -> / | Q102: 0 | R102: 0 | S102: 3 | T102: =IF(Paramètres!U8=0,"",Paramètres!U8) ->  | U102: =IF(U101<>0,U101+IF(AND(T101<>"",S101<W$98),T101,0),IF(AND(T101<>"",S101<W$98),T101,0)) -> 0 | V102: / | W102: =IF(Y$98="Error","Error",IF(AND($W$98<>"/",$W$98>'Paramètres - Admin'!$A4),'Paramètres - Admin'!$A5,"/")) -> / | X102: =IF(W102<>"/",VLOOKUP(W102,COSTS_Hidden_Tesla[#All],2),"/") -> / | Y102: =IF(W102<>"/",VLOOKUP(W102,COSTS_Hidden_Tesla[#All],3),"/") -> / | Z102: 0 | AA102: 0
A103: 3 | B103: =IF(Paramètres!W8=0,"",Paramètres!W8) ->  | C103: =IF(C102<>0,C102+IF(AND(B102<>"",A102<E$99),B102,0),IF(AND(B102<>"",A102<E$99),B102,0)) -> 0 | D103: =IF(E103<>"/",IF(G$99="Error","Error",$H$99+C103),"/") -> / | E103: =IF(G$99="Error","Error",IF(AND($E$99<>"/",$E$99>'Paramètres - Admin'!$A4),'Paramètres - Admin'!$A5,"/")) -> / | F103: =IF(E103<>"/",VLOOKUP(E103,COSTS_Inferno_Tower[#All],2),"/") -> / | G103: =IF(E103<>"/",VLOOKUP(E103,COSTS_Inferno_Tower[#All],3),"/") -> / | H103: =IF(G$99="Error","Error",IF(F103<>"/",D103*F103,0)) -> 0 | I103: =IF(G$99="Error","Error",IF(G103<>"/",D103*G103,0)) -> 0 | P103: Total | Q103: =IF(P$93="Error","Error",SUM(Q95:Q102)) -> 0 | R103: =IF(P$93="Error","Error",SUM(R95:R102)) -> 0 | S103: 4 | T103: =IF(Paramètres!U9=0,"",Paramètres!U9) ->  | U103: =IF(U102<>0,U102+IF(AND(T102<>"",S102<W$98),T102,0),IF(AND(T102<>"",S102<W$98),T102,0)) -> 0 | V103: / | W103: =IF(Y$98="Error","Error",IF(AND($W$98<>"/",$W$98>'Paramètres - Admin'!$A5),'Paramètres - Admin'!$A6,"/")) -> / | X103: =IF(W103<>"/",VLOOKUP(W103,COSTS_Hidden_Tesla[#All],2),"/") -> / | Y103: =IF(W103<>"/",VLOOKUP(W103,COSTS_Hidden_Tesla[#All],3),"/") -> / | Z103: 0 | AA103: 0
A104: 4 | B104: =IF(Paramètres!W9=0,"",Paramètres!W9) ->  | C104: =IF(C103<>0,C103+IF(AND(B103<>"",A103<E$99),B103,0),IF(AND(B103<>"",A103<E$99),B103,0)) -> 0 | D104: =IF(E104<>"/",IF(G$99="Error","Error",$H$99+C104),"/") -> / | E104: =IF(G$99="Error","Error",IF(AND($E$99<>"/",$E$99>'Paramètres - Admin'!$A5),'Paramètres - Admin'!$A6,"/")) -> / | F104: =IF(E104<>"/",VLOOKUP(E104,COSTS_Inferno_Tower[#All],2),"/") -> / | G104: =IF(E104<>"/",VLOOKUP(E104,COSTS_Inferno_Tower[#All],3),"/") -> / | H104: =IF(G$99="Error","Error",IF(F104<>"/",D104*F104,0)) -> 0 | I104: =IF(G$99="Error","Error",IF(G104<>"/",D104*G104,0)) -> 0 | J104: Arc-X | M104: Max | N104: Max + | P104: Actuel | Q104: À Faire | R104: Améliorations | S104: 5 | T104: =IF(Paramètres!U10=0,"",Paramètres!U10) ->  | U104: 0 | V104: / | W104: =IF(Y$98="Error","Error",IF(AND($W$98<>"/",$W$98>'Paramètres - Admin'!$A6),'Paramètres - Admin'!$A7,"/")) -> / | X104: =IF(W104<>"/",VLOOKUP(W104,COSTS_Hidden_Tesla[#All],2),"/") -> / | Y104: =IF(W104<>"/",VLOOKUP(W104,COSTS_Hidden_Tesla[#All],3),"/") -> / | Z104: 0 | AA104: 0
G105: Total | H105: =IF(G$99="Error","Error",SUM(H101:H104)) -> 0 | I105: =IF(G$99="Error","Error",SUM(I101:I104)) -> 0 | M105: =VLOOKUP($A$2,AVAILABLE_Buildings_Defensive[#All],MATCH(J104,AVAILABLE_Buildings_Defensive[#Headers],0)) -> 0 | N105: =VLOOKUP($A$2,AVAILABLE_Buildings_Defensive[#All],MATCH(J104,AVAILABLE_Buildings_Defensive[#Headers],0)+1) -> 0 | P105: =IF(SUM(K107:K111)>M105,"Error",SUM(K107:K111)) -> 0 | Q105: =IF(P$105="Error","Error",M105-P105) -> 0 | R105: =IF(P$105="Error","Error",SUM(M107:M110)) -> 0 | S105: 6 | T105: =IF(Paramètres!U11=0,"",Paramètres!U11) ->  | U105: 0 | V105: / | W105: =IF(Y$98="Error","Error",IF(AND($W$98<>"/",$W$98>'Paramètres - Admin'!$A7),'Paramètres - Admin'!$A8,"/")) -> / | X105: =IF(W105<>"/",VLOOKUP(W105,COSTS_Hidden_Tesla[#All],2),"/") -> / | Y105: =IF(W105<>"/",VLOOKUP(W105,COSTS_Hidden_Tesla[#All],3),"/") -> / | Z105: 0 | AA105: 0
A106: Aigle Artilleur | D106: Max | E106: Max + | G106: Actuel | H106: À Faire | I106: Améliorations | J106: + | K106: NB | M106: NB | N106: + | O106: Coût | P106: Temps | Q106: Coût Total | R106: Temps Total | S106: 7 | T106: =IF(Paramètres!U12=0,"",Paramètres!U12) ->  | U106: 0 | V106: / | W106: =IF(Y$98="Error","Error",IF(AND($W$98<>"/",$W$98>'Paramètres - Admin'!$A8),'Paramètres - Admin'!$A9,"/")) -> / | X106: =IF(W106<>"/",VLOOKUP(W106,COSTS_Hidden_Tesla[#All],2),"/") -> / | Y106: =IF(W106<>"/",VLOOKUP(W106,COSTS_Hidden_Tesla[#All],3),"/") -> / | Z106: 0 | AA106: 0
D107: =VLOOKUP($A$2,AVAILABLE_Buildings_Defensive[#All],MATCH(A106,AVAILABLE_Buildings_Defensive[#Headers],0)) -> 0 | E107: =VLOOKUP($A$2,AVAILABLE_Buildings_Defensive[#All],MATCH(A106,AVAILABLE_Buildings_Defensive[#Headers],0)+1) -> 0 | G107: =IF(SUM(B109:B110)>D107,"Error",SUM(B109:B110)) -> 0 | H107: =IF(D$107="Error","Error",D107-G107) -> 0 | I107: =IF(G$107="Error","Error",SUM(D109:D110)) -> 0 | J107: 1 | K107: =IF(Paramètres!V6=0,"",Paramètres!V6) ->  | L107: =IF(L106<>0,L106+IF(AND(K106<>"",J106<N$105),K106,0),IF(AND(K106<>"",J106<N$105),K106,0)) -> 0 | M107: =IF(N107<>"/",IF(P$105="Error","Error",$Q$105+L107),"/") -> / | N107: =IF(P$105="Error","Error",IF(AND($N$105<>"/",$N$105>'Paramètres - Admin'!$A2),'Paramètres - Admin'!$A3,"/")) -> / | O107: =IF(N107<>"/",VLOOKUP(N107,COSTS_XBow[#All],2),"/") -> / | P107: =IF(N107<>"/",VLOOKUP(N107,COSTS_XBow[#All],3),"/") -> / | Q107: =IF(P$105="Error","Error",IF(O107<>"/",M107*O107,0)) -> 0 | R107: =IF(P$105="Error","Error",IF(P107<>"/",M107*P107,0)) -> 0 | S107: 8 | T107: =IF(Paramètres!U13=0,"",Paramètres!U13) ->  | U107: 0 | V107: / | W107: =IF(Y$98="Error","Error",IF(AND($W$98<>"/",$W$98>'Paramètres - Admin'!$A9),'Paramètres - Admin'!$A10,"/")) -> / | X107: =IF(W107<>"/",VLOOKUP(W107,COSTS_Hidden_Tesla[#All],2),"/") -> / | Y107: =IF(W107<>"/",VLOOKUP(W107,COSTS_Hidden_Tesla[#All],3),"/") -> / | Z107: 0 | AA107: 0
A108: + | B108: NB | D108: NB | E108: + | F108: Coût | G108: Temps | H108: Coût Total | I108: Temps Total | J108: 2 | K108: =IF(Paramètres!V7=0,"",Paramètres!V7) ->  | L108: =IF(L107<>0,L107+IF(AND(K107<>"",J107<N$105),K107,0),IF(AND(K107<>"",J107<N$105),K107,0)) -> 0 | M108: =IF(N108<>"/",IF(P$105="Error","Error",$Q$105+L108),"/") -> / | N108: =IF(P$105="Error","Error",IF(AND($N$105<>"/",$N$105>'Paramètres - Admin'!$A3),'Paramètres - Admin'!$A4,"/")) -> / | O108: =IF(N108<>"/",VLOOKUP(N108,COSTS_XBow[#All],2),"/") -> / | P108: =IF(N108<>"/",VLOOKUP(N108,COSTS_XBow[#All],3),"/") -> / | Q108: =IF(P$105="Error","Error",IF(O108<>"/",M108*O108,0)) -> 0 | R108: =IF(P$105="Error","Error",IF(P108<>"/",M108*P108,0)) -> 0 | S108: 9 | T108: =IF(Paramètres!U14=0,"",Paramètres!U14) ->  | U108: 0 | V108: / | W108: =IF(Y$98="Error","Error",IF(AND($W$98<>"/",$W$98>'Paramètres - Admin'!$A10),'Paramètres - Admin'!$A11,"/")) -> / | X108: =IF(W108<>"/",VLOOKUP(W108,COSTS_Hidden_Tesla[#All],2),"/") -> / | Y108: =IF(W108<>"/",VLOOKUP(W108,COSTS_Hidden_Tesla[#All],3),"/") -> / | Z108: 0 | AA108: 0
A109: 1 | B109: =IF(Paramètres!X6=0,"",Paramètres!X6) ->  | C109: =IF(C108<>0,C108+IF(AND(B108<>"",A108<E$107),B108,0),IF(AND(B108<>"",A108<E$107),B108,0)) -> 0 | D109: =IF(E109<>"/",IF(G$107="Error","Error",$H$107+C109),"/") -> / | E109: =IF(G$107="Error","Error",IF(AND($E$107<>"/",$E$107>'Paramètres - Admin'!$A2),'Paramètres - Admin'!$A3,"/")) -> / | F109: =IF(E109<>"/",VLOOKUP(E109,COSTS_Defense_Aigle[#All],2),"/") -> / | G109: =IF(E109<>"/",VLOOKUP(E109,COSTS_Defense_Aigle[#All],3),"/") -> / | H109: =IF(G$76="Error","Error",IF(F109<>"/",D109*F109,0)) -> 0 | I109: =IF(G$76="Error","Error",IF(G109<>"/",D109*G109,0)) -> 0 | J109: 3 | K109: =IF(Paramètres!V8=0,"",Paramètres!V8) ->  | L109: =IF(L108<>0,L108+IF(AND(K108<>"",J108<N$105),K108,0),IF(AND(K108<>"",J108<N$105),K108,0)) -> 0 | M109: =IF(N109<>"/",IF(P$105="Error","Error",$Q$105+L109),"/") -> / | N109: =IF(P$105="Error","Error",IF(AND($N$105<>"/",$N$105>'Paramètres - Admin'!$A4),'Paramètres - Admin'!$A5,"/")) -> / | O109: =IF(N109<>"/",VLOOKUP(N109,COSTS_XBow[#All],2),"/") -> / | P109: =IF(N109<>"/",VLOOKUP(N109,COSTS_XBow[#All],3),"/") -> / | Q109: =IF(P$105="Error","Error",IF(O109<>"/",M109*O109,0)) -> 0 | R109: =IF(P$105="Error","Error",IF(P109<>"/",M109*P109,0)) -> 0 | Y109: Total | Z109: =IF(Y$98="Error","Error",SUM(Z100:Z108)) -> 0 | AA109: =IF(Y$98="Error","Error",SUM(AA100:AA107)) -> 0
A110: 2 | B110: =IF(Paramètres!X7=0,"",Paramètres!X7) ->  | C110: =IF(C109<>0,C109+IF(AND(B109<>"",A109<E$107),B109,0),IF(AND(B109<>"",A109<E$107),B109,0)) -> 0 | D110: =IF(E110<>"/",IF(G$107="Error","Error",$H$107+C110),"/") -> / | E110: =IF(G$107="Error","Error",IF(AND($E$107<>"/",$E$107>'Paramètres - Admin'!$A3),'Paramètres - Admin'!$A4,"/")) -> / | F110: =IF(E110<>"/",VLOOKUP(E110,COSTS_Defense_Aigle[#All],2),"/") -> / | G110: =IF(E110<>"/",VLOOKUP(E110,COSTS_Defense_Aigle[#All],3),"/") -> / | H110: =IF(G$107="Error","Error",IF(F110<>"/",D110*F110,0)) -> 0 | I110: =IF(G$107="Error","Error",IF(G110<>"/",D110*G110,0)) -> 0 | J110: 4 | K110: =IF(Paramètres!V9=0,"",Paramètres!V9) ->  | L110: =IF(L109<>0,L109+IF(AND(K109<>"",J109<N$105),K109,0),IF(AND(K109<>"",J109<N$105),K109,0)) -> 0 | M110: =IF(N110<>"/",IF(P$105="Error","Error",$Q$105+L110),"/") -> / | N110: =IF(P$105="Error","Error",IF(AND($N$105<>"/",$N$105>'Paramètres - Admin'!$A5),'Paramètres - Admin'!$A6,"/")) -> / | O110: =IF(N110<>"/",VLOOKUP(N110,COSTS_XBow[#All],2),"/") -> / | P110: =IF(N110<>"/",VLOOKUP(N110,COSTS_XBow[#All],3),"/") -> / | Q110: =IF(P$105="Error","Error",IF(O110<>"/",M110*O110,0)) -> 0 | R110: =IF(P$105="Error","Error",IF(P110<>"/",M110*P110,0)) -> 0
G111: Total | H111: =IF(Y$79="Error","Error",SUM(H109:H110)) -> 0 | I111: =IF(Y$79="Error","Error",SUM(I109:I110)) -> 0 | J111: 5 | K111: =IF(Paramètres!V10=0,"",Paramètres!V10) ->  | L111: =IF(L110<>0,L110+IF(AND(K110<>"",J110<N$105),K110,0),IF(AND(K110<>"",J110<N$105),K110,0)) -> 0 | M111: =IF(N111<>"/",IF(P$105="Error","Error",$Q$105+L111),"/") -> / | N111: =IF(P$105="Error","Error",IF(AND($N$105<>"/",$N$105>'Paramètres - Admin'!$A6),'Paramètres - Admin'!$A7,"/")) -> / | O111: =IF(N111<>"/",VLOOKUP(N111,COSTS_XBow[#All],2),"/") -> / | P111: =IF(N111<>"/",VLOOKUP(N111,COSTS_XBow[#All],3),"/") -> / | Q111: =IF(P$105="Error","Error",IF(O111<>"/",M111*O111,0)) -> 0 | R111: =IF(P$105="Error","Error",IF(P111<>"/",M111*P111,0)) -> 0
P112: Total | Q112: =IF(P$105="Error","Error",SUM(Q107:Q111)) -> 0 | R112: =IF(P$105="Error","Error",SUM(R107:R110)) -> 0
A115: Pièges Défensifs
A116: Bombe | D116: Max | E116: Max + | G116: Actuel | H116: À Faire | I116: Améliorations | J116: Bombe aérienne | M116: Max | N116: Max + | P116: Actuel | Q116: À Faire | R116: Améliorations | S116: Piège à ressort | V116: Max | W116: Max + | Y116: Actuel | Z116: À Faire | AA116: Améliorations
D117: =VLOOKUP($A$2,AVAILABLE_Traps[#All],MATCH(A116,AVAILABLE_Traps[#Headers],0)) -> 0 | E117: =VLOOKUP($A$2,AVAILABLE_Traps[#All],MATCH(A116,AVAILABLE_Traps[#Headers],0)+1) -> 0 | G117: =IF(SUM(B119:B124)>D117,"Error",SUM(B119:B124)) -> 0 | H117: =IF(G$117="Error","Error",D117-G117) -> 0 | I117: =IF(G$117="Error","Error",SUM(D119:D124)) -> 0 | M117: =VLOOKUP($A$2,AVAILABLE_Traps[#All],MATCH(J116,AVAILABLE_Traps[#Headers],0)) -> 0 | N117: =VLOOKUP($A$2,AVAILABLE_Traps[#All],MATCH(J116,AVAILABLE_Traps[#Headers],0)+1) -> 0 | P117: =IF(SUM(K119:K122)>M117,"Error",SUM(K119:K122)) -> 0 | Q117: =IF(P$117="Error","Error",M117-P117) -> 0 | R117: =IF(P$117="Error","Error",SUM(M119:M122)) -> 0 | V117: =VLOOKUP($A$2,AVAILABLE_Traps[#All],MATCH(S116,AVAILABLE_Traps[#Headers],0)) -> 0 | W117: =VLOOKUP($A$2,AVAILABLE_Traps[#All],MATCH(S116,AVAILABLE_Traps[#Headers],0)+1) -> 0 | Y117: =IF(SUM(T119:T123)>V117,"Error",SUM(T119:T123)) -> 0 | Z117: =IF(Y$117="Error","Error",V117-Y117) -> 0 | AA117: =IF(Y$117="Error","Error",SUM(V119:V123)) -> 0
A118: + | B118: NB | D118: NB | E118: + | F118: Coût | G118: Temps | H118: Coût Total | I118: Temps Total | J118: + | K118: NB | M118: NB | N118: + | O118: Coût | P118: Temps | Q118: Coût Total | R118: Temps Total | S118: + | T118: NB | V118: NB | W118: + | X118: Coût | Y118: Temps | Z118: Coût Total | AA118: Temps Total
A119: 1 | B119: =IF(Paramètres!Y6=0,"",Paramètres!Y6) ->  | C119: =IF(C118<>0,C118+IF(AND(B118<>"",A118<E$117),B118,0),IF(AND(B118<>"",A118<E$117),B118,0)) -> 0 | D119: =IF(E119<>"/",IF($G$117="Error","Error",$H$117+C119),"/") -> / | E119: =IF(G$117="Error","Error",IF(AND($E$117<>"/",$E$117>'Paramètres - Admin'!$A2),'Paramètres - Admin'!$A3,"/")) -> / | F119: =IF(E119<>"/",VLOOKUP(E119,COSTS_Bomb[#All],2),"/") -> / | G119: =IF(E119<>"/",VLOOKUP(E119,COSTS_Bomb[#All],3),"/") -> / | H119: =IF(G$117="Error","Error",IF(F119<>"/",D119*F119,0)) -> 0 | I119: =IF(G$117="Error","Error",IF(G119<>"/",D119*G119,0)) -> 0 | J119: 1 | K119: =IF(Paramètres!AB6=0,"",Paramètres!AB6) ->  | L119: =IF(L118<>0,L118+IF(AND(K118<>"",J118<N$117),K118,0),IF(AND(K118<>"",J118<N$117),K118,0)) -> 0 | M119: =IF(N119<>"/",IF($P$117="Error","Error",$Q$117+L119),"/") -> / | N119: =IF(P$117="Error","Error",IF(AND($N$117<>"/",$N$117>'Paramètres - Admin'!$A2),'Paramètres - Admin'!$A3,"/")) -> / | O119: =IF(N119<>"/",VLOOKUP(N119,COST_Air_Bomb[#All],2),"/") -> / | P119: =IF(N119<>"/",VLOOKUP(N119,COST_Air_Bomb[#All],3),"/") -> / | Q119: =IF(P$117="Error","Error",IF(O119<>"/",M119*O119,0)) -> 0 | R119: =IF(P$117="Error","Error",IF(P119<>"/",M119*P119,0)) -> 0 | S119: 1 | T119: =IF(Paramètres!Z6=0,"",Paramètres!Z6) ->  | U119: =IF(U118<>0,U118+IF(AND(T118<>"",S118<W$117),T118,0),IF(AND(T118<>"",S118<W$117),T118,0)) -> 0 | V119: =IF(W119<>"/",IF($Y$117="Error","Error",$Z$117+U119),"/") -> / | W119: =IF(Y$117="Error","Error",IF(AND($W$117<>"/",$W$117>'Paramètres - Admin'!$A2),'Paramètres - Admin'!$A3,"/")) -> / | X119: =IF(W119<>"/",VLOOKUP(W119,COSTS_Spring_Trap[#All],2),"/") -> / | Y119: =IF(W119<>"/",VLOOKUP(W119,COSTS_Spring_Trap[#All],3),"/") -> / | Z119: =IF(Y$117="Error","Error",IF(X119<>"/",V119*X119,0)) -> 0 | AA119: =IF(Y$117="Error","Error",IF(Y119<>"/",V119*Y119,0)) -> 0
A120: 2 | B120: =IF(Paramètres!Y7=0,"",Paramètres!Y7) ->  | C120: =IF(C119<>0,C119+IF(AND(B119<>"",A119<E$117),B119,0),IF(AND(B119<>"",A119<E$117),B119,0)) -> 0 | D120: / | E120: =IF(G$117="Error","Error",IF(AND($E$117<>"/",$E$117>'Paramètres - Admin'!$A3),'Paramètres - Admin'!$A4,"/")) -> / | F120: =IF(E120<>"/",VLOOKUP(E120,COSTS_Bomb[#All],2),"/") -> / | G120: =IF(E120<>"/",VLOOKUP(E120,COSTS_Bomb[#All],3),"/") -> / | H120: 0 | I120: =IF(P$67="Error","Error",IF(G120<>"/",D120*G120,0)) -> 0 | J120: 2 | K120: =IF(Paramètres!AB7=0,"",Paramètres!AB7) ->  | L120: =IF(L119<>0,L119+IF(AND(K119<>"",J119<N$117),K119,0),IF(AND(K119<>"",J119<N$117),K119,0)) -> 0 | M120: =IF(N120<>"/",IF($P$117="Error","Error",$Q$117+L120),"/") -> / | N120: =IF(P$117="Error","Error",IF(AND($N$117<>"/",$N$117>'Paramètres - Admin'!$A3),'Paramètres - Admin'!$A4,"/")) -> / | O120: =IF(N120<>"/",VLOOKUP(N120,COST_Air_Bomb[#All],2),"/") -> / | P120: =IF(N120<>"/",VLOOKUP(N120,COST_Air_Bomb[#All],3),"/") -> / | Q120: =IF(P$117="Error","Error",IF(O120<>"/",M120*O120,0)) -> 0 | R120: =IF(P$117="Error","Error",IF(P120<>"/",M120*P120,0)) -> 0 | S120: 2 | T120: =IF(Paramètres!Z7=0,"",Paramètres!Z7) ->  | U120: =IF(U119<>0,U119+IF(AND(T119<>"",S119<W$117),T119,0),IF(AND(T119<>"",S119<W$117),T119,0)) -> 0 | V120: =IF(W120<>"/",IF($Y$117="Error","Error",$Z$117+U120),"/") -> / | W120: =IF(Y$117="Error","Error",IF(AND($W$117<>"/",$W$117>'Paramètres - Admin'!$A3),'Paramètres - Admin'!$A4,"/")) -> / | X120: =IF(W120<>"/",VLOOKUP(W120,COSTS_Spring_Trap[#All],2),"/") -> / | Y120: =IF(W120<>"/",VLOOKUP(W120,COSTS_Spring_Trap[#All],3),"/") -> / | Z120: =IF(Y$117="Error","Error",IF(X120<>"/",V120*X120,0)) -> 0 | AA120: =IF(Y$117="Error","Error",IF(Y120<>"/",V120*Y120,0)) -> 0
A121: 3 | B121: =IF(Paramètres!Y8=0,"",Paramètres!Y8) ->  | C121: 0 | D121: / | E121: =IF(G$117="Error","Error",IF(AND($E$117<>"/",$E$117>'Paramètres - Admin'!$A4),'Paramètres - Admin'!$A5,"/")) -> / | F121: =IF(E121<>"/",VLOOKUP(E121,COSTS_Bomb[#All],2),"/") -> / | G121: =IF(E121<>"/",VLOOKUP(E121,COSTS_Bomb[#All],3),"/") -> / | H121: 0 | I121: =IF(P$67="Error","Error",IF(G121<>"/",D121*G121,0)) -> 0 | J121: 3 | K121: =IF(Paramètres!AB8=0,"",Paramètres!AB8) ->  | L121: =IF(L120<>0,L120+IF(AND(K120<>"",J120<N$117),K120,0),IF(AND(K120<>"",J120<N$117),K120,0)) -> 0 | M121: =IF(N121<>"/",IF($P$117="Error","Error",$Q$117+L121),"/") -> / | N121: =IF(P$117="Error","Error",IF(AND($N$117<>"/",$N$117>'Paramètres - Admin'!$A4),'Paramètres - Admin'!$A5,"/")) -> / | O121: =IF(N121<>"/",VLOOKUP(N121,COST_Air_Bomb[#All],2),"/") -> / | P121: =IF(N121<>"/",VLOOKUP(N121,COST_Air_Bomb[#All],3),"/") -> / | Q121: =IF(P$117="Error","Error",IF(O121<>"/",M121*O121,0)) -> 0 | R121: =IF(P$117="Error","Error",IF(P121<>"/",M121*P121,0)) -> 0 | S121: 3 | T121: =IF(Paramètres!Z8=0,"",Paramètres!Z8) ->  | U121: =IF(U120<>0,U120+IF(AND(T120<>"",S120<W$117),T120,0),IF(AND(T120<>"",S120<W$117),T120,0)) -> 0 | V121: / | W121: =IF(Y$117="Error","Error",IF(AND($W$117<>"/",$W$117>'Paramètres - Admin'!$A4),'Paramètres - Admin'!$A5,"/")) -> / | X121: =IF(W121<>"/",VLOOKUP(W121,COSTS_Spring_Trap[#All],2),"/") -> / | Y121: =IF(W121<>"/",VLOOKUP(W121,COSTS_Spring_Trap[#All],3),"/") -> / | Z121: 0 | AA121: 0
A122: 4 | B122: =IF(Paramètres!Y9=0,"",Paramètres!Y9) ->  | C122: 0 | D122: / | E122: =IF(G$117="Error","Error",IF(AND($E$117<>"/",$E$117>'Paramètres - Admin'!$A5),'Paramètres - Admin'!$A6,"/")) -> / | F122: =IF(E122<>"/",VLOOKUP(E122,COSTS_Bomb[#All],2),"/") -> / | G122: =IF(E122<>"/",VLOOKUP(E122,COSTS_Bomb[#All],3),"/") -> / | H122: 0 | I122: =IF(P$67="Error","Error",IF(G122<>"/",D122*G122,0)) -> 0 | J122: 4 | K122: =IF(Paramètres!AB9=0,"",Paramètres!AB9) ->  | L122: =IF(L121<>0,L121+IF(AND(K121<>"",J121<N$117),K121,0),IF(AND(K121<>"",J121<N$117),K121,0)) -> 0 | M122: =IF(N122<>"/",IF($P$117="Error","Error",$Q$117+L122),"/") -> / | N122: =IF(P$117="Error","Error",IF(AND($N$117<>"/",$N$117>'Paramètres - Admin'!$A5),'Paramètres - Admin'!$A6,"/")) -> / | O122: =IF(N122<>"/",VLOOKUP(N122,COST_Air_Bomb[#All],2),"/") -> / | P122: =IF(N122<>"/",VLOOKUP(N122,COST_Air_Bomb[#All],3),"/") -> / | Q122: =IF(P$117="Error","Error",IF(O122<>"/",M122*O122,0)) -> 0 | R122: =IF(P$117="Error","Error",IF(P122<>"/",M122*P122,0)) -> 0 | S122: 4 | T122: =IF(Paramètres!Z9=0,"",Paramètres!Z9) ->  | U122: =IF(U121<>0,U121+IF(AND(T121<>"",S121<W$117),T121,0),IF(AND(T121<>"",S121<W$117),T121,0)) -> 0 | V122: / | W122: =IF(Y$117="Error","Error",IF(AND($W$117<>"/",$W$117>'Paramètres - Admin'!$A5),'Paramètres - Admin'!$A6,"/")) -> / | X122: =IF(W122<>"/",VLOOKUP(W122,COSTS_Spring_Trap[#All],2),"/") -> / | Y122: =IF(W122<>"/",VLOOKUP(W122,COSTS_Spring_Trap[#All],3),"/") -> / | Z122: 0 | AA122: 0
A123: 5 | B123: =IF(Paramètres!Y10=0,"",Paramètres!Y10) ->  | C123: 0 | D123: / | E123: =IF(G$117="Error","Error",IF(AND($E$117<>"/",$E$117>'Paramètres - Admin'!$A6),'Paramètres - Admin'!$A7,"/")) -> / | F123: =IF(E123<>"/",VLOOKUP(E123,COSTS_Bomb[#All],2),"/") -> / | G123: =IF(E123<>"/",VLOOKUP(E123,COSTS_Bomb[#All],3),"/") -> / | H123: 0 | I123: =IF(P$67="Error","Error",IF(G123<>"/",D123*G123,0)) -> 0 | P123: Total | Q123: =IF(P$117="Error","Error",SUM(Q119:Q122)) -> 0 | R123: =IF(P$117="Error","Error",SUM(R119:R122)) -> 0 | S123: 5 | T123: =IF(Paramètres!Z10=0,"",Paramètres!Z10) ->  | U123: =IF(U122<>0,U122+IF(AND(T122<>"",S122<W$117),T122,0),IF(AND(T122<>"",S122<W$117),T122,0)) -> 0 | V123: / | W123: =IF(Y$117="Error","Error",IF(AND($W$117<>"/",$W$117>'Paramètres - Admin'!$A6),'Paramètres - Admin'!$A7,"/")) -> / | X123: =IF(W123<>"/",VLOOKUP(W123,COSTS_Spring_Trap[#All],2),"/") -> / | Y123: =IF(W123<>"/",VLOOKUP(W123,COSTS_Spring_Trap[#All],3),"/") -> / | Z123: 0 | AA123: 0
A124: 6 | B124: =IF(Paramètres!Y11=0,"",Paramètres!Y11) ->  | C124: 0 | D124: / | E124: =IF(G$117="Error","Error",IF(AND($E$117<>"/",$E$117>'Paramètres - Admin'!$A7),'Paramètres - Admin'!$A8,"/")) -> / | F124: =IF(E124<>"/",VLOOKUP(E124,COSTS_Bomb[#All],2),"/") -> / | G124: =IF(E124<>"/",VLOOKUP(E124,COSTS_Bomb[#All],3),"/") -> / | H124: 0 | I124: =IF(G$117="Error","Error",IF(G124<>"/",D124*G124,0)) -> 0 | J124: Tête chercheuse | M124: Max | N124: Max + | P124: Actuel | Q124: À Faire | R124: Améliorations | Y124: Total | Z124: =IF(Y$117="Error","Error",SUM(Z119:Z123)) -> 0 | AA124: =IF(Y$117="Error","Error",SUM(AA119:AA123)) -> 0
G125: Total | H125: =IF(G$117="Error","Error",SUM(H119:H124)) -> 0 | I125: =IF(G$117="Error","Error",SUM(I119:I124)) -> 0 | M125: =VLOOKUP($A$2,AVAILABLE_Traps[#All],MATCH(J124,AVAILABLE_Traps[#Headers],0)) -> 0 | N125: =VLOOKUP($A$2,AVAILABLE_Traps[#All],MATCH(J124,AVAILABLE_Traps[#Headers],0)+1) -> 0 | P125: =IF(SUM(K127:K129)>M125,"Error",SUM(K127:K129)) -> 0 | Q125: =IF(P$125="Error","Error",M125-P125) -> 0 | R125: =IF(P$125="Error","Error",SUM(M127:M129)) -> 0 | S125: Piège squelettique | V125: Max | W125: Max + | Y125: Actuel | Z125: À Faire | AA125: Améliorations
A126: Bombe géante | D126: Max | E126: Max + | G126: Actuel | H126: À Faire | I126: Améliorations | J126: + | K126: NB | M126: NB | N126: + | O126: Coût | P126: Temps | Q126: Coût Total | R126: Temps Total | V126: =VLOOKUP($A$2,AVAILABLE_Traps[#All],MATCH(S125,AVAILABLE_Traps[#Headers],0)) -> 0 | W126: =VLOOKUP($A$2,AVAILABLE_Traps[#All],MATCH(S125,AVAILABLE_Traps[#Headers],0)+1) -> 0 | Y126: =IF(SUM(T128:T130)>V126,"Error",SUM(T128:T130)) -> 0 | Z126: =IF(Y$126="Error","Error",V126-Y126) -> 0 | AA126: =IF(Y$126="Error","Error",SUM(V128:V130)) -> 0
D127: =VLOOKUP($A$2,AVAILABLE_Traps[#All],MATCH(A126,AVAILABLE_Traps[#Headers],0)) -> 0 | E127: =VLOOKUP($A$2,AVAILABLE_Traps[#All],MATCH(A126,AVAILABLE_Traps[#Headers],0)+1) -> 0 | G127: =IF(SUM(B129:B132)>D127,"Error",SUM(B129:B132)) -> 0 | H127: =IF(G$127="Error","Error",D127-G127) -> 0 | I127: =IF(G$127="Error","Error",SUM(D129:D132)) -> 0 | J127: 1 | K127: =IF(Paramètres!AC6=0,"",Paramètres!AC6) ->  | L127: =IF(L126<>0,L126+IF(AND(K126<>"",J126<N$125),K126,0),IF(AND(K126<>"",J126<N$125),K126,0)) -> 0 | M127: =IF(N127<>"/",IF($P$125="Error","Error",$Q$125+L127),"/") -> / | N127: =IF(P$125="Error","Error",IF(AND($N$125<>"/",$N$125>'Paramètres - Admin'!$A2),'Paramètres - Admin'!$A3,"/")) -> / | O127: =IF(N127<>"/",VLOOKUP(N127,COST_Seeking_Air_Mine[#All],2),"/") -> / | P127: =IF(N127<>"/",VLOOKUP(N127,COST_Seeking_Air_Mine[#All],3),"/") -> / | Q127: =IF(P$125="Error","Error",IF(O127<>"/",M127*O127,0)) -> 0 | R127: =IF(P$125="Error","Error",IF(P127<>"/",M127*P127,0)) -> 0 | S127: + | T127: NB | V127: NB | W127: + | X127: Coût | Y127: Temps | Z127: Coût Total | AA127: Temps Total
A128: + | B128: NB | D128: NB | E128: + | F128: Coût | G128: Temps | H128: Coût Total | I128: Temps Total | J128: 2 | K128: =IF(Paramètres!AC7=0,"",Paramètres!AC7) ->  | L128: =IF(L127<>0,L127+IF(AND(K127<>"",J127<N$125),K127,0),IF(AND(K127<>"",J127<N$125),K127,0)) -> 0 | M128: =IF(N128<>"/",IF($P$125="Error","Error",$Q$125+L128),"/") -> / | N128: =IF(P$125="Error","Error",IF(AND($N$125<>"/",$N$125>'Paramètres - Admin'!$A3),'Paramètres - Admin'!$A4,"/")) -> / | O128: =IF(N128<>"/",VLOOKUP(N128,COST_Seeking_Air_Mine[#All],2),"/") -> / | P128: =IF(N128<>"/",VLOOKUP(N128,COST_Seeking_Air_Mine[#All],3),"/") -> / | Q128: =IF(P$125="Error","Error",IF(O128<>"/",M128*O128,0)) -> 0 | R128: =IF(P$125="Error","Error",IF(P128<>"/",M128*P128,0)) -> 0 | S128: 1 | T128: =IF(Paramètres!AD6=0,"",Paramètres!AD6) ->  | U128: =IF(U127<>0,U127+IF(AND(T127<>"",S127<W$126),T127,0),IF(AND(T127<>"",S127<W$126),T127,0)) -> 0 | V128: =IF(W128<>"/",IF($Y$126="Error","Error",$Z$126+U128),"/") -> / | W128: =IF(Y$126="Error","Error",IF(AND($W$126<>"/",$W$126>'Paramètres - Admin'!$A2),'Paramètres - Admin'!$A3,"/")) -> / | X128: =IF(W128<>"/",VLOOKUP(W128,COST_Skeleton_Trap[#All],2),"/") -> / | Y128: =IF(W128<>"/",VLOOKUP(W128,COST_Skeleton_Trap[#All],3),"/") -> / | Z128: =IF(Y$126="Error","Error",IF(X128<>"/",V128*X128,0)) -> 0 | AA128: =IF(Y$126="Error","Error",IF(Y128<>"/",V128*Y128,0)) -> 0
A129: 1 | B129: =IF(Paramètres!AA6=0,"",Paramètres!AA6) ->  | C129: =IF(C128<>0,C128+IF(AND(B128<>"",A128<E$127),B128,0),IF(AND(B128<>"",A128<E$127),B128,0)) -> 0 | D129: =IF(E129<>"/",IF($G$127="Error","Error",$H$127+C129),"/") -> / | E129: =IF(G$127="Error","Error",IF(AND($E$127<>"/",$E$127>'Paramètres - Admin'!$A2),'Paramètres - Admin'!$A3,"/")) -> / | F129: =IF(E129<>"/",VLOOKUP(E129,COSTS_Giant_Bomb[#All],2),"/") -> / | G129: =IF(E129<>"/",VLOOKUP(E129,COSTS_Giant_Bomb[#All],3),"/") -> / | H129: =IF(G$127="Error","Error",IF(F129<>"/",D129*F129,0)) -> 0 | I129: =IF(G$127="Error","Error",IF(G129<>"/",D129*G129,0)) -> 0 | J129: 3 | K129: =IF(Paramètres!AC8=0,"",Paramètres!AC8) ->  | L129: =IF(L128<>0,L128+IF(AND(K128<>"",J128<N$125),K128,0),IF(AND(K128<>"",J128<N$125),K128,0)) -> 0 | M129: =IF(N129<>"/",IF($P$125="Error","Error",$Q$125+L129),"/") -> / | N129: =IF(P$125="Error","Error",IF(AND($N$125<>"/",$N$125>'Paramètres - Admin'!$A4),'Paramètres - Admin'!$A5,"/")) -> / | O129: =IF(N129<>"/",VLOOKUP(N129,COST_Seeking_Air_Mine[#All],2),"/") -> / | P129: =IF(N129<>"/",VLOOKUP(N129,COST_Seeking_Air_Mine[#All],3),"/") -> / | Q129: =IF(P$125="Error","Error",IF(O129<>"/",M129*O129,0)) -> 0 | R129: =IF(P$125="Error","Error",IF(P129<>"/",M129*P129,0)) -> 0 | S129: 2 | T129: =IF(Paramètres!AD7=0,"",Paramètres!AD7) ->  | U129: =IF(U128<>0,U128+IF(AND(T128<>"",S128<W$126),T128,0),IF(AND(T128<>"",S128<W$126),T128,0)) -> 0 | V129: =IF(W129<>"/",IF($Y$126="Error","Error",$Z$126+U129),"/") -> / | W129: =IF(Y$126="Error","Error",IF(AND($W$126<>"/",$W$126>'Paramètres - Admin'!$A3),'Paramètres - Admin'!$A4,"/")) -> / | X129: =IF(W129<>"/",VLOOKUP(W129,COST_Skeleton_Trap[#All],2),"/") -> / | Y129: =IF(W129<>"/",VLOOKUP(W129,COST_Skeleton_Trap[#All],3),"/") -> / | Z129: =IF(Y$126="Error","Error",IF(X129<>"/",V129*X129,0)) -> 0 | AA129: =IF(Y$126="Error","Error",IF(Y129<>"/",V129*Y129,0)) -> 0
A130: 2 | B130: =IF(Paramètres!AA7=0,"",Paramètres!AA7) ->  | C130: =IF(C129<>0,C129+IF(AND(B129<>"",A129<E$127),B129,0),IF(AND(B129<>"",A129<E$127),B129,0)) -> 0 | D130: =IF(E130<>"/",IF($G$127="Error","Error",$H$127+C130),"/") -> / | E130: =IF(G$127="Error","Error",IF(AND($E$127<>"/",$E$127>'Paramètres - Admin'!$A3),'Paramètres - Admin'!$A4,"/")) -> / | F130: =IF(E130<>"/",VLOOKUP(E130,COSTS_Giant_Bomb[#All],2),"/") -> / | G130: =IF(E130<>"/",VLOOKUP(E130,COSTS_Giant_Bomb[#All],3),"/") -> / | H130: =IF(G$127="Error","Error",IF(F130<>"/",D130*F130,0)) -> 0 | I130: =IF(G$127="Error","Error",IF(G130<>"/",D130*G130,0)) -> 0 | P130: Total | Q130: =IF(P$125="Error","Error",SUM(Q127:Q129)) -> 0 | R130: =IF(P$125="Error","Error",SUM(R127:R129)) -> 0 | S130: 3 | T130: =IF(Paramètres!AD8=0,"",Paramètres!AD8) ->  | U130: =IF(U129<>0,U129+IF(AND(T129<>"",S129<W$126),T129,0),IF(AND(T129<>"",S129<W$126),T129,0)) -> 0 | V130: =IF(W130<>"/",IF($Y$126="Error","Error",$Z$126+U130),"/") -> / | W130: =IF(Y$126="Error","Error",IF(AND($W$126<>"/",$W$126>'Paramètres - Admin'!$A4),'Paramètres - Admin'!$A5,"/")) -> / | X130: =IF(W130<>"/",VLOOKUP(W130,COST_Skeleton_Trap[#All],2),"/") -> / | Y130: =IF(W130<>"/",VLOOKUP(W130,COST_Skeleton_Trap[#All],3),"/") -> / | Z130: =IF(Y$126="Error","Error",IF(X130<>"/",V130*X130,0)) -> 0 | AA130: =IF(Y$126="Error","Error",IF(Y130<>"/",V130*Y130,0)) -> 0
A131: 3 | B131: =IF(Paramètres!AA8=0,"",Paramètres!AA8) ->  | C131: =IF(C130<>0,C130+IF(AND(B130<>"",A130<E$127),B130,0),IF(AND(B130<>"",A130<E$127),B130,0)) -> 0 | D131: =IF(E131<>"/",IF($G$127="Error","Error",$H$127+C131),"/") -> / | E131: =IF(G$127="Error","Error",IF(AND($E$127<>"/",$E$127>'Paramètres - Admin'!$A4),'Paramètres - Admin'!$A5,"/")) -> / | F131: =IF(E131<>"/",VLOOKUP(E131,COSTS_Giant_Bomb[#All],2),"/") -> / | G131: =IF(E131<>"/",VLOOKUP(E131,COSTS_Giant_Bomb[#All],3),"/") -> / | H131: =IF(G$127="Error","Error",IF(F131<>"/",D131*F131,0)) -> 0 | I131: =IF(G$127="Error","Error",IF(G131<>"/",D131*G131,0)) -> 0 | Y131: Total | Z131: =IF(Y$126="Error","Error",SUM(Z128:Z130)) -> 0 | AA131: =IF(Y$126="Error","Error",SUM(AA128:AA130)) -> 0
A132: 4 | B132: =IF(Paramètres!AA9=0,"",Paramètres!AA9) ->  | C132: =IF(C131<>0,C131+IF(AND(B131<>"",A131<E$127),B131,0),IF(AND(B131<>"",A131<E$127),B131,0)) -> 0 | D132: =IF(E132<>"/",IF($G$127="Error","Error",$H$127+C132),"/") -> / | E132: =IF(G$127="Error","Error",IF(AND($E$127<>"/",$E$127>'Paramètres - Admin'!$A5),'Paramètres - Admin'!$A6,"/")) -> / | F132: =IF(E132<>"/",VLOOKUP(E132,COSTS_Giant_Bomb[#All],2),"/") -> / | G132: =IF(E132<>"/",VLOOKUP(E132,COSTS_Giant_Bomb[#All],3),"/") -> / | H132: =IF(G$127="Error","Error",IF(F132<>"/",D132*F132,0)) -> 0 | I132: =IF(G$127="Error","Error",IF(G132<>"/",D132*G132,0)) -> 0
G133: Total | H133: =IF(G$127="Error","Error",SUM(H129:H132)) -> 0 | I133: =IF(G$127="Error","Error",SUM(I129:I132)) -> 0
A136: Bâtiments Autres
A137: Hôtel de Ville | D137: Max | E137: Max + | G137: Actuel | H137: À Faire | I137: Améliorations | J137: Château de Clan | M137: Max | N137: Max + | P137: Actuel | Q137: À Faire | R137: Améliorations
D138: =VLOOKUP($A$2,AVAILABLE_Buildings_Other[#All],MATCH(A137,AVAILABLE_Buildings_Other[#Headers],0)) -> 1 | E138: =VLOOKUP($A$2,AVAILABLE_Buildings_Other[#All],MATCH(A137,AVAILABLE_Buildings_Other[#Headers],0)+1) -> 2 | G138: =IF(SUM(B140:B150)>D138,"Error",SUM(B140:B150)) -> 1 | H138: =IF(G$138="Error","Error",D138-G138) -> 0 | I138: =IF(G$138="Error","Error",SUM(D140:D150)) -> 1 | M138: =VLOOKUP($A$2,AVAILABLE_Buildings_Other[#All],MATCH(J137,AVAILABLE_Buildings_Other[#Headers],0)) -> 0 | N138: =VLOOKUP($A$2,AVAILABLE_Buildings_Other[#All],MATCH(J137,AVAILABLE_Buildings_Other[#Headers],0)+1) -> 0 | P138: =IF(SUM(K140:K146)>M138,"Error",SUM(K140:K146)) -> 0 | Q138: =IF(P$138="Error","Error",M138-P138) -> 0 | R138: =IF(P$138="Error","Error",SUM(M140:M146)) -> 0
A139: + | B139: NB | D139: NB | E139: + | F139: Coût | G139: Temps | H139: Coût Total | I139: Temps Total | J139: + | K139: NB | M139: NB | N139: + | O139: Coût | P139: Temps | Q139: Coût Total | R139: Temps Total
A140: 1 | B140: =IF(Paramètres!AF6=0,"",Paramètres!AF6) -> 1 | C140: =IF(C139<>0,C139+IF(AND(B139<>"",A139<E$138),B139,0),IF(AND(B139<>"",A139<E$138),B139,0)) -> 0 | D140: =IF(E140<>"/",IF(G$138="Error","Error",$H$138+C140),"/") -> 0 | E140: =IF(G$138="Error","Error",IF(AND($E$138<>"/",$E$138>'Paramètres - Admin'!$A2),'Paramètres - Admin'!$A3,"/")) -> 1 | F140: =IF(E140<>"/",VLOOKUP(E140,COSTS_Town_Home[#All],2),"/") -> 0 | G140: =IF(E140<>"/",VLOOKUP(E140,COSTS_Town_Home[#All],3),"/") -> 0 | H140: =IF(G$138="Error","Error",IF(F140<>"/",D140*F140,0)) -> 0 | I140: =IF(G$138="Error","Error",IF(G140<>"/",D140*G140,0)) -> 0 | J140: 1 | K140: =IF(Paramètres!AE6=0,"",Paramètres!AE6) ->  | L140: =IF(L139<>0,L139+IF(AND(K139<>"",J139<N$138),K139,0),IF(AND(K139<>"",J139<N$138),K139,0)) -> 0 | M140: =IF(N140<>"/",IF(P$138="Error","Error",$Q$138+L140),"/") -> / | N140: =IF(P$138="Error","Error",IF(AND($N$138<>"/",$N$138>'Paramètres - Admin'!$A2),'Paramètres - Admin'!$A3,"/")) -> / | O140: =IF(N140<>"/",VLOOKUP(N140,COSTS_Clan_Castle[#All],2),"/") -> / | P140: =IF(N140<>"/",VLOOKUP(N140,COSTS_Clan_Castle[#All],3),"/") -> / | Q140: =IF(P$138="Error","Error",IF(O140<>"/",M140*O140,0)) -> 0 | R140: =IF(P$138="Error","Error",IF(P140<>"/",M140*P140,0)) -> 0
A141: 2 | B141: =IF(Paramètres!AF7=0,"",Paramètres!AF7) ->  | C141: 1 | D141: 1 | E141: =IF(G$138="Error","Error",IF(AND($E$138<>"/",$E$138>'Paramètres - Admin'!$A3),'Paramètres - Admin'!$A4,"/")) -> 2 | F141: =IF(E141<>"/",VLOOKUP(E141,COSTS_Town_Home[#All],2),"/") -> 1000 | G141: =IF(E141<>"/",VLOOKUP(E141,COSTS_Town_Home[#All],3),"/") -> 0.08333333333 | H141: 1000 | I141: 0.08333333333 | J141: 2 | K141: =IF(Paramètres!AE7=0,"",Paramètres!AE7) ->  | L141: 0 | M141: / | N141: =IF(P$138="Error","Error",IF(AND($N$138<>"/",$N$138>'Paramètres - Admin'!$A3),'Paramètres - Admin'!$A4,"/")) -> / | O141: =IF(N141<>"/",VLOOKUP(N141,COSTS_Clan_Castle[#All],2),"/") -> / | P141: =IF(N141<>"/",VLOOKUP(N141,COSTS_Clan_Castle[#All],3),"/") -> / | Q141: 0 | R141: 0
A142: 3 | B142: =IF(Paramètres!AF8=0,"",Paramètres!AF8) ->  | C142: 1 | D142: / | E142: =IF(G$138="Error","Error",IF(AND($E$138<>"/",$E$138>'Paramètres - Admin'!$A4),'Paramètres - Admin'!$A5,"/")) -> / | F142: =IF(E142<>"/",VLOOKUP(E142,COSTS_Town_Home[#All],2),"/") -> / | G142: =IF(E142<>"/",VLOOKUP(E142,COSTS_Town_Home[#All],3),"/") -> / | H142: 0 | I142: 0 | J142: 3 | K142: =IF(Paramètres!AE8=0,"",Paramètres!AE8) ->  | L142: 0 | M142: / | N142: =IF(P$138="Error","Error",IF(AND($N$138<>"/",$N$138>'Paramètres - Admin'!$A4),'Paramètres - Admin'!$A5,"/")) -> / | O142: =IF(N142<>"/",VLOOKUP(N142,COSTS_Clan_Castle[#All],2),"/") -> / | P142: =IF(N142<>"/",VLOOKUP(N142,COSTS_Clan_Castle[#All],3),"/") -> / | Q142: 0 | R142: 0
A143: 4 | B143: =IF(Paramètres!AF9=0,"",Paramètres!AF9) ->  | C143: 1 | D143: / | E143: =IF(G$138="Error","Error",IF(AND($E$138<>"/",$E$138>'Paramètres - Admin'!$A5),'Paramètres - Admin'!$A6,"/")) -> / | F143: =IF(E143<>"/",VLOOKUP(E143,COSTS_Town_Home[#All],2),"/") -> / | G143: =IF(E143<>"/",VLOOKUP(E143,COSTS_Town_Home[#All],3),"/") -> / | H143: 0 | I143: 0 | J143: 4 | K143: =IF(Paramètres!AE9=0,"",Paramètres!AE9) ->  | L143: 0 | M143: / | N143: =IF(P$138="Error","Error",IF(AND($N$138<>"/",$N$138>'Paramètres - Admin'!$A5),'Paramètres - Admin'!$A6,"/")) -> / | O143: =IF(N143<>"/",VLOOKUP(N143,COSTS_Clan_Castle[#All],2),"/") -> / | P143: =IF(N143<>"/",VLOOKUP(N143,COSTS_Clan_Castle[#All],3),"/") -> / | Q143: 0 | R143: 0
A144: 5 | B144: =IF(Paramètres!AF10=0,"",Paramètres!AF10) ->  | C144: 1 | D144: / | E144: =IF(G$138="Error","Error",IF(AND($E$138<>"/",$E$138>'Paramètres - Admin'!$A6),'Paramètres - Admin'!$A7,"/")) -> / | F144: =IF(E144<>"/",VLOOKUP(E144,COSTS_Town_Home[#All],2),"/") -> / | G144: =IF(E144<>"/",VLOOKUP(E144,COSTS_Town_Home[#All],3),"/") -> / | H144: 0 | I144: 0 | J144: 5 | K144: =IF(Paramètres!AE10=0,"",Paramètres!AE10) ->  | L144: 0 | M144: / | N144: =IF(P$138="Error","Error",IF(AND($N$138<>"/",$N$138>'Paramètres - Admin'!$A6),'Paramètres - Admin'!$A7,"/")) -> / | O144: =IF(N144<>"/",VLOOKUP(N144,COSTS_Clan_Castle[#All],2),"/") -> / | P144: =IF(N144<>"/",VLOOKUP(N144,COSTS_Clan_Castle[#All],3),"/") -> / | Q144: 0 | R144: 0
A145: 6 | B145: =IF(Paramètres!AF11=0,"",Paramètres!AF11) ->  | C145: 1 | D145: / | E145: =IF(G$138="Error","Error",IF(AND($E$138<>"/",$E$138>'Paramètres - Admin'!$A7),'Paramètres - Admin'!$A8,"/")) -> / | F145: =IF(E145<>"/",VLOOKUP(E145,COSTS_Town_Home[#All],2),"/") -> / | G145: =IF(E145<>"/",VLOOKUP(E145,COSTS_Town_Home[#All],3),"/") -> / | H145: 0 | I145: 0 | J145: 6 | K145: =IF(Paramètres!AE11=0,"",Paramètres!AE11) ->  | L145: 0 | M145: / | N145: =IF(P$138="Error","Error",IF(AND($N$138<>"/",$N$138>'Paramètres - Admin'!$A7),'Paramètres - Admin'!$A8,"/")) -> / | O145: =IF(N145<>"/",VLOOKUP(N145,COSTS_Clan_Castle[#All],2),"/") -> / | P145: =IF(N145<>"/",VLOOKUP(N145,COSTS_Clan_Castle[#All],3),"/") -> / | Q145: 0 | R145: 0
A146: 7 | B146: =IF(Paramètres!AF12=0,"",Paramètres!AF12) ->  | C146: 1 | D146: / | E146: =IF(G$138="Error","Error",IF(AND($E$138<>"/",$E$138>'Paramètres - Admin'!$A8),'Paramètres - Admin'!$A9,"/")) -> / | F146: =IF(E146<>"/",VLOOKUP(E146,COSTS_Town_Home[#All],2),"/") -> / | G146: =IF(E146<>"/",VLOOKUP(E146,COSTS_Town_Home[#All],3),"/") -> / | H146: 0 | I146: 0 | J146: 7 | K146: =IF(Paramètres!AE12=0,"",Paramètres!AE12) ->  | L146: 0 | M146: =IF(N146<>"/",IF(P$138="Error","Error",$Q$138+L146),"/") -> / | N146: =IF(P$138="Error","Error",IF(AND($N$138<>"/",$N$138>'Paramètres - Admin'!$A8),'Paramètres - Admin'!$A9,"/")) -> / | O146: =IF(N146<>"/",VLOOKUP(N146,COSTS_Clan_Castle[#All],2),"/") -> / | P146: =IF(N146<>"/",VLOOKUP(N146,COSTS_Clan_Castle[#All],3),"/") -> / | Q146: =IF(P$138="Error","Error",IF(O146<>"/",M146*O146,0)) -> 0 | R146: =IF(P$138="Error","Error",IF(P146<>"/",M146*P146,0)) -> 0
A147: 8 | B147: =IF(Paramètres!AF13=0,"",Paramètres!AF13) ->  | C147: 1 | D147: / | E147: =IF(G$138="Error","Error",IF(AND($E$138<>"/",$E$138>'Paramètres - Admin'!$A9),'Paramètres - Admin'!$A10,"/")) -> / | F147: =IF(E147<>"/",VLOOKUP(E147,COSTS_Town_Home[#All],2),"/") -> / | G147: =IF(E147<>"/",VLOOKUP(E147,COSTS_Town_Home[#All],3),"/") -> / | H147: 0 | I147: 0 | P147: Total | Q147: =IF(P$138="Error","Error",SUM(Q140:Q146)) -> 0 | R147: =IF(P$138="Error","Error",SUM(R140:R145)) -> 0
A148: 9 | B148: =IF(Paramètres!AF14=0,"",Paramètres!AF14) ->  | C148: 1 | D148: / | E148: =IF(G$138="Error","Error",IF(AND($E$138<>"/",$E$138>'Paramètres - Admin'!$A10),'Paramètres - Admin'!$A11,"/")) -> / | F148: =IF(E148<>"/",VLOOKUP(E148,COSTS_Town_Home[#All],2),"/") -> / | G148: =IF(E148<>"/",VLOOKUP(E148,COSTS_Town_Home[#All],3),"/") -> / | H148: 0 | I148: 0
A149: 10 | B149: =IF(Paramètres!AF15=0,"",Paramètres!AF15) ->  | C149: 1 | D149: / | E149: =IF(G$138="Error","Error",IF(AND($E$138<>"/",$E$138>'Paramètres - Admin'!$A11),'Paramètres - Admin'!$A12,"/")) -> / | F149: =IF(E149<>"/",VLOOKUP(E149,COSTS_Town_Home[#All],2),"/") -> / | G149: =IF(E149<>"/",VLOOKUP(E149,COSTS_Town_Home[#All],3),"/") -> / | H149: 0 | I149: 0
A150: 11 | B150: =IF(Paramètres!AF16=0,"",Paramètres!AF16) ->  | C150: 1 | D150: / | E150: =IF(G$138="Error","Error",IF(AND($E$138<>"/",$E$138>'Paramètres - Admin'!$A12),'Paramètres - Admin'!$A13,"/")) -> / | F150: =IF(E150<>"/",VLOOKUP(E150,COSTS_Town_Home[#All],2),"/") -> / | G150: =IF(E150<>"/",VLOOKUP(E150,COSTS_Town_Home[#All],3),"/") -> / | H150: 0 | I150: 0
G151: Total | H151: =IF(G$138="Error","Error",SUM(H140:H150)) -> 1000 | I151: =IF(G$138="Error","Error",SUM(I140:I150)) -> 0.08333333333
A154: Améliorations de Sorts
A155: Sort de Foudre | D155: Max | E155: Max + | G155: Actuel | H155: À Faire | I155: Améliorations | J155: Sort de Guérison | M155: Max | N155: Max + | P155: Actuel | Q155: À Faire | R155: Améliorations | S155: Sort de Gel | V155: Max | W155: Max + | Y155: Actuel | Z155: À Faire | AA155: Améliorations
D156: =VLOOKUP($A$2,AVAILABLE_Upgrades_Spells[#All],MATCH(A155,AVAILABLE_Upgrades_Spells[#Headers],0)) -> 0 | E156: =VLOOKUP(IF(ISERROR(LOOKUP(MATCH(1,Paramètres!$K$6:$K$45,0),Paramètres!$A$6:$A$45)),0,LOOKUP(MATCH(1,Paramètres!$K$6:$K$45,0),Paramètres!$A$6:$A$45)),AVAILABLE_Upgrades_Spells[#All],MATCH(A155,AVAILABLE_Upgrades_Spells[#Headers],0)+1) -> 0 | G156: =IF(SUM(B158:B164)>D156,"Error",SUM(B158:B164)) -> 0 | H156: =IF(G$156="Error","Error",D156-G156) -> 0 | I156: =IF(G$156="Error","Error",SUM(D158:D164)) -> 0 | M156: =VLOOKUP($A$2,AVAILABLE_Upgrades_Spells[#All],MATCH(J155,AVAILABLE_Upgrades_Spells[#Headers],0)) -> 0 | N156: =VLOOKUP(IF(ISERROR(LOOKUP(MATCH(1,Paramètres!$K$6:$K$45,0),Paramètres!$A$6:$A$45)),0,LOOKUP(MATCH(1,Paramètres!$K$6:$K$45,0),Paramètres!$A$6:$A$45)),AVAILABLE_Upgrades_Spells[#All],MATCH(J155,AVAILABLE_Upgrades_Spells[#Headers],0)+1) -> 0 | P156: =IF(SUM(K158:K163)>M156,"Error",SUM(K158:K163)) -> 0 | Q156: =IF(P$156="Error","Error",M156-P156) -> 0 | R156: =IF(P$156="Error","Error",SUM(M158:M163)) -> 0 | V156: =VLOOKUP($A$2,AVAILABLE_Upgrades_Spells[#All],MATCH(S155,AVAILABLE_Upgrades_Spells[#Headers],0)) -> 0 | W156: =VLOOKUP(IF(ISERROR(LOOKUP(MATCH(1,Paramètres!$K$6:$K$45,0),Paramètres!$A$6:$A$45)),0,LOOKUP(MATCH(1,Paramètres!$K$6:$K$45,0),Paramètres!$A$6:$A$45)),AVAILABLE_Upgrades_Spells[#All],MATCH(S155,AVAILABLE_Upgrades_Spells[#Headers],0)+1) -> 0 | Y156: =IF(SUM(T158:T162)>V156,"Error",SUM(T158:T162)) -> 0 | Z156: =IF(Y$156="Error","Error",V156-Y156) -> 0 | AA156: =IF(Y$156="Error","Error",SUM(V158:V162)) -> 0
A157: + | B157: NB | D157: NB | E157: + | F157: Coût | G157: Temps | H157: Coût Total | I157: Temps Total | J157: + | K157: NB | M157: NB | N157: + | O157: Coût | P157: Temps | Q157: Coût Total | R157: Temps Total | S157: + | T157: NB | V157: NB | W157: + | X157: Coût | Y157: Temps | Z157: Coût Total | AA157: Temps Total
A158: 1 | B158: =IF(Paramètres!AG6=0,"",Paramètres!AG6) ->  | C158: =IF(C157<>0,C157+IF(AND(B157<>"",A157<E$156),B157,0),IF(AND(B157<>"",A157<E$156),B157,0)) -> 0 | D158: =IF(E158<>"/",IF(G$156="Error","Error",$H$156+C158),"/") -> / | E158: =IF(G$156="Error","Error",IF(AND($E$156<>"/",$E$156>'Paramètres - Admin'!$A2),'Paramètres - Admin'!$A3,"/")) -> / | F158: =IF(E158<>"/",VLOOKUP(E158,COSTS_Spell_Lightning[#All],2),"/") -> / | G158: =IF(E158<>"/",VLOOKUP(E158,COSTS_Spell_Lightning[#All],3),"/") -> / | H158: =IF(G$156="Error","Error",IF(F158<>"/",D158*F158,0)) -> 0 | I158: =IF(G$156="Error","Error",IF(G158<>"/",D158*G158,0)) -> 0 | J158: 1 | K158: =IF(Paramètres!AH6=0,"",Paramètres!AH6) ->  | L158: =IF(L157<>0,L157+IF(AND(K157<>"",J157<N$156),K157,0),IF(AND(K157<>"",J157<N$156),K157,0)) -> 0 | M158: =IF(N158<>"/",IF(P$156="Error","Error",$Q$156+L158),"/") -> / | N158: =IF(P$156="Error","Error",IF(AND($N$156<>"/",$N$156>'Paramètres - Admin'!$A2),'Paramètres - Admin'!$A3,"/")) -> / | O158: =IF(N158<>"/",VLOOKUP(N158,COSTS_Spell_Healing[#All],2),"/") -> / | P158: =IF(N158<>"/",VLOOKUP(N158,COSTS_Spell_Healing[#All],3),"/") -> / | Q158: =IF(P$156="Error","Error",IF(O158<>"/",M158*O158,0)) -> 0 | R158: =IF(P$156="Error","Error",IF(P158<>"/",M158*P158,0)) -> 0 | S158: 1 | T158: =IF(Paramètres!AK6=0,"",Paramètres!AK6) ->  | U158: =IF(U157<>0,U157+IF(AND(T157<>"",S157<W$156),T157,0),IF(AND(T157<>"",S157<W$156),T157,0)) -> 0 | V158: =IF(W158<>"/",IF(Y$156="Error","Error",$Z$156+U158),"/") -> / | W158: =IF(Y$156="Error","Error",IF(AND($W$156<>"/",$W$156>'Paramètres - Admin'!$A2),'Paramètres - Admin'!$A3,"/")) -> / | X158: =IF(W158<>"/",VLOOKUP(W158,COSTS_Spell_Freeze[#All],2),"/") -> / | Y158: =IF(W158<>"/",VLOOKUP(W158,COSTS_Spell_Freeze[#All],3),"/") -> / | Z158: =IF(Y$156="Error","Error",IF(X158<>"/",V158*X158,0)) -> 0 | AA158: =IF(Y$156="Error","Error",IF(Y158<>"/",V158*Y158,0)) -> 0
A159: 2 | B159: =IF(Paramètres!AG7=0,"",Paramètres!AG7) ->  | C159: =IF(C158<>0,C158+IF(AND(B158<>"",A158<E$156),B158,0),IF(AND(B158<>"",A158<E$156),B158,0)) -> 0 | D159: / | E159: =IF(G$156="Error","Error",IF(AND($E$156<>"/",$E$156>'Paramètres - Admin'!$A3),'Paramètres - Admin'!$A4,"/")) -> / | F159: =IF(E159<>"/",VLOOKUP(E159,COSTS_Spell_Lightning[#All],2),"/") -> / | G159: =IF(E159<>"/",VLOOKUP(E159,COSTS_Spell_Lightning[#All],3),"/") -> / | H159: 0 | I159: 0 | J159: 2 | K159: =IF(Paramètres!AH7=0,"",Paramètres!AH7) ->  | L159: 0 | M159: / | N159: =IF(P$156="Error","Error",IF(AND($N$156<>"/",$N$156>'Paramètres - Admin'!$A3),'Paramètres - Admin'!$A4,"/")) -> / | O159: =IF(N159<>"/",VLOOKUP(N159,COSTS_Spell_Healing[#All],2),"/") -> / | P159: =IF(N159<>"/",VLOOKUP(N159,COSTS_Spell_Healing[#All],3),"/") -> / | Q159: 0 | R159: 0 | S159: 2 | T159: =IF(Paramètres!AK7=0,"",Paramètres!AK7) ->  | U159: =IF(U158<>0,U158+IF(AND(T158<>"",S158<W$156),T158,0),IF(AND(T158<>"",S158<W$156),T158,0)) -> 0 | V159: =IF(W159<>"/",IF(Y$156="Error","Error",$Z$156+U159),"/") -> / | W159: =IF(Y$156="Error","Error",IF(AND($W$156<>"/",$W$156>'Paramètres - Admin'!$A3),'Paramètres - Admin'!$A4,"/")) -> / | X159: =IF(W159<>"/",VLOOKUP(W159,COSTS_Spell_Freeze[#All],2),"/") -> / | Y159: =IF(W159<>"/",VLOOKUP(W159,COSTS_Spell_Freeze[#All],3),"/") -> / | Z159: =IF(Y$156="Error","Error",IF(X159<>"/",V159*X159,0)) -> 0 | AA159: =IF(Y$156="Error","Error",IF(Y159<>"/",V159*Y159,0)) -> 0
A160: 3 | B160: =IF(Paramètres!AG8=0,"",Paramètres!AG8) ->  | C160: 0 | D160: / | E160: =IF(G$156="Error","Error",IF(AND($E$156<>"/",$E$156>'Paramètres - Admin'!$A4),'Paramètres - Admin'!$A5,"/")) -> / | F160: =IF(E160<>"/",VLOOKUP(E160,COSTS_Spell_Lightning[#All],2),"/") -> / | G160: =IF(E160<>"/",VLOOKUP(E160,COSTS_Spell_Lightning[#All],3),"/") -> / | H160: 0 | I160: 0 | J160: 3 | K160: =IF(Paramètres!AH8=0,"",Paramètres!AH8) ->  | L160: 0 | M160: / | N160: =IF(P$156="Error","Error",IF(AND($N$156<>"/",$N$156>'Paramètres - Admin'!$A4),'Paramètres - Admin'!$A5,"/")) -> / | O160: =IF(N160<>"/",VLOOKUP(N160,COSTS_Spell_Healing[#All],2),"/") -> / | P160: =IF(N160<>"/",VLOOKUP(N160,COSTS_Spell_Healing[#All],3),"/") -> / | Q160: 0 | R160: 0 | S160: 3 | T160: =IF(Paramètres!AK8=0,"",Paramètres!AK8) ->  | U160: =IF(U159<>0,U159+IF(AND(T159<>"",S159<W$156),T159,0),IF(AND(T159<>"",S159<W$156),T159,0)) -> 0 | V160: =IF(W160<>"/",IF(Y$156="Error","Error",$Z$156+U160),"/") -> / | W160: =IF(Y$156="Error","Error",IF(AND($W$156<>"/",$W$156>'Paramètres - Admin'!$A4),'Paramètres - Admin'!$A5,"/")) -> / | X160: =IF(W160<>"/",VLOOKUP(W160,COSTS_Spell_Freeze[#All],2),"/") -> / | Y160: =IF(W160<>"/",VLOOKUP(W160,COSTS_Spell_Freeze[#All],3),"/") -> / | Z160: =IF(Y$156="Error","Error",IF(X160<>"/",V160*X160,0)) -> 0 | AA160: =IF(Y$156="Error","Error",IF(Y160<>"/",V160*Y160,0)) -> 0
A161: 4 | B161: =IF(Paramètres!AG9=0,"",Paramètres!AG9) ->  | C161: 0 | D161: / | E161: =IF(G$156="Error","Error",IF(AND($E$156<>"/",$E$156>'Paramètres - Admin'!$A5),'Paramètres - Admin'!$A6,"/")) -> / | F161: =IF(E161<>"/",VLOOKUP(E161,COSTS_Spell_Lightning[#All],2),"/") -> / | G161: =IF(E161<>"/",VLOOKUP(E161,COSTS_Spell_Lightning[#All],3),"/") -> / | H161: 0 | I161: 0 | J161: 4 | K161: =IF(Paramètres!AH9=0,"",Paramètres!AH9) ->  | L161: 0 | M161: / | N161: =IF(P$156="Error","Error",IF(AND($N$156<>"/",$N$156>'Paramètres - Admin'!$A5),'Paramètres - Admin'!$A6,"/")) -> / | O161: =IF(N161<>"/",VLOOKUP(N161,COSTS_Spell_Healing[#All],2),"/") -> / | P161: =IF(N161<>"/",VLOOKUP(N161,COSTS_Spell_Healing[#All],3),"/") -> / | Q161: 0 | R161: 0 | S161: 4 | T161: =IF(Paramètres!AK9=0,"",Paramètres!AK9) ->  | U161: =IF(U160<>0,U160+IF(AND(T160<>"",S160<W$156),T160,0),IF(AND(T160<>"",S160<W$156),T160,0)) -> 0 | V161: =IF(W161<>"/",IF(Y$156="Error","Error",$Z$156+U161),"/") -> / | W161: =IF(Y$156="Error","Error",IF(AND($W$156<>"/",$W$156>'Paramètres - Admin'!$A5),'Paramètres - Admin'!$A6,"/")) -> / | X161: =IF(W161<>"/",VLOOKUP(W161,COSTS_Spell_Freeze[#All],2),"/") -> / | Y161: =IF(W161<>"/",VLOOKUP(W161,COSTS_Spell_Freeze[#All],3),"/") -> / | Z161: =IF(Y$156="Error","Error",IF(X161<>"/",V161*X161,0)) -> 0 | AA161: =IF(Y$156="Error","Error",IF(Y161<>"/",V161*Y161,0)) -> 0
A162: 5 | B162: =IF(Paramètres!AG10=0,"",Paramètres!AG10) ->  | C162: 0 | D162: / | E162: =IF(G$156="Error","Error",IF(AND($E$156<>"/",$E$156>'Paramètres - Admin'!$A6),'Paramètres - Admin'!$A7,"/")) -> / | F162: =IF(E162<>"/",VLOOKUP(E162,COSTS_Spell_Lightning[#All],2),"/") -> / | G162: =IF(E162<>"/",VLOOKUP(E162,COSTS_Spell_Lightning[#All],3),"/") -> / | H162: 0 | I162: 0 | J162: 5 | K162: =IF(Paramètres!AH10=0,"",Paramètres!AH10) ->  | L162: 0 | M162: / | N162: =IF(P$156="Error","Error",IF(AND($N$156<>"/",$N$156>'Paramètres - Admin'!$A6),'Paramètres - Admin'!$A7,"/")) -> / | O162: =IF(N162<>"/",VLOOKUP(N162,COSTS_Spell_Healing[#All],2),"/") -> / | P162: =IF(N162<>"/",VLOOKUP(N162,COSTS_Spell_Healing[#All],3),"/") -> / | Q162: 0 | R162: 0 | S162: 5 | T162: =IF(Paramètres!AK10=0,"",Paramètres!AK10) ->  | U162: =IF(U161<>0,U161+IF(AND(T161<>"",S161<W$156),T161,0),IF(AND(T161<>"",S161<W$156),T161,0)) -> 0 | V162: =IF(W162<>"/",IF(Y$156="Error","Error",$Z$156+U162),"/") -> / | W162: =IF(Y$156="Error","Error",IF(AND($W$156<>"/",$W$156>'Paramètres - Admin'!$A6),'Paramètres - Admin'!$A7,"/")) -> / | X162: =IF(W162<>"/",VLOOKUP(W162,COSTS_Spell_Freeze[#All],2),"/") -> / | Y162: =IF(W162<>"/",VLOOKUP(W162,COSTS_Spell_Freeze[#All],3),"/") -> / | Z162: =IF(Y$156="Error","Error",IF(X162<>"/",V162*X162,0)) -> 0 | AA162: =IF(Y$156="Error","Error",IF(Y162<>"/",V162*Y162,0)) -> 0
A163: 6 | B163: =IF(Paramètres!AG11=0,"",Paramètres!AG11) ->  | C163: 0 | D163: / | E163: =IF(G$156="Error","Error",IF(AND($E$156<>"/",$E$156>'Paramètres - Admin'!$A7),'Paramètres - Admin'!$A8,"/")) -> / | F163: =IF(E163<>"/",VLOOKUP(E163,COSTS_Spell_Lightning[#All],2),"/") -> / | G163: =IF(E163<>"/",VLOOKUP(E163,COSTS_Spell_Lightning[#All],3),"/") -> / | H163: 0 | I163: 0 | J163: 6 | K163: =IF(Paramètres!AH11=0,"",Paramètres!AH11) ->  | L163: 0 | M163: / | N163: =IF(P$156="Error","Error",IF(AND($N$156<>"/",$N$156>'Paramètres - Admin'!$A7),'Paramètres - Admin'!$A8,"/")) -> / | O163: =IF(N163<>"/",VLOOKUP(N163,COSTS_Spell_Healing[#All],2),"/") -> / | P163: =IF(N163<>"/",VLOOKUP(N163,COSTS_Spell_Healing[#All],3),"/") -> / | Q163: 0 | R163: 0 | Y163: Total | Z163: =IF(Y$156="Error","Error",SUM(Z158:Z162)) -> 0 | AA163: =IF(Y$156="Error","Error",SUM(AA158:AA162)) -> 0
A164: 7 | B164: =IF(Paramètres!AG12=0,"",Paramètres!AG12) ->  | C164: =IF(C163<>0,C163+IF(AND(B163<>"",A163<E$156),B163,0),IF(AND(B163<>"",A163<E$156),B163,0)) -> 0 | D164: / | E164: =IF(G$156="Error","Error",IF(AND($E$156<>"/",$E$156>'Paramètres - Admin'!$A8),'Paramètres - Admin'!$A9,"/")) -> / | F164: =IF(E164<>"/",VLOOKUP(E164,COSTS_Spell_Lightning[#All],2),"/") -> / | G164: =IF(E164<>"/",VLOOKUP(E164,COSTS_Spell_Lightning[#All],3),"/") -> / | H164: 0 | I164: 0 | P164: Total | Q164: =IF(P$156="Error","Error",SUM(Q158:Q163)) -> 0 | R164: =IF(P$156="Error","Error",SUM(R158:R163)) -> 0 | S164: Sort de clonage | V164: Max | W164: Max + | Y164: Actuel | Z164: À Faire | AA164: Améliorations
G165: Total | H165: =IF(G$156="Error","Error",SUM(H158:H164)) -> 0 | I165: =IF(G$156="Error","Error",SUM(I158:I164)) -> 0 | J165: Sort de Saut | M165: Max | N165: Max + | P165: Actuel | Q165: À Faire | R165: Améliorations | V165: =VLOOKUP($A$2,AVAILABLE_Upgrades_Spells[#All],MATCH(S164,AVAILABLE_Upgrades_Spells[#Headers],0)) -> 0 | W165: =VLOOKUP(IF(ISERROR(LOOKUP(MATCH(1,Paramètres!$K$6:$K$45,0),Paramètres!$A$6:$A$45)),0,LOOKUP(MATCH(1,Paramètres!$K$6:$K$45,0),Paramètres!$A$6:$A$45)),AVAILABLE_Upgrades_Spells[#All],MATCH(S164,AVAILABLE_Upgrades_Spells[#Headers],0)+1) -> 0 | Y165: =IF(SUM(T167:T170)>V165,"Error",SUM(T167:T170)) -> 0 | Z165: =IF(Y$165="Error","Error",V165-Y165) -> 0 | AA165: =IF(Y$165="Error","Error",SUM(V167:V170)) -> 0
A166: Sort de Rage | D166: Max | E166: Max + | G166: Actuel | H166: À Faire | I166: Améliorations | M166: =VLOOKUP($A$2,AVAILABLE_Upgrades_Spells[#All],MATCH(J165,AVAILABLE_Upgrades_Spells[#Headers],0)) -> 0 | N166: =VLOOKUP(IF(ISERROR(LOOKUP(MATCH(1,Paramètres!$K$6:$K$45,0),Paramètres!$A$6:$A$45)),0,LOOKUP(MATCH(1,Paramètres!$K$6:$K$45,0),Paramètres!$A$6:$A$45)),AVAILABLE_Upgrades_Spells[#All],MATCH(J165,AVAILABLE_Upgrades_Spells[#Headers],0)+1) -> 0 | P166: =IF(SUM(K168:K170)>M166,"Error",SUM(K168:K170)) -> 0 | Q166: =IF(P$166="Error","Error",M166-P166) -> 0 | R166: =IF(P$166="Error","Error",SUM(M168:M170)) -> 0 | S166: + | T166: NB | V166: NB | W166: + | X166: Coût | Y166: Temps | Z166: Coût Total | AA166: Temps Total
D167: =VLOOKUP($A$2,AVAILABLE_Upgrades_Spells[#All],MATCH(A166,AVAILABLE_Upgrades_Spells[#Headers],0)) -> 0 | E167: =VLOOKUP(IF(ISERROR(LOOKUP(MATCH(1,Paramètres!$K$6:$K$45,0),Paramètres!$A$6:$A$45)),0,LOOKUP(MATCH(1,Paramètres!$K$6:$K$45,0),Paramètres!$A$6:$A$45)),AVAILABLE_Upgrades_Spells[#All],MATCH(A166,AVAILABLE_Upgrades_Spells[#Headers],0)+1) -> 0 | G167: =IF(SUM(B169:B173)>D167,"Error",SUM(B169:B173)) -> 0 | H167: =IF(G$167="Error","Error",D167-G167) -> 0 | I167: =IF(G$167="Error","Error",SUM(D169:D173)) -> 0 | J167: + | K167: NB | M167: NB | N167: + | O167: Coût | P167: Temps | Q167: Coût Total | R167: Temps Total | S167: 1 | T167: =IF(Paramètres!AL6=0,"",Paramètres!AL6) ->  | U167: =IF(U166<>0,U166+IF(AND(T166<>"",S166<W$165),T166,0),IF(AND(T166<>"",S166<W$165),T166,0)) -> 0 | V167: =IF(W167<>"/",IF(Y$165="Error","Error",$Q$166+U167),"/") -> / | W167: =IF(Y$165="Error","Error",IF(AND($N$166<>"/",$N$166>'Paramètres - Admin'!$A2),'Paramètres - Admin'!$A3,"/")) -> / | X167: =IF(W167<>"/",VLOOKUP(W167,COSTS_Spell_Clone[#All],2),"/") -> / | Y167: =IF(W167<>"/",VLOOKUP(W167,COSTS_Spell_Clone[#All],3),"/") -> / | Z167: =IF(Y$165="Error","Error",IF(X167<>"/",V167*X167,0)) -> 0 | AA167: =IF(Y$165="Error","Error",IF(Y167<>"/",V167*Y167,0)) -> 0
A168: + | B168: NB | D168: NB | E168: + | F168: Coût | G168: Temps | H168: Coût Total | I168: Temps Total | J168: 1 | K168: =IF(Paramètres!AJ6=0,"",Paramètres!AJ6) ->  | L168: =IF(L167<>0,L167+IF(AND(K167<>"",J167<N$166),K167,0),IF(AND(K167<>"",J167<N$166),K167,0)) -> 0 | M168: =IF(N168<>"/",IF(P$166="Error","Error",$Q$166+L168),"/") -> / | N168: =IF(P$166="Error","Error",IF(AND($N$166<>"/",$N$166>'Paramètres - Admin'!$A2),'Paramètres - Admin'!$A3,"/")) -> / | O168: =IF(N168<>"/",VLOOKUP(N168,COSTS_Spell_Jump[#All],2),"/") -> / | P168: =IF(N168<>"/",VLOOKUP(N168,COSTS_Spell_Jump[#All],3),"/") -> / | Q168: =IF(P$166="Error","Error",IF(O168<>"/",M168*O168,0)) -> 0 | R168: =IF(P$166="Error","Error",IF(P168<>"/",M168*P168,0)) -> 0 | S168: 2 | T168: =IF(Paramètres!AL7=0,"",Paramètres!AL7) ->  | U168: =IF(U167<>0,U167+IF(AND(T167<>"",S167<W$165),T167,0),IF(AND(T167<>"",S167<W$165),T167,0)) -> 0 | V168: =IF(W168<>"/",IF(Y$165="Error","Error",$Q$166+U168),"/") -> / | W168: =IF(Y$165="Error","Error",IF(AND($N$166<>"/",$N$166>'Paramètres - Admin'!$A3),'Paramètres - Admin'!$A4,"/")) -> / | X168: =IF(W168<>"/",VLOOKUP(W168,COSTS_Spell_Clone[#All],2),"/") -> / | Y168: =IF(W168<>"/",VLOOKUP(W168,COSTS_Spell_Clone[#All],3),"/") -> / | Z168: =IF(Y$165="Error","Error",IF(X168<>"/",V168*X168,0)) -> 0 | AA168: =IF(Y$165="Error","Error",IF(Y168<>"/",V168*Y168,0)) -> 0
A169: 1 | B169: =IF(Paramètres!AI6=0,"",Paramètres!AI6) ->  | C169: =IF(C168<>0,C168+IF(AND(B168<>"",A168<E$167),B168,0),IF(AND(B168<>"",A168<E$167),B168,0)) -> 0 | D169: =IF(E169<>"/",IF(G$167="Error","Error",$H$167+C169),"/") -> / | E169: =IF(G$167="Error","Error",IF(AND($E$167<>"/",$E$167>'Paramètres - Admin'!$A2),'Paramètres - Admin'!$A3,"/")) -> / | F169: =IF(E169<>"/",VLOOKUP(E169,COSTS_Spell_Rage[#All],2),"/") -> / | G169: =IF(E169<>"/",VLOOKUP(E169,COSTS_Spell_Rage[#All],3),"/") -> / | H169: =IF(G$167="Error","Error",IF(F169<>"/",D169*F169,0)) -> 0 | I169: =IF(G$167="Error","Error",IF(G169<>"/",D169*G169,0)) -> 0 | J169: 2 | K169: =IF(Paramètres!AJ7=0,"",Paramètres!AJ7) ->  | L169: =IF(L168<>0,L168+IF(AND(K168<>"",J168<N$166),K168,0),IF(AND(K168<>"",J168<N$166),K168,0)) -> 0 | M169: =IF(N169<>"/",IF(P$166="Error","Error",$Q$166+L169),"/") -> / | N169: =IF(P$166="Error","Error",IF(AND($N$166<>"/",$N$166>'Paramètres - Admin'!$A3),'Paramètres - Admin'!$A4,"/")) -> / | O169: =IF(N169<>"/",VLOOKUP(N169,COSTS_Spell_Jump[#All],2),"/") -> / | P169: =IF(N169<>"/",VLOOKUP(N169,COSTS_Spell_Jump[#All],3),"/") -> / | Q169: =IF(P$166="Error","Error",IF(O169<>"/",M169*O169,0)) -> 0 | R169: =IF(P$166="Error","Error",IF(P169<>"/",M169*P169,0)) -> 0 | S169: 3 | T169: =IF(Paramètres!AL8=0,"",Paramètres!AL8) ->  | U169: =IF(U168<>0,U168+IF(AND(T168<>"",S168<W$165),T168,0),IF(AND(T168<>"",S168<W$165),T168,0)) -> 0 | V169: =IF(W169<>"/",IF(Y$165="Error","Error",$Q$166+U169),"/") -> / | W169: =IF(Y$165="Error","Error",IF(AND($N$166<>"/",$N$166>'Paramètres - Admin'!$A4),'Paramètres - Admin'!$A5,"/")) -> / | X169: =IF(W169<>"/",VLOOKUP(W169,COSTS_Spell_Clone[#All],2),"/") -> / | Y169: =IF(W169<>"/",VLOOKUP(W169,COSTS_Spell_Clone[#All],3),"/") -> / | Z169: =IF(Y$165="Error","Error",IF(X169<>"/",V169*X169,0)) -> 0 | AA169: =IF(Y$165="Error","Error",IF(Y169<>"/",V169*Y169,0)) -> 0
A170: 2 | B170: =IF(Paramètres!AI7=0,"",Paramètres!AI7) ->  | C170: =IF(C169<>0,C169+IF(AND(B169<>"",A169<E$167),B169,0),IF(AND(B169<>"",A169<E$167),B169,0)) -> 0 | D170: =IF(E170<>"/",IF(G$167="Error","Error",$H$167+C170),"/") -> / | E170: =IF(G$167="Error","Error",IF(AND($E$167<>"/",$E$167>'Paramètres - Admin'!$A3),'Paramètres - Admin'!$A4,"/")) -> / | F170: =IF(E170<>"/",VLOOKUP(E170,COSTS_Spell_Rage[#All],2),"/") -> / | G170: =IF(E170<>"/",VLOOKUP(E170,COSTS_Spell_Rage[#All],3),"/") -> / | H170: =IF(G$167="Error","Error",IF(F170<>"/",D170*F170,0)) -> 0 | I170: =IF(G$167="Error","Error",IF(G170<>"/",D170*G170,0)) -> 0 | J170: 3 | K170: =IF(Paramètres!AJ8=0,"",Paramètres!AJ8) ->  | L170: =IF(L169<>0,L169+IF(AND(K169<>"",J169<N$166),K169,0),IF(AND(K169<>"",J169<N$166),K169,0)) -> 0 | M170: =IF(N170<>"/",IF(P$166="Error","Error",$Q$166+L170),"/") -> / | N170: =IF(P$166="Error","Error",IF(AND($N$166<>"/",$N$166>'Paramètres - Admin'!$A4),'Paramètres - Admin'!$A5,"/")) -> / | O170: =IF(N170<>"/",VLOOKUP(N170,COSTS_Spell_Jump[#All],2),"/") -> / | P170: =IF(N170<>"/",VLOOKUP(N170,COSTS_Spell_Jump[#All],3),"/") -> / | Q170: =IF(P$166="Error","Error",IF(O170<>"/",M170*O170,0)) -> 0 | R170: =IF(P$166="Error","Error",IF(P170<>"/",M170*P170,0)) -> 0 | S170: 4 | T170: =IF(Paramètres!AL9=0,"",Paramètres!AL9) ->  | U170: =IF(U169<>0,U169+IF(AND(T169<>"",S169<W$165),T169,0),IF(AND(T169<>"",S169<W$165),T169,0)) -> 0 | V170: =IF(W170<>"/",IF(Y$165="Error","Error",$Q$166+U170),"/") -> / | W170: =IF(Y$165="Error","Error",IF(AND($N$166<>"/",$N$166>'Paramètres - Admin'!$A5),'Paramètres - Admin'!$A6,"/")) -> / | X170: =IF(W170<>"/",VLOOKUP(W170,COSTS_Spell_Clone[#All],2),"/") -> / | Y170: =IF(W170<>"/",VLOOKUP(W170,COSTS_Spell_Clone[#All],3),"/") -> / | Z170: =IF(Y$165="Error","Error",IF(X170<>"/",V170*X170,0)) -> 0 | AA170: =IF(Y$165="Error","Error",IF(Y170<>"/",V170*Y170,0)) -> 0
A171: 3 | B171: =IF(Paramètres!AI8=0,"",Paramètres!AI8) ->  | C171: =IF(C170<>0,C170+IF(AND(B170<>"",A170<E$167),B170,0),IF(AND(B170<>"",A170<E$167),B170,0)) -> 0 | D171: =IF(E171<>"/",IF(G$167="Error","Error",$H$167+C171),"/") -> / | E171: =IF(G$167="Error","Error",IF(AND($E$167<>"/",$E$167>'Paramètres - Admin'!$A4),'Paramètres - Admin'!$A5,"/")) -> / | F171: =IF(E171<>"/",VLOOKUP(E171,COSTS_Spell_Rage[#All],2),"/") -> / | G171: =IF(E171<>"/",VLOOKUP(E171,COSTS_Spell_Rage[#All],3),"/") -> / | H171: =IF(G$167="Error","Error",IF(F171<>"/",D171*F171,0)) -> 0 | I171: =IF(G$167="Error","Error",IF(G171<>"/",D171*G171,0)) -> 0 | P171: Total | Q171: =IF(P$166="Error","Error",SUM(Q168:Q170)) -> 0 | R171: =IF(P$166="Error","Error",SUM(R168:R170)) -> 0 | Y171: Total | Z171: =IF(Y$165="Error","Error",SUM(Z167:Z170)) -> 0 | AA171: =IF(Y$165="Error","Error",SUM(AA167:AA170)) -> 0
A172: 4 | B172: =IF(Paramètres!AI9=0,"",Paramètres!AI9) ->  | C172: =IF(C171<>0,C171+IF(AND(B171<>"",A171<E$167),B171,0),IF(AND(B171<>"",A171<E$167),B171,0)) -> 0 | D172: =IF(E172<>"/",IF(G$167="Error","Error",$H$167+C172),"/") -> / | E172: =IF(G$167="Error","Error",IF(AND($E$167<>"/",$E$167>'Paramètres - Admin'!$A5),'Paramètres - Admin'!$A6,"/")) -> / | F172: =IF(E172<>"/",VLOOKUP(E172,COSTS_Spell_Rage[#All],2),"/") -> / | G172: =IF(E172<>"/",VLOOKUP(E172,COSTS_Spell_Rage[#All],3),"/") -> / | H172: =IF(G$167="Error","Error",IF(F172<>"/",D172*F172,0)) -> 0 | I172: =IF(G$167="Error","Error",IF(G172<>"/",D172*G172,0)) -> 0
A173: 5 | B173: =IF(Paramètres!AI10=0,"",Paramètres!AI10) ->  | C173: =IF(C172<>0,C172+IF(AND(B172<>"",A172<E$167),B172,0),IF(AND(B172<>"",A172<E$167),B172,0)) -> 0 | D173: =IF(E173<>"/",IF(G$167="Error","Error",$H$167+C173),"/") -> / | E173: =IF(G$167="Error","Error",IF(AND($E$167<>"/",$E$167>'Paramètres - Admin'!$A6),'Paramètres - Admin'!$A7,"/")) -> / | F173: =IF(E173<>"/",VLOOKUP(E173,COSTS_Spell_Rage[#All],2),"/") -> / | G173: =IF(E173<>"/",VLOOKUP(E173,COSTS_Spell_Rage[#All],3),"/") -> / | H173: =IF(G$167="Error","Error",IF(F173<>"/",D173*F173,0)) -> 0 | I173: =IF(G$167="Error","Error",IF(G173<>"/",D173*G173,0)) -> 0
G174: Total | H174: =IF(G$167="Error","Error",SUM(H169:H173)) -> 0 | I174: =IF(G$167="Error","Error",SUM(I169:I173)) -> 0
A177: Améliorations de Troupes
A178: Barbare | D178: Max | E178: Max + | G178: Actuel | H178: À Faire | I178: Améliorations | J178: Ballon | M178: Max | N178: Max + | P178: Actuel | Q178: À Faire | R178: Améliorations | S178: Guérisseuse | V178: Max | W178: Max + | Y178: Actuel | Z178: À Faire | AA178: Améliorations
